Workbook

Sheet Раздел 0
B2: ФЕДЕРАЛЬНОЕ СТАТИСТИЧЕСКОЕ НАБЛЮДЕНИЕ
B4: КОНФИДЕНЦИАЛЬНОСТЬ ГАРАНТИРУЕТСЯ ПОЛУЧАТЕЛЕМ ИНФОРМАЦИИ
B6: Нарушение порядка предоставления первичных статистических данных или несвоевременное предоставление этих данных, либо предоставление недостоверных первичных статистических данных влечет ответственность, установленную Кодексом Российской Федерации об административных правонарушениях
B8: Обязанность предоставления административных данных предусмотрена статьей 8 Федерального закона от 29 ноября 2007 г. № 282-ФЗ «Об официальном статистическом учете и системе государственной статистики в Российской Федерации»
B10: СВЕДЕНИЯ ПО ПОДГОТОВКЕ СПОРТИВНОГО РЕЗЕРВА
B11: по состоянию на 31 декабря 2025 г.
B13: Предоставляют: | K13: Сроки предоставления | N13: Форма № 5-ФК (сводная)
B14: юридические лица государственной, муниципальной и иной форм собственности (кроме субъектов малого и среднего предпринимательства) – организации, реализующие дополнительные образовательные программы спортивной подготовки или обеспечивающие подготовку спортивного резерва (спортивные школы (СШ), спортивные школы олимпийского резерва (СШОР), училища олимпийского резерва (УОР - колледжи, техникумы), центры спортивной подготовки (ЦСП), другие организации): – органу местного самоуправления муниципального образования, уполномоченному органу публичной власти федеральной территории «Сириус» (схема предоставления приведена в указаниях по заполнению формы); органы местного самоуправления муниципального образования (схема предоставления приведена в указаниях по заполнению формы): – органу исполнительной власти субъекта Российской Федерации в области физической культуры и спорта; органы исполнительной власти субъектов Российской Федерации в области физической культуры и спорта, уполномоченный орган публичной власти федеральной территории «Сириус»: – Министерству спорта Российской Федерации | K14: до 16 января после отчетного периода до 19 января после отчетного периода до 26 января после отчетного периода | N14: Приказ Росстата: Об утверждении формы от 12.09.2025 № 477 О внесении изменений (при наличии) от __________ № ___ от __________ № ___
N16: Годовая
B20: Наименование отчитывающейся организации | H20: Министерство спорта Российской Федерации
B21: Почтовый адрес | E21: 105064 г.Москва ул. Казакова, д. 18
B22: Код формы по ОКУД | E22: Код
E23: отчитывающейся организации по ОКПО (для обособленного подразделения и головного подразделения юридического лица – идентификационный номер)
B24: 1 | E24: 2 | I24: 3 | M24: 4
B25: 0609403 | E25: 00083888

Sheet Раздел 1
B1: Раздел I. Число организаций, единица
B2: Ведомственная принадлежность | C2: № строки | D2: Число организаций и обособленных структурных подразделений – всего | E2: в том числе по наименованию организации:
E3: СШ | F3: СШОР | G3: УОР | H3: ЦСП | I3: Другие организации
B4: 1 | C4: 2 | D4: 3 | E4: 4 | F4: 5 | G4: 6 | H4: 7 | I4: 8
B5: Организации в ведении органов управления в сфере физической культуры и спорта | C5: 01 | D5: 3530 | E5: 2245 | F5: 986 | G5: 53 | H5: 130 | I5: 116
B6: Обособленные структурные подразделения в сфере физической культуры и спорта, реализующие дополнительные общеобразовательные программы в области физической культуры и спорта | C6: 02 | D6: 131 | E6: 61 | F6: 68 | G6: 0 | H6: 0 | I6: 2
B7: Организации в ведении органов управления в сфере образования | C7: 03 | D7: 852 | E7: 820 | F7: 2 | G7: 0 | H7: 0 | I7: 30
B8: Обособленные структурные подразделения в сфере образования, реализующие дополнительные общеобразовательные программы в области физической культуры и спорта | C8: 04 | D8: 13 | E8: 13 | F8: 0 | G8: 0 | H8: 0 | I8: 0
B9: Организации другой ведомственной принадлежности | C9: 05 | D9: 124 | E9: 63 | F9: 0 | G9: 0 | H9: 0 | I9: 61
B10: Обособленные структурные подразделения другой ведомственной принадлежности, реализующие дополнительные общеобразовательные программы в области физической культуры и спорта | C10: 06 | D10: 22 | E10: 20 | F10: 0 | G10: 0 | H10: 0 | I10: 2
B11: Частные организации (из стр. 05) | C11: 07 | D11: 52 | E11: 22 | F11: 0 | G11: 0 | H11: 0 | I11: 30
B12: Итого организаций | C12: 08 | D12: 4506 | E12: 3128 | F12: 988 | G12: 53 | H12: 130 | I12: 207
B13: Итого обособленных структурных подразделений, реализующих дополнительные общеобразовательные программы в области физической культуры и спорта | C13: 09 | D13: 166 | E13: 94 | F13: 68 | G13: 0 | H13: 0 | I13: 4
B15: ОГРН | C15: 10 | D15: 112774652084
B17: Виды правовых образований | C17: 11 | D17: Публичные правовые образования | H17: Иные правовые образования (в том числе частные)
D18: Российская Федерация | E18: Субъект Российской Федерации | F18: Муниципальное образование
D19: 20 | E19: 1148 | F19: 3244 | H19: 94

Sheet Раздел 2
A1: Раздел II. Численность обучающихся
A2: Виды спорта | B2: № строки | C2: Число отделений по видам спорта, единица | D2: Базовый вид спорта, единица | E2: Численность обучающихся на 31 декабря отчетного периода, человек
E3: Итого обучающихся | F3: Обучающиеся по дополнительным общеобразовательным программам в области физической культуры и спорта | W3: из гр. 5:
F4: Всего обучающихся по дополнительным образовательным программам спортивной подготовки | G4: по дополнительным образовательным программам спортивной подготовки | K4: по возрастам (из гр. 6) | N4: в платных группах (из гр. 6) | R4: по дополнительным общеразвивающим программам (спортивно-оздоровительный этап) | S4: в платных группах (из гр. 18) | T4: по возрасту от 5 до 17 лет (из гр. 18) | U4: Спортсмены, спортсмены-инструкторы (из гр. 6) | W4: мальчиков, юношей, юниоров, мужчин | X4: девочек, девушек, юниорок, женщин
G5: начальной подготовки | H5: учебно - тренировочный | I5: совершен-ствования спортивного мастерства | J5: высшего спортивного мастерства | K5: от 5 до 17 лет | L5: от 18 до 22 лет | M5: старше 22 лет | N5: начальной подготовки | O5: учебно - тренировочный | P5: совершен-ствования спортивного мастерства | Q5: высшего спортивного мастерства | U5: Всего | V5: в том числе трудоустроенные в ЦСП (из гр.21)
A6: 1 | B6: 2 | C6: 3 | D6: 4 | E6: 5 | F6: 6 | G6: 7 | H6: 8 | I6: 9 | J6: 10 | K6: 11 | L6: 12 | M6: 13 | N6: 14 | O6: 15 | P6: 16 | Q6: 17 | R6: 18 | S6: 19 | T6: 20 | U6: 21 | V6: 22 | W6: 23 | X6: 24
A7: Авиамодельный спорт | B7: 01 | C7: 9 | D7: 0 | E7: 1213 | F7: 619 | G7: 370 | H7: 241 | I7: 8 | J7: 0 | K7: 599 | L7: 11 | M7: 9 | N7: 0 | O7: 0 | P7: 0 | Q7: 0 | R7: 594 | S7: 0 | T7: 594 | U7: 0 | V7: 0 | W7: 1096 | X7: 117
A8: Авиационные гонки | B8: 02 | C8: 0 | D8: 0 | E8: 0 | F8: 0 | G8: 0 | H8: 0 | I8: 0 | J8: 0 | K8: 0 | L8: 0 | M8: 0 | N8: 0 | O8: 0 | P8: 0 | Q8: 0 | R8: 0 | S8: 0 | T8: 0 | U8: 0 | V8: 0 | W8: 0 | X8: 0
A9: Автомобильный спорт | B9: 03 | C9: 34 | D9: 0 | E9: 3314 | F9: 2238 | G9: 1551 | H9: 684 | I9: 3 | J9: 0 | K9: 2181 | L9: 51 | M9: 6 | N9: 0 | O9: 0 | P9: 0 | Q9: 0 | R9: 1076 | S9: 160 | T9: 1059 | U9: 0 | V9: 0 | W9: 2866 | X9: 448
A10: Автомодельный спорт | B10: 04 | C10: 1 | D10: 0 | E10: 40 | F10: 40 | G10: 5 | H10: 35 | I10: 0 | J10: 0 | K10: 40 | L10: 0 | M10: 0 | N10: 0 | O10: 0 | P10: 0 | Q10: 0 | R10: 0 | S10: 0 | T10: 0 | U10: 0 | V10: 0 | W10: 37 | X10: 3
A11: Айкидо | B11: 05 | C11: 22 | D11: 0 | E11: 1048 | F11: 584 | G11: 327 | H11: 211 | I11: 42 | J11: 4 | K11: 505 | L11: 74 | M11: 5 | N11: 0 | O11: 0 | P11: 0 | Q11: 0 | R11: 464 | S11: 0 | T11: 464 | U11: 1 | V11: 0 | W11: 673 | X11: 375
A12: Акробатический рок-н-ролл | B12: 06 | C12: 52 | D12: 3 | E12: 6267 | F12: 5413 | G12: 2064 | H12: 2794 | I12: 495 | J12: 60 | K12: 5076 | L12: 259 | M12: 78 | N12: 0 | O12: 0 | P12: 0 | Q12: 0 | R12: 854 | S12: 34 | T12: 813 | U12: 17 | V12: 16 | W12: 1263 | X12: 5004
A13: Альпинизм - всего | B13: 07 | C13: 12 | D13: 3 | E13: 259 | F13: 235 | G13: 53 | H13: 125 | I13: 30 | J13: 27 | K13: 82 | L13: 68 | M13: 85 | N13: 0 | O13: 0 | P13: 0 | Q13: 0 | R13: 24 | S13: 0 | T13: 24 | U13: 25 | V13: 13 | W13: 152 | X13: 107
A14: в том числе: Ски-альпинизм | B14: 08 | C14: 8 | D14: 0 | E14: 199 | F14: 175 | G14: 53 | H14: 94 | I14: 17 | J14: 11 | K14: 54 | L14: 52 | M14: 69 | N14: 0 | O14: 0 | P14: 0 | Q14: 0 | R14: 24 | S14: 0 | T14: 24 | U14: 19 | V14: 7 | W14: 121 | X14: 78
A15: Иные дисциплины вида спорта "альпинизм" | B15: 09 | C15: 4 | D15: 0 | E15: 60 | F15: 60 | G15: 0 | H15: 31 | I15: 13 | J15: 16 | K15: 28 | L15: 16 | M15: 16 | N15: 0 | O15: 0 | P15: 0 | Q15: 0 | R15: 0 | S15: 0 | T15: 0 | U15: 6 | V15: 6 | W15: 31 | X15: 29
A16: Американский футбол | B16: 10 | C16: 3 | D16: 0 | E16: 54 | F16: 40 | G16: 30 | H16: 0 | I16: 10 | J16: 0 | K16: 15 | L16: 13 | M16: 12 | N16: 0 | O16: 0 | P16: 0 | Q16: 0 | R16: 14 | S16: 0 | T16: 14 | U16: 0 | V16: 0 | W16: 46 | X16: 8
A17: Армейский рукопашный бой | B17: 11 | C17: 5 | D17: 0 | E17: 210 | F17: 160 | G17: 86 | H17: 74 | I17: 0 | J17: 0 | K17: 151 | L17: 8 | M17: 1 | N17: 0 | O17: 0 | P17: 0 | Q17: 0 | R17: 50 | S17: 0 | T17: 50 | U17: 0 | V17: 0 | W17: 166 | X17: 44
A18: Армейское тактико-стрелковое многоборье | B18: 12 | C18: 0 | D18: 0 | E18: 0 | F18: 0 | G18: 0 | H18: 0 | I18: 0 | J18: 0 | K18: 0 | L18: 0 | M18: 0 | N18: 0 | O18: 0 | P18: 0 | Q18: 0 | R18: 0 | S18: 0 | T18: 0 | U18: 0 | V18: 0 | W18: 0 | X18: 0
A19: Армрестлинг | B19: 13 | C19: 127 | D19: 1 | E19: 6478 | F19: 5226 | G19: 2372 | H19: 2449 | I19: 311 | J19: 94 | K19: 3837 | L19: 933 | M19: 456 | N19: 0 | O19: 0 | P19: 0 | Q19: 0 | R19: 1252 | S19: 27 | T19: 1077 | U19: 371 | V19: 12 | W19: 5446 | X19: 1032
A20: Бадминтон | B20: 14 | C20: 166 | D20: 12 | E20: 14443 | F20: 11597 | G20: 7132 | H20: 4076 | I20: 330 | J20: 59 | K20: 11132 | L20: 388 | M20: 77 | N20: 67 | O20: 0 | P20: 0 | Q20: 0 | R20: 2846 | S20: 96 | T20: 2756 | U20: 23 | V20: 19 | W20: 6774 | X20: 7669
A21: Баскетбол - всего | B21: 15 | C21: 1161 | D21: 20 | E21: 148083 | F21: 108884 | G21: 57653 | H21: 49472 | I21: 1515 | J21: 244 | K21: 106658 | L21: 1938 | M21: 288 | N21: 31 | O21: 24 | P21: 0 | Q21: 0 | R21: 39199 | S21: 496 | T21: 38015 | U21: 101 | V21: 65 | W21: 96433 | X21: 51650
A22: в том числе: Баскетбол (муж.) | B22: 16 | C22: 1089 | D22: 0 | E22: 95739 | F22: 71320 | G22: 37810 | H22: 32506 | I22: 899 | J22: 105 | K22: 69711 | L22: 1436 | M22: 173 | N22: 23 | O22: 23 | P22: 0 | Q22: 0 | R22: 24419 | S22: 401 | T22: 23607 | U22: 38 | V22: 18 | W22: 95734 | X22: 5
A23: Баскетбол (жен.) | B23: 17 | C23: 888 | D23: 0 | E23: 51211 | F23: 37266 | G23: 19750 | H23: 16830 | I23: 578 | J23: 108 | K23: 36758 | L23: 435 | M23: 73 | N23: 8 | O23: 1 | P23: 0 | Q23: 0 | R23: 13945 | S23: 95 | T23: 13575 | U23: 63 | V23: 47 | W23: 0 | X23: 51211
A24: Баскетбол 3х3 | B24: 18 | C24: 18 | D24: 0 | E24: 942 | F24: 228 | G24: 60 | H24: 99 | I24: 38 | J24: 31 | K24: 119 | L24: 67 | M24: 42 | N24: 0 | O24: 0 | P24: 0 | Q24: 0 | R24: 714 | S24: 0 | T24: 712 | U24: 0 | V24: 0 | W24: 600 | X24: 342
A25: Интерактивный баскетбол | B25: 19 | C25: 1 | D25: 0 | E25: 37 | F25: 0 | G25: 0 | H25: 0 | I25: 0 | J25: 0 | K25: 0 | L25: 0 | M25: 0 | N25: 0 | O25: 0 | P25: 0 | Q25: 0 | R25: 37 | S25: 0 | T25: 37 | U25: 0 | V25: 0 | W25: 10 | X25: 27
A26: Иные дисциплины вида спорта "баскетбол" | B26: 20 | C26: 5 | D26: 0 | E26: 154 | F26: 70 | G26: 33 | H26: 37 | I26: 0 | J26: 0 | K26: 70 | L26: 0 | M26: 0 | N26: 0 | O26: 0 | P26: 0 | Q26: 0 | R26: 84 | S26: 0 | T26: 84 | U26: 0 | V26: 0 | W26: 89 | X26: 65
A27: Бейсбол | B27: 21 | C27: 15 | D27: 1 | E27: 1096 | F27: 1032 | G27: 365 | H27: 472 | I27: 80 | J27: 115 | K27: 839 | L27: 121 | M27: 72 | N27: 0 | O27: 0 | P27: 0 | Q27: 0 | R27: 64 | S27: 0 | T27: 57 | U27: 0 | V27: 0 | W27: 1014 | X27: 82
A28: Биатлон | B28: 22 | C28: 178 | D28: 23 | E28: 16588 | F28: 14548 | G28: 7596 | H28: 6355 | I28: 383 | J28: 214 | K28: 13539 | L28: 882 | M28: 127 | N28: 93 | O28: 35 | P28: 3 | Q28: 0 | R28: 2040 | S28: 28 | T28: 1992 | U28: 157 | V28: 118 | W28: 10406 | X28: 6182
A29: Бильярдный спорт | B29: 23 | C29: 27 | D29: 0 | E29: 1731 | F29: 1518 | G29: 810 | H29: 579 | I29: 99 | J29: 30 | K29: 1362 | L29: 124 | M29: 32 | N29: 0 | O29: 0 | P29: 0 | Q29: 0 | R29: 213 | S29: 0 | T29: 210 | U29: 3 | V29: 3 | W29: 1232 | X29: 499
A30: Бобслей - всего | B30: 24 | C30: 13 | D30: 6 | E30: 283 | F30: 283 | G30: 92 | H30: 132 | I30: 35 | J30: 24 | K30: 184 | L30: 39 | M30: 60 | N30: 0 | O30: 0 | P30: 0 | Q30: 0 | R30: 0 | S30: 0 | T30: 0 | U30: 21 | V30: 21 | W30: 168 | X30: 115
A31: в том числе: Скелетон | B31: 25 | C31: 5 | D31: 0 | E31: 154 | F31: 154 | G31: 80 | H31: 63 | I31: 7 | J31: 4 | K31: 138 | L31: 10 | M31: 6 | N31: 0 | O31: 0 | P31: 0 | Q31: 0 | R31: 0 | S31: 0 | T31: 0 | U31: 4 | V31: 4 | W31: 85 | X31: 69
A32: Экипаж | B32: 26 | C32: 7 | D32: 0 | E32: 97 | F32: 97 | G32: 12 | H32: 49 | I32: 26 | J32: 10 | K32: 43 | L32: 23 | M32: 31 | N32: 0 | O32: 0 | P32: 0 | Q32: 0 | R32: 0 | S32: 0 | T32: 0 | U32: 8 | V32: 8 | W32: 63 | X32: 34
A33: Монобоб | B33: 27 | C33: 2 | D33: 0 | E33: 21 | F33: 21 | G33: 0 | H33: 20 | I33: 0 | J33: 1 | K33: 3 | L33: 5 | M33: 13 | N33: 0 | O33: 0 | P33: 0 | Q33: 0 | R33: 0 | S33: 0 | T33: 0 | U33: 7 | V33: 7 | W33: 13 | X33: 8
A34: Иные дисциплины вида спорта "бобслей" | B34: 28 | C34: 2 | D34: 0 | E34: 11 | F34: 11 | G34: 0 | H34: 0 | I34: 2 | J34: 9 | K34: 0 | L34: 1 | M34: 10 | N34: 0 | O34: 0 | P34: 0 | Q34: 0 | R34: 0 | S34: 0 | T34: 0 | U34: 2 | V34: 2 | W34: 7 | X34: 4
A35: Бодибилдинг | B35: 29 | C35: 15 | D35: 0 | E35: 1809 | F35: 757 | G35: 651 | H35: 102 | I35: 3 | J35: 1 | K35: 492 | L35: 47 | M35: 218 | N35: 0 | O35: 0 | P35: 0 | Q35: 0 | R35: 1052 | S35: 0 | T35: 1045 | U35: 1 | V35: 1 | W35: 1417 | X35: 392
A36: Бокс | B36: 30 | C36: 1188 | D36: 62 | E36: 143447 | F36: 118729 | G36: 70462 | H36: 44691 | I36: 2899 | J36: 677 | K36: 107631 | L36: 9166 | M36: 1932 | N36: 125 | O36: 13 | P36: 0 | Q36: 0 | R36: 24718 | S36: 1355 | T36: 23213 | U36: 198 | V36: 151 | W36: 133985 | X36: 9462
A37: Борьба на поясах | B37: 31 | C37: 66 | D37: 0 | E37: 3952 | F37: 3212 | G37: 1752 | H37: 1209 | I37: 201 | J37: 50 | K37: 2671 | L37: 370 | M37: 171 | N37: 0 | O37: 0 | P37: 0 | Q37: 0 | R37: 740 | S37: 0 | T37: 658 | U37: 16 | V37: 14 | W37: 3439 | X37: 513
A38: Боулинг | B38: 32 | C38: 0 | D38: 0 | E38: 0 | F38: 0 | G38: 0 | H38: 0 | I38: 0 | J38: 0 | K38: 0 | L38: 0 | M38: 0 | N38: 0 | O38: 0 | P38: 0 | Q38: 0 | R38: 0 | S38: 0 | T38: 0 | U38: 0 | V38: 0 | W38: 0 | X38: 0
A39: Боулспорт | B39: 33 | C39: 0 | D39: 0 | E39: 0 | F39: 0 | G39: 0 | H39: 0 | I39: 0 | J39: 0 | K39: 0 | L39: 0 | M39: 0 | N39: 0 | O39: 0 | P39: 0 | Q39: 0 | R39: 0 | S39: 0 | T39: 0 | U39: 0 | V39: 0 | W39: 0 | X39: 0
A40: Брейкинг | B40: 34 | C40: 13 | D40: 0 | E40: 678 | F40: 591 | G40: 365 | H40: 210 | I40: 15 | J40: 1 | K40: 572 | L40: 13 | M40: 6 | N40: 1 | O40: 0 | P40: 0 | Q40: 0 | R40: 87 | S40: 2 | T40: 87 | U40: 0 | V40: 0 | W40: 531 | X40: 147
A41: Велосипедный спорт - всего | B41: 35 | C41: 194 | D41: 27 | E41: 17836 | F41: 16331 | G41: 10359 | H41: 4678 | I41: 926 | J41: 368 | K41: 15076 | L41: 982 | M41: 273 | N41: 0 | O41: 0 | P41: 0 | Q41: 0 | R41: 1505 | S41: 0 | T41: 1490 | U41: 170 | V41: 135 | W41: 13234 | X41: 4602
A42: в том числе: BMX (гонка, эстафета) | B42: 36 | C42: 28 | D42: 0 | E42: 2790 | F42: 2667 | G42: 1804 | H42: 719 | I42: 115 | J42: 29 | K42: 2563 | L42: 91 | M42: 13 | N42: 0 | O42: 0 | P42: 0 | Q42: 0 | R42: 123 | S42: 0 | T42: 120 | U42: 16 | V42: 13 | W42: 2374 | X42: 416
A43: BMX - фристайл | B43: 37 | C43: 23 | D43: 0 | E43: 505 | F43: 443 | G43: 252 | H43: 132 | I43: 46 | J43: 13 | K43: 317 | L43: 104 | M43: 22 | N43: 0 | O43: 0 | P43: 0 | Q43: 0 | R43: 62 | S43: 0 | T43: 62 | U43: 2 | V43: 2 | W43: 448 | X43: 57
A44: Маунтинбайк | B44: 38 | C44: 86 | D44: 0 | E44: 4769 | F44: 4329 | G44: 3045 | H44: 1102 | I44: 117 | J44: 65 | K44: 4063 | L44: 210 | M44: 56 | N44: 0 | O44: 0 | P44: 0 | Q44: 0 | R44: 440 | S44: 0 | T44: 434 | U44: 32 | V44: 32 | W44: 3503 | X44: 1266
A45: Трек | B45: 39 | C45: 27 | D45: 0 | E45: 1524 | F45: 1501 | G45: 691 | H45: 447 | I45: 245 | J45: 118 | K45: 1247 | L45: 195 | M45: 59 | N45: 0 | O45: 0 | P45: 0 | Q45: 0 | R45: 23 | S45: 0 | T45: 23 | U45: 68 | V45: 38 | W45: 1077 | X45: 447
A46: Шоссе | B46: 40 | C46: 122 | D46: 0 | E46: 8248 | F46: 7391 | G46: 4567 | H46: 2278 | I46: 403 | J46: 143 | K46: 6886 | L46: 382 | M46: 123 | N46: 0 | O46: 0 | P46: 0 | Q46: 0 | R46: 857 | S46: 0 | T46: 851 | U46: 52 | V46: 50 | W46: 5832 | X46: 2416
A47: Вертолетный спорт | B47: 41 | C47: 0 | D47: 0 | E47: 0 | F47: 0 | G47: 0 | H47: 0 | I47: 0 | J47: 0 | K47: 0 | L47: 0 | M47: 0 | N47: 0 | O47: 0 | P47: 0 | Q47: 0 | R47: 0 | S47: 0 | T47: 0 | U47: 0 | V47: 0 | W47: 0 | X47: 0
A48: Водное поло - всего | B48: 42 | C48: 62 | D48: 11 | E48: 7537 | F48: 7027 | G48: 3456 | H48: 3059 | I48: 368 | J48: 144 | K48: 6707 | L48: 241 | M48: 79 | N48: 0 | O48: 0 | P48: 0 | Q48: 0 | R48: 510 | S48: 4 | T48: 487 | U48: 28 | V48: 28 | W48: 6146 | X48: 1391
A49: в том числе: Водное поло (муж.) | B49: 43 | C49: 48 | D49: 0 | E49: 5805 | F49: 5514 | G49: 2647 | H49: 2531 | I49: 269 | J49: 67 | K49: 5287 | L49: 179 | M49: 48 | N49: 0 | O49: 0 | P49: 0 | Q49: 0 | R49: 291 | S49: 4 | T49: 278 | U49: 22 | V49: 22 | W49: 5805 | X49: 0
A50: Водное поло (жен.) | B50: 44 | C50: 34 | D50: 0 | E50: 1309 | F50: 1157 | G50: 625 | H50: 376 | I50: 91 | J50: 65 | K50: 1072 | L50: 54 | M50: 31 | N50: 0 | O50: 0 | P50: 0 | Q50: 0 | R50: 152 | S50: 0 | T50: 147 | U50: 6 | V50: 6 | W50: 0 | X50: 1309
A51: Иные дисциплины вида спорта "водное поло" | B51: 45 | C51: 4 | D51: 0 | E51: 423 | F51: 356 | G51: 184 | H51: 152 | I51: 8 | J51: 12 | K51: 348 | L51: 8 | M51: 0 | N51: 0 | O51: 0 | P51: 0 | Q51: 0 | R51: 67 | S51: 0 | T51: 62 | U51: 0 | V51: 0 | W51: 341 | X51: 82
A52: Воднолыжный спорт | B52: 46 | C52: 7 | D52: 0 | E52: 349 | F52: 330 | G52: 118 | H52: 159 | I52: 42 | J52: 11 | K52: 283 | L52: 28 | M52: 19 | N52: 0 | O52: 0 | P52: 0 | Q52: 0 | R52: 19 | S52: 0 | T52: 19 | U52: 3 | V52: 3 | W52: 182 | X52: 167
A53: Водно-моторный спорт | B53: 47 | C53: 8 | D53: 1 | E53: 251 | F53: 221 | G53: 83 | H53: 103 | I53: 28 | J53: 7 | K53: 184 | L53: 21 | M53: 16 | N53: 0 | O53: 0 | P53: 0 | Q53: 0 | R53: 30 | S53: 0 | T53: 27 | U53: 1 | V53: 0 | W53: 186 | X53: 65
A54: Водно-спасательное многоборье | B54: 48 | C54: 0 | D54: 0 | E54: 0 | F54: 0 | G54: 0 | H54: 0 | I54: 0 | J54: 0 | K54: 0 | L54: 0 | M54: 0 | N54: 0 | O54: 0 | P54: 0 | Q54: 0 | R54: 0 | S54: 0 | T54: 0 | U54: 0 | V54: 0 | W54: 0 | X54: 0
A55: Военно-прикладной спорт | B55: 49 | C55: 3 | D55: 0 | E55: 6731 | F55: 6663 | G55: 6629 | H55: 0 | I55: 33 | J55: 1 | K55: 0 | L55: 3320 | M55: 3343 | N55: 0 | O55: 0 | P55: 0 | Q55: 0 | R55: 68 | S55: 0 | T55: 64 | U55: 0 | V55: 0 | W55: 6043 | X55: 688
A56: Военно-спортивное многоборье | B56: 50 | C56: 3 | D56: 0 | E56: 95 | F56: 15 | G56: 15 | H56: 0 | I56: 0 | J56: 0 | K56: 15 | L56: 0 | M56: 0 | N56: 0 | O56: 0 | P56: 0 | Q56: 0 | R56: 80 | S56: 0 | T56: 80 | U56: 0 | V56: 0 | W56: 68 | X56: 27
A57: Воздухоплавательный спорт | B57: 51 | C57: 0 | D57: 0 | E57: 0 | F57: 0 | G57: 0 | H57: 0 | I57: 0 | J57: 0 | K57: 0 | L57: 0 | M57: 0 | N57: 0 | O57: 0 | P57: 0 | Q57: 0 | R57: 0 | S57: 0 | T57: 0 | U57: 0 | V57: 0 | W57: 0 | X57: 0
A58: Воздушная гимнастика | B58: 52 | C58: 3 | D58: 0 | E58: 72 | F58: 0 | G58: 0 | H58: 0 | I58: 0 | J58: 0 | K58: 0 | L58: 0 | M58: 0 | N58: 0 | O58: 0 | P58: 0 | Q58: 0 | R58: 72 | S58: 15 | T58: 72 | U58: 0 | V58: 0 | W58: 0 | X58: 72
A59: Воздушно-силовая атлетика | B59: 53 | C59: 5 | D59: 0 | E59: 162 | F59: 45 | G59: 45 | H59: 0 | I59: 0 | J59: 0 | K59: 26 | L59: 12 | M59: 7 | N59: 0 | O59: 0 | P59: 0 | Q59: 0 | R59: 117 | S59: 0 | T59: 117 | U59: 0 | V59: 0 | W59: 146 | X59: 16
A60: Волейбол - всего | B60: 54 | C60: 1474 | D60: 19 | E60: 183943 | F60: 123047 | G60: 70492 | H60: 50759 | I60: 1457 | J60: 339 | K60: 118817 | L60: 3404 | M60: 826 | N60: 54 | O60: 58 | P60: 0 | Q60: 0 | R60: 60896 | S60: 1214 | T60: 59482 | U60: 96 | V60: 74 | W60: 80761 | X60: 103182
A61: в том числе: Волейбол (муж.) | B61: 55 | C61: 1222 | D61: 0 | E61: 80292 | F61: 52520 | G61: 29976 | H61: 21745 | I61: 635 | J61: 164 | K61: 49882 | L61: 2072 | M61: 566 | N61: 0 | O61: 23 | P61: 0 | Q61: 0 | R61: 27772 | S61: 426 | T61: 27088 | U61: 22 | V61: 14 | W61: 80292 | X61: 0
A62: Волейбол (жен.) | B62: 56 | C62: 1344 | D62: 0 | E62: 103089 | F62: 70058 | G62: 40382 | H62: 28768 | I62: 772 | J62: 136 | K62: 68570 | L62: 1250 | M62: 238 | N62: 54 | O62: 35 | P62: 0 | Q62: 0 | R62: 33031 | S62: 788 | T62: 32301 | U62: 70 | V62: 56 | W62: 222 | X62: 102867
A63: Пляжный волейбол (муж.) | B63: 57 | C63: 17 | D63: 0 | E63: 247 | F63: 194 | G63: 63 | H63: 89 | I63: 20 | J63: 22 | K63: 142 | L63: 40 | M63: 12 | N63: 0 | O63: 0 | P63: 0 | Q63: 0 | R63: 53 | S63: 0 | T63: 53 | U63: 0 | V63: 0 | W63: 247 | X63: 0
A64: Пляжный волейбол (жен.) | B64: 58 | C64: 18 | D64: 0 | E64: 309 | F64: 269 | G64: 71 | H64: 154 | I64: 27 | J64: 17 | K64: 220 | L64: 42 | M64: 7 | N64: 0 | O64: 0 | P64: 0 | Q64: 0 | R64: 40 | S64: 0 | T64: 40 | U64: 4 | V64: 4 | W64: 0 | X64: 309
A65: Волейбол на снегу | B65: 59 | C65: 1 | D65: 0 | E65: 6 | F65: 6 | G65: 0 | H65: 3 | I65: 3 | J65: 0 | K65: 3 | L65: 0 | M65: 3 | N65: 0 | O65: 0 | P65: 0 | Q65: 0 | R65: 0 | S65: 0 | T65: 0 | U65: 0 | V65: 0 | W65: 0 | X65: 6
A66: Восточное боевое единоборство | B66: 60 | C66: 80 | D66: 1 | E66: 6741 | F66: 5846 | G66: 3311 | H66: 2301 | I66: 189 | J66: 45 | K66: 5515 | L66: 273 | M66: 58 | N66: 0 | O66: 0 | P66: 0 | Q66: 0 | R66: 895 | S66: 77 | T66: 872 | U66: 10 | V66: 6 | W66: 5023 | X66: 1718
A67: Всестилевое каратэ | B67: 61 | C67: 111 | D67: 2 | E67: 9030 | F67: 7301 | G67: 4235 | H67: 2830 | I67: 196 | J67: 40 | K67: 6914 | L67: 320 | M67: 67 | N67: 0 | O67: 0 | P67: 0 | Q67: 0 | R67: 1729 | S67: 84 | T67: 1692 | U67: 27 | V67: 18 | W67: 6848 | X67: 2182
A68: Гандбол - всего | B68: 62 | C68: 161 | D68: 12 | E68: 23809 | F68: 19407 | G68: 8099 | H68: 10369 | I68: 712 | J68: 227 | K68: 18727 | L68: 545 | M68: 135 | N68: 13 | O68: 0 | P68: 0 | Q68: 0 | R68: 4402 | S68: 85 | T68: 4357 | U68: 187 | V68: 186 | W68: 13390 | X68: 10419
A69: в том числе: Гандбол (муж.) | B69: 63 | C69: 141 | D69: 0 | E69: 13385 | F69: 10773 | G69: 4538 | H69: 5730 | I69: 395 | J69: 110 | K69: 10339 | L69: 337 | M69: 97 | N69: 13 | O69: 0 | P69: 0 | Q69: 0 | R69: 2612 | S69: 50 | T69: 2572 | U69: 95 | V69: 94 | W69: 13385 | X69: 0
A70: Гандбол (жен.) | B70: 64 | C70: 121 | D70: 0 | E70: 10407 | F70: 8617 | G70: 3561 | H70: 4639 | I70: 305 | J70: 112 | K70: 8376 | L70: 203 | M70: 38 | N70: 0 | O70: 0 | P70: 0 | Q70: 0 | R70: 1790 | S70: 35 | T70: 1785 | U70: 92 | V70: 92 | W70: 0 | X70: 10407
A71: Пляжный гандбол | B71: 65 | C71: 1 | D71: 0 | E71: 17 | F71: 17 | G71: 0 | H71: 0 | I71: 12 | J71: 5 | K71: 12 | L71: 5 | M71: 0 | N71: 0 | O71: 0 | P71: 0 | Q71: 0 | R71: 0 | S71: 0 | T71: 0 | U71: 0 | V71: 0 | W71: 5 | X71: 12
A72: Гиревой спорт | B72: 66 | C72: 256 | D72: 2 | E72: 10542 | F72: 7104 | G72: 3502 | H72: 3040 | I72: 380 | J72: 182 | K72: 5841 | L72: 824 | M72: 439 | N72: 0 | O72: 0 | P72: 0 | Q72: 0 | R72: 3438 | S72: 43 | T72: 3229 | U72: 29 | V72: 22 | W72: 8619 | X72: 1923
A73: Го | B73: 67 | C73: 10 | D73: 0 | E73: 391 | F73: 305 | G73: 199 | H73: 100 | I73: 3 | J73: 3 | K73: 298 | L73: 3 | M73: 4 | N73: 0 | O73: 0 | P73: 0 | Q73: 0 | R73: 86 | S73: 3 | T73: 85 | U73: 0 | V73: 0 | W73: 248 | X73: 143
A74: Гольф | B74: 68 | C74: 10 | D74: 2 | E74: 911 | F74: 705 | G74: 274 | H74: 397 | I74: 26 | J74: 8 | K74: 631 | L74: 61 | M74: 13 | N74: 0 | O74: 0 | P74: 0 | Q74: 0 | R74: 206 | S74: 0 | T74: 203 | U74: 2 | V74: 2 | W74: 523 | X74: 388
A75: Гонки дронов (беспилотных воздушных судов) - всего | B75: 69 | C75: 7 | D75: 0 | E75: 281 | F75: 218 | G75: 212 | H75: 6 | I75: 0 | J75: 0 | K75: 168 | L75: 45 | M75: 5 | N75: 0 | O75: 0 | P75: 0 | Q75: 0 | R75: 63 | S75: 0 | T75: 62 | U75: 0 | V75: 0 | W75: 260 | X75: 21
A76: в том числе: Класс 75 мм | B76: 70 | C76: 6 | D76: 0 | E76: 258 | F76: 205 | G76: 199 | H76: 6 | I76: 0 | J76: 0 | K76: 158 | L76: 42 | M76: 5 | N76: 0 | O76: 0 | P76: 0 | Q76: 0 | R76: 53 | S76: 0 | T76: 52 | U76: 0 | V76: 0 | W76: 238 | X76: 20
A77: Класс 200 мм | B77: 71 | C77: 0 | D77: 0 | E77: 0 | F77: 0 | G77: 0 | H77: 0 | I77: 0 | J77: 0 | K77: 0 | L77: 0 | M77: 0 | N77: 0 | O77: 0 | P77: 0 | Q77: 0 | R77: 0 | S77: 0 | T77: 0 | U77: 0 | V77: 0 | W77: 0 | X77: 0
A78: Класс 330 мм | B78: 72 | C78: 0 | D78: 0 | E78: 0 | F78: 0 | G78: 0 | H78: 0 | I78: 0 | J78: 0 | K78: 0 | L78: 0 | M78: 0 | N78: 0 | O78: 0 | P78: 0 | Q78: 0 | R78: 0 | S78: 0 | T78: 0 | U78: 0 | V78: 0 | W78: 0 | X78: 0
A79: Технический симулятор | B79: 73 | C79: 2 | D79: 0 | E79: 23 | F79: 13 | G79: 13 | H79: 0 | I79: 0 | J79: 0 | K79: 10 | L79: 3 | M79: 0 | N79: 0 | O79: 0 | P79: 0 | Q79: 0 | R79: 10 | S79: 0 | T79: 10 | U79: 0 | V79: 0 | W79: 22 | X79: 1
A80: Гонки на охотничьих лыжах | B80: 74 | C80: 0 | D80: 0 | E80: 0 | F80: 0 | G80: 0 | H80: 0 | I80: 0 | J80: 0 | K80: 0 | L80: 0 | M80: 0 | N80: 0 | O80: 0 | P80: 0 | Q80: 0 | R80: 0 | S80: 0 | T80: 0 | U80: 0 | V80: 0 | W80: 0 | X80: 0
A81: Гонки с препятствиями | B81: 75 | C81: 0 | D81: 0 | E81: 0 | F81: 0 | G81: 0 | H81: 0 | I81: 0 | J81: 0 | K81: 0 | L81: 0 | M81: 0 | N81: 0 | O81: 0 | P81: 0 | Q81: 0 | R81: 0 | S81: 0 | T81: 0 | U81: 0 | V81: 0 | W81: 0 | X81: 0
A82: Горнолыжный спорт | B82: 76 | C82: 90 | D82: 14 | E82: 11110 | F82: 9566 | G82: 5073 | H82: 4328 | I82: 118 | J82: 47 | K82: 9277 | L82: 251 | M82: 38 | N82: 53 | O82: 42 | P82: 2 | Q82: 2 | R82: 1544 | S82: 182 | T82: 1482 | U82: 78 | V82: 51 | W82: 6250 | X82: 4860
A83: Городошный спорт | B83: 77 | C83: 21 | D83: 2 | E83: 836 | F83: 640 | G83: 332 | H83: 242 | I83: 57 | J83: 9 | K83: 578 | L83: 35 | M83: 27 | N83: 0 | O83: 0 | P83: 0 | Q83: 0 | R83: 196 | S83: 0 | T83: 196 | U83: 3 | V83: 1 | W83: 496 | X83: 340
A84: Гребля на байдарках и каноэ | B84: 78 | C84: 109 | D84: 24 | E84: 14310 | F84: 13121 | G84: 5903 | H84: 5643 | I84: 1204 | J84: 371 | K84: 11680 | L84: 1098 | M84: 343 | N84: 0 | O84: 0 | P84: 0 | Q84: 0 | R84: 1189 | S84: 165 | T84: 1157 | U84: 205 | V84: 155 | W84: 10990 | X84: 3320
A85: Гребля на шлюпках | B85: 79 | C85: 0 | D85: 0 | E85: 0 | F85: 0 | G85: 0 | H85: 0 | I85: 0 | J85: 0 | K85: 0 | L85: 0 | M85: 0 | N85: 0 | O85: 0 | P85: 0 | Q85: 0 | R85: 0 | S85: 0 | T85: 0 | U85: 0 | V85: 0 | W85: 0 | X85: 0
A86: Гребной слалом | B86: 80 | C86: 27 | D86: 7 | E86: 1624 | F86: 1420 | G86: 642 | H86: 593 | I86: 135 | J86: 50 | K86: 1246 | L86: 136 | M86: 38 | N86: 0 | O86: 0 | P86: 0 | Q86: 0 | R86: 204 | S86: 0 | T86: 201 | U86: 14 | V86: 14 | W86: 1123 | X86: 501
A87: Гребной спорт - всего | B87: 81 | C87: 74 | D87: 17 | E87: 6790 | F87: 6180 | G87: 2519 | H87: 2950 | I87: 513 | J87: 198 | K87: 5082 | L87: 833 | M87: 265 | N87: 49 | O87: 45 | P87: 4 | Q87: 9 | R87: 610 | S87: 1 | T87: 551 | U87: 167 | V87: 167 | W87: 5036 | X87: 1754
A88: в том числе: Академическая гребля | B88: 82 | C88: 69 | D88: 0 | E88: 6523 | F88: 5928 | G88: 2340 | H88: 2879 | I88: 513 | J88: 196 | K88: 4859 | L88: 820 | M88: 249 | N88: 49 | O88: 45 | P88: 4 | Q88: 9 | R88: 595 | S88: 1 | T88: 536 | U88: 167 | V88: 167 | W88: 4834 | X88: 1689
A89: Иные дисциплины вида спорта "гребной спорт" | B89: 83 | C89: 7 | D89: 0 | E89: 267 | F89: 252 | G89: 179 | H89: 71 | I89: 0 | J89: 2 | K89: 223 | L89: 13 | M89: 16 | N89: 0 | O89: 0 | P89: 0 | Q89: 0 | R89: 15 | S89: 0 | T89: 15 | U89: 0 | V89: 0 | W89: 202 | X89: 65
A90: Гребно-парусное двоеборье | B90: 84 | C90: 0 | D90: 0 | E90: 0 | F90: 0 | G90: 0 | H90: 0 | I90: 0 | J90: 0 | K90: 0 | L90: 0 | M90: 0 | N90: 0 | O90: 0 | P90: 0 | Q90: 0 | R90: 0 | S90: 0 | T90: 0 | U90: 0 | V90: 0 | W90: 0 | X90: 0
A91: Дартс | B91: 85 | C91: 16 | D91: 0 | E91: 1188 | F91: 832 | G91: 560 | H91: 215 | I91: 55 | J91: 2 | K91: 794 | L91: 38 | M91: 0 | N91: 0 | O91: 0 | P91: 0 | Q91: 0 | R91: 356 | S91: 0 | T91: 338 | U91: 0 | V91: 0 | W91: 730 | X91: 458
A92: Джиу-джитсу | B92: 86 | C92: 50 | D92: 3 | E92: 4903 | F92: 3108 | G92: 1642 | H92: 1120 | I92: 238 | J92: 108 | K92: 2694 | L92: 309 | M92: 105 | N92: 0 | O92: 0 | P92: 0 | Q92: 0 | R92: 1795 | S92: 343 | T92: 1389 | U92: 66 | V92: 15 | W92: 3756 | X92: 1147
A93: Джутайдо | B93: 87 | C93: 0 | D93: 0 | E93: 0 | F93: 0 | G93: 0 | H93: 0 | I93: 0 | J93: 0 | K93: 0 | L93: 0 | M93: 0 | N93: 0 | O93: 0 | P93: 0 | Q93: 0 | R93: 0 | S93: 0 | T93: 0 | U93: 0 | V93: 0 | W93: 0 | X93: 0
A94: Дзюдо | B94: 88 | C94: 946 | D94: 41 | E94: 148213 | F94: 123386 | G94: 77254 | H94: 42419 | I94: 3086 | J94: 627 | K94: 116203 | L94: 5996 | M94: 1187 | N94: 210 | O94: 32 | P94: 0 | Q94: 0 | R94: 24827 | S94: 3165 | T94: 23920 | U94: 256 | V94: 164 | W94: 126255 | X94: 21958
A95: Ездовой спорт | B95: 89 | C95: 0 | D95: 0 | E95: 0 | F95: 0 | G95: 0 | H95: 0 | I95: 0 | J95: 0 | K95: 0 | L95: 0 | M95: 0 | N95: 0 | O95: 0 | P95: 0 | Q95: 0 | R95: 0 | S95: 0 | T95: 0 | U95: 0 | V95: 0 | W95: 0 | X95: 0
A96: Зимнее плавание | B96: 90 | C96: 0 | D96: 0 | E96: 0 | F96: 0 | G96: 0 | H96: 0 | I96: 0 | J96: 0 | K96: 0 | L96: 0 | M96: 0 | N96: 0 | O96: 0 | P96: 0 | Q96: 0 | R96: 0 | S96: 0 | T96: 0 | U96: 0 | V96: 0 | W96: 0 | X96: 0
A97: Капоэйра | B97: 91 | C97: 1 | D97: 0 | E97: 29 | F97: 29 | G97: 29 | H97: 0 | I97: 0 | J97: 0 | K97: 29 | L97: 0 | M97: 0 | N97: 0 | O97: 0 | P97: 0 | Q97: 0 | R97: 0 | S97: 0 | T97: 0 | U97: 0 | V97: 0 | W97: 12 | X97: 17
A98: Каратэ | B98: 92 | C98: 223 | D98: 9 | E98: 22926 | F98: 17980 | G98: 10336 | H98: 6746 | I98: 704 | J98: 194 | K98: 16935 | L98: 867 | M98: 178 | N98: 0 | O98: 0 | P98: 0 | Q98: 0 | R98: 4946 | S98: 332 | T98: 4825 | U98: 41 | V98: 33 | W98: 16975 | X98: 5951
A99: Кендо | B99: 93 | C99: 1 | D99: 0 | E99: 19 | F99: 19 | G99: 4 | H99: 15 | I99: 0 | J99: 0 | K99: 18 | L99: 1 | M99: 0 | N99: 0 | O99: 0 | P99: 0 | Q99: 0 | R99: 0 | S99: 0 | T99: 0 | U99: 0 | V99: 0 | W99: 18 | X99: 1
A100: Керешу | B100: 94 | C100: 19 | D100: 0 | E100: 434 | F100: 314 | G100: 314 | H100: 0 | I100: 0 | J100: 0 | K100: 307 | L100: 7 | M100: 0 | N100: 0 | O100: 0 | P100: 0 | Q100: 0 | R100: 120 | S100: 0 | T100: 120 | U100: 0 | V100: 0 | W100: 394 | X100: 40
A101: Кёрлинг - всего | B101: 95 | C101: 37 | D101: 6 | E101: 2249 | F101: 2111 | G101: 1132 | H101: 755 | I101: 168 | J101: 56 | K101: 1773 | L101: 242 | M101: 96 | N101: 5 | O101: 0 | P101: 0 | Q101: 0 | R101: 138 | S101: 0 | T101: 81 | U101: 44 | V101: 18 | W101: 1020 | X101: 1229
A102: в том числе: Кёрлинг (муж.) | B102: 96 | C102: 21 | D102: 0 | E102: 634 | F102: 596 | G102: 292 | H102: 221 | I102: 59 | J102: 24 | K102: 484 | L102: 76 | M102: 36 | N102: 4 | O102: 0 | P102: 0 | Q102: 0 | R102: 38 | S102: 0 | T102: 18 | U102: 15 | V102: 2 | W102: 634 | X102: 0
A103: Кёрлинг (жен.) | B103: 97 | C103: 22 | D103: 0 | E103: 827 | F103: 790 | G103: 361 | H103: 331 | I103: 72 | J103: 26 | K103: 640 | L103: 107 | M103: 43 | N103: 1 | O103: 0 | P103: 0 | Q103: 0 | R103: 37 | S103: 0 | T103: 20 | U103: 19 | V103: 7 | W103: 0 | X103: 827
A104: Кёрлинг – смешанные пары | B104: 98 | C104: 18 | D104: 0 | E104: 788 | F104: 725 | G104: 479 | H104: 203 | I104: 37 | J104: 6 | K104: 649 | L104: 59 | M104: 17 | N104: 0 | O104: 0 | P104: 0 | Q104: 0 | R104: 63 | S104: 0 | T104: 43 | U104: 10 | V104: 9 | W104: 386 | X104: 402
A105: Кикбоксинг | B105: 99 | C105: 333 | D105: 11 | E105: 28583 | F105: 22976 | G105: 12535 | H105: 9458 | I105: 768 | J105: 215 | K105: 20332 | L105: 2244 | M105: 400 | N105: 0 | O105: 0 | P105: 0 | Q105: 0 | R105: 5607 | S105: 161 | T105: 5422 | U105: 52 | V105: 45 | W105: 25130 | X105: 3453
A106: Кинологический спорт | B106: 100 | C106: 2 | D106: 0 | E106: 72 | F106: 72 | G106: 0 | H106: 72 | I106: 0 | J106: 0 | K106: 14 | L106: 0 | M106: 58 | N106: 0 | O106: 0 | P106: 0 | Q106: 0 | R106: 0 | S106: 0 | T106: 0 | U106: 0 | V106: 0 | W106: 48 | X106: 24
A107: Киокусинкай | B107: 101 | C107: 227 | D107: 7 | E107: 22446 | F107: 17469 | G107: 9859 | H107: 7086 | I107: 466 | J107: 58 | K107: 16738 | L107: 597 | M107: 134 | N107: 38 | O107: 0 | P107: 0 | Q107: 0 | R107: 4977 | S107: 187 | T107: 4858 | U107: 17 | V107: 13 | W107: 17093 | X107: 5353
A108: Киокушин | B108: 102 | C108: 45 | D108: 0 | E108: 7146 | F108: 5363 | G108: 2813 | H108: 2352 | I108: 173 | J108: 25 | K108: 5097 | L108: 217 | M108: 49 | N108: 78 | O108: 96 | P108: 24 | Q108: 0 | R108: 1783 | S108: 569 | T108: 1744 | U108: 0 | V108: 0 | W108: 5341 | X108: 1805
A109: Комплексное единоборство | B109: 103 | C109: 0 | D109: 0 | E109: 0 | F109: 0 | G109: 0 | H109: 0 | I109: 0 | J109: 0 | K109: 0 | L109: 0 | M109: 0 | N109: 0 | O109: 0 | P109: 0 | Q109: 0 | R109: 0 | S109: 0 | T109: 0 | U109: 0 | V109: 0 | W109: 0 | X109: 0
A110: Компьютерный спорт - всего | B110: 104 | C110: 28 | D110: 0 | E110: 935 | F110: 856 | G110: 762 | H110: 87 | I110: 7 | J110: 0 | K110: 621 | L110: 171 | M110: 64 | N110: 0 | O110: 0 | P110: 0 | Q110: 0 | R110: 79 | S110: 0 | T110: 79 | U110: 0 | V110: 0 | W110: 871 | X110: 64
A111: в том числе: Боевая арена | B111: 105 | C111: 18 | D111: 0 | E111: 446 | F111: 405 | G111: 350 | H111: 55 | I111: 0 | J111: 0 | K111: 284 | L111: 88 | M111: 33 | N111: 0 | O111: 0 | P111: 0 | Q111: 0 | R111: 41 | S111: 0 | T111: 41 | U111: 0 | V111: 0 | W111: 424 | X111: 22
A112: Соревновательные головоломки | B112: 106 | C112: 6 | D112: 0 | E112: 174 | F112: 174 | G112: 174 | H112: 0 | I112: 0 | J112: 0 | K112: 132 | L112: 37 | M112: 5 | N112: 0 | O112: 0 | P112: 0 | Q112: 0 | R112: 0 | S112: 0 | T112: 0 | U112: 0 | V112: 0 | W112: 157 | X112: 17
A113: Спортивный симулятор | B113: 107 | C113: 1 | D113: 0 | E113: 7 | F113: 7 | G113: 7 | H113: 0 | I113: 0 | J113: 0 | K113: 7 | L113: 0 | M113: 0 | N113: 0 | O113: 0 | P113: 0 | Q113: 0 | R113: 0 | S113: 0 | T113: 0 | U113: 0 | V113: 0 | W113: 6 | X113: 1
A114: Стратегия в реальном времени | B114: 108 | C114: 2 | D114: 0 | E114: 23 | F114: 23 | G114: 22 | H114: 0 | I114: 1 | J114: 0 | K114: 9 | L114: 8 | M114: 6 | N114: 0 | O114: 0 | P114: 0 | Q114: 0 | R114: 0 | S114: 0 | T114: 0 | U114: 0 | V114: 0 | W114: 23 | X114: 0
A115: Тактический трехмерный бой | B115: 109 | C115: 8 | D115: 0 | E115: 252 | F115: 227 | G115: 189 | H115: 32 | I115: 6 | J115: 0 | K115: 171 | L115: 36 | M115: 20 | N115: 0 | O115: 0 | P115: 0 | Q115: 0 | R115: 25 | S115: 0 | T115: 25 | U115: 0 | V115: 0 | W115: 235 | X115: 17
A116: Технический симулятор | B116: 110 | C116: 1 | D116: 0 | E116: 23 | F116: 10 | G116: 10 | H116: 0 | I116: 0 | J116: 0 | K116: 10 | L116: 0 | M116: 0 | N116: 0 | O116: 0 | P116: 0 | Q116: 0 | R116: 13 | S116: 0 | T116: 13 | U116: 0 | V116: 0 | W116: 17 | X116: 6
A117: Файтинг | B117: 111 | C117: 1 | D117: 0 | E117: 10 | F117: 10 | G117: 10 | H117: 0 | I117: 0 | J117: 0 | K117: 8 | L117: 2 | M117: 0 | N117: 0 | O117: 0 | P117: 0 | Q117: 0 | R117: 0 | S117: 0 | T117: 0 | U117: 0 | V117: 0 | W117: 9 | X117: 1
A118: Конный спорт | B118: 112 | C118: 102 | D118: 6 | E118: 9108 | F118: 7889 | G118: 4707 | H118: 2872 | I118: 254 | J118: 56 | K118: 7188 | L118: 509 | M118: 192 | N118: 44 | O118: 0 | P118: 0 | Q118: 0 | R118: 1219 | S118: 165 | T118: 1175 | U118: 9 | V118: 5 | W118: 1420 | X118: 7688
A119: Конькобежный спорт - всего | B119: 113 | C119: 127 | D119: 27 | E119: 15530 | F119: 13135 | G119: 7618 | H119: 4340 | I119: 882 | J119: 295 | K119: 12364 | L119: 643 | M119: 128 | N119: 14 | O119: 0 | P119: 0 | Q119: 0 | R119: 2395 | S119: 129 | T119: 2364 | U119: 274 | V119: 108 | W119: 7959 | X119: 7571
A120: в том числе: Конькобежный спорт | B120: 114 | C120: 89 | D120: 0 | E120: 11564 | F120: 9744 | G120: 5753 | H120: 3228 | I120: 628 | J120: 135 | K120: 9226 | L120: 436 | M120: 82 | N120: 14 | O120: 0 | P120: 0 | Q120: 0 | R120: 1820 | S120: 58 | T120: 1793 | U120: 73 | V120: 70 | W120: 5813 | X120: 5751
A121: Шорт-трек | B121: 115 | C121: 54 | D121: 0 | E121: 3962 | F121: 3387 | G121: 1865 | H121: 1112 | I121: 251 | J121: 159 | K121: 3137 | L121: 205 | M121: 45 | N121: 0 | O121: 0 | P121: 0 | Q121: 0 | R121: 575 | S121: 71 | T121: 571 | U121: 201 | V121: 38 | W121: 2144 | X121: 1818
A122: Масс-старт | B122: 116 | C122: 1 | D122: 0 | E122: 2 | F122: 2 | G122: 0 | H122: 0 | I122: 2 | J122: 0 | K122: 1 | L122: 1 | M122: 0 | N122: 0 | O122: 0 | P122: 0 | Q122: 0 | R122: 0 | S122: 0 | T122: 0 | U122: 0 | V122: 0 | W122: 1 | X122: 1
A123: Командный забег | B123: 117 | C123: 1 | D123: 0 | E123: 2 | F123: 2 | G123: 0 | H123: 0 | I123: 1 | J123: 1 | K123: 0 | L123: 1 | M123: 1 | N123: 0 | O123: 0 | P123: 0 | Q123: 0 | R123: 0 | S123: 0 | T123: 0 | U123: 0 | V123: 0 | W123: 1 | X123: 1
A124: Корэш | B124: 118 | C124: 79 | D124: 0 | E124: 5989 | F124: 3417 | G124: 2193 | H124: 1208 | I124: 9 | J124: 7 | K124: 3316 | L124: 88 | M124: 13 | N124: 0 | O124: 0 | P124: 0 | Q124: 0 | R124: 2572 | S124: 0 | T124: 2506 | U124: 0 | V124: 0 | W124: 5757 | X124: 232
A125: Крикет | B125: 119 | C125: 0 | D125: 0 | E125: 0 | F125: 0 | G125: 0 | H125: 0 | I125: 0 | J125: 0 | K125: 0 | L125: 0 | M125: 0 | N125: 0 | O125: 0 | P125: 0 | Q125: 0 | R125: 0 | S125: 0 | T125: 0 | U125: 0 | V125: 0 | W125: 0 | X125: 0
A126: Кудо | B126: 120 | C126: 46 | D126: 0 | E126: 4564 | F126: 3126 | G126: 1719 | H126: 1295 | I126: 101 | J126: 11 | K126: 2837 | L126: 228 | M126: 61 | N126: 0 | O126: 0 | P126: 0 | Q126: 0 | R126: 1438 | S126: 191 | T126: 1435 | U126: 0 | V126: 0 | W126: 4013 | X126: 551
A127: Лазерный бой | B127: 121 | C127: 1 | D127: 0 | E127: 27 | F127: 27 | G127: 27 | H127: 0 | I127: 0 | J127: 0 | K127: 0 | L127: 27 | M127: 0 | N127: 0 | O127: 0 | P127: 0 | Q127: 0 | R127: 0 | S127: 0 | T127: 0 | U127: 0 | V127: 0 | W127: 24 | X127: 3
A128: Лапта | B128: 122 | C128: 76 | D128: 0 | E128: 3724 | F128: 1701 | G128: 748 | H128: 851 | I128: 79 | J128: 23 | K128: 1611 | L128: 63 | M128: 27 | N128: 0 | O128: 0 | P128: 0 | Q128: 0 | R128: 2023 | S128: 0 | T128: 2020 | U128: 0 | V128: 0 | W128: 2032 | X128: 1692
A129: Легкая атлетика | B129: 123 | C129: 1075 | D129: 57 | E129: 159031 | F129: 118069 | G129: 63031 | H129: 51981 | I129: 2326 | J129: 731 | K129: 108313 | L129: 7391 | M129: 2365 | N129: 113 | O129: 72 | P129: 0 | Q129: 4 | R129: 40962 | S129: 1206 | T129: 38934 | U129: 525 | V129: 347 | W129: 78881 | X129: 80150
A130: Лыжное двоеборье | B130: 124 | C130: 24 | D130: 8 | E130: 1404 | F130: 1235 | G130: 744 | H130: 425 | I130: 38 | J130: 28 | K130: 1130 | L130: 71 | M130: 34 | N130: 0 | O130: 0 | P130: 0 | Q130: 0 | R130: 169 | S130: 0 | T130: 154 | U130: 24 | V130: 24 | W130: 866 | X130: 538
A131: Лыжные гонки | B131: 125 | C131: 999 | D131: 33 | E131: 98456 | F131: 68763 | G131: 37871 | H131: 29993 | I131: 552 | J131: 347 | K131: 65274 | L131: 2735 | M131: 754 | N131: 0 | O131: 1 | P131: 0 | Q131: 0 | R131: 29693 | S131: 71 | T131: 28489 | U131: 257 | V131: 94 | W131: 57251 | X131: 41205
A132: Мас-рестлинг | B132: 126 | C132: 29 | D132: 2 | E132: 1446 | F132: 1097 | G132: 629 | H132: 312 | I132: 131 | J132: 25 | K132: 716 | L132: 243 | M132: 138 | N132: 0 | O132: 0 | P132: 0 | Q132: 0 | R132: 349 | S132: 0 | T132: 303 | U132: 6 | V132: 6 | W132: 1033 | X132: 413
A133: Международное военно-спортивное многоборье | B133: 127 | C133: 0 | D133: 0 | E133: 0 | F133: 0 | G133: 0 | H133: 0 | I133: 0 | J133: 0 | K133: 0 | L133: 0 | M133: 0 | N133: 0 | O133: 0 | P133: 0 | Q133: 0 | R133: 0 | S133: 0 | T133: 0 | U133: 0 | V133: 0 | W133: 0 | X133: 0
A134: Микрофутзал | B134: 128 | C134: 4 | D134: 0 | E134: 63 | F134: 63 | G134: 53 | H134: 10 | I134: 0 | J134: 0 | K134: 63 | L134: 0 | M134: 0 | N134: 0 | O134: 10 | P134: 0 | Q134: 0 | R134: 0 | S134: 0 | T134: 0 | U134: 0 | V134: 0 | W134: 52 | X134: 11
A135: Многоборье готов к труду и обороне | B135: 129 | C135: 13 | D135: 0 | E135: 1686 | F135: 326 | G135: 326 | H135: 0 | I135: 0 | J135: 0 | K135: 40 | L135: 0 | M135: 286 | N135: 0 | O135: 0 | P135: 0 | Q135: 0 | R135: 1360 | S135: 0 | T135: 1360 | U135: 0 | V135: 0 | W135: 930 | X135: 756
A136: Многоборье кинологов | B136: 130 | C136: 0 | D136: 0 | E136: 0 | F136: 0 | G136: 0 | H136: 0 | I136: 0 | J136: 0 | K136: 0 | L136: 0 | M136: 0 | N136: 0 | O136: 0 | P136: 0 | Q136: 0 | R136: 0 | S136: 0 | T136: 0 | U136: 0 | V136: 0 | W136: 0 | X136: 0
A137: Многоборье спасателей МЧС России | B137: 131 | C137: 0 | D137: 0 | E137: 0 | F137: 0 | G137: 0 | H137: 0 | I137: 0 | J137: 0 | K137: 0 | L137: 0 | M137: 0 | N137: 0 | O137: 0 | P137: 0 | Q137: 0 | R137: 0 | S137: 0 | T137: 0 | U137: 0 | V137: 0 | W137: 0 | X137: 0
A138: Морское многоборье | B138: 132 | C138: 8 | D138: 0 | E138: 567 | F138: 567 | G138: 253 | H138: 228 | I138: 69 | J138: 17 | K138: 497 | L138: 56 | M138: 14 | N138: 14 | O138: 0 | P138: 0 | Q138: 0 | R138: 0 | S138: 0 | T138: 0 | U138: 10 | V138: 10 | W138: 443 | X138: 124
A139: Мотоциклетный спорт | B139: 133 | C139: 42 | D139: 1 | E139: 2117 | F139: 1811 | G139: 1163 | H139: 592 | I139: 46 | J139: 10 | K139: 1688 | L139: 69 | M139: 54 | N139: 0 | O139: 0 | P139: 0 | Q139: 0 | R139: 306 | S139: 72 | T139: 305 | U139: 1 | V139: 1 | W139: 1967 | X139: 150
A140: Муайтай | B140: 134 | C140: 115 | D140: 5 | E140: 8645 | F140: 7009 | G140: 3966 | H140: 2708 | I140: 291 | J140: 44 | K140: 6260 | L140: 615 | M140: 134 | N140: 0 | O140: 0 | P140: 0 | Q140: 0 | R140: 1636 | S140: 226 | T140: 1541 | U140: 9 | V140: 7 | W140: 7716 | X140: 929
A141: Нарды | B141: 135 | C141: 1 | D141: 0 | E141: 12 | F141: 12 | G141: 12 | H141: 0 | I141: 0 | J141: 0 | K141: 0 | L141: 0 | M141: 12 | N141: 0 | O141: 0 | P141: 0 | Q141: 0 | R141: 0 | S141: 0 | T141: 0 | U141: 0 | V141: 0 | W141: 9 | X141: 3
A142: Настольный теннис | B142: 136 | C142: 746 | D142: 14 | E142: 49537 | F142: 34148 | G142: 20038 | H142: 13479 | I142: 465 | J142: 166 | K142: 32863 | L142: 806 | M142: 479 | N142: 120 | O142: 50 | P142: 0 | Q142: 0 | R142: 15389 | S142: 444 | T142: 15045 | U142: 34 | V142: 26 | W142: 29660 | X142: 19877
A143: Падел | B143: 137 | C143: 0 | D143: 0 | E143: 0 | F143: 0 | G143: 0 | H143: 0 | I143: 0 | J143: 0 | K143: 0 | L143: 0 | M143: 0 | N143: 0 | O143: 0 | P143: 0 | Q143: 0 | R143: 0 | S143: 0 | T143: 0 | U143: 0 | V143: 0 | W143: 0 | X143: 0
A144: Парашютный спорт | B144: 138 | C144: 18 | D144: 0 | E144: 593 | F144: 558 | G144: 310 | H144: 221 | I144: 9 | J144: 18 | K144: 359 | L144: 110 | M144: 89 | N144: 0 | O144: 0 | P144: 0 | Q144: 0 | R144: 35 | S144: 0 | T144: 35 | U144: 3 | V144: 3 | W144: 411 | X144: 182
A145: Парусный спорт | B145: 139 | C145: 81 | D145: 14 | E145: 6340 | F145: 5924 | G145: 2963 | H145: 2548 | I145: 263 | J145: 150 | K145: 5223 | L145: 516 | M145: 185 | N145: 12 | O145: 8 | P145: 5 | Q145: 0 | R145: 416 | S145: 23 | T145: 368 | U145: 37 | V145: 25 | W145: 4073 | X145: 2267
A146: Пауэрлифтинг | B146: 140 | C146: 422 | D146: 9 | E146: 21543 | F146: 14518 | G146: 7938 | H146: 5429 | I146: 930 | J146: 221 | K146: 11056 | L146: 2215 | M146: 1247 | N146: 20 | O146: 0 | P146: 0 | Q146: 0 | R146: 7025 | S146: 374 | T146: 6301 | U146: 35 | V146: 27 | W146: 17643 | X146: 3900
A147: Перетягивание каната | B147: 141 | C147: 5 | D147: 0 | E147: 183 | F147: 87 | G147: 60 | H147: 15 | I147: 12 | J147: 0 | K147: 47 | L147: 10 | M147: 30 | N147: 0 | O147: 0 | P147: 0 | Q147: 0 | R147: 96 | S147: 12 | T147: 84 | U147: 0 | V147: 0 | W147: 138 | X147: 45
A148: Пилонный спорт | B148: 142 | C148: 0 | D148: 0 | E148: 0 | F148: 0 | G148: 0 | H148: 0 | I148: 0 | J148: 0 | K148: 0 | L148: 0 | M148: 0 | N148: 0 | O148: 0 | P148: 0 | Q148: 0 | R148: 0 | S148: 0 | T148: 0 | U148: 0 | V148: 0 | W148: 0 | X148: 0
A149: Плавание - всего | B149: 143 | C149: 904 | D149: 43 | E149: 216016 | F149: 140479 | G149: 69456 | H149: 67433 | I149: 2845 | J149: 745 | K149: 137609 | L149: 2389 | M149: 481 | N149: 1470 | O149: 169 | P149: 1 | Q149: 0 | R149: 75537 | S149: 31572 | T149: 74548 | U149: 170 | V149: 145 | W149: 134699 | X149: 81317
A150: в том числе: Открытая вода | B150: 144 | C150: 52 | D150: 0 | E150: 9829 | F150: 7128 | G150: 3785 | H150: 3161 | I150: 135 | J150: 47 | K150: 7008 | L150: 108 | M150: 12 | N150: 60 | O150: 0 | P150: 0 | Q150: 0 | R150: 2701 | S150: 1701 | T150: 2687 | U150: 8 | V150: 8 | W150: 6273 | X150: 3556
A151: Иные дисциплины вида спорта "плавание" | B151: 145 | C151: 856 | D151: 0 | E151: 206187 | F151: 133351 | G151: 65671 | H151: 64272 | I151: 2710 | J151: 698 | K151: 130601 | L151: 2281 | M151: 469 | N151: 1410 | O151: 169 | P151: 1 | Q151: 0 | R151: 72836 | S151: 29871 | T151: 71861 | U151: 162 | V151: 137 | W151: 128426 | X151: 77761
A152: Планерный спорт | B152: 146 | C152: 2 | D152: 0 | E152: 27 | F152: 27 | G152: 24 | H152: 3 | I152: 0 | J152: 0 | K152: 27 | L152: 0 | M152: 0 | N152: 0 | O152: 0 | P152: 0 | Q152: 0 | R152: 0 | S152: 0 | T152: 0 | U152: 0 | V152: 0 | W152: 25 | X152: 2
A153: Подводный спорт | B153: 147 | C153: 45 | D153: 6 | E153: 6671 | F153: 5512 | G153: 2705 | H153: 2307 | I153: 347 | J153: 153 | K153: 5067 | L153: 372 | M153: 73 | N153: 0 | O153: 0 | P153: 0 | Q153: 0 | R153: 1159 | S153: 962 | T153: 1138 | U153: 49 | V153: 36 | W153: 4114 | X153: 2557
A154: Пожарно-спасательный спорт | B154: 148 | C154: 9 | D154: 0 | E154: 358 | F154: 184 | G154: 98 | H154: 82 | I154: 4 | J154: 0 | K154: 183 | L154: 1 | M154: 0 | N154: 0 | O154: 0 | P154: 0 | Q154: 0 | R154: 174 | S154: 0 | T154: 174 | U154: 0 | V154: 0 | W154: 231 | X154: 127
A155: Полиатлон | B155: 149 | C155: 129 | D155: 3 | E155: 6014 | F155: 3771 | G155: 1687 | H155: 1848 | I155: 192 | J155: 44 | K155: 3440 | L155: 259 | M155: 72 | N155: 0 | O155: 0 | P155: 0 | Q155: 0 | R155: 2243 | S155: 140 | T155: 2163 | U155: 13 | V155: 8 | W155: 3701 | X155: 2313
A156: Практическая стрельба | B156: 150 | C156: 15 | D156: 0 | E156: 740 | F156: 675 | G156: 518 | H156: 141 | I156: 14 | J156: 2 | K156: 233 | L156: 22 | M156: 420 | N156: 354 | O156: 9 | P156: 2 | Q156: 0 | R156: 65 | S156: 8 | T156: 57 | U156: 0 | V156: 0 | W156: 529 | X156: 211
A157: Прыжки в воду | B157: 151 | C157: 31 | D157: 10 | E157: 3837 | F157: 3320 | G157: 1825 | H157: 1085 | I157: 297 | J157: 113 | K157: 3219 | L157: 83 | M157: 18 | N157: 0 | O157: 0 | P157: 0 | Q157: 0 | R157: 517 | S157: 224 | T157: 497 | U157: 10 | V157: 10 | W157: 2236 | X157: 1601
A158: Прыжки на батуте - всего | B158: 152 | C158: 140 | D158: 14 | E158: 14786 | F158: 11719 | G158: 5108 | H158: 5749 | I158: 702 | J158: 160 | K158: 11394 | L158: 293 | M158: 32 | N158: 45 | O158: 0 | P158: 0 | Q158: 0 | R158: 3067 | S158: 649 | T158: 2943 | U158: 40 | V158: 30 | W158: 7169 | X158: 7617
A159: в том числе: Акробатическая дорожка | B159: 153 | C159: 76 | D159: 0 | E159: 5758 | F159: 4379 | G159: 2186 | H159: 1993 | I159: 173 | J159: 27 | K159: 4319 | L159: 55 | M159: 5 | N159: 25 | O159: 0 | P159: 0 | Q159: 0 | R159: 1379 | S159: 324 | T159: 1320 | U159: 3 | V159: 3 | W159: 2731 | X159: 3027
A160: Двойной минитрамп | B160: 154 | C160: 60 | D160: 0 | E160: 3499 | F160: 2660 | G160: 994 | H160: 1429 | I160: 194 | J160: 43 | K160: 2552 | L160: 96 | M160: 12 | N160: 12 | O160: 0 | P160: 0 | Q160: 0 | R160: 839 | S160: 91 | T160: 817 | U160: 12 | V160: 10 | W160: 1745 | X160: 1754
A161: Индивидуальные прыжки | B161: 155 | C161: 69 | D161: 0 | E161: 4980 | F161: 4201 | G161: 1797 | H161: 2082 | I161: 249 | J161: 73 | K161: 4084 | L161: 107 | M161: 10 | N161: 4 | O161: 0 | P161: 0 | Q161: 0 | R161: 779 | S161: 234 | T161: 736 | U161: 21 | V161: 13 | W161: 2423 | X161: 2557
A162: Синхронные прыжки | B162: 156 | C162: 26 | D162: 0 | E162: 549 | F162: 479 | G162: 131 | H162: 245 | I162: 86 | J162: 17 | K162: 439 | L162: 35 | M162: 5 | N162: 4 | O162: 0 | P162: 0 | Q162: 0 | R162: 70 | S162: 0 | T162: 70 | U162: 4 | V162: 4 | W162: 270 | X162: 279
A163: Прыжки на лыжах с трамплина | B163: 157 | C163: 20 | D163: 9 | E163: 1248 | F163: 1119 | G163: 627 | H163: 410 | I163: 48 | J163: 34 | K163: 1020 | L163: 71 | M163: 28 | N163: 0 | O163: 0 | P163: 0 | Q163: 0 | R163: 129 | S163: 0 | T163: 129 | U163: 36 | V163: 35 | W163: 790 | X163: 458
A164: Пулевая стрельба - всего | B164: 158 | C164: 215 | D164: 25 | E164: 14469 | F164: 11846 | G164: 5929 | H164: 4913 | I164: 723 | J164: 281 | K164: 10666 | L164: 835 | M164: 345 | N164: 75 | O164: 27 | P164: 3 | Q164: 0 | R164: 2623 | S164: 72 | T164: 2542 | U164: 95 | V164: 53 | W164: 9063 | X164: 5406
A165: в том числе: Пневматическая винтовка | B165: 159 | C165: 182 | D165: 0 | E165: 7753 | F165: 5728 | G165: 3118 | H165: 2280 | I165: 222 | J165: 108 | K165: 5353 | L165: 287 | M165: 88 | N165: 46 | O165: 17 | P165: 2 | Q165: 0 | R165: 2025 | S165: 49 | T165: 1978 | U165: 19 | V165: 12 | W165: 5015 | X165: 2738
A166: Пневматический пистолет | B166: 160 | C166: 106 | D166: 0 | E166: 4378 | F166: 3906 | G166: 2006 | H166: 1662 | I166: 199 | J166: 39 | K166: 3499 | L166: 298 | M166: 109 | N166: 17 | O166: 6 | P166: 1 | Q166: 0 | R166: 472 | S166: 23 | T166: 439 | U166: 16 | V166: 12 | W166: 2700 | X166: 1678
A167: Малокалиберная винтовка | B167: 161 | C167: 39 | D167: 0 | E167: 958 | F167: 907 | G167: 261 | H167: 426 | I167: 154 | J167: 66 | K167: 737 | L167: 106 | M167: 64 | N167: 10 | O167: 3 | P167: 0 | Q167: 0 | R167: 51 | S167: 0 | T167: 50 | U167: 24 | V167: 15 | W167: 589 | X167: 369
A168: Малокалиберный пистолет | B168: 162 | C168: 37 | D168: 0 | E168: 1094 | F168: 1053 | G168: 441 | H168: 440 | I168: 123 | J168: 49 | K168: 870 | L168: 114 | M168: 69 | N168: 2 | O168: 1 | P168: 0 | Q168: 0 | R168: 41 | S168: 0 | T168: 41 | U168: 29 | V168: 8 | W168: 582 | X168: 512
A169: Иные дисциплины вида спорта "пулевая стрельба" | B169: 163 | C169: 15 | D169: 0 | E169: 286 | F169: 252 | G169: 103 | H169: 105 | I169: 25 | J169: 19 | K169: 207 | L169: 30 | M169: 15 | N169: 0 | O169: 0 | P169: 0 | Q169: 0 | R169: 34 | S169: 0 | T169: 34 | U169: 7 | V169: 6 | W169: 177 | X169: 109
A170: Пэйнтбол | B170: 164 | C170: 1 | D170: 0 | E170: 53 | F170: 53 | G170: 28 | H170: 25 | I170: 0 | J170: 0 | K170: 53 | L170: 0 | M170: 0 | N170: 0 | O170: 0 | P170: 0 | Q170: 0 | R170: 0 | S170: 0 | T170: 0 | U170: 0 | V170: 0 | W170: 45 | X170: 8
A171: Радиоспорт | B171: 165 | C171: 12 | D171: 0 | E171: 554 | F171: 482 | G171: 216 | H171: 214 | I171: 51 | J171: 1 | K171: 431 | L171: 40 | M171: 11 | N171: 0 | O171: 0 | P171: 0 | Q171: 0 | R171: 72 | S171: 0 | T171: 72 | U171: 0 | V171: 0 | W171: 373 | X171: 181
A172: Рафтинг | B172: 166 | C172: 6 | D172: 1 | E172: 333 | F172: 318 | G172: 148 | H172: 107 | I172: 45 | J172: 18 | K172: 258 | L172: 52 | M172: 8 | N172: 0 | O172: 0 | P172: 0 | Q172: 0 | R172: 15 | S172: 0 | T172: 15 | U172: 7 | V172: 7 | W172: 205 | X172: 128
A173: Регби - всего | B173: 167 | C173: 104 | D173: 10 | E173: 12862 | F173: 11808 | G173: 5281 | H173: 5594 | I173: 531 | J173: 402 | K173: 10584 | L173: 907 | M173: 317 | N173: 0 | O173: 0 | P173: 0 | Q173: 0 | R173: 1054 | S173: 0 | T173: 1043 | U173: 5 | V173: 5 | W173: 10206 | X173: 2656
A174: в том числе: Регби | B174: 168 | C174: 78 | D174: 0 | E174: 9703 | F174: 8822 | G174: 4224 | H174: 4211 | I174: 261 | J174: 126 | K174: 8233 | L174: 439 | M174: 150 | N174: 0 | O174: 0 | P174: 0 | Q174: 0 | R174: 881 | S174: 0 | T174: 881 | U174: 0 | V174: 0 | W174: 8177 | X174: 1526
A175: Регби 7 (муж.) | B175: 169 | C175: 33 | D175: 0 | E175: 1828 | F175: 1787 | G175: 610 | H175: 864 | I175: 181 | J175: 132 | K175: 1429 | L175: 270 | M175: 88 | N175: 0 | O175: 0 | P175: 0 | Q175: 0 | R175: 41 | S175: 0 | T175: 41 | U175: 5 | V175: 5 | W175: 1828 | X175: 0
A176: Регби 7 (жен.) | B176: 170 | C176: 22 | D176: 0 | E176: 1048 | F176: 971 | G176: 372 | H176: 445 | I176: 65 | J176: 89 | K176: 782 | L176: 140 | M176: 49 | N176: 0 | O176: 0 | P176: 0 | Q176: 0 | R176: 77 | S176: 0 | T176: 66 | U176: 0 | V176: 0 | W176: 0 | X176: 1048
A177: Регби - пляжное | B177: 171 | C177: 4 | D177: 0 | E177: 75 | F177: 75 | G177: 0 | H177: 34 | I177: 7 | J177: 34 | K177: 29 | L177: 24 | M177: 22 | N177: 0 | O177: 0 | P177: 0 | Q177: 0 | R177: 0 | S177: 0 | T177: 0 | U177: 0 | V177: 0 | W177: 47 | X177: 28
A178: Регби на снегу | B178: 172 | C178: 4 | D178: 0 | E178: 78 | F178: 78 | G178: 0 | H178: 40 | I178: 17 | J178: 21 | K178: 36 | L178: 34 | M178: 8 | N178: 0 | O178: 0 | P178: 0 | Q178: 0 | R178: 0 | S178: 0 | T178: 0 | U178: 0 | V178: 0 | W178: 49 | X178: 29
A179: Регби бесконтактное | B179: 173 | C179: 4 | D179: 0 | E179: 130 | F179: 75 | G179: 75 | H179: 0 | I179: 0 | J179: 0 | K179: 75 | L179: 0 | M179: 0 | N179: 0 | O179: 0 | P179: 0 | Q179: 0 | R179: 55 | S179: 0 | T179: 55 | U179: 0 | V179: 0 | W179: 105 | X179: 25
A180: Регбол | B180: 174 | C180: 0 | D180: 0 | E180: 0 | F180: 0 | G180: 0 | H180: 0 | I180: 0 | J180: 0 | K180: 0 | L180: 0 | M180: 0 | N180: 0 | O180: 0 | P180: 0 | Q180: 0 | R180: 0 | S180: 0 | T180: 0 | U180: 0 | V180: 0 | W180: 0 | X180: 0
A181: Роллер спорт | B181: 175 | C181: 8 | D181: 0 | E181: 243 | F181: 208 | G181: 187 | H181: 21 | I181: 0 | J181: 0 | K181: 205 | L181: 3 | M181: 0 | N181: 0 | O181: 0 | P181: 0 | Q181: 0 | R181: 35 | S181: 0 | T181: 35 | U181: 0 | V181: 0 | W181: 124 | X181: 119
A182: Роуп скиппинг (спортивная скакалка) | B182: 176 | C182: 5 | D182: 0 | E182: 238 | F182: 78 | G182: 46 | H182: 32 | I182: 0 | J182: 0 | K182: 76 | L182: 1 | M182: 1 | N182: 0 | O182: 0 | P182: 0 | Q182: 0 | R182: 160 | S182: 0 | T182: 160 | U182: 0 | V182: 0 | W182: 79 | X182: 159
A183: Рукопашный бой | B183: 177 | C183: 241 | D183: 5 | E183: 21369 | F183: 13840 | G183: 8243 | H183: 5141 | I183: 357 | J183: 99 | K183: 11810 | L183: 1554 | M183: 476 | N183: 0 | O183: 0 | P183: 0 | Q183: 0 | R183: 7529 | S183: 393 | T183: 7116 | U183: 60 | V183: 18 | W183: 19518 | X183: 1851
A184: Рыболовный спорт | B184: 178 | C184: 3 | D184: 0 | E184: 225 | F184: 129 | G184: 97 | H184: 20 | I184: 12 | J184: 0 | K184: 25 | L184: 2 | M184: 102 | N184: 0 | O184: 0 | P184: 0 | Q184: 0 | R184: 96 | S184: 0 | T184: 82 | U184: 0 | V184: 0 | W184: 182 | X184: 43
A185: Сават | B185: 179 | C185: 8 | D185: 0 | E185: 273 | F185: 258 | G185: 155 | H185: 99 | I185: 4 | J185: 0 | K185: 250 | L185: 8 | M185: 0 | N185: 0 | O185: 0 | P185: 0 | Q185: 0 | R185: 15 | S185: 0 | T185: 15 | U185: 0 | V185: 0 | W185: 226 | X185: 47
A186: Самбо | B186: 180 | C186: 794 | D186: 35 | E186: 92768 | F186: 70112 | G186: 43019 | H186: 24214 | I186: 2261 | J186: 618 | K186: 65049 | L186: 3703 | M186: 1360 | N186: 87 | O186: 68 | P186: 0 | Q186: 0 | R186: 22656 | S186: 2963 | T186: 21831 | U186: 388 | V186: 93 | W186: 80119 | X186: 12649
A187: Самолетный спорт | B187: 181 | C187: 1 | D187: 0 | E187: 21 | F187: 6 | G187: 6 | H187: 0 | I187: 0 | J187: 0 | K187: 0 | L187: 0 | M187: 6 | N187: 0 | O187: 0 | P187: 0 | Q187: 0 | R187: 15 | S187: 0 | T187: 15 | U187: 0 | V187: 0 | W187: 14 | X187: 7
A188: Санный спорт | B188: 182 | C188: 9 | D188: 5 | E188: 809 | F188: 809 | G188: 412 | H188: 317 | I188: 52 | J188: 28 | K188: 711 | L188: 67 | M188: 31 | N188: 0 | O188: 0 | P188: 0 | Q188: 0 | R188: 0 | S188: 0 | T188: 0 | U188: 37 | V188: 28 | W188: 517 | X188: 292
A189: Северное многоборье | B189: 183 | C189: 36 | D189: 1 | E189: 2702 | F189: 1795 | G189: 838 | H189: 862 | I189: 86 | J189: 9 | K189: 1655 | L189: 106 | M189: 34 | N189: 0 | O189: 0 | P189: 0 | Q189: 0 | R189: 907 | S189: 0 | T189: 885 | U189: 7 | V189: 7 | W189: 1641 | X189: 1061
A190: Серфинг | B190: 184 | C190: 2 | D190: 0 | E190: 42 | F190: 42 | G190: 33 | H190: 8 | I190: 0 | J190: 1 | K190: 36 | L190: 0 | M190: 6 | N190: 0 | O190: 0 | P190: 0 | Q190: 0 | R190: 0 | S190: 0 | T190: 0 | U190: 0 | V190: 0 | W190: 24 | X190: 18
A191: Силовой спорт | B191: 185 | C191: 1 | D191: 0 | E191: 83 | F191: 0 | G191: 0 | H191: 0 | I191: 0 | J191: 0 | K191: 0 | L191: 0 | M191: 0 | N191: 0 | O191: 0 | P191: 0 | Q191: 0 | R191: 83 | S191: 0 | T191: 83 | U191: 0 | V191: 0 | W191: 50 | X191: 33
A192: Силовой экстрим | B192: 186 | C192: 1 | D192: 0 | E192: 6 | F192: 6 | G192: 6 | H192: 0 | I192: 0 | J192: 0 | K192: 0 | L192: 6 | M192: 0 | N192: 0 | O192: 0 | P192: 0 | Q192: 0 | R192: 0 | S192: 0 | T192: 0 | U192: 0 | V192: 0 | W192: 3 | X192: 3
A193: Синхронное плавание | B193: 187 | C193: 69 | D193: 7 | E193: 6148 | F193: 5614 | G193: 2159 | H193: 2421 | I193: 840 | J193: 194 | K193: 5498 | L193: 115 | M193: 1 | N193: 3 | O193: 0 | P193: 0 | Q193: 0 | R193: 534 | S193: 160 | T193: 531 | U193: 14 | V193: 14 | W193: 327 | X193: 5821
A194: Скалолазание - всего | B194: 188 | C194: 83 | D194: 7 | E194: 8677 | F194: 6955 | G194: 3716 | H194: 3031 | I194: 160 | J194: 48 | K194: 6589 | L194: 302 | M194: 64 | N194: 34 | O194: 7 | P194: 4 | Q194: 0 | R194: 1722 | S194: 420 | T194: 1708 | U194: 23 | V194: 23 | W194: 4759 | X194: 3918
A195: в том числе: Двоеборье | B195: 189 | C195: 39 | D195: 0 | E195: 3237 | F195: 2383 | G195: 1297 | H195: 998 | I195: 71 | J195: 17 | K195: 2251 | L195: 104 | M195: 28 | N195: 34 | O195: 7 | P195: 4 | Q195: 0 | R195: 854 | S195: 420 | T195: 840 | U195: 6 | V195: 6 | W195: 1785 | X195: 1452
A196: Лазание на скорость | B196: 190 | C196: 38 | D196: 0 | E196: 2623 | F196: 2067 | G196: 1109 | H196: 893 | I196: 54 | J196: 11 | K196: 1957 | L196: 95 | M196: 15 | N196: 0 | O196: 0 | P196: 0 | Q196: 0 | R196: 556 | S196: 0 | T196: 556 | U196: 15 | V196: 15 | W196: 1491 | X196: 1132
A197: Иные дисциплины вида спорта "скалолазание" | B197: 191 | C197: 35 | D197: 0 | E197: 2817 | F197: 2505 | G197: 1310 | H197: 1140 | I197: 35 | J197: 20 | K197: 2381 | L197: 103 | M197: 21 | N197: 0 | O197: 0 | P197: 0 | Q197: 0 | R197: 312 | S197: 0 | T197: 312 | U197: 2 | V197: 2 | W197: 1483 | X197: 1334
A198: Сквош | B198: 192 | C198: 0 | D198: 0 | E198: 0 | F198: 0 | G198: 0 | H198: 0 | I198: 0 | J198: 0 | K198: 0 | L198: 0 | M198: 0 | N198: 0 | O198: 0 | P198: 0 | Q198: 0 | R198: 0 | S198: 0 | T198: 0 | U198: 0 | V198: 0 | W198: 0 | X198: 0
A199: Скейтбординг | B199: 193 | C199: 6 | D199: 0 | E199: 134 | F199: 113 | G199: 75 | H199: 27 | I199: 10 | J199: 1 | K199: 103 | L199: 2 | M199: 8 | N199: 0 | O199: 0 | P199: 0 | Q199: 0 | R199: 21 | S199: 0 | T199: 21 | U199: 0 | V199: 0 | W199: 88 | X199: 46
A200: Служебно-боевая стрельба | B200: 194 | C200: 0 | D200: 0 | E200: 0 | F200: 0 | G200: 0 | H200: 0 | I200: 0 | J200: 0 | K200: 0 | L200: 0 | M200: 0 | N200: 0 | O200: 0 | P200: 0 | Q200: 0 | R200: 0 | S200: 0 | T200: 0 | U200: 0 | V200: 0 | W200: 0 | X200: 0
... 130 more rows

Sheet Раздел 3
A1: Раздел III. Численность обучающихся по дополнительным образовательным программам спортивной подготовки, человек
A2: Виды спорта | B2: № строки | C2: Численность обучающихся по дополнительным образовательным программам спортивной подготовки на 31 декабря отчетного периода (из гр.6 раздела II) | W2: Численность обучающихся, зачисленных на дополнительные образовательные программы спортивной подготовки в отчетном периоде | AB2: Численность обучающихся, отчисленных с дополнительных образовательных программ спортивной подготовки в отчетном периоде
C3: всего | D3: в том числе по этапам и годам подготовки | W3: всего | X3: в том числе по этапам подготовки | AB3: всего | AC3: в том числе по этапам подготовки
D4: начальной подготовки | G4: учебно-тренировочный | M4: совершенствования спортивного мастерства | R4: высшего спортивного мастерства
D5: 1 | E5: 2 | F5: более 2 | G5: 1 | H5: 2 | I5: 3 | J5: 4 | K5: 5 | L5: более 5 | M5: 1 | N5: 2 | O5: 3 | P5: 4 | Q5: более 4 | R5: 1 | S5: 2 | T5: 3 | U5: 4 | V5: более 4 | X5: начальной подготовки | Y5: учебно-тренировочный | Z5: совершен-ствования спортивного мастерства | AA5: высшего спортивного мастерства | AC5: начальной подготовки | AD5: учебно-тренировочный | AE5: совершен-ствования спортивного мастерства | AF5: высшего спортивного мастерства
A6: 1 | B6: 2 | C6: 3 | D6: 4 | E6: 5 | F6: 6 | G6: 7 | H6: 8 | I6: 9 | J6: 10 | K6: 11 | L6: 12 | M6: 13 | N6: 14 | O6: 15 | P6: 16 | Q6: 17 | R6: 18 | S6: 19 | T6: 20 | U6: 21 | V6: 22 | W6: 23 | X6: 24 | Y6: 25 | Z6: 26 | AA6: 27 | AB6: 28 | AC6: 29 | AD6: 30 | AE6: 31 | AF6: 32
A7: Авиамодельный спорт | B7: 01 | C7: 619 | D7: 195 | E7: 152 | F7: 23 | G7: 52 | H7: 61 | I7: 57 | J7: 22 | K7: 24 | L7: 25 | M7: 8 | N7: 0 | O7: 0 | P7: 0 | Q7: 0 | R7: 0 | S7: 0 | T7: 0 | U7: 0 | V7: 0 | W7: 170 | X7: 170 | Y7: 0 | Z7: 0 | AA7: 0 | AB7: 58 | AC7: 57 | AD7: 0 | AE7: 1 | AF7: 0
A8: Авиационные гонки | B8: 02 | C8: 0 | D8: 0 | E8: 0 | F8: 0 | G8: 0 | H8: 0 | I8: 0 | J8: 0 | K8: 0 | L8: 0 | M8: 0 | N8: 0 | O8: 0 | P8: 0 | Q8: 0 | R8: 0 | S8: 0 | T8: 0 | U8: 0 | V8: 0 | W8: 0 | X8: 0 | Y8: 0 | Z8: 0 | AA8: 0 | AB8: 0 | AC8: 0 | AD8: 0 | AE8: 0 | AF8: 0
A9: Автомобильный спорт | B9: 03 | C9: 2238 | D9: 549 | E9: 787 | F9: 215 | G9: 203 | H9: 229 | I9: 89 | J9: 132 | K9: 31 | L9: 0 | M9: 0 | N9: 0 | O9: 0 | P9: 3 | Q9: 0 | R9: 0 | S9: 0 | T9: 0 | U9: 0 | V9: 0 | W9: 680 | X9: 603 | Y9: 77 | Z9: 0 | AA9: 0 | AB9: 615 | AC9: 463 | AD9: 151 | AE9: 1 | AF9: 0
A10: Автомодельный спорт | B10: 04 | C10: 40 | D10: 5 | E10: 0 | F10: 0 | G10: 10 | H10: 5 | I10: 5 | J10: 5 | K10: 5 | L10: 5 | M10: 0 | N10: 0 | O10: 0 | P10: 0 | Q10: 0 | R10: 0 | S10: 0 | T10: 0 | U10: 0 | V10: 0 | W10: 5 | X10: 5 | Y10: 0 | Z10: 0 | AA10: 0 | AB10: 0 | AC10: 0 | AD10: 0 | AE10: 0 | AF10: 0
A11: Айкидо | B11: 05 | C11: 584 | D11: 118 | E11: 130 | F11: 79 | G11: 86 | H11: 37 | I11: 23 | J11: 65 | K11: 0 | L11: 0 | M11: 7 | N11: 18 | O11: 15 | P11: 0 | Q11: 2 | R11: 1 | S11: 2 | T11: 1 | U11: 0 | V11: 0 | W11: 156 | X11: 136 | Y11: 20 | Z11: 0 | AA11: 0 | AB11: 148 | AC11: 102 | AD11: 39 | AE11: 7 | AF11: 0
A12: Акробатический рок-н-ролл | B12: 06 | C12: 5413 | D12: 572 | E12: 690 | F12: 802 | G12: 655 | H12: 573 | I12: 640 | J12: 455 | K12: 440 | L12: 31 | M12: 190 | N12: 139 | O12: 153 | P12: 10 | Q12: 3 | R12: 35 | S12: 14 | T12: 4 | U12: 1 | V12: 6 | W12: 1466 | X12: 1066 | Y12: 370 | Z12: 21 | AA12: 9 | AB12: 1271 | AC12: 625 | AD12: 548 | AE12: 78 | AF12: 20
A13: Альпинизм - всего | B13: 07 | C13: 235 | D13: 19 | E13: 27 | F13: 7 | G13: 18 | H13: 45 | I13: 31 | J13: 14 | K13: 17 | L13: 0 | M13: 10 | N13: 9 | O13: 4 | P13: 2 | Q13: 5 | R13: 9 | S13: 4 | T13: 1 | U13: 1 | V13: 12 | W13: 53 | X13: 17 | Y13: 31 | Z13: 3 | AA13: 2 | AB13: 47 | AC13: 15 | AD13: 26 | AE13: 4 | AF13: 2
A14: в том числе: Ски-альпинизм | B14: 08 | C14: 175 | D14: 19 | E14: 27 | F14: 7 | G14: 11 | H14: 45 | I14: 17 | J14: 9 | K14: 12 | L14: 0 | M14: 3 | N14: 7 | O14: 2 | P14: 0 | Q14: 5 | R14: 8 | S14: 1 | T14: 0 | U14: 1 | V14: 1 | W14: 40 | X14: 17 | Y14: 21 | Z14: 1 | AA14: 1 | AB14: 33 | AC14: 15 | AD14: 14 | AE14: 3 | AF14: 1
A15: Иные дисциплины вида спорта "альпинизм" | B15: 09 | C15: 60 | D15: 0 | E15: 0 | F15: 0 | G15: 7 | H15: 0 | I15: 14 | J15: 5 | K15: 5 | L15: 0 | M15: 7 | N15: 2 | O15: 2 | P15: 2 | Q15: 0 | R15: 1 | S15: 3 | T15: 1 | U15: 0 | V15: 11 | W15: 13 | X15: 0 | Y15: 10 | Z15: 2 | AA15: 1 | AB15: 14 | AC15: 0 | AD15: 12 | AE15: 1 | AF15: 1
A16: Американский футбол | B16: 10 | C16: 40 | D16: 15 | E16: 15 | F16: 0 | G16: 0 | H16: 0 | I16: 0 | J16: 0 | K16: 0 | L16: 0 | M16: 0 | N16: 0 | O16: 0 | P16: 10 | Q16: 0 | R16: 0 | S16: 0 | T16: 0 | U16: 0 | V16: 0 | W16: 23 | X16: 23 | Y16: 0 | Z16: 0 | AA16: 0 | AB16: 20 | AC16: 10 | AD16: 10 | AE16: 0 | AF16: 0
A17: Армейский рукопашный бой | B17: 11 | C17: 160 | D17: 76 | E17: 5 | F17: 5 | G17: 5 | H17: 15 | I17: 6 | J17: 28 | K17: 20 | L17: 0 | M17: 0 | N17: 0 | O17: 0 | P17: 0 | Q17: 0 | R17: 0 | S17: 0 | T17: 0 | U17: 0 | V17: 0 | W17: 89 | X17: 76 | Y17: 13 | Z17: 0 | AA17: 0 | AB17: 11 | AC17: 6 | AD17: 5 | AE17: 0 | AF17: 0
A18: Армейское тактико-стрелковое многоборье | B18: 12 | C18: 0 | D18: 0 | E18: 0 | F18: 0 | G18: 0 | H18: 0 | I18: 0 | J18: 0 | K18: 0 | L18: 0 | M18: 0 | N18: 0 | O18: 0 | P18: 0 | Q18: 0 | R18: 0 | S18: 0 | T18: 0 | U18: 0 | V18: 0 | W18: 0 | X18: 0 | Y18: 0 | Z18: 0 | AA18: 0 | AB18: 0 | AC18: 0 | AD18: 0 | AE18: 0 | AF18: 0
A19: Армрестлинг | B19: 13 | C19: 5226 | D19: 1134 | E19: 986 | F19: 252 | G19: 735 | H19: 693 | I19: 563 | J19: 420 | K19: 38 | L19: 0 | M19: 83 | N19: 74 | O19: 100 | P19: 20 | Q19: 34 | R19: 19 | S19: 1 | T19: 14 | U19: 17 | V19: 43 | W19: 1412 | X19: 1008 | Y19: 377 | Z19: 25 | AA19: 2 | AB19: 794 | AC19: 381 | AD19: 387 | AE19: 22 | AF19: 4
A20: Бадминтон | B20: 14 | C20: 11597 | D20: 3048 | E20: 2405 | F20: 1679 | G20: 1146 | H20: 970 | I20: 798 | J20: 738 | K20: 424 | L20: 0 | M20: 86 | N20: 150 | O20: 57 | P20: 18 | Q20: 19 | R20: 23 | S20: 12 | T20: 14 | U20: 3 | V20: 7 | W20: 3512 | X20: 3122 | Y20: 358 | Z20: 23 | AA20: 9 | AB20: 3151 | AC20: 2171 | AD20: 908 | AE20: 68 | AF20: 4
A21: Баскетбол - всего | B21: 15 | C21: 108884 | D21: 21202 | E21: 18640 | F21: 17811 | G21: 13629 | H21: 12477 | I21: 10505 | J21: 7292 | K21: 5528 | L21: 41 | M21: 799 | N21: 514 | O21: 124 | P21: 31 | Q21: 47 | R21: 121 | S21: 49 | T21: 48 | U21: 20 | V21: 6 | W21: 30836 | X21: 22468 | Y21: 7924 | Z21: 357 | AA21: 87 | AB21: 25861 | AC21: 13785 | AD21: 11338 | AE21: 619 | AF21: 119
A22: в том числе: Баскетбол (муж.) | B22: 16 | C22: 71320 | D22: 13563 | E22: 12417 | F22: 11830 | G22: 8767 | H22: 8162 | I22: 6943 | J22: 4839 | K22: 3770 | L22: 25 | M22: 449 | N22: 350 | O22: 82 | P22: 0 | Q22: 18 | R22: 51 | S22: 23 | T22: 21 | U22: 10 | V22: 0 | W22: 19945 | X22: 14425 | Y22: 5253 | Z22: 232 | AA22: 35 | AB22: 16944 | AC22: 8829 | AD22: 7652 | AE22: 410 | AF22: 53
A23: Баскетбол (жен.) | B23: 17 | C23: 37266 | D23: 7561 | E23: 6208 | F23: 5981 | G23: 4849 | H23: 4282 | I23: 3550 | J23: 2432 | K23: 1701 | L23: 16 | M23: 322 | N23: 157 | O23: 39 | P23: 31 | Q23: 29 | R23: 43 | S23: 22 | T23: 27 | U23: 10 | V23: 6 | W23: 10785 | X23: 7987 | Y23: 2648 | Z23: 108 | AA23: 42 | AB23: 8850 | AC23: 4939 | AD23: 3648 | AE23: 205 | AF23: 58
A24: Баскетбол 3х3 | B24: 18 | C24: 228 | D24: 45 | E24: 15 | F24: 0 | G24: 0 | H24: 21 | I24: 0 | J24: 21 | K24: 57 | L24: 0 | M24: 28 | N24: 7 | O24: 3 | P24: 0 | Q24: 0 | R24: 27 | S24: 4 | T24: 0 | U24: 0 | V24: 0 | W24: 72 | X24: 23 | Y24: 22 | Z24: 17 | AA24: 10 | AB24: 65 | AC24: 17 | AD24: 36 | AE24: 4 | AF24: 8
A25: Интерактивный баскетбол | B25: 19 | C25: 0 | D25: 0 | E25: 0 | F25: 0 | G25: 0 | H25: 0 | I25: 0 | J25: 0 | K25: 0 | L25: 0 | M25: 0 | N25: 0 | O25: 0 | P25: 0 | Q25: 0 | R25: 0 | S25: 0 | T25: 0 | U25: 0 | V25: 0 | W25: 0 | X25: 0 | Y25: 0 | Z25: 0 | AA25: 0 | AB25: 0 | AC25: 0 | AD25: 0 | AE25: 0 | AF25: 0
A26: Иные дисциплины вида спорта "баскетбол" | B26: 20 | C26: 70 | D26: 33 | E26: 0 | F26: 0 | G26: 13 | H26: 12 | I26: 12 | J26: 0 | K26: 0 | L26: 0 | M26: 0 | N26: 0 | O26: 0 | P26: 0 | Q26: 0 | R26: 0 | S26: 0 | T26: 0 | U26: 0 | V26: 0 | W26: 34 | X26: 33 | Y26: 1 | Z26: 0 | AA26: 0 | AB26: 2 | AC26: 0 | AD26: 2 | AE26: 0 | AF26: 0
A27: Бейсбол | B27: 21 | C27: 1032 | D27: 144 | E27: 124 | F27: 97 | G27: 131 | H27: 128 | I27: 78 | J27: 92 | K27: 43 | L27: 0 | M27: 50 | N27: 8 | O27: 22 | P27: 0 | Q27: 0 | R27: 36 | S27: 6 | T27: 6 | U27: 11 | V27: 56 | W27: 287 | X27: 202 | Y27: 64 | Z27: 4 | AA27: 17 | AB27: 172 | AC27: 84 | AD27: 59 | AE27: 2 | AF27: 27
A28: Биатлон | B28: 22 | C28: 14548 | D28: 2536 | E28: 2694 | F28: 2366 | G28: 1610 | H28: 1549 | I28: 1248 | J28: 1160 | K28: 770 | L28: 18 | M28: 204 | N28: 86 | O28: 61 | P28: 15 | Q28: 17 | R28: 104 | S28: 32 | T28: 23 | U28: 15 | V28: 40 | W28: 3574 | X28: 2703 | Y28: 770 | Z28: 52 | AA28: 49 | AB28: 3266 | AC28: 1632 | AD28: 1467 | AE28: 117 | AF28: 50
A29: Бильярдный спорт | B29: 23 | C29: 1518 | D29: 286 | E29: 304 | F29: 220 | G29: 207 | H29: 104 | I29: 89 | J29: 93 | K29: 76 | L29: 10 | M29: 22 | N29: 24 | O29: 25 | P29: 3 | Q29: 25 | R29: 4 | S29: 8 | T29: 6 | U29: 3 | V29: 9 | W29: 353 | X29: 277 | Y29: 58 | Z29: 14 | AA29: 4 | AB29: 280 | AC29: 145 | AD29: 98 | AE29: 32 | AF29: 5
A30: Бобслей - всего | B30: 24 | C30: 283 | D30: 21 | E30: 59 | F30: 12 | G30: 37 | H30: 22 | I30: 32 | J30: 17 | K30: 24 | L30: 0 | M30: 12 | N30: 6 | O30: 8 | P30: 2 | Q30: 7 | R30: 9 | S30: 1 | T30: 3 | U30: 0 | V30: 11 | W30: 92 | X30: 43 | Y30: 37 | Z30: 5 | AA30: 7 | AB30: 79 | AC30: 26 | AD30: 38 | AE30: 9 | AF30: 6
A31: в том числе: Скелетон | B31: 25 | C31: 154 | D31: 21 | E31: 47 | F31: 12 | G31: 36 | H31: 12 | I31: 6 | J31: 5 | K31: 4 | L31: 0 | M31: 6 | N31: 0 | O31: 1 | P31: 0 | Q31: 0 | R31: 2 | S31: 1 | T31: 0 | U31: 0 | V31: 1 | W31: 60 | X31: 34 | Y31: 23 | Z31: 2 | AA31: 1 | AB31: 46 | AC31: 17 | AD31: 26 | AE31: 2 | AF31: 1
A32: Экипаж | B32: 26 | C32: 97 | D32: 0 | E32: 12 | F32: 0 | G32: 1 | H32: 8 | I32: 26 | J32: 11 | K32: 3 | L32: 0 | M32: 6 | N32: 6 | O32: 7 | P32: 2 | Q32: 5 | R32: 6 | S32: 0 | T32: 3 | U32: 0 | V32: 1 | W32: 28 | X32: 9 | Y32: 11 | Z32: 3 | AA32: 5 | AB32: 29 | AC32: 9 | AD32: 11 | AE32: 5 | AF32: 4
A33: Монобоб | B33: 27 | C33: 21 | D33: 0 | E33: 0 | F33: 0 | G33: 0 | H33: 2 | I33: 0 | J33: 1 | K33: 17 | L33: 0 | M33: 0 | N33: 0 | O33: 0 | P33: 0 | Q33: 0 | R33: 0 | S33: 0 | T33: 0 | U33: 0 | V33: 1 | W33: 4 | X33: 0 | Y33: 3 | Z33: 0 | AA33: 1 | AB33: 2 | AC33: 0 | AD33: 1 | AE33: 0 | AF33: 1
A34: Иные дисциплины вида спорта "бобслей" | B34: 28 | C34: 11 | D34: 0 | E34: 0 | F34: 0 | G34: 0 | H34: 0 | I34: 0 | J34: 0 | K34: 0 | L34: 0 | M34: 0 | N34: 0 | O34: 0 | P34: 0 | Q34: 2 | R34: 1 | S34: 0 | T34: 0 | U34: 0 | V34: 8 | W34: 0 | X34: 0 | Y34: 0 | Z34: 0 | AA34: 0 | AB34: 2 | AC34: 0 | AD34: 0 | AE34: 2 | AF34: 0
A35: Бодибилдинг | B35: 29 | C35: 757 | D35: 160 | E35: 331 | F35: 160 | G35: 44 | H35: 34 | I35: 20 | J35: 2 | K35: 2 | L35: 0 | M35: 2 | N35: 1 | O35: 0 | P35: 0 | Q35: 0 | R35: 0 | S35: 0 | T35: 1 | U35: 0 | V35: 0 | W35: 175 | X35: 150 | Y35: 25 | Z35: 0 | AA35: 0 | AB35: 110 | AC35: 11 | AD35: 98 | AE35: 1 | AF35: 0
A36: Бокс | B36: 30 | C36: 118729 | D36: 26415 | E36: 25061 | F36: 18986 | G36: 15103 | H36: 11678 | I36: 10014 | J36: 5056 | K36: 2672 | L36: 168 | M36: 1276 | N36: 766 | O36: 468 | P36: 182 | Q36: 207 | R36: 279 | S36: 128 | T36: 94 | U36: 52 | V36: 124 | W36: 31810 | X36: 24247 | Y36: 6961 | Z36: 525 | AA36: 77 | AB36: 23515 | AC36: 13808 | AD36: 8995 | AE36: 620 | AF36: 92
A37: Борьба на поясах | B37: 31 | C37: 3212 | D37: 826 | E37: 572 | F37: 354 | G37: 559 | H37: 271 | I37: 176 | J37: 171 | K37: 27 | L37: 5 | M37: 76 | N37: 36 | O37: 59 | P37: 13 | Q37: 17 | R37: 25 | S37: 6 | T37: 13 | U37: 1 | V37: 5 | W37: 967 | X37: 754 | Y37: 174 | Z37: 37 | AA37: 2 | AB37: 768 | AC37: 341 | AD37: 401 | AE37: 19 | AF37: 7
A38: Боулинг | B38: 32 | C38: 0 | D38: 0 | E38: 0 | F38: 0 | G38: 0 | H38: 0 | I38: 0 | J38: 0 | K38: 0 | L38: 0 | M38: 0 | N38: 0 | O38: 0 | P38: 0 | Q38: 0 | R38: 0 | S38: 0 | T38: 0 | U38: 0 | V38: 0 | W38: 0 | X38: 0 | Y38: 0 | Z38: 0 | AA38: 0 | AB38: 0 | AC38: 0 | AD38: 0 | AE38: 0 | AF38: 0
A39: Боулспорт | B39: 33 | C39: 0 | D39: 0 | E39: 0 | F39: 0 | G39: 0 | H39: 0 | I39: 0 | J39: 0 | K39: 0 | L39: 0 | M39: 0 | N39: 0 | O39: 0 | P39: 0 | Q39: 0 | R39: 0 | S39: 0 | T39: 0 | U39: 0 | V39: 0 | W39: 0 | X39: 0 | Y39: 0 | Z39: 0 | AA39: 0 | AB39: 0 | AC39: 0 | AD39: 0 | AE39: 0 | AF39: 0
A40: Брейкинг | B40: 34 | C40: 591 | D40: 127 | E40: 85 | F40: 153 | G40: 78 | H40: 46 | I40: 49 | J40: 27 | K40: 10 | L40: 0 | M40: 6 | N40: 2 | O40: 7 | P40: 0 | Q40: 0 | R40: 0 | S40: 1 | T40: 0 | U40: 0 | V40: 0 | W40: 222 | X40: 161 | Y40: 55 | Z40: 5 | AA40: 1 | AB40: 134 | AC40: 95 | AD40: 37 | AE40: 2 | AF40: 0
A41: Велосипедный спорт - всего | B41: 35 | C41: 16331 | D41: 3315 | E41: 3004 | F41: 4040 | G41: 1448 | H41: 1118 | I41: 1080 | J41: 1009 | K41: 23 | L41: 0 | M41: 321 | N41: 274 | O41: 188 | P41: 63 | Q41: 80 | R41: 126 | S41: 83 | T41: 50 | U41: 26 | V41: 83 | W41: 4783 | X41: 3994 | Y41: 646 | Z41: 110 | AA41: 33 | AB41: 3885 | AC41: 2624 | AD41: 999 | AE41: 197 | AF41: 65
A42: в том числе: BMX (гонка, эстафета) | B42: 36 | C42: 2667 | D42: 510 | E42: 530 | F42: 764 | G42: 258 | H42: 158 | I42: 137 | J42: 166 | K42: 0 | L42: 0 | M42: 46 | N42: 29 | O42: 18 | P42: 22 | Q42: 0 | R42: 14 | S42: 1 | T42: 6 | U42: 2 | V42: 6 | W42: 588 | X42: 506 | Y42: 78 | Z42: 3 | AA42: 1 | AB42: 567 | AC42: 426 | AD42: 125 | AE42: 12 | AF42: 4
A43: BMX - фристайл | B43: 37 | C43: 443 | D43: 109 | E43: 51 | F43: 92 | G43: 30 | H43: 38 | I43: 26 | J43: 38 | K43: 0 | L43: 0 | M43: 3 | N43: 18 | O43: 18 | P43: 0 | Q43: 7 | R43: 8 | S43: 3 | T43: 1 | U43: 1 | V43: 0 | W43: 121 | X43: 60 | Y43: 45 | Z43: 13 | AA43: 3 | AB43: 69 | AC43: 18 | AD43: 41 | AE43: 10 | AF43: 0
A44: Маунтинбайк | B44: 38 | C44: 4329 | D44: 888 | E44: 917 | F44: 1240 | G44: 320 | H44: 257 | I44: 286 | J44: 230 | K44: 9 | L44: 0 | M44: 47 | N44: 34 | O44: 20 | P44: 10 | Q44: 6 | R44: 34 | S44: 5 | T44: 11 | U44: 3 | V44: 12 | W44: 1334 | X44: 1162 | Y44: 155 | Z44: 16 | AA44: 1 | AB44: 1079 | AC44: 718 | AD44: 297 | AE44: 52 | AF44: 12
A45: Трек | B45: 39 | C45: 1501 | D45: 175 | E45: 219 | F45: 297 | G45: 86 | H45: 142 | I45: 123 | J45: 96 | K45: 0 | L45: 0 | M45: 92 | N45: 88 | O45: 54 | P45: 10 | Q45: 1 | R45: 32 | S45: 48 | T45: 13 | U45: 8 | V45: 17 | W45: 358 | X45: 247 | Y45: 70 | Z45: 26 | AA45: 15 | AB45: 288 | AC45: 138 | AD45: 87 | AE45: 37 | AF45: 26
A46: Шоссе | B46: 40 | C46: 7391 | D46: 1633 | E46: 1287 | F46: 1647 | G46: 754 | H46: 523 | I46: 508 | J46: 479 | K46: 14 | L46: 0 | M46: 133 | N46: 105 | O46: 78 | P46: 21 | Q46: 66 | R46: 38 | S46: 26 | T46: 19 | U46: 12 | V46: 48 | W46: 2382 | X46: 2019 | Y46: 298 | Z46: 52 | AA46: 13 | AB46: 1882 | AC46: 1324 | AD46: 449 | AE46: 86 | AF46: 23
A47: Вертолетный спорт | B47: 41 | C47: 0 | D47: 0 | E47: 0 | F47: 0 | G47: 0 | H47: 0 | I47: 0 | J47: 0 | K47: 0 | L47: 0 | M47: 0 | N47: 0 | O47: 0 | P47: 0 | Q47: 0 | R47: 0 | S47: 0 | T47: 0 | U47: 0 | V47: 0 | W47: 0 | X47: 0 | Y47: 0 | Z47: 0 | AA47: 0 | AB47: 0 | AC47: 0 | AD47: 0 | AE47: 0 | AF47: 0
A48: Водное поло - всего | B48: 42 | C48: 7027 | D48: 1443 | E48: 1075 | F48: 938 | G48: 784 | H48: 737 | I48: 682 | J48: 488 | K48: 368 | L48: 0 | M48: 175 | N48: 112 | O48: 64 | P48: 5 | Q48: 12 | R48: 59 | S48: 19 | T48: 8 | U48: 36 | V48: 22 | W48: 2135 | X48: 1535 | Y48: 509 | Z48: 66 | AA48: 25 | AB48: 1766 | AC48: 881 | AD48: 753 | AE48: 96 | AF48: 36
A49: в том числе: Водное поло (муж.) | B49: 43 | C49: 5514 | D49: 1107 | E49: 853 | F49: 687 | G49: 701 | H49: 527 | I49: 621 | J49: 405 | K49: 277 | L49: 0 | M49: 121 | N49: 95 | O49: 41 | P49: 0 | Q49: 12 | R49: 22 | S49: 2 | T49: 4 | U49: 18 | V49: 21 | W49: 1625 | X49: 1128 | Y49: 438 | Z49: 46 | AA49: 13 | AB49: 1314 | AC49: 646 | AD49: 568 | AE49: 82 | AF49: 18
A50: Водное поло (жен.) | B50: 44 | C50: 1157 | D50: 278 | E50: 169 | F50: 178 | G50: 76 | H50: 143 | I50: 50 | J50: 68 | K50: 39 | L50: 0 | M50: 48 | N50: 17 | O50: 21 | P50: 5 | Q50: 0 | R50: 35 | S50: 7 | T50: 4 | U50: 18 | V50: 1 | W50: 440 | X50: 345 | Y50: 63 | Z50: 20 | AA50: 12 | AB50: 366 | AC50: 209 | AD50: 127 | AE50: 13 | AF50: 17
A51: Иные дисциплины вида спорта "водное поло" | B51: 45 | C51: 356 | D51: 58 | E51: 53 | F51: 73 | G51: 7 | H51: 67 | I51: 11 | J51: 15 | K51: 52 | L51: 0 | M51: 6 | N51: 0 | O51: 2 | P51: 0 | Q51: 0 | R51: 2 | S51: 10 | T51: 0 | U51: 0 | V51: 0 | W51: 70 | X51: 62 | Y51: 8 | Z51: 0 | AA51: 0 | AB51: 86 | AC51: 26 | AD51: 58 | AE51: 1 | AF51: 1
A52: Воднолыжный спорт | B52: 46 | C52: 330 | D52: 67 | E52: 51 | F52: 0 | G52: 52 | H52: 30 | I52: 42 | J52: 17 | K52: 18 | L52: 0 | M52: 22 | N52: 9 | O52: 5 | P52: 3 | Q52: 3 | R52: 0 | S52: 1 | T52: 1 | U52: 3 | V52: 6 | W52: 51 | X52: 43 | Y52: 7 | Z52: 1 | AA52: 0 | AB52: 62 | AC52: 27 | AD52: 29 | AE52: 6 | AF52: 0
A53: Водно-моторный спорт | B53: 47 | C53: 221 | D53: 42 | E53: 41 | F53: 0 | G53: 44 | H53: 25 | I53: 17 | J53: 9 | K53: 8 | L53: 0 | M53: 9 | N53: 2 | O53: 15 | P53: 0 | Q53: 2 | R53: 2 | S53: 3 | T53: 1 | U53: 1 | V53: 0 | W53: 60 | X53: 53 | Y53: 7 | Z53: 0 | AA53: 0 | AB53: 66 | AC53: 23 | AD53: 24 | AE53: 15 | AF53: 4
A54: Водно-спасательное многоборье | B54: 48 | C54: 0 | D54: 0 | E54: 0 | F54: 0 | G54: 0 | H54: 0 | I54: 0 | J54: 0 | K54: 0 | L54: 0 | M54: 0 | N54: 0 | O54: 0 | P54: 0 | Q54: 0 | R54: 0 | S54: 0 | T54: 0 | U54: 0 | V54: 0 | W54: 0 | X54: 0 | Y54: 0 | Z54: 0 | AA54: 0 | AB54: 0 | AC54: 0 | AD54: 0 | AE54: 0 | AF54: 0
A55: Военно-прикладной спорт | B55: 49 | C55: 6663 | D55: 6629 | E55: 0 | F55: 0 | G55: 0 | H55: 0 | I55: 0 | J55: 0 | K55: 0 | L55: 0 | M55: 0 | N55: 33 | O55: 0 | P55: 0 | Q55: 0 | R55: 0 | S55: 0 | T55: 0 | U55: 1 | V55: 0 | W55: 0 | X55: 0 | Y55: 0 | Z55: 0 | AA55: 0 | AB55: 0 | AC55: 0 | AD55: 0 | AE55: 0 | AF55: 0
A56: Военно-спортивное многоборье | B56: 50 | C56: 15 | D56: 15 | E56: 0 | F56: 0 | G56: 0 | H56: 0 | I56: 0 | J56: 0 | K56: 0 | L56: 0 | M56: 0 | N56: 0 | O56: 0 | P56: 0 | Q56: 0 | R56: 0 | S56: 0 | T56: 0 | U56: 0 | V56: 0 | W56: 15 | X56: 15 | Y56: 0 | Z56: 0 | AA56: 0 | AB56: 0 | AC56: 0 | AD56: 0 | AE56: 0 | AF56: 0
A57: Воздухоплавательный спорт | B57: 51 | C57: 0 | D57: 0 | E57: 0 | F57: 0 | G57: 0 | H57: 0 | I57: 0 | J57: 0 | K57: 0 | L57: 0 | M57: 0 | N57: 0 | O57: 0 | P57: 0 | Q57: 0 | R57: 0 | S57: 0 | T57: 0 | U57: 0 | V57: 0 | W57: 0 | X57: 0 | Y57: 0 | Z57: 0 | AA57: 0 | AB57: 0 | AC57: 0 | AD57: 0 | AE57: 0 | AF57: 0
A58: Воздушная гимнастика | B58: 52 | C58: 0 | D58: 0 | E58: 0 | F58: 0 | G58: 0 | H58: 0 | I58: 0 | J58: 0 | K58: 0 | L58: 0 | M58: 0 | N58: 0 | O58: 0 | P58: 0 | Q58: 0 | R58: 0 | S58: 0 | T58: 0 | U58: 0 | V58: 0 | W58: 0 | X58: 0 | Y58: 0 | Z58: 0 | AA58: 0 | AB58: 0 | AC58: 0 | AD58: 0 | AE58: 0 | AF58: 0
A59: Воздушно-силовая атлетика | B59: 53 | C59: 45 | D59: 45 | E59: 0 | F59: 0 | G59: 0 | H59: 0 | I59: 0 | J59: 0 | K59: 0 | L59: 0 | M59: 0 | N59: 0 | O59: 0 | P59: 0 | Q59: 0 | R59: 0 | S59: 0 | T59: 0 | U59: 0 | V59: 0 | W59: 39 | X59: 39 | Y59: 0 | Z59: 0 | AA59: 0 | AB59: 7 | AC59: 7 | AD59: 0 | AE59: 0 | AF59: 0
A60: Волейбол - всего | B60: 54 | C60: 123047 | D60: 26057 | E60: 23443 | F60: 20992 | G60: 15131 | H60: 12922 | I60: 10520 | J60: 7462 | K60: 4632 | L60: 92 | M60: 866 | N60: 372 | O60: 136 | P60: 52 | Q60: 31 | R60: 167 | S60: 38 | T60: 78 | U60: 50 | V60: 6 | W60: 33758 | X60: 26455 | Y60: 7019 | Z60: 222 | AA60: 62 | AB60: 25645 | AC60: 14441 | AD60: 10771 | AE60: 305 | AF60: 128
A61: в том числе: Волейбол (муж.) | B61: 55 | C61: 52520 | D61: 11449 | E61: 9879 | F61: 8648 | G61: 6189 | H61: 5294 | I61: 4730 | J61: 3290 | K61: 2215 | L61: 27 | M61: 378 | N61: 162 | O61: 57 | P61: 14 | Q61: 24 | R61: 88 | S61: 18 | T61: 33 | U61: 24 | V61: 1 | W61: 14726 | X61: 11835 | Y61: 2760 | Z61: 105 | AA61: 26 | AB61: 11781 | AC61: 6704 | AD61: 4860 | AE61: 154 | AF61: 63
A62: Волейбол (жен.) | B62: 56 | C62: 70058 | D62: 14553 | E62: 13496 | F62: 12333 | G62: 8839 | H62: 7606 | I62: 5713 | J62: 4141 | K62: 2404 | L62: 65 | M62: 468 | N62: 198 | O62: 72 | P62: 28 | Q62: 6 | R62: 65 | S62: 17 | T62: 45 | U62: 9 | V62: 0 | W62: 18880 | X62: 14547 | Y62: 4187 | Z62: 114 | AA62: 32 | AB62: 13774 | AC62: 7719 | AD62: 5851 | AE62: 147 | AF62: 57
A63: Пляжный волейбол (муж.) | B63: 57 | C63: 194 | D63: 40 | E63: 16 | F63: 7 | G63: 26 | H63: 14 | I63: 25 | J63: 16 | K63: 8 | L63: 0 | M63: 11 | N63: 2 | O63: 1 | P63: 6 | Q63: 0 | R63: 9 | S63: 0 | T63: 0 | U63: 13 | V63: 0 | W63: 60 | X63: 30 | Y63: 27 | Z63: 2 | AA63: 1 | AB63: 41 | AC63: 8 | AD63: 26 | AE63: 1 | AF63: 6
A64: Пляжный волейбол (жен.) | B64: 58 | C64: 269 | D64: 15 | E64: 52 | F64: 4 | G64: 74 | H64: 8 | I64: 52 | J64: 15 | K64: 5 | L64: 0 | M64: 9 | N64: 10 | O64: 3 | P64: 4 | Q64: 1 | R64: 5 | S64: 3 | T64: 0 | U64: 4 | V64: 5 | W64: 92 | X64: 43 | Y64: 45 | Z64: 1 | AA64: 3 | AB64: 49 | AC64: 10 | AD64: 34 | AE64: 3 | AF64: 2
A65: Волейбол на снегу | B65: 59 | C65: 6 | D65: 0 | E65: 0 | F65: 0 | G65: 3 | H65: 0 | I65: 0 | J65: 0 | K65: 0 | L65: 0 | M65: 0 | N65: 0 | O65: 3 | P65: 0 | Q65: 0 | R65: 0 | S65: 0 | T65: 0 | U65: 0 | V65: 0 | W65: 0 | X65: 0 | Y65: 0 | Z65: 0 | AA65: 0 | AB65: 0 | AC65: 0 | AD65: 0 | AE65: 0 | AF65: 0
A66: Восточное боевое единоборство | B66: 60 | C66: 5846 | D66: 1471 | E66: 1163 | F66: 677 | G66: 770 | H66: 598 | I66: 418 | J66: 425 | K66: 51 | L66: 39 | M66: 96 | N66: 39 | O66: 42 | P66: 11 | Q66: 1 | R66: 16 | S66: 7 | T66: 3 | U66: 6 | V66: 13 | W66: 1380 | X66: 1077 | Y66: 282 | Z66: 14 | AA66: 7 | AB66: 996 | AC66: 547 | AD66: 405 | AE66: 41 | AF66: 3
A67: Всестилевое каратэ | B67: 61 | C67: 7301 | D67: 1775 | E67: 1606 | F67: 854 | G67: 964 | H67: 665 | I67: 774 | J67: 368 | K67: 59 | L67: 0 | M67: 84 | N67: 64 | O67: 11 | P67: 6 | Q67: 31 | R67: 24 | S67: 5 | T67: 1 | U67: 2 | V67: 8 | W67: 2284 | X67: 1763 | Y67: 484 | Z67: 33 | AA67: 4 | AB67: 1511 | AC67: 872 | AD67: 591 | AE67: 46 | AF67: 2
A68: Гандбол - всего | B68: 62 | C68: 19407 | D68: 3923 | E68: 3742 | F68: 434 | G68: 2909 | H68: 2620 | I68: 2115 | J68: 1705 | K68: 1001 | L68: 19 | M68: 347 | N68: 227 | O68: 90 | P68: 13 | Q68: 35 | R68: 108 | S68: 42 | T68: 33 | U68: 16 | V68: 28 | W68: 4913 | X68: 3561 | Y68: 1201 | Z68: 134 | AA68: 17 | AB68: 4374 | AC68: 2149 | AD68: 1870 | AE68: 246 | AF68: 109
A69: в том числе: Гандбол (муж.) | B69: 63 | C69: 10773 | D69: 2328 | E69: 1962 | F69: 248 | G69: 1616 | H69: 1477 | I69: 1089 | J69: 946 | K69: 595 | L69: 7 | M69: 200 | N69: 92 | O69: 57 | P69: 12 | Q69: 34 | R69: 53 | S69: 28 | T69: 3 | U69: 4 | V69: 22 | W69: 2908 | X69: 2185 | Y69: 642 | Z69: 68 | AA69: 13 | AB69: 2423 | AC69: 1233 | AD69: 974 | AE69: 154 | AF69: 62
A70: Гандбол (жен.) | B70: 64 | C70: 8617 | D70: 1595 | E70: 1780 | F70: 186 | G70: 1293 | H70: 1143 | I70: 1026 | J70: 759 | K70: 406 | L70: 12 | M70: 135 | N70: 135 | O70: 33 | P70: 1 | Q70: 1 | R70: 50 | S70: 14 | T70: 30 | U70: 12 | V70: 6 | W70: 2005 | X70: 1376 | Y70: 559 | Z70: 66 | AA70: 4 | AB70: 1951 | AC70: 916 | AD70: 896 | AE70: 92 | AF70: 47
A71: Пляжный гандбол | B71: 65 | C71: 17 | D71: 0 | E71: 0 | F71: 0 | G71: 0 | H71: 0 | I71: 0 | J71: 0 | K71: 0 | L71: 0 | M71: 12 | N71: 0 | O71: 0 | P71: 0 | Q71: 0 | R71: 5 | S71: 0 | T71: 0 | U71: 0 | V71: 0 | W71: 0 | X71: 0 | Y71: 0 | Z71: 0 | AA71: 0 | AB71: 0 | AC71: 0 | AD71: 0 | AE71: 0 | AF71: 0
A72: Гиревой спорт | B72: 66 | C72: 7104 | D72: 1531 | E72: 1020 | F72: 951 | G72: 822 | H72: 819 | I72: 672 | J72: 474 | K72: 253 | L72: 0 | M72: 129 | N72: 111 | O72: 47 | P72: 38 | Q72: 55 | R72: 86 | S72: 12 | T72: 12 | U72: 15 | V72: 57 | W72: 2013 | X72: 1422 | Y72: 528 | Z72: 55 | AA72: 8 | AB72: 1401 | AC72: 804 | AD72: 544 | AE72: 48 | AF72: 5
A73: Го | B73: 67 | C73: 305 | D73: 110 | E73: 73 | F73: 16 | G73: 30 | H73: 47 | I73: 10 | J73: 5 | K73: 8 | L73: 0 | M73: 0 | N73: 3 | O73: 0 | P73: 0 | Q73: 0 | R73: 0 | S73: 0 | T73: 0 | U73: 0 | V73: 3 | W73: 98 | X73: 81 | Y73: 17 | Z73: 0 | AA73: 0 | AB73: 73 | AC73: 45 | AD73: 27 | AE73: 1 | AF73: 0
A74: Гольф | B74: 68 | C74: 705 | D74: 133 | E74: 74 | F74: 67 | G74: 118 | H74: 69 | I74: 107 | J74: 42 | K74: 61 | L74: 0 | M74: 7 | N74: 8 | O74: 11 | P74: 0 | Q74: 0 | R74: 0 | S74: 6 | T74: 2 | U74: 0 | V74: 0 | W74: 209 | X74: 156 | Y74: 52 | Z74: 0 | AA74: 1 | AB74: 114 | AC74: 45 | AD74: 63 | AE74: 3 | AF74: 3
A75: Гонки дронов (беспилотных воздушных судов) - всего | B75: 69 | C75: 218 | D75: 134 | E75: 78 | F75: 0 | G75: 6 | H75: 0 | I75: 0 | J75: 0 | K75: 0 | L75: 0 | M75: 0 | N75: 0 | O75: 0 | P75: 0 | Q75: 0 | R75: 0 | S75: 0 | T75: 0 | U75: 0 | V75: 0 | W75: 136 | X75: 135 | Y75: 1 | Z75: 0 | AA75: 0 | AB75: 25 | AC75: 25 | AD75: 0 | AE75: 0 | AF75: 0
A76: в том числе: Класс 75 мм | B76: 70 | C76: 205 | D76: 130 | E76: 69 | F76: 0 | G76: 6 | H76: 0 | I76: 0 | J76: 0 | K76: 0 | L76: 0 | M76: 0 | N76: 0 | O76: 0 | P76: 0 | Q76: 0 | R76: 0 | S76: 0 | T76: 0 | U76: 0 | V76: 0 | W76: 132 | X76: 131 | Y76: 1 | Z76: 0 | AA76: 0 | AB76: 25 | AC76: 25 | AD76: 0 | AE76: 0 | AF76: 0
A77: Класс 200 мм | B77: 71 | C77: 0 | D77: 0 | E77: 0 | F77: 0 | G77: 0 | H77: 0 | I77: 0 | J77: 0 | K77: 0 | L77: 0 | M77: 0 | N77: 0 | O77: 0 | P77: 0 | Q77: 0 | R77: 0 | S77: 0 | T77: 0 | U77: 0 | V77: 0 | W77: 0 | X77: 0 | Y77: 0 | Z77: 0 | AA77: 0 | AB77: 0 | AC77: 0 | AD77: 0 | AE77: 0 | AF77: 0
A78: Класс 330 мм | B78: 72 | C78: 0 | D78: 0 | E78: 0 | F78: 0 | G78: 0 | H78: 0 | I78: 0 | J78: 0 | K78: 0 | L78: 0 | M78: 0 | N78: 0 | O78: 0 | P78: 0 | Q78: 0 | R78: 0 | S78: 0 | T78: 0 | U78: 0 | V78: 0 | W78: 0 | X78: 0 | Y78: 0 | Z78: 0 | AA78: 0 | AB78: 0 | AC78: 0 | AD78: 0 | AE78: 0 | AF78: 0
A79: Технический симулятор | B79: 73 | C79: 13 | D79: 4 | E79: 9 | F79: 0 | G79: 0 | H79: 0 | I79: 0 | J79: 0 | K79: 0 | L79: 0 | M79: 0 | N79: 0 | O79: 0 | P79: 0 | Q79: 0 | R79: 0 | S79: 0 | T79: 0 | U79: 0 | V79: 0 | W79: 4 | X79: 4 | Y79: 0 | Z79: 0 | AA79: 0 | AB79: 0 | AC79: 0 | AD79: 0 | AE79: 0 | AF79: 0
A80: Гонки на охотничьих лыжах | B80: 74 | C80: 0 | D80: 0 | E80: 0 | F80: 0 | G80: 0 | H80: 0 | I80: 0 | J80: 0 | K80: 0 | L80: 0 | M80: 0 | N80: 0 | O80: 0 | P80: 0 | Q80: 0 | R80: 0 | S80: 0 | T80: 0 | U80: 0 | V80: 0 | W80: 0 | X80: 0 | Y80: 0 | Z80: 0 | AA80: 0 | AB80: 0 | AC80: 0 | AD80: 0 | AE80: 0 | AF80: 0
A81: Гонки с препятствиями | B81: 75 | C81: 0 | D81: 0 | E81: 0 | F81: 0 | G81: 0 | H81: 0 | I81: 0 | J81: 0 | K81: 0 | L81: 0 | M81: 0 | N81: 0 | O81: 0 | P81: 0 | Q81: 0 | R81: 0 | S81: 0 | T81: 0 | U81: 0 | V81: 0 | W81: 0 | X81: 0 | Y81: 0 | Z81: 0 | AA81: 0 | AB81: 0 | AC81: 0 | AD81: 0 | AE81: 0 | AF81: 0
A82: Горнолыжный спорт | B82: 76 | C82: 9566 | D82: 1794 | E82: 1694 | F82: 1585 | G82: 1023 | H82: 993 | I82: 920 | J82: 620 | K82: 743 | L82: 29 | M82: 42 | N82: 46 | O82: 19 | P82: 3 | Q82: 8 | R82: 14 | S82: 4 | T82: 8 | U82: 6 | V82: 15 | W82: 2138 | X82: 1754 | Y82: 363 | Z82: 19 | AA82: 2 | AB82: 1799 | AC82: 937 | AD82: 821 | AE82: 29 | AF82: 12
A83: Городошный спорт | B83: 77 | C83: 640 | D83: 150 | E83: 66 | F83: 116 | G83: 63 | H83: 64 | I83: 66 | J83: 49 | K83: 0 | L83: 0 | M83: 27 | N83: 4 | O83: 14 | P83: 4 | Q83: 8 | R83: 9 | S83: 0 | T83: 0 | U83: 0 | V83: 0 | W83: 210 | X83: 183 | Y83: 16 | Z83: 5 | AA83: 6 | AB83: 139 | AC83: 96 | AD83: 42 | AE83: 1 | AF83: 0
A84: Гребля на байдарках и каноэ | B84: 78 | C84: 13121 | D84: 2548 | E84: 2466 | F84: 889 | G84: 1584 | H84: 1401 | I84: 980 | J84: 1185 | K84: 424 | L84: 69 | M84: 465 | N84: 357 | O84: 180 | P84: 128 | Q84: 74 | R84: 111 | S84: 93 | T84: 41 | U84: 31 | V84: 95 | W84: 3423 | X84: 2634 | Y84: 607 | Z84: 146 | AA84: 36 | AB84: 2799 | AC84: 1271 | AD84: 1250 | AE84: 226 | AF84: 52
A85: Гребля на шлюпках | B85: 79 | C85: 0 | D85: 0 | E85: 0 | F85: 0 | G85: 0 | H85: 0 | I85: 0 | J85: 0 | K85: 0 | L85: 0 | M85: 0 | N85: 0 | O85: 0 | P85: 0 | Q85: 0 | R85: 0 | S85: 0 | T85: 0 | U85: 0 | V85: 0 | W85: 0 | X85: 0 | Y85: 0 | Z85: 0 | AA85: 0 | AB85: 0 | AC85: 0 | AD85: 0 | AE85: 0 | AF85: 0
A86: Гребной слалом | B86: 80 | C86: 1420 | D86: 277 | E86: 262 | F86: 103 | G86: 199 | H86: 92 | I86: 145 | J86: 73 | K86: 84 | L86: 0 | M86: 34 | N86: 45 | O86: 39 | P86: 7 | Q86: 10 | R86: 9 | S86: 3 | T86: 3 | U86: 6 | V86: 29 | W86: 332 | X86: 272 | Y86: 42 | Z86: 15 | AA86: 3 | AB86: 223 | AC86: 138 | AD86: 73 | AE86: 11 | AF86: 1
A87: Гребной спорт - всего | B87: 81 | C87: 6180 | D87: 1134 | E87: 1278 | F87: 107 | G87: 705 | H87: 841 | I87: 593 | J87: 457 | K87: 354 | L87: 0 | M87: 194 | N87: 157 | O87: 94 | P87: 46 | Q87: 22 | R87: 31 | S87: 55 | T87: 29 | U87: 14 | V87: 69 | W87: 1691 | X87: 1249 | Y87: 347 | Z87: 77 | AA87: 18 | AB87: 1321 | AC87: 611 | AD87: 592 | AE87: 88 | AF87: 30
A88: в том числе: Академическая гребля | B88: 82 | C88: 5928 | D88: 1033 | E88: 1224 | F88: 83 | G88: 695 | H88: 796 | I88: 593 | J88: 457 | K88: 338 | L88: 0 | M88: 194 | N88: 157 | O88: 94 | P88: 46 | Q88: 22 | R88: 31 | S88: 55 | T88: 29 | U88: 14 | V88: 67 | W88: 1561 | X88: 1119 | Y88: 347 | Z88: 77 | AA88: 18 | AB88: 1247 | AC88: 537 | AD88: 592 | AE88: 88 | AF88: 30
A89: Иные дисциплины вида спорта "гребной спорт" | B89: 83 | C89: 252 | D89: 101 | E89: 54 | F89: 24 | G89: 10 | H89: 45 | I89: 0 | J89: 0 | K89: 16 | L89: 0 | M89: 0 | N89: 0 | O89: 0 | P89: 0 | Q89: 0 | R89: 0 | S89: 0 | T89: 0 | U89: 0 | V89: 2 | W89: 130 | X89: 130 | Y89: 0 | Z89: 0 | AA89: 0 | AB89: 74 | AC89: 74 | AD89: 0 | AE89: 0 | AF89: 0
A90: Гребно-парусное двоеборье | B90: 84 | C90: 0 | D90: 0 | E90: 0 | F90: 0 | G90: 0 | H90: 0 | I90: 0 | J90: 0 | K90: 0 | L90: 0 | M90: 0 | N90: 0 | O90: 0 | P90: 0 | Q90: 0 | R90: 0 | S90: 0 | T90: 0 | U90: 0 | V90: 0 | W90: 0 | X90: 0 | Y90: 0 | Z90: 0 | AA90: 0 | AB90: 0 | AC90: 0 | AD90: 0 | AE90: 0 | AF90: 0
A91: Дартс | B91: 85 | C91: 832 | D91: 239 | E91: 172 | F91: 149 | G91: 76 | H91: 37 | I91: 57 | J91: 19 | K91: 22 | L91: 4 | M91: 11 | N91: 20 | O91: 15 | P91: 2 | Q91: 7 | R91: 0 | S91: 2 | T91: 0 | U91: 0 | V91: 0 | W91: 242 | X91: 198 | Y91: 38 | Z91: 6 | AA91: 0 | AB91: 286 | AC91: 209 | AD91: 73 | AE91: 4 | AF91: 0
A92: Джиу-джитсу | B92: 86 | C92: 3108 | D92: 817 | E92: 548 | F92: 277 | G92: 374 | H92: 243 | I92: 298 | J92: 204 | K92: 1 | L92: 0 | M92: 92 | N92: 95 | O92: 32 | P92: 14 | Q92: 5 | R92: 30 | S92: 11 | T92: 9 | U92: 22 | V92: 36 | W92: 921 | X92: 679 | Y92: 183 | Z92: 51 | AA92: 8 | AB92: 582 | AC92: 341 | AD92: 210 | AE92: 20 | AF92: 11
A93: Джутайдо | B93: 87 | C93: 0 | D93: 0 | E93: 0 | F93: 0 | G93: 0 | H93: 0 | I93: 0 | J93: 0 | K93: 0 | L93: 0 | M93: 0 | N93: 0 | O93: 0 | P93: 0 | Q93: 0 | R93: 0 | S93: 0 | T93: 0 | U93: 0 | V93: 0 | W93: 3 | X93: 3 | Y93: 0 | Z93: 0 | AA93: 0 | AB93: 3 | AC93: 3 | AD93: 0 | AE93: 0 | AF93: 0
A94: Дзюдо | B94: 88 | C94: 123386 | D94: 23301 | E94: 23869 | F94: 30084 | G94: 13313 | H94: 10981 | I94: 9683 | J94: 5282 | K94: 3044 | L94: 116 | M94: 1310 | N94: 871 | O94: 522 | P94: 177 | Q94: 206 | R94: 234 | S94: 87 | T94: 110 | U94: 46 | V94: 150 | W94: 31239 | X94: 25066 | Y94: 5713 | Z94: 388 | AA94: 72 | AB94: 22973 | AC94: 14686 | AD94: 7679 | AE94: 515 | AF94: 93
A95: Ездовой спорт | B95: 89 | C95: 0 | D95: 0 | E95: 0 | F95: 0 | G95: 0 | H95: 0 | I95: 0 | J95: 0 | K95: 0 | L95: 0 | M95: 0 | N95: 0 | O95: 0 | P95: 0 | Q95: 0 | R95: 0 | S95: 0 | T95: 0 | U95: 0 | V95: 0 | W95: 15 | X95: 15 | Y95: 0 | Z95: 0 | AA95: 0 | AB95: 24 | AC95: 10 | AD95: 14 | AE95: 0 | AF95: 0
A96: Зимнее плавание | B96: 90 | C96: 0 | D96: 0 | E96: 0 | F96: 0 | G96: 0 | H96: 0 | I96: 0 | J96: 0 | K96: 0 | L96: 0 | M96: 0 | N96: 0 | O96: 0 | P96: 0 | Q96: 0 | R96: 0 | S96: 0 | T96: 0 | U96: 0 | V96: 0 | W96: 0 | X96: 0 | Y96: 0 | Z96: 0 | AA96: 0 | AB96: 0 | AC96: 0 | AD96: 0 | AE96: 0 | AF96: 0
A97: Капоэйра | B97: 91 | C97: 29 | D97: 29 | E97: 0 | F97: 0 | G97: 0 | H97: 0 | I97: 0 | J97: 0 | K97: 0 | L97: 0 | M97: 0 | N97: 0 | O97: 0 | P97: 0 | Q97: 0 | R97: 0 | S97: 0 | T97: 0 | U97: 0 | V97: 0 | W97: 0 | X97: 0 | Y97: 0 | Z97: 0 | AA97: 0 | AB97: 0 | AC97: 0 | AD97: 0 | AE97: 0 | AF97: 0
A98: Каратэ | B98: 92 | C98: 17980 | D98: 4377 | E98: 3418 | F98: 2541 | G98: 2043 | H98: 1948 | I98: 1672 | J98: 910 | K98: 131 | L98: 42 | M98: 231 | N98: 186 | O98: 145 | P98: 71 | Q98: 71 | R98: 118 | S98: 25 | T98: 20 | U98: 13 | V98: 18 | W98: 5104 | X98: 4101 | Y98: 935 | Z98: 60 | AA98: 8 | AB98: 4270 | AC98: 2713 | AD98: 1421 | AE98: 99 | AF98: 37
A99: Кендо | B99: 93 | C99: 19 | D99: 2 | E99: 2 | F99: 0 | G99: 15 | H99: 0 | I99: 0 | J99: 0 | K99: 0 | L99: 0 | M99: 0 | N99: 0 | O99: 0 | P99: 0 | Q99: 0 | R99: 0 | S99: 0 | T99: 0 | U99: 0 | V99: 0 | W99: 2 | X99: 2 | Y99: 0 | Z99: 0 | AA99: 0 | AB99: 23 | AC99: 8 | AD99: 15 | AE99: 0 | AF99: 0
A100: Керешу | B100: 94 | C100: 314 | D100: 134 | E100: 165 | F100: 15 | G100: 0 | H100: 0 | I100: 0 | J100: 0 | K100: 0 | L100: 0 | M100: 0 | N100: 0 | O100: 0 | P100: 0 | Q100: 0 | R100: 0 | S100: 0 | T100: 0 | U100: 0 | V100: 0 | W100: 66 | X100: 66 | Y100: 0 | Z100: 0 | AA100: 0 | AB100: 26 | AC100: 26 | AD100: 0 | AE100: 0 | AF100: 0
A101: Кёрлинг - всего | B101: 95 | C101: 2111 | D101: 460 | E101: 474 | F101: 198 | G101: 189 | H101: 210 | I101: 169 | J101: 76 | K101: 111 | L101: 0 | M101: 58 | N101: 47 | O101: 55 | P101: 5 | Q101: 3 | R101: 10 | S101: 3 | T101: 15 | U101: 7 | V101: 21 | W101: 753 | X101: 598 | Y101: 132 | Z101: 19 | AA101: 4 | AB101: 375 | AC101: 141 | AD101: 189 | AE101: 36 | AF101: 9
A102: в том числе: Кёрлинг (муж.) | B102: 96 | C102: 596 | D102: 91 | E102: 147 | F102: 54 | G102: 69 | H102: 65 | I102: 40 | J102: 26 | K102: 21 | L102: 0 | M102: 24 | N102: 14 | O102: 20 | P102: 0 | Q102: 1 | R102: 4 | S102: 2 | T102: 7 | U102: 1 | V102: 10 | W102: 205 | X102: 144 | Y102: 54 | Z102: 7 | AA102: 0 | AB102: 107 | AC102: 48 | AD102: 48 | AE102: 5 | AF102: 6
A103: Кёрлинг (жен.) | B103: 97 | C103: 790 | D103: 123 | E103: 184 | F103: 54 | G103: 80 | H103: 100 | I103: 49 | J103: 42 | K103: 60 | L103: 0 | M103: 21 | N103: 21 | O103: 28 | P103: 2 | Q103: 0 | R103: 3 | S103: 1 | T103: 8 | U103: 6 | V103: 8 | W103: 215 | X103: 147 | Y103: 56 | Z103: 10 | AA103: 2 | AB103: 169 | AC103: 59 | AD103: 97 | AE103: 12 | AF103: 1
A104: Кёрлинг – смешанные пары | B104: 98 | C104: 725 | D104: 246 | E104: 143 | F104: 90 | G104: 40 | H104: 45 | I104: 80 | J104: 8 | K104: 30 | L104: 0 | M104: 13 | N104: 12 | O104: 7 | P104: 3 | Q104: 2 | R104: 3 | S104: 0 | T104: 0 | U104: 0 | V104: 3 | W104: 333 | X104: 307 | Y104: 22 | Z104: 2 | AA104: 2 | AB104: 99 | AC104: 34 | AD104: 44 | AE104: 19 | AF104: 2
A105: Кикбоксинг | B105: 99 | C105: 22976 | D105: 5122 | E105: 4151 | F105: 3262 | G105: 2890 | H105: 2385 | I105: 2178 | J105: 1132 | K105: 766 | L105: 107 | M105: 270 | N105: 241 | O105: 147 | P105: 63 | Q105: 47 | R105: 83 | S105: 31 | T105: 24 | U105: 35 | V105: 42 | W105: 6527 | X105: 5037 | Y105: 1366 | Z105: 98 | AA105: 26 | AB105: 4552 | AC105: 2664 | AD105: 1687 | AE105: 174 | AF105: 27
A106: Кинологический спорт | B106: 100 | C106: 72 | D106: 0 | E106: 0 | F106: 0 | G106: 0 | H106: 34 | I106: 38 | J106: 0 | K106: 0 | L106: 0 | M106: 0 | N106: 0 | O106: 0 | P106: 0 | Q106: 0 | R106: 0 | S106: 0 | T106: 0 | U106: 0 | V106: 0 | W106: 0 | X106: 0 | Y106: 0 | Z106: 0 | AA106: 0 | AB106: 2 | AC106: 0 | AD106: 2 | AE106: 0 | AF106: 0
A107: Киокусинкай | B107: 101 | C107: 17469 | D107: 3982 | E107: 2859 | F107: 3018 | G107: 2409 | H107: 1516 | I107: 1619 | J107: 1002 | K107: 528 | L107: 12 | M107: 206 | N107: 100 | O107: 101 | P107: 12 | Q107: 47 | R107: 34 | S107: 7 | T107: 12 | U107: 1 | V107: 4 | W107: 4494 | X107: 3528 | Y107: 927 | Z107: 34 | AA107: 5 | AB107: 3519 | AC107: 2183 | AD107: 1231 | AE107: 98 | AF107: 7
A108: Киокушин | B108: 102 | C108: 5363 | D108: 1155 | E108: 1095 | F108: 563 | G108: 866 | H108: 760 | I108: 382 | J108: 187 | K108: 79 | L108: 78 | M108: 121 | N108: 42 | O108: 10 | P108: 0 | Q108: 0 | R108: 12 | S108: 13 | T108: 0 | U108: 0 | V108: 0 | W108: 1229 | X108: 816 | Y108: 329 | Z108: 74 | AA108: 10 | AB108: 1060 | AC108: 731 | AD108: 319 | AE108: 9 | AF108: 1
A109: Комплексное единоборство | B109: 103 | C109: 0 | D109: 0 | E109: 0 | F109: 0 | G109: 0 | H109: 0 | I109: 0 | J109: 0 | K109: 0 | L109: 0 | M109: 0 | N109: 0 | O109: 0 | P109: 0 | Q109: 0 | R109: 0 | S109: 0 | T109: 0 | U109: 0 | V109: 0 | W109: 0 | X109: 0 | Y109: 0 | Z109: 0 | AA109: 0 | AB109: 0 | AC109: 0 | AD109: 0 | AE109: 0 | AF109: 0
A110: Компьютерный спорт - всего | B110: 104 | C110: 856 | D110: 507 | E110: 107 | F110: 148 | G110: 51 | H110: 10 | I110: 10 | J110: 0 | K110: 6 | L110: 10 | M110: 0 | N110: 0 | O110: 0 | P110: 0 | Q110: 7 | R110: 0 | S110: 0 | T110: 0 | U110: 0 | V110: 0 | W110: 435 | X110: 407 | Y110: 28 | Z110: 0 | AA110: 0 | AB110: 172 | AC110: 162 | AD110: 10 | AE110: 0 | AF110: 0
A111: в том числе: Боевая арена | B111: 105 | C111: 405 | D111: 203 | E111: 59 | F111: 88 | G111: 35 | H111: 10 | I111: 10 | J111: 0 | K111: 0 | L111: 0 | M111: 0 | N111: 0 | O111: 0 | P111: 0 | Q111: 0 | R111: 0 | S111: 0 | T111: 0 | U111: 0 | V111: 0 | W111: 205 | X111: 179 | Y111: 26 | Z111: 0 | AA111: 0 | AB111: 52 | AC111: 45 | AD111: 7 | AE111: 0 | AF111: 0
A112: Соревновательные головоломки | B112: 106 | C112: 174 | D112: 154 | E112: 0 | F112: 20 | G112: 0 | H112: 0 | I112: 0 | J112: 0 | K112: 0 | L112: 0 | M112: 0 | N112: 0 | O112: 0 | P112: 0 | Q112: 0 | R112: 0 | S112: 0 | T112: 0 | U112: 0 | V112: 0 | W112: 95 | X112: 95 | Y112: 0 | Z112: 0 | AA112: 0 | AB112: 1 | AC112: 1 | AD112: 0 | AE112: 0 | AF112: 0
A113: Спортивный симулятор | B113: 107 | C113: 7 | D113: 7 | E113: 0 | F113: 0 | G113: 0 | H113: 0 | I113: 0 | J113: 0 | K113: 0 | L113: 0 | M113: 0 | N113: 0 | O113: 0 | P113: 0 | Q113: 0 | R113: 0 | S113: 0 | T113: 0 | U113: 0 | V113: 0 | W113: 7 | X113: 7 | Y113: 0 | Z113: 0 | AA113: 0 | AB113: 40 | AC113: 40 | AD113: 0 | AE113: 0 | AF113: 0
A114: Стратегия в реальном времени | B114: 108 | C114: 23 | D114: 8 | E114: 4 | F114: 10 | G114: 0 | H114: 0 | I114: 0 | J114: 0 | K114: 0 | L114: 0 | M114: 0 | N114: 0 | O114: 0 | P114: 0 | Q114: 1 | R114: 0 | S114: 0 | T114: 0 | U114: 0 | V114: 0 | W114: 7 | X114: 7 | Y114: 0 | Z114: 0 | AA114: 0 | AB114: 0 | AC114: 0 | AD114: 0 | AE114: 0 | AF114: 0
A115: Тактический трехмерный бой | B115: 109 | C115: 227 | D115: 125 | E115: 40 | F115: 24 | G115: 16 | H115: 0 | I115: 0 | J115: 0 | K115: 6 | L115: 10 | M115: 0 | N115: 0 | O115: 0 | P115: 0 | Q115: 6 | R115: 0 | S115: 0 | T115: 0 | U115: 0 | V115: 0 | W115: 111 | X115: 109 | Y115: 2 | Z115: 0 | AA115: 0 | AB115: 79 | AC115: 76 | AD115: 3 | AE115: 0 | AF115: 0
A116: Технический симулятор | B116: 110 | C116: 10 | D116: 10 | E116: 0 | F116: 0 | G116: 0 | H116: 0 | I116: 0 | J116: 0 | K116: 0 | L116: 0 | M116: 0 | N116: 0 | O116: 0 | P116: 0 | Q116: 0 | R116: 0 | S116: 0 | T116: 0 | U116: 0 | V116: 0 | W116: 10 | X116: 10 | Y116: 0 | Z116: 0 | AA116: 0 | AB116: 0 | AC116: 0 | AD116: 0 | AE116: 0 | AF116: 0
A117: Файтинг | B117: 111 | C117: 10 | D117: 0 | E117: 4 | F117: 6 | G117: 0 | H117: 0 | I117: 0 | J117: 0 | K117: 0 | L117: 0 | M117: 0 | N117: 0 | O117: 0 | P117: 0 | Q117: 0 | R117: 0 | S117: 0 | T117: 0 | U117: 0 | V117: 0 | W117: 0 | X117: 0 | Y117: 0 | Z117: 0 | AA117: 0 | AB117: 0 | AC117: 0 | AD117: 0 | AE117: 0 | AF117: 0
A118: Конный спорт | B118: 112 | C118: 7889 | D118: 2021 | E118: 1552 | F118: 1134 | G118: 932 | H118: 769 | I118: 636 | J118: 317 | K118: 212 | L118: 6 | M118: 61 | N118: 63 | O118: 77 | P118: 24 | Q118: 29 | R118: 11 | S118: 9 | T118: 10 | U118: 6 | V118: 20 | W118: 2424 | X118: 1927 | Y118: 457 | Z118: 32 | AA118: 8 | AB118: 2157 | AC118: 1284 | AD118: 804 | AE118: 52 | AF118: 17
A119: Конькобежный спорт - всего | B119: 113 | C119: 13135 | D119: 3221 | E119: 2544 | F119: 1853 | G119: 1499 | H119: 942 | I119: 900 | J119: 621 | K119: 363 | L119: 15 | M119: 412 | N119: 252 | O119: 149 | P119: 31 | Q119: 38 | R119: 156 | S119: 39 | T119: 20 | U119: 27 | V119: 53 | W119: 3763 | X119: 3081 | Y119: 521 | Z119: 121 | AA119: 40 | AB119: 3013 | AC119: 1830 | AD119: 908 | AE119: 201 | AF119: 74
A120: в том числе: Конькобежный спорт | B120: 114 | C120: 9744 | D120: 2588 | E120: 1826 | F120: 1339 | G120: 1179 | H120: 647 | I120: 630 | J120: 510 | K120: 247 | L120: 15 | M120: 295 | N120: 175 | O120: 111 | P120: 22 | Q120: 25 | R120: 77 | S120: 17 | T120: 9 | U120: 5 | V120: 27 | W120: 2886 | X120: 2369 | Y120: 403 | Z120: 96 | AA120: 18 | AB120: 2249 | AC120: 1363 | AD120: 694 | AE120: 160 | AF120: 32
A121: Шорт-трек | B121: 115 | C121: 3387 | D121: 633 | E121: 718 | F121: 514 | G121: 320 | H121: 295 | I121: 270 | J121: 111 | K121: 116 | L121: 0 | M121: 116 | N121: 76 | O121: 37 | P121: 9 | Q121: 13 | R121: 79 | S121: 21 | T121: 11 | U121: 22 | V121: 26 | W121: 877 | X121: 712 | Y121: 118 | Z121: 25 | AA121: 22 | AB121: 764 | AC121: 467 | AD121: 214 | AE121: 41 | AF121: 42
A122: Масс-старт | B122: 116 | C122: 2 | D122: 0 | E122: 0 | F122: 0 | G122: 0 | H122: 0 | I122: 0 | J122: 0 | K122: 0 | L122: 0 | M122: 1 | N122: 1 | O122: 0 | P122: 0 | Q122: 0 | R122: 0 | S122: 0 | T122: 0 | U122: 0 | V122: 0 | W122: 0 | X122: 0 | Y122: 0 | Z122: 0 | AA122: 0 | AB122: 0 | AC122: 0 | AD122: 0 | AE122: 0 | AF122: 0
A123: Командный забег | B123: 117 | C123: 2 | D123: 0 | E123: 0 | F123: 0 | G123: 0 | H123: 0 | I123: 0 | J123: 0 | K123: 0 | L123: 0 | M123: 0 | N123: 0 | O123: 1 | P123: 0 | Q123: 0 | R123: 0 | S123: 1 | T123: 0 | U123: 0 | V123: 0 | W123: 0 | X123: 0 | Y123: 0 | Z123: 0 | AA123: 0 | AB123: 0 | AC123: 0 | AD123: 0 | AE123: 0 | AF123: 0
A124: Корэш | B124: 118 | C124: 3417 | D124: 999 | E124: 709 | F124: 485 | G124: 402 | H124: 400 | I124: 116 | J124: 278 | K124: 12 | L124: 0 | M124: 3 | N124: 4 | O124: 2 | P124: 0 | Q124: 0 | R124: 4 | S124: 0 | T124: 0 | U124: 1 | V124: 2 | W124: 1214 | X124: 1018 | Y124: 192 | Z124: 0 | AA124: 4 | AB124: 834 | AC124: 477 | AD124: 349 | AE124: 8 | AF124: 0
A125: Крикет | B125: 119 | C125: 0 | D125: 0 | E125: 0 | F125: 0 | G125: 0 | H125: 0 | I125: 0 | J125: 0 | K125: 0 | L125: 0 | M125: 0 | N125: 0 | O125: 0 | P125: 0 | Q125: 0 | R125: 0 | S125: 0 | T125: 0 | U125: 0 | V125: 0 | W125: 0 | X125: 0 | Y125: 0 | Z125: 0 | AA125: 0 | AB125: 0 | AC125: 0 | AD125: 0 | AE125: 0 | AF125: 0
A126: Кудо | B126: 120 | C126: 3126 | D126: 667 | E126: 562 | F126: 490 | G126: 448 | H126: 264 | I126: 344 | J126: 172 | K126: 52 | L126: 15 | M126: 59 | N126: 3 | O126: 28 | P126: 0 | Q126: 11 | R126: 6 | S126: 4 | T126: 0 | U126: 0 | V126: 1 | W126: 804 | X126: 594 | Y126: 183 | Z126: 27 | AA126: 0 | AB126: 516 | AC126: 306 | AD126: 204 | AE126: 3 | AF126: 3
A127: Лазерный бой | B127: 121 | C127: 27 | D127: 27 | E127: 0 | F127: 0 | G127: 0 | H127: 0 | I127: 0 | J127: 0 | K127: 0 | L127: 0 | M127: 0 | N127: 0 | O127: 0 | P127: 0 | Q127: 0 | R127: 0 | S127: 0 | T127: 0 | U127: 0 | V127: 0 | W127: 0 | X127: 0 | Y127: 0 | Z127: 0 | AA127: 0 | AB127: 0 | AC127: 0 | AD127: 0 | AE127: 0 | AF127: 0
A128: Лапта | B128: 122 | C128: 1701 | D128: 423 | E128: 277 | F128: 48 | G128: 257 | H128: 182 | I128: 257 | J128: 123 | K128: 32 | L128: 0 | M128: 36 | N128: 43 | O128: 0 | P128: 0 | Q128: 0 | R128: 8 | S128: 15 | T128: 0 | U128: 0 | V128: 0 | W128: 464 | X128: 315 | Y128: 137 | Z128: 10 | AA128: 2 | AB128: 212 | AC128: 108 | AD128: 96 | AE128: 6 | AF128: 2
A129: Легкая атлетика | B129: 123 | C129: 118069 | D129: 25465 | E129: 20161 | F129: 17405 | G129: 14172 | H129: 12528 | I129: 11242 | J129: 8184 | K129: 5647 | L129: 208 | M129: 729 | N129: 642 | O129: 561 | P129: 194 | Q129: 200 | R129: 211 | S129: 99 | T129: 81 | U129: 66 | V129: 274 | W129: 33942 | X129: 25983 | Y129: 7585 | Z129: 306 | AA129: 68 | AB129: 26692 | AC129: 14604 | AD129: 11521 | AE129: 432 | AF129: 135
A130: Лыжное двоеборье | B130: 124 | C130: 1235 | D130: 342 | E130: 215 | F130: 187 | G130: 163 | H130: 89 | I130: 86 | J130: 46 | K130: 38 | L130: 3 | M130: 15 | N130: 16 | O130: 5 | P130: 0 | Q130: 2 | R130: 10 | S130: 6 | T130: 4 | U130: 3 | V130: 5 | W130: 313 | X130: 303 | Y130: 7 | Z130: 3 | AA130: 0 | AB130: 258 | AC130: 165 | AD130: 76 | AE130: 13 | AF130: 4
A131: Лыжные гонки | B131: 125 | C131: 68763 | D131: 13999 | E131: 12325 | F131: 11547 | G131: 8461 | H131: 7636 | I131: 5861 | J131: 4684 | K131: 3168 | L131: 183 | M131: 186 | N131: 184 | O131: 105 | P131: 19 | Q131: 58 | R131: 144 | S131: 58 | T131: 46 | U131: 13 | V131: 86 | W131: 17358 | X131: 14148 | Y131: 3024 | Z131: 121 | AA131: 65 | AB131: 15336 | AC131: 8866 | AD131: 6232 | AE131: 157 | AF131: 81
A132: Мас-рестлинг | B132: 126 | C132: 1097 | D132: 255 | E132: 252 | F132: 122 | G132: 107 | H132: 109 | I132: 56 | J132: 40 | K132: 0 | L132: 0 | M132: 60 | N132: 31 | O132: 10 | P132: 23 | Q132: 7 | R132: 13 | S132: 5 | T132: 1 | U132: 4 | V132: 2 | W132: 130 | X132: 97 | Y132: 25 | Z132: 5 | AA132: 3 | AB132: 45 | AC132: 31 | AD132: 12 | AE132: 2 | AF132: 0
A133: Международное военно-спортивное многоборье | B133: 127 | C133: 0 | D133: 0 | E133: 0 | F133: 0 | G133: 0 | H133: 0 | I133: 0 | J133: 0 | K133: 0 | L133: 0 | M133: 0 | N133: 0 | O133: 0 | P133: 0 | Q133: 0 | R133: 0 | S133: 0 | T133: 0 | U133: 0 | V133: 0 | W133: 0 | X133: 0 | Y133: 0 | Z133: 0 | AA133: 0 | AB133: 0 | AC133: 0 | AD133: 0 | AE133: 0 | AF133: 0
A134: Микрофутзал | B134: 128 | C134: 63 | D134: 39 | E134: 13 | F134: 1 | G134: 0 | H134: 0 | I134: 0 | J134: 0 | K134: 0 | L134: 10 | M134: 0 | N134: 0 | O134: 0 | P134: 0 | Q134: 0 | R134: 0 | S134: 0 | T134: 0 | U134: 0 | V134: 0 | W134: 35 | X134: 25 | Y134: 10 | Z134: 0 | AA134: 0 | AB134: 0 | AC134: 0 | AD134: 0 | AE134: 0 | AF134: 0
A135: Многоборье готов к труду и обороне | B135: 129 | C135: 326 | D135: 311 | E135: 15 | F135: 0 | G135: 0 | H135: 0 | I135: 0 | J135: 0 | K135: 0 | L135: 0 | M135: 0 | N135: 0 | O135: 0 | P135: 0 | Q135: 0 | R135: 0 | S135: 0 | T135: 0 | U135: 0 | V135: 0 | W135: 15 | X135: 15 | Y135: 0 | Z135: 0 | AA135: 0 | AB135: 0 | AC135: 0 | AD135: 0 | AE135: 0 | AF135: 0
A136: Многоборье кинологов | B136: 130 | C136: 0 | D136: 0 | E136: 0 | F136: 0 | G136: 0 | H136: 0 | I136: 0 | J136: 0 | K136: 0 | L136: 0 | M136: 0 | N136: 0 | O136: 0 | P136: 0 | Q136: 0 | R136: 0 | S136: 0 | T136: 0 | U136: 0 | V136: 0 | W136: 0 | X136: 0 | Y136: 0 | Z136: 0 | AA136: 0 | AB136: 0 | AC136: 0 | AD136: 0 | AE136: 0 | AF136: 0
A137: Многоборье спасателей МЧС России | B137: 131 | C137: 0 | D137: 0 | E137: 0 | F137: 0 | G137: 0 | H137: 0 | I137: 0 | J137: 0 | K137: 0 | L137: 0 | M137: 0 | N137: 0 | O137: 0 | P137: 0 | Q137: 0 | R137: 0 | S137: 0 | T137: 0 | U137: 0 | V137: 0 | W137: 0 | X137: 0 | Y137: 0 | Z137: 0 | AA137: 0 | AB137: 0 | AC137: 0 | AD137: 0 | AE137: 0 | AF137: 0
A138: Морское многоборье | B138: 132 | C138: 567 | D138: 126 | E138: 127 | F138: 0 | G138: 81 | H138: 61 | I138: 36 | J138: 50 | K138: 0 | L138: 0 | M138: 48 | N138: 18 | O138: 3 | P138: 0 | Q138: 0 | R138: 16 | S138: 0 | T138: 0 | U138: 0 | V138: 1 | W138: 175 | X138: 139 | Y138: 22 | Z138: 3 | AA138: 11 | AB138: 90 | AC138: 45 | AD138: 40 | AE138: 2 | AF138: 3
A139: Мотоциклетный спорт | B139: 133 | C139: 1811 | D139: 443 | E139: 480 | F139: 240 | G139: 123 | H139: 138 | I139: 163 | J139: 72 | K139: 92 | L139: 4 | M139: 3 | N139: 4 | O139: 14 | P139: 3 | Q139: 22 | R139: 7 | S139: 3 | T139: 0 | U139: 0 | V139: 0 | W139: 541 | X139: 458 | Y139: 67 | Z139: 13 | AA139: 3 | AB139: 387 | AC139: 288 | AD139: 93 | AE139: 5 | AF139: 1
A140: Муайтай | B140: 134 | C140: 7009 | D140: 1625 | E140: 1444 | F140: 897 | G140: 962 | H140: 748 | I140: 618 | J140: 311 | K140: 69 | L140: 0 | M140: 116 | N140: 64 | O140: 66 | P140: 28 | Q140: 17 | R140: 17 | S140: 11 | T140: 8 | U140: 6 | V140: 2 | W140: 2071 | X140: 1662 | Y140: 389 | Z140: 15 | AA140: 5 | AB140: 1218 | AC140: 757 | AD140: 434 | AE140: 23 | AF140: 4
A141: Нарды | B141: 135 | C141: 12 | D141: 0 | E141: 0 | F141: 12 | G141: 0 | H141: 0 | I141: 0 | J141: 0 | K141: 0 | L141: 0 | M141: 0 | N141: 0 | O141: 0 | P141: 0 | Q141: 0 | R141: 0 | S141: 0 | T141: 0 | U141: 0 | V141: 0 | W141: 80 | X141: 66 | Y141: 14 | Z141: 0 | AA141: 0 | AB141: 34 | AC141: 21 | AD141: 13 | AE141: 0 | AF141: 0
A142: Настольный теннис | B142: 136 | C142: 34148 | D142: 10598 | E142: 8222 | F142: 1218 | G142: 4114 | H142: 3300 | I142: 3053 | J142: 1637 | K142: 1332 | L142: 43 | M142: 180 | N142: 150 | O142: 90 | P142: 25 | Q142: 20 | R142: 82 | S142: 29 | T142: 18 | U142: 3 | V142: 34 | W142: 11723 | X142: 9638 | Y142: 1970 | Z142: 90 | AA142: 25 | AB142: 8483 | AC142: 5515 | AD142: 2856 | AE142: 86 | AF142: 26
A143: Падел | B143: 137 | C143: 0 | D143: 0 | E143: 0 | F143: 0 | G143: 0 | H143: 0 | I143: 0 | J143: 0 | K143: 0 | L143: 0 | M143: 0 | N143: 0 | O143: 0 | P143: 0 | Q143: 0 | R143: 0 | S143: 0 | T143: 0 | U143: 0 | V143: 0 | W143: 6 | X143: 6 | Y143: 0 | Z143: 0 | AA143: 0 | AB143: 6 | AC143: 6 | AD143: 0 | AE143: 0 | AF143: 0
A144: Парашютный спорт | B144: 138 | C144: 558 | D144: 120 | E144: 190 | F144: 0 | G144: 89 | H144: 40 | I144: 34 | J144: 54 | K144: 4 | L144: 0 | M144: 3 | N144: 0 | O144: 3 | P144: 0 | Q144: 3 | R144: 4 | S144: 6 | T144: 0 | U144: 6 | V144: 2 | W144: 173 | X144: 156 | Y144: 17 | Z144: 0 | AA144: 0 | AB144: 94 | AC144: 71 | AD144: 19 | AE144: 1 | AF144: 3
A145: Парусный спорт | B145: 139 | C145: 5924 | D145: 1226 | E145: 890 | F145: 847 | G145: 574 | H145: 618 | I145: 561 | J145: 488 | K145: 305 | L145: 2 | M145: 92 | N145: 68 | O145: 57 | P145: 31 | Q145: 15 | R145: 68 | S145: 11 | T145: 10 | U145: 21 | V145: 40 | W145: 1627 | X145: 1246 | Y145: 334 | Z145: 27 | AA145: 20 | AB145: 1232 | AC145: 778 | AD145: 394 | AE145: 39 | AF145: 21
A146: Пауэрлифтинг | B146: 140 | C146: 14518 | D146: 3536 | E146: 2898 | F146: 1504 | G146: 1502 | H146: 1540 | I146: 1012 | J146: 772 | K146: 555 | L146: 48 | M146: 313 | N146: 242 | O146: 165 | P146: 90 | Q146: 120 | R146: 49 | S146: 31 | T146: 23 | U146: 11 | V146: 107 | W146: 4204 | X146: 3224 | Y146: 815 | Z146: 140 | AA146: 25 | AB146: 3726 | AC146: 2167 | AD146: 1363 | AE146: 158 | AF146: 38
A147: Перетягивание каната | B147: 141 | C147: 87 | D147: 15 | E147: 0 | F147: 45 | G147: 15 | H147: 0 | I147: 0 | J147: 0 | K147: 0 | L147: 0 | M147: 0 | N147: 12 | O147: 0 | P147: 0 | Q147: 0 | R147: 0 | S147: 0 | T147: 0 | U147: 0 | V147: 0 | W147: 6 | X147: 6 | Y147: 0 | Z147: 0 | AA147: 0 | AB147: 6 | AC147: 6 | AD147: 0 | AE147: 0 | AF147: 0
A148: Пилонный спорт | B148: 142 | C148: 0 | D148: 0 | E148: 0 | F148: 0 | G148: 0 | H148: 0 | I148: 0 | J148: 0 | K148: 0 | L148: 0 | M148: 0 | N148: 0 | O148: 0 | P148: 0 | Q148: 0 | R148: 0 | S148: 0 | T148: 0 | U148: 0 | V148: 0 | W148: 0 | X148: 0 | Y148: 0 | Z148: 0 | AA148: 0 | AB148: 0 | AC148: 0 | AD148: 0 | AE148: 0 | AF148: 0
A149: Плавание - всего | B149: 143 | C149: 140479 | D149: 33728 | E149: 31837 | F149: 3891 | G149: 19331 | H149: 16368 | I149: 13972 | J149: 10604 | K149: 7026 | L149: 132 | M149: 1184 | N149: 847 | O149: 623 | P149: 47 | Q149: 144 | R149: 332 | S149: 146 | T149: 92 | U149: 29 | V149: 146 | W149: 39635 | X149: 31309 | Y149: 7707 | Z149: 485 | AA149: 134 | AB149: 30478 | AC149: 16425 | AD149: 13057 | AE149: 789 | AF149: 207
A150: в том числе: Открытая вода | B150: 144 | C150: 7128 | D150: 1648 | E150: 1998 | F150: 139 | G150: 876 | H150: 1055 | I150: 644 | J150: 375 | K150: 211 | L150: 0 | M150: 66 | N150: 35 | O150: 27 | P150: 3 | Q150: 4 | R150: 25 | S150: 14 | T150: 8 | U150: 0 | V150: 0 | W150: 2228 | X150: 1812 | Y150: 394 | Z150: 15 | AA150: 7 | AB150: 1113 | AC150: 629 | AD150: 455 | AE150: 21 | AF150: 8
A151: Иные дисциплины вида спорта "плавание" | B151: 145 | C151: 133351 | D151: 32080 | E151: 29839 | F151: 3752 | G151: 18455 | H151: 15313 | I151: 13328 | J151: 10229 | K151: 6815 | L151: 132 | M151: 1118 | N151: 812 | O151: 596 | P151: 44 | Q151: 140 | R151: 307 | S151: 132 | T151: 84 | U151: 29 | V151: 146 | W151: 37407 | X151: 29497 | Y151: 7313 | Z151: 470 | AA151: 127 | AB151: 29365 | AC151: 15796 | AD151: 12602 | AE151: 768 | AF151: 199
A152: Планерный спорт | B152: 146 | C152: 27 | D152: 15 | E152: 4 | F152: 5 | G152: 0 | H152: 3 | I152: 0 | J152: 0 | K152: 0 | L152: 0 | M152: 0 | N152: 0 | O152: 0 | P152: 0 | Q152: 0 | R152: 0 | S152: 0 | T152: 0 | U152: 0 | V152: 0 | W152: 10 | X152: 10 | Y152: 0 | Z152: 0 | AA152: 0 | AB152: 10 | AC152: 10 | AD152: 0 | AE152: 0 | AF152: 0
A153: Подводный спорт | B153: 147 | C153: 5512 | D153: 1309 | E153: 831 | F153: 565 | G153: 563 | H153: 474 | I153: 525 | J153: 465 | K153: 280 | L153: 0 | M153: 118 | N153: 99 | O153: 85 | P153: 32 | Q153: 13 | R153: 70 | S153: 27 | T153: 12 | U153: 15 | V153: 29 | W153: 1494 | X153: 1132 | Y153: 326 | Z153: 29 | AA153: 7 | AB153: 1173 | AC153: 518 | AD153: 574 | AE153: 62 | AF153: 19
A154: Пожарно-спасательный спорт | B154: 148 | C154: 184 | D154: 24 | E154: 64 | F154: 10 | G154: 21 | H154: 21 | I154: 25 | J154: 8 | K154: 7 | L154: 0 | M154: 4 | N154: 0 | O154: 0 | P154: 0 | Q154: 0 | R154: 0 | S154: 0 | T154: 0 | U154: 0 | V154: 0 | W154: 22 | X154: 16 | Y154: 6 | Z154: 0 | AA154: 0 | AB154: 17 | AC154: 13 | AD154: 4 | AE154: 0 | AF154: 0
A155: Полиатлон | B155: 149 | C155: 3771 | D155: 718 | E155: 817 | F155: 152 | G155: 430 | H155: 659 | I155: 390 | J155: 313 | K155: 46 | L155: 10 | M155: 76 | N155: 61 | O155: 34 | P155: 6 | Q155: 15 | R155: 4 | S155: 5 | T155: 2 | U155: 14 | V155: 19 | W155: 940 | X155: 739 | Y155: 189 | Z155: 9 | AA155: 3 | AB155: 773 | AC155: 358 | AD155: 373 | AE155: 41 | AF155: 1
A156: Практическая стрельба | B156: 150 | C156: 675 | D156: 368 | E156: 104 | F156: 46 | G156: 32 | H156: 41 | I156: 14 | J156: 0 | K156: 54 | L156: 0 | M156: 0 | N156: 12 | O156: 0 | P156: 1 | Q156: 1 | R156: 1 | S156: 0 | T156: 0 | U156: 0 | V156: 1 | W156: 323 | X156: 304 | Y156: 17 | Z156: 2 | AA156: 0 | AB156: 388 | AC156: 383 | AD156: 4 | AE156: 1 | AF156: 0
A157: Прыжки в воду | B157: 151 | C157: 3320 | D157: 957 | E157: 575 | F157: 293 | G157: 285 | H157: 380 | I157: 171 | J157: 173 | K157: 70 | L157: 6 | M157: 96 | N157: 86 | O157: 55 | P157: 50 | Q157: 10 | R157: 79 | S157: 10 | T157: 13 | U157: 0 | V157: 11 | W157: 875 | X157: 802 | Y157: 52 | Z157: 11 | AA157: 10 | AB157: 694 | AC157: 463 | AD157: 165 | AE157: 48 | AF157: 18
A158: Прыжки на батуте - всего | B158: 152 | C158: 11719 | D158: 2774 | E158: 2115 | F158: 219 | G158: 1491 | H158: 1254 | I158: 1200 | J158: 1007 | K158: 777 | L158: 20 | M158: 269 | N158: 197 | O158: 152 | P158: 47 | Q158: 37 | R158: 86 | S158: 24 | T158: 31 | U158: 7 | V158: 12 | W158: 3045 | X158: 2430 | Y158: 578 | Z158: 34 | AA158: 3 | AB158: 2403 | AC158: 1234 | AD158: 1013 | AE158: 126 | AF158: 30
A159: в том числе: Акробатическая дорожка | B159: 153 | C159: 4379 | D159: 1110 | E159: 927 | F159: 149 | G159: 498 | H159: 484 | I159: 456 | J159: 243 | K159: 304 | L159: 8 | M159: 59 | N159: 39 | O159: 37 | P159: 7 | Q159: 31 | R159: 14 | S159: 5 | T159: 3 | U159: 3 | V159: 2 | W159: 1180 | X159: 941 | Y159: 232 | Z159: 7 | AA159: 0 | AB159: 833 | AC159: 494 | AD159: 306 | AE159: 26 | AF159: 7
A160: Двойной минитрамп | B160: 154 | C160: 2660 | D160: 512 | E160: 427 | F160: 55 | G160: 417 | H160: 250 | I160: 325 | J160: 285 | K160: 141 | L160: 11 | M160: 79 | N160: 57 | O160: 54 | P160: 4 | Q160: 0 | R160: 26 | S160: 5 | T160: 10 | U160: 0 | V160: 2 | W160: 616 | X160: 479 | Y160: 128 | Z160: 9 | AA160: 0 | AB160: 529 | AC160: 247 | AD160: 244 | AE160: 32 | AF160: 6
A161: Индивидуальные прыжки | B161: 155 | C161: 4201 | D161: 1084 | E161: 698 | F161: 15 | G161: 510 | H161: 470 | I161: 384 | J161: 412 | K161: 305 | L161: 1 | M161: 97 | N161: 79 | O161: 50 | P161: 19 | Q161: 4 | R161: 41 | S161: 7 | T161: 14 | U161: 3 | V161: 8 | W161: 1133 | X161: 949 | Y161: 177 | Z161: 6 | AA161: 1 | AB161: 965 | AC161: 458 | AD161: 428 | AE161: 64 | AF161: 15
A162: Синхронные прыжки | B162: 156 | C162: 479 | D162: 68 | E162: 63 | F162: 0 | G162: 66 | H162: 50 | I162: 35 | J162: 67 | K162: 27 | L162: 0 | M162: 34 | N162: 22 | O162: 11 | P162: 17 | Q162: 2 | R162: 5 | S162: 7 | T162: 4 | U162: 1 | V162: 0 | W162: 116 | X162: 61 | Y162: 41 | Z162: 12 | AA162: 2 | AB162: 76 | AC162: 35 | AD162: 35 | AE162: 4 | AF162: 2
A163: Прыжки на лыжах с трамплина | B163: 157 | C163: 1119 | D163: 253 | E163: 177 | F163: 197 | G163: 99 | H163: 103 | I163: 82 | J163: 60 | K163: 62 | L163: 4 | M163: 12 | N163: 20 | O163: 7 | P163: 6 | Q163: 3 | R163: 12 | S163: 2 | T163: 8 | U163: 1 | V163: 11 | W163: 289 | X163: 272 | Y163: 11 | Z163: 3 | AA163: 3 | AB163: 254 | AC163: 167 | AD163: 73 | AE163: 11 | AF163: 3
A164: Пулевая стрельба - всего | B164: 158 | C164: 11846 | D164: 2980 | E164: 2093 | F164: 856 | G164: 1302 | H164: 1340 | I164: 953 | J164: 841 | K164: 455 | L164: 22 | M164: 268 | N164: 247 | O164: 96 | P164: 31 | Q164: 81 | R164: 99 | S164: 81 | T164: 15 | U164: 8 | V164: 78 | W164: 3325 | X164: 2611 | Y164: 646 | Z164: 53 | AA164: 15 | AB164: 2909 | AC164: 1584 | AD164: 1199 | AE164: 96 | AF164: 30
A165: в том числе: Пневматическая винтовка | B165: 159 | C165: 5728 | D165: 1534 | E165: 1107 | F165: 477 | G165: 625 | H165: 648 | I165: 360 | J165: 438 | K165: 203 | L165: 6 | M165: 76 | N165: 67 | O165: 42 | P165: 16 | Q165: 21 | R165: 47 | S165: 39 | T165: 6 | U165: 0 | V165: 16 | W165: 1695 | X165: 1337 | Y165: 336 | Z165: 17 | AA165: 5 | AB165: 1507 | AC165: 828 | AD165: 626 | AE165: 40 | AF165: 13
A166: Пневматический пистолет | B166: 160 | C166: 3906 | D166: 1017 | E166: 732 | F166: 257 | G166: 408 | H166: 468 | I166: 345 | J166: 289 | K166: 145 | L166: 7 | M166: 94 | N166: 61 | O166: 14 | P166: 7 | Q166: 23 | R166: 14 | S166: 10 | T166: 5 | U166: 0 | V166: 10 | W166: 1070 | X166: 852 | Y166: 201 | Z166: 14 | AA166: 3 | AB166: 885 | AC166: 511 | AD166: 345 | AE166: 24 | AF166: 5
A167: Малокалиберная винтовка | B167: 161 | C167: 907 | D167: 146 | E167: 85 | F167: 30 | G167: 139 | H167: 93 | I167: 117 | J167: 36 | K167: 35 | L167: 6 | M167: 48 | N167: 75 | O167: 17 | P167: 4 | Q167: 10 | R167: 20 | S167: 25 | T167: 1 | U167: 4 | V167: 16 | W167: 211 | X167: 128 | Y167: 64 | Z167: 15 | AA167: 4 | AB167: 231 | AC167: 105 | AD167: 105 | AE167: 13 | AF167: 8
A168: Малокалиберный пистолет | B168: 162 | C168: 1053 | D168: 229 | E168: 141 | F168: 71 | G168: 88 | H168: 99 | I168: 115 | J168: 69 | K168: 66 | L168: 3 | M168: 27 | N168: 43 | O168: 22 | P168: 4 | Q168: 27 | R168: 14 | S168: 3 | T168: 2 | U168: 3 | V168: 27 | W168: 297 | X168: 251 | Y168: 40 | Z168: 4 | AA168: 2 | AB168: 233 | AC168: 108 | AD168: 107 | AE168: 16 | AF168: 2
A169: Иные дисциплины вида спорта "пулевая стрельба" | B169: 163 | C169: 252 | D169: 54 | E169: 28 | F169: 21 | G169: 42 | H169: 32 | I169: 16 | J169: 9 | K169: 6 | L169: 0 | M169: 23 | N169: 1 | O169: 1 | P169: 0 | Q169: 0 | R169: 4 | S169: 4 | T169: 1 | U169: 1 | V169: 9 | W169: 52 | X169: 43 | Y169: 5 | Z169: 3 | AA169: 1 | AB169: 53 | AC169: 32 | AD169: 16 | AE169: 3 | AF169: 2
A170: Пэйнтбол | B170: 164 | C170: 53 | D170: 28 | E170: 0 | F170: 0 | G170: 0 | H170: 11 | I170: 0 | J170: 14 | K170: 0 | L170: 0 | M170: 0 | N170: 0 | O170: 0 | P170: 0 | Q170: 0 | R170: 0 | S170: 0 | T170: 0 | U170: 0 | V170: 0 | W170: 28 | X170: 28 | Y170: 0 | Z170: 0 | AA170: 0 | AB170: 29 | AC170: 16 | AD170: 13 | AE170: 0 | AF170: 0
A171: Радиоспорт | B171: 165 | C171: 482 | D171: 125 | E171: 81 | F171: 10 | G171: 94 | H171: 20 | I171: 55 | J171: 42 | K171: 3 | L171: 0 | M171: 11 | N171: 36 | O171: 2 | P171: 2 | Q171: 0 | R171: 1 | S171: 0 | T171: 0 | U171: 0 | V171: 0 | W171: 149 | X171: 123 | Y171: 19 | Z171: 7 | AA171: 0 | AB171: 188 | AC171: 152 | AD171: 31 | AE171: 4 | AF171: 1
A172: Рафтинг | B172: 166 | C172: 318 | D172: 48 | E172: 75 | F172: 25 | G172: 35 | H172: 19 | I172: 21 | J172: 17 | K172: 15 | L172: 0 | M172: 13 | N172: 16 | O172: 10 | P172: 5 | Q172: 1 | R172: 8 | S172: 1 | T172: 1 | U172: 3 | V172: 5 | W172: 87 | X172: 78 | Y172: 9 | Z172: 0 | AA172: 0 | AB172: 19 | AC172: 14 | AD172: 2 | AE172: 0 | AF172: 3
A173: Регби - всего | B173: 167 | C173: 11808 | D173: 2065 | E173: 1849 | F173: 1367 | G173: 1553 | H173: 1369 | I173: 1257 | J173: 763 | K173: 561 | L173: 91 | M173: 241 | N173: 108 | O173: 129 | P173: 32 | Q173: 21 | R173: 112 | S173: 55 | T173: 149 | U173: 85 | V173: 1 | W173: 2401 | X173: 1710 | Y173: 631 | Z173: 42 | AA173: 18 | AB173: 1757 | AC173: 860 | AD173: 710 | AE173: 128 | AF173: 59
A174: в том числе: Регби | B174: 168 | C174: 8822 | D174: 1523 | E174: 1531 | F174: 1170 | G174: 1192 | H174: 1049 | I174: 1016 | J174: 505 | K174: 358 | L174: 91 | M174: 152 | N174: 43 | O174: 55 | P174: 0 | Q174: 11 | R174: 48 | S174: 1 | T174: 64 | U174: 12 | V174: 1 | W174: 1827 | X174: 1349 | Y174: 453 | Z174: 15 | AA174: 10 | AB174: 1361 | AC174: 702 | AD174: 565 | AE174: 60 | AF174: 34
A175: Регби 7 (муж.) | B175: 169 | C175: 1787 | D175: 283 | E175: 183 | F175: 144 | G175: 234 | H175: 217 | I175: 166 | J175: 137 | K175: 110 | L175: 0 | M175: 58 | N175: 24 | O175: 64 | P175: 29 | Q175: 6 | R175: 33 | S175: 30 | T175: 35 | U175: 34 | V175: 0 | W175: 326 | X175: 204 | Y175: 101 | Z175: 19 | AA175: 2 | AB175: 186 | AC175: 76 | AD175: 49 | AE175: 45 | AF175: 16
A176: Регби 7 (жен.) | B176: 170 | C176: 971 | D176: 199 | E176: 120 | F176: 53 | G176: 123 | H176: 101 | I176: 71 | J176: 91 | K176: 59 | L176: 0 | M176: 21 | N176: 41 | O176: 0 | P176: 3 | Q176: 0 | R176: 30 | S176: 5 | T176: 25 | U176: 29 | V176: 0 | W176: 212 | X176: 127 | Y176: 74 | Z176: 8 | AA176: 3 | AB176: 142 | AC176: 67 | AD176: 56 | AE176: 13 | AF176: 6
A177: Регби - пляжное | B177: 171 | C177: 75 | D177: 0 | E177: 0 | F177: 0 | G177: 2 | H177: 1 | I177: 2 | J177: 14 | K177: 15 | L177: 0 | M177: 3 | N177: 0 | O177: 4 | P177: 0 | Q177: 0 | R177: 0 | S177: 10 | T177: 14 | U177: 10 | V177: 0 | W177: 4 | X177: 0 | Y177: 2 | Z177: 0 | AA177: 2 | AB177: 10 | AC177: 0 | AD177: 5 | AE177: 4 | AF177: 1
A178: Регби на снегу | B178: 172 | C178: 78 | D178: 0 | E178: 0 | F178: 0 | G178: 2 | H178: 1 | I178: 2 | J178: 16 | K178: 19 | L178: 0 | M178: 7 | N178: 0 | O178: 6 | P178: 0 | Q178: 4 | R178: 1 | S178: 9 | T178: 11 | U178: 0 | V178: 0 | W178: 2 | X178: 0 | Y178: 1 | Z178: 0 | AA178: 1 | AB178: 15 | AC178: 0 | AD178: 7 | AE178: 6 | AF178: 2
A179: Регби бесконтактное | B179: 173 | C179: 75 | D179: 60 | E179: 15 | F179: 0 | G179: 0 | H179: 0 | I179: 0 | J179: 0 | K179: 0 | L179: 0 | M179: 0 | N179: 0 | O179: 0 | P179: 0 | Q179: 0 | R179: 0 | S179: 0 | T179: 0 | U179: 0 | V179: 0 | W179: 30 | X179: 30 | Y179: 0 | Z179: 0 | AA179: 0 | AB179: 43 | AC179: 15 | AD179: 28 | AE179: 0 | AF179: 0
A180: Регбол | B180: 174 | C180: 0 | D180: 0 | E180: 0 | F180: 0 | G180: 0 | H180: 0 | I180: 0 | J180: 0 | K180: 0 | L180: 0 | M180: 0 | N180: 0 | O180: 0 | P180: 0 | Q180: 0 | R180: 0 | S180: 0 | T180: 0 | U180: 0 | V180: 0 | W180: 0 | X180: 0 | Y180: 0 | Z180: 0 | AA180: 0 | AB180: 0 | AC180: 0 | AD180: 0 | AE180: 0 | AF180: 0
A181: Роллер спорт | B181: 175 | C181: 208 | D181: 74 | E181: 113 | F181: 0 | G181: 21 | H181: 0 | I181: 0 | J181: 0 | K181: 0 | L181: 0 | M181: 0 | N181: 0 | O181: 0 | P181: 0 | Q181: 0 | R181: 0 | S181: 0 | T181: 0 | U181: 0 | V181: 0 | W181: 65 | X181: 65 | Y181: 0 | Z181: 0 | AA181: 0 | AB181: 33 | AC181: 33 | AD181: 0 | AE181: 0 | AF181: 0
A182: Роуп скиппинг (спортивная скакалка) | B182: 176 | C182: 78 | D182: 30 | E182: 16 | F182: 0 | G182: 16 | H182: 0 | I182: 16 | J182: 0 | K182: 0 | L182: 0 | M182: 0 | N182: 0 | O182: 0 | P182: 0 | Q182: 0 | R182: 0 | S182: 0 | T182: 0 | U182: 0 | V182: 0 | W182: 41 | X182: 36 | Y182: 5 | Z182: 0 | AA182: 0 | AB182: 7 | AC182: 1 | AD182: 6 | AE182: 0 | AF182: 0
A183: Рукопашный бой | B183: 177 | C183: 13840 | D183: 3128 | E183: 3066 | F183: 2049 | G183: 1540 | H183: 1309 | I183: 1036 | J183: 662 | K183: 543 | L183: 51 | M183: 145 | N183: 105 | O183: 33 | P183: 13 | Q183: 61 | R183: 23 | S183: 8 | T183: 1 | U183: 2 | V183: 65 | W183: 3747 | X183: 2888 | Y183: 786 | Z183: 64 | AA183: 9 | AB183: 2605 | AC183: 1613 | AD183: 944 | AE183: 41 | AF183: 7
A184: Рыболовный спорт | B184: 178 | C184: 129 | D184: 0 | E184: 8 | F184: 89 | G184: 0 | H184: 0 | I184: 0 | J184: 20 | K184: 0 | L184: 0 | M184: 12 | N184: 0 | O184: 0 | P184: 0 | Q184: 0 | R184: 0 | S184: 0 | T184: 0 | U184: 0 | V184: 0 | W184: 2 | X184: 2 | Y184: 0 | Z184: 0 | AA184: 0 | AB184: 11 | AC184: 3 | AD184: 8 | AE184: 0 | AF184: 0
A185: Сават | B185: 179 | C185: 258 | D185: 80 | E185: 30 | F185: 45 | G185: 39 | H185: 10 | I185: 24 | J185: 15 | K185: 11 | L185: 0 | M185: 0 | N185: 4 | O185: 0 | P185: 0 | Q185: 0 | R185: 0 | S185: 0 | T185: 0 | U185: 0 | V185: 0 | W185: 79 | X185: 58 | Y185: 19 | Z185: 2 | AA185: 0 | AB185: 25 | AC185: 15 | AD185: 8 | AE185: 2 | AF185: 0
A186: Самбо | B186: 180 | C186: 70112 | D186: 18457 | E186: 15074 | F186: 9488 | G186: 8132 | H186: 6216 | I186: 5217 | J186: 3960 | K186: 689 | L186: 0 | M186: 951 | N186: 621 | O186: 449 | P186: 109 | Q186: 131 | R186: 245 | S186: 86 | T186: 68 | U186: 46 | V186: 173 | W186: 21742 | X186: 17422 | Y186: 3945 | Z186: 336 | AA186: 39 | AB186: 14867 | AC186: 9074 | AD186: 5300 | AE186: 377 | AF186: 116
A187: Самолетный спорт | B187: 181 | C187: 6 | D187: 6 | E187: 0 | F187: 0 | G187: 0 | H187: 0 | I187: 0 | J187: 0 | K187: 0 | L187: 0 | M187: 0 | N187: 0 | O187: 0 | P187: 0 | Q187: 0 | R187: 0 | S187: 0 | T187: 0 | U187: 0 | V187: 0 | W187: 2 | X187: 2 | Y187: 0 | Z187: 0 | AA187: 0 | AB187: 2 | AC187: 2 | AD187: 0 | AE187: 0 | AF187: 0
A188: Санный спорт | B188: 182 | C188: 809 | D188: 256 | E188: 122 | F188: 34 | G188: 92 | H188: 62 | I188: 68 | J188: 32 | K188: 63 | L188: 0 | M188: 19 | N188: 11 | O188: 10 | P188: 0 | Q188: 12 | R188: 9 | S188: 3 | T188: 1 | U188: 1 | V188: 14 | W188: 219 | X188: 175 | Y188: 38 | Z188: 3 | AA188: 3 | AB188: 139 | AC188: 80 | AD188: 53 | AE188: 3 | AF188: 3
A189: Северное многоборье | B189: 183 | C189: 1795 | D189: 461 | E189: 281 | F189: 96 | G189: 232 | H189: 235 | I189: 227 | J189: 168 | K189: 0 | L189: 0 | M189: 30 | N189: 37 | O189: 7 | P189: 3 | Q189: 9 | R189: 9 | S189: 0 | T189: 0 | U189: 0 | V189: 0 | W189: 714 | X189: 451 | Y189: 252 | Z189: 8 | AA189: 3 | AB189: 393 | AC189: 205 | AD189: 176 | AE189: 12 | AF189: 0
A190: Серфинг | B190: 184 | C190: 42 | D190: 0 | E190: 3 | F190: 30 | G190: 3 | H190: 0 | I190: 0 | J190: 0 | K190: 5 | L190: 0 | M190: 0 | N190: 0 | O190: 0 | P190: 0 | Q190: 0 | R190: 0 | S190: 1 | T190: 0 | U190: 0 | V190: 0 | W190: 0 | X190: 0 | Y190: 0 | Z190: 0 | AA190: 0 | AB190: 5 | AC190: 5 | AD190: 0 | AE190: 0 | AF190: 0
A191: Силовой спорт | B191: 185 | C191: 0 | D191: 0 | E191: 0 | F191: 0 | G191: 0 | H191: 0 | I191: 0 | J191: 0 | K191: 0 | L191: 0 | M191: 0 | N191: 0 | O191: 0 | P191: 0 | Q191: 0 | R191: 0 | S191: 0 | T191: 0 | U191: 0 | V191: 0 | W191: 0 | X191: 0 | Y191: 0 | Z191: 0 | AA191: 0 | AB191: 0 | AC191: 0 | AD191: 0 | AE191: 0 | AF191: 0
A192: Силовой экстрим | B192: 186 | C192: 6 | D192: 0 | E192: 6 | F192: 0 | G192: 0 | H192: 0 | I192: 0 | J192: 0 | K192: 0 | L192: 0 | M192: 0 | N192: 0 | O192: 0 | P192: 0 | Q192: 0 | R192: 0 | S192: 0 | T192: 0 | U192: 0 | V192: 0 | W192: 0 | X192: 0 | Y192: 0 | Z192: 0 | AA192: 0 | AB192: 0 | AC192: 0 | AD192: 0 | AE192: 0 | AF192: 0
A193: Синхронное плавание | B193: 187 | C193: 5614 | D193: 817 | E193: 755 | F193: 587 | G193: 642 | H193: 520 | I193: 517 | J193: 418 | K193: 324 | L193: 0 | M193: 325 | N193: 259 | O193: 219 | P193: 37 | Q193: 0 | R193: 139 | S193: 31 | T193: 14 | U193: 4 | V193: 6 | W193: 1308 | X193: 1006 | Y193: 241 | Z193: 43 | AA193: 18 | AB193: 1048 | AC193: 453 | AD193: 356 | AE193: 147 | AF193: 92
A194: Скалолазание - всего | B194: 188 | C194: 6955 | D194: 1413 | E194: 1322 | F194: 981 | G194: 1001 | H194: 623 | I194: 592 | J194: 452 | K194: 341 | L194: 22 | M194: 70 | N194: 28 | O194: 27 | P194: 10 | Q194: 25 | R194: 18 | S194: 1 | T194: 14 | U194: 5 | V194: 10 | W194: 2054 | X194: 1605 | Y194: 421 | Z194: 25 | AA194: 3 | AB194: 1572 | AC194: 937 | AD194: 593 | AE194: 34 | AF194: 8
A195: в том числе: Двоеборье | B195: 189 | C195: 2383 | D195: 410 | E195: 473 | F195: 414 | G195: 294 | H195: 215 | I195: 227 | J195: 132 | K195: 130 | L195: 0 | M195: 36 | N195: 8 | O195: 8 | P195: 4 | Q195: 15 | R195: 4 | S195: 0 | T195: 6 | U195: 3 | V195: 4 | W195: 550 | X195: 446 | Y195: 94 | Z195: 10 | AA195: 0 | AB195: 418 | AC195: 245 | AD195: 160 | AE195: 12 | AF195: 1
A196: Лазание на скорость | B196: 190 | C196: 2067 | D196: 405 | E196: 406 | F196: 298 | G196: 334 | H196: 170 | I196: 159 | J196: 163 | K196: 67 | L196: 0 | M196: 20 | N196: 13 | O196: 9 | P196: 6 | Q196: 6 | R196: 2 | S196: 0 | T196: 7 | U196: 0 | V196: 2 | W196: 685 | X196: 507 | Y196: 164 | Z196: 12 | AA196: 2 | AB196: 466 | AC196: 272 | AD196: 181 | AE196: 9 | AF196: 4
A197: Иные дисциплины вида спорта "скалолазание" | B197: 191 | C197: 2505 | D197: 598 | E197: 443 | F197: 269 | G197: 373 | H197: 238 | I197: 206 | J197: 157 | K197: 144 | L197: 22 | M197: 14 | N197: 7 | O197: 10 | P197: 0 | Q197: 4 | R197: 12 | S197: 1 | T197: 1 | U197: 2 | V197: 4 | W197: 819 | X197: 652 | Y197: 163 | Z197: 3 | AA197: 1 | AB197: 688 | AC197: 420 | AD197: 252 | AE197: 13 | AF197: 3
A198: Сквош | B198: 192 | C198: 0 | D198: 0 | E198: 0 | F198: 0 | G198: 0 | H198: 0 | I198: 0 | J198: 0 | K198: 0 | L198: 0 | M198: 0 | N198: 0 | O198: 0 | P198: 0 | Q198: 0 | R198: 0 | S198: 0 | T198: 0 | U198: 0 | V198: 0 | W198: 0 | X198: 0 | Y198: 0 | Z198: 0 | AA198: 0 | AB198: 0 | AC198: 0 | AD198: 0 | AE198: 0 | AF198: 0
A199: Скейтбординг | B199: 193 | C199: 113 | D199: 30 | E199: 17 | F199: 28 | G199: 8 | H199: 7 | I199: 0 | J199: 7 | K199: 0 | L199: 5 | M199: 0 | N199: 4 | O199: 6 | P199: 0 | Q199: 0 | R199: 1 | S199: 0 | T199: 0 | U199: 0 | V199: 0 | W199: 54 | X199: 41 | Y199: 7 | Z199: 5 | AA199: 1 | AB199: 34 | AC199: 23 | AD199: 6 | AE199: 5 | AF199: 0
A200: Служебно-боевая стрельба | B200: 194 | C200: 0 | D200: 0 | E200: 0 | F200: 0 | G200: 0 | H200: 0 | I200: 0 | J200: 0 | K200: 0 | L200: 0 | M200: 0 | N200: 0 | O200: 0 | P200: 0 | Q200: 0 | R200: 0 | S200: 0 | T200: 0 | U200: 0 | V200: 0 | W200: 0 | X200: 0 | Y200: 0 | Z200: 0 | AA200: 0 | AB200: 0 | AC200: 0 | AD200: 0 | AE200: 0 | AF200: 0
... 130 more rows

Sheet Раздел 4
A1: Раздел IV. Спортивные разряды, спортивные звания
A2: Виды спорта | B2: № строки | C2: Из численности обучающихся (гр.5 раздела II) спортсменов, имеющих разряды, звания, человек | M2: Разряды, звания, присвоенные и подтвержденные в отчетном периоде, единица | Z2: Спортсмены, спортсмены-инструкторы (из гр. 3)
C3: Итого | D3: спортивные разряды | H3: спортивные звания | M3: спортивные разряды присвоенные | Q3: спортивные разряды подтвержденные | U3: спортивные звания присвоенные
D4: Всего | E4: в том числе: | H4: Всего | I4: в том числе: | M4: Всего | N4: в том числе: | Q4: Всего | R4: в том числе: | U4: Всего | V4: в том числе:
E5: КМС | F5: 1 разряд | G5: другие разряды | I5: ЗМС | J5: МСМК | K5: МС | L5: гроссмейстер | N5: КМС | O5: 1 разряд | P5: другие разряды | R5: КМС | S5: 1 разряд | T5: другие разряды | V5: ЗМС | W5: МСМК | X5: МС | Y5: гроссмейстер
A6: 1 | B6: 2 | C6: 3 | D6: 4 | E6: 5 | F6: 6 | G6: 7 | H6: 8 | I6: 9 | J6: 10 | K6: 11 | L6: 12 | M6: 13 | N6: 14 | O6: 15 | P6: 16 | Q6: 17 | R6: 18 | S6: 19 | T6: 20 | U6: 21 | V6: 22 | W6: 23 | X6: 24 | Y6: 25 | Z6: 26
A7: Авиамодельный спорт | B7: 01 | C7: 164 | D7: 158 | E7: 6 | F7: 7 | G7: 145 | H7: 6 | I7: 0 | J7: 1 | K7: 5 | L7: 0 | M7: 117 | N7: 2 | O7: 4 | P7: 111 | Q7: 16 | R7: 0 | S7: 0 | T7: 16 | U7: 0 | V7: 0 | W7: 0 | X7: 0 | Y7: 0 | Z7: 0
A8: Авиационные гонки | B8: 02 | C8: 0 | D8: 0 | E8: 0 | F8: 0 | G8: 0 | H8: 0 | I8: 0 | J8: 0 | K8: 0 | L8: 0 | M8: 0 | N8: 0 | O8: 0 | P8: 0 | Q8: 0 | R8: 0 | S8: 0 | T8: 0 | U8: 0 | V8: 0 | W8: 0 | X8: 0 | Y8: 0 | Z8: 0
A9: Автомобильный спорт | B9: 03 | C9: 750 | D9: 746 | E9: 11 | F9: 27 | G9: 708 | H9: 4 | I9: 0 | J9: 0 | K9: 4 | L9: 0 | M9: 472 | N9: 5 | O9: 13 | P9: 454 | Q9: 55 | R9: 0 | S9: 1 | T9: 54 | U9: 1 | V9: 0 | W9: 0 | X9: 1 | Y9: 0 | Z9: 1
A10: Автомодельный спорт | B10: 04 | C10: 0 | D10: 0 | E10: 0 | F10: 0 | G10: 0 | H10: 0 | I10: 0 | J10: 0 | K10: 0 | L10: 0 | M10: 0 | N10: 0 | O10: 0 | P10: 0 | Q10: 0 | R10: 0 | S10: 0 | T10: 0 | U10: 0 | V10: 0 | W10: 0 | X10: 0 | Y10: 0 | Z10: 0
A11: Айкидо | B11: 05 | C11: 253 | D11: 238 | E11: 42 | F11: 33 | G11: 163 | H11: 15 | I11: 0 | J11: 0 | K11: 15 | L11: 0 | M11: 161 | N11: 26 | O11: 18 | P11: 117 | Q11: 54 | R11: 0 | S11: 7 | T11: 47 | U11: 4 | V11: 0 | W11: 0 | X11: 4 | Y11: 0 | Z11: 1
A12: Акробатический рок-н-ролл | B12: 06 | C12: 4159 | D12: 3999 | E12: 702 | F12: 835 | G12: 2462 | H12: 160 | I12: 2 | J12: 39 | K12: 119 | L12: 0 | M12: 1743 | N12: 146 | O12: 348 | P12: 1249 | Q12: 428 | R12: 80 | S12: 90 | T12: 258 | U12: 36 | V12: 0 | W12: 13 | X12: 23 | Y12: 0 | Z12: 54
A13: Альпинизм - всего | B13: 07 | C13: 186 | D13: 144 | E13: 30 | F13: 39 | G13: 75 | H13: 42 | I13: 1 | J13: 0 | K13: 41 | L13: 0 | M13: 84 | N13: 11 | O13: 22 | P13: 51 | Q13: 9 | R13: 2 | S13: 1 | T13: 6 | U13: 13 | V13: 0 | W13: 0 | X13: 13 | Y13: 0 | Z13: 26
A14: в том числе: Ски-альпинизм | B14: 08 | C14: 120 | D14: 103 | E14: 18 | F14: 31 | G14: 54 | H14: 17 | I14: 0 | J14: 0 | K14: 17 | L14: 0 | M14: 55 | N14: 4 | O14: 13 | P14: 38 | Q14: 2 | R14: 1 | S14: 0 | T14: 1 | U14: 8 | V14: 0 | W14: 0 | X14: 8 | Y14: 0 | Z14: 14
A15: Иные дисциплины вида спорта "альпинизм" | B15: 09 | C15: 66 | D15: 41 | E15: 12 | F15: 8 | G15: 21 | H15: 25 | I15: 1 | J15: 0 | K15: 24 | L15: 0 | M15: 29 | N15: 7 | O15: 9 | P15: 13 | Q15: 7 | R15: 1 | S15: 1 | T15: 5 | U15: 5 | V15: 0 | W15: 0 | X15: 5 | Y15: 0 | Z15: 12
A16: Американский футбол | B16: 10 | C16: 10 | D16: 10 | E16: 10 | F16: 0 | G16: 0 | H16: 0 | I16: 0 | J16: 0 | K16: 0 | L16: 0 | M16: 0 | N16: 0 | O16: 0 | P16: 0 | Q16: 0 | R16: 0 | S16: 0 | T16: 0 | U16: 0 | V16: 0 | W16: 0 | X16: 0 | Y16: 0 | Z16: 0
A17: Армейский рукопашный бой | B17: 11 | C17: 56 | D17: 56 | E17: 3 | F17: 11 | G17: 42 | H17: 0 | I17: 0 | J17: 0 | K17: 0 | L17: 0 | M17: 51 | N17: 0 | O17: 11 | P17: 40 | Q17: 37 | R17: 0 | S17: 0 | T17: 37 | U17: 0 | V17: 0 | W17: 0 | X17: 0 | Y17: 0 | Z17: 0
A18: Армейское тактико-стрелковое многоборье | B18: 12 | C18: 0 | D18: 0 | E18: 0 | F18: 0 | G18: 0 | H18: 0 | I18: 0 | J18: 0 | K18: 0 | L18: 0 | M18: 0 | N18: 0 | O18: 0 | P18: 0 | Q18: 0 | R18: 0 | S18: 0 | T18: 0 | U18: 0 | V18: 0 | W18: 0 | X18: 0 | Y18: 0 | Z18: 0
A19: Армрестлинг | B19: 13 | C19: 2924 | D19: 2702 | E19: 464 | F19: 568 | G19: 1670 | H19: 222 | I19: 14 | J19: 28 | K19: 180 | L19: 0 | M19: 1337 | N19: 171 | O19: 288 | P19: 878 | Q19: 237 | R19: 51 | S19: 70 | T19: 116 | U19: 32 | V19: 0 | W19: 1 | X19: 31 | Y19: 0 | Z19: 14
A20: Бадминтон | B20: 14 | C20: 6447 | D20: 6335 | E20: 454 | F20: 543 | G20: 5338 | H20: 112 | I20: 0 | J20: 9 | K20: 103 | L20: 0 | M20: 3695 | N20: 147 | O20: 283 | P20: 3265 | Q20: 466 | R20: 58 | S20: 46 | T20: 362 | U20: 15 | V20: 0 | W20: 0 | X20: 15 | Y20: 0 | Z20: 44
A21: Баскетбол - всего | B21: 15 | C21: 47460 | D21: 47410 | E21: 416 | F21: 2804 | G21: 44190 | H21: 50 | I21: 2 | J21: 3 | K21: 45 | L21: 0 | M21: 27551 | N21: 152 | O21: 1492 | P21: 25907 | Q21: 4922 | R21: 21 | S21: 269 | T21: 4632 | U21: 0 | V21: 0 | W21: 0 | X21: 0 | Y21: 0 | Z21: 161
A22: в том числе: Баскетбол (муж.) | B22: 16 | C22: 30325 | D22: 30313 | E22: 213 | F22: 1747 | G22: 28353 | H22: 12 | I22: 1 | J22: 1 | K22: 10 | L22: 0 | M22: 17481 | N22: 68 | O22: 905 | P22: 16508 | Q22: 3067 | R22: 12 | S22: 168 | T22: 2887 | U22: 0 | V22: 0 | W22: 0 | X22: 0 | Y22: 0 | Z22: 44
A23: Баскетбол (жен.) | B23: 17 | C23: 16890 | D23: 16860 | E23: 160 | F23: 1026 | G23: 15674 | H23: 30 | I23: 1 | J23: 2 | K23: 27 | L23: 0 | M23: 10007 | N23: 63 | O23: 582 | P23: 9362 | Q23: 1851 | R23: 9 | S23: 101 | T23: 1741 | U23: 0 | V23: 0 | W23: 0 | X23: 0 | Y23: 0 | Z23: 102
A24: Баскетбол 3х3 | B24: 18 | C24: 188 | D24: 180 | E24: 43 | F24: 30 | G24: 107 | H24: 8 | I24: 0 | J24: 0 | K24: 8 | L24: 0 | M24: 44 | N24: 21 | O24: 5 | P24: 18 | Q24: 0 | R24: 0 | S24: 0 | T24: 0 | U24: 0 | V24: 0 | W24: 0 | X24: 0 | Y24: 0 | Z24: 15
A25: Интерактивный баскетбол | B25: 19 | C25: 0 | D25: 0 | E25: 0 | F25: 0 | G25: 0 | H25: 0 | I25: 0 | J25: 0 | K25: 0 | L25: 0 | M25: 0 | N25: 0 | O25: 0 | P25: 0 | Q25: 0 | R25: 0 | S25: 0 | T25: 0 | U25: 0 | V25: 0 | W25: 0 | X25: 0 | Y25: 0 | Z25: 0
A26: Иные дисциплины вида спорта "баскетбол" | B26: 20 | C26: 57 | D26: 57 | E26: 0 | F26: 1 | G26: 56 | H26: 0 | I26: 0 | J26: 0 | K26: 0 | L26: 0 | M26: 19 | N26: 0 | O26: 0 | P26: 19 | Q26: 4 | R26: 0 | S26: 0 | T26: 4 | U26: 0 | V26: 0 | W26: 0 | X26: 0 | Y26: 0 | Z26: 0
A27: Бейсбол | B27: 21 | C27: 703 | D27: 552 | E27: 162 | F27: 104 | G27: 286 | H27: 151 | I27: 0 | J27: 3 | K27: 148 | L27: 0 | M27: 317 | N27: 38 | O27: 72 | P27: 207 | Q27: 89 | R27: 15 | S27: 0 | T27: 74 | U27: 37 | V27: 0 | W27: 0 | X27: 37 | Y27: 0 | Z27: 77
A28: Биатлон | B28: 22 | C28: 7351 | D28: 7078 | E28: 498 | F28: 911 | G28: 5669 | H28: 273 | I28: 5 | J28: 17 | K28: 251 | L28: 0 | M28: 3911 | N28: 211 | O28: 468 | P28: 3232 | Q28: 775 | R28: 56 | S28: 130 | T28: 589 | U28: 51 | V28: 0 | W28: 0 | X28: 51 | Y28: 0 | Z28: 117
A29: Бильярдный спорт | B29: 23 | C29: 745 | D29: 690 | E29: 137 | F29: 70 | G29: 483 | H29: 55 | I29: 0 | J29: 11 | K29: 44 | L29: 0 | M29: 286 | N29: 40 | O29: 38 | P29: 208 | Q29: 33 | R29: 9 | S29: 1 | T29: 23 | U29: 9 | V29: 0 | W29: 0 | X29: 9 | Y29: 0 | Z29: 15
A30: Бобслей - всего | B30: 24 | C30: 238 | D30: 170 | E30: 49 | F30: 23 | G30: 98 | H30: 68 | I30: 3 | J30: 32 | K30: 33 | L30: 0 | M30: 88 | N30: 11 | O30: 12 | P30: 65 | Q30: 19 | R30: 8 | S30: 2 | T30: 9 | U30: 1 | V30: 0 | W30: 0 | X30: 1 | Y30: 0 | Z30: 64
A31: в том числе: Скелетон | B31: 25 | C31: 80 | D31: 62 | E31: 6 | F31: 12 | G31: 44 | H31: 18 | I31: 1 | J31: 5 | K31: 12 | L31: 0 | M31: 42 | N31: 2 | O31: 8 | P31: 32 | Q31: 4 | R31: 2 | S31: 1 | T31: 1 | U31: 0 | V31: 0 | W31: 0 | X31: 0 | Y31: 0 | Z31: 14
A32: Экипаж | B32: 26 | C32: 126 | D32: 86 | E32: 40 | F32: 9 | G32: 37 | H32: 40 | I32: 2 | J32: 19 | K32: 19 | L32: 0 | M32: 43 | N32: 8 | O32: 4 | P32: 31 | Q32: 14 | R32: 5 | S32: 1 | T32: 8 | U32: 0 | V32: 0 | W32: 0 | X32: 0 | Y32: 0 | Z32: 46
A33: Монобоб | B33: 27 | C33: 21 | D33: 20 | E33: 1 | F33: 2 | G33: 17 | H33: 1 | I33: 0 | J33: 1 | K33: 0 | L33: 0 | M33: 3 | N33: 1 | O33: 0 | P33: 2 | Q33: 1 | R33: 1 | S33: 0 | T33: 0 | U33: 0 | V33: 0 | W33: 0 | X33: 0 | Y33: 0 | Z33: 2
A34: Иные дисциплины вида спорта "бобслей" | B34: 28 | C34: 11 | D34: 2 | E34: 2 | F34: 0 | G34: 0 | H34: 9 | I34: 0 | J34: 7 | K34: 2 | L34: 0 | M34: 0 | N34: 0 | O34: 0 | P34: 0 | Q34: 0 | R34: 0 | S34: 0 | T34: 0 | U34: 1 | V34: 0 | W34: 0 | X34: 1 | Y34: 0 | Z34: 2
A35: Бодибилдинг | B35: 29 | C35: 43 | D35: 40 | E35: 7 | F35: 9 | G35: 24 | H35: 3 | I35: 0 | J35: 0 | K35: 3 | L35: 0 | M35: 85 | N35: 5 | O35: 3 | P35: 77 | Q35: 12 | R35: 0 | S35: 0 | T35: 12 | U35: 3 | V35: 0 | W35: 0 | X35: 3 | Y35: 0 | Z35: 1
A36: Бокс | B36: 30 | C36: 49244 | D36: 48187 | E36: 4610 | F36: 1855 | G36: 41722 | H36: 1057 | I36: 7 | J36: 119 | K36: 931 | L36: 0 | M36: 25223 | N36: 1567 | O36: 830 | P36: 22826 | Q36: 3563 | R36: 340 | S36: 196 | T36: 3027 | U36: 257 | V36: 6 | W36: 11 | X36: 240 | Y36: 0 | Z36: 199
A37: Борьба на поясах | B37: 31 | C37: 1621 | D37: 1434 | E37: 268 | F37: 81 | G37: 1085 | H37: 187 | I37: 16 | J37: 20 | K37: 151 | L37: 0 | M37: 856 | N37: 111 | O37: 48 | P37: 697 | Q37: 77 | R37: 24 | S37: 15 | T37: 38 | U37: 42 | V37: 2 | W37: 3 | X37: 37 | Y37: 0 | Z37: 14
A38: Боулинг | B38: 32 | C38: 0 | D38: 0 | E38: 0 | F38: 0 | G38: 0 | H38: 0 | I38: 0 | J38: 0 | K38: 0 | L38: 0 | M38: 0 | N38: 0 | O38: 0 | P38: 0 | Q38: 0 | R38: 0 | S38: 0 | T38: 0 | U38: 0 | V38: 0 | W38: 0 | X38: 0 | Y38: 0 | Z38: 0
A39: Боулспорт | B39: 33 | C39: 0 | D39: 0 | E39: 0 | F39: 0 | G39: 0 | H39: 0 | I39: 0 | J39: 0 | K39: 0 | L39: 0 | M39: 0 | N39: 0 | O39: 0 | P39: 0 | Q39: 0 | R39: 0 | S39: 0 | T39: 0 | U39: 0 | V39: 0 | W39: 0 | X39: 0 | Y39: 0 | Z39: 0
A40: Брейкинг | B40: 34 | C40: 304 | D40: 296 | E40: 23 | F40: 47 | G40: 226 | H40: 8 | I40: 0 | J40: 3 | K40: 5 | L40: 0 | M40: 181 | N40: 10 | O40: 15 | P40: 156 | Q40: 45 | R40: 4 | S40: 8 | T40: 33 | U40: 4 | V40: 0 | W40: 3 | X40: 1 | Y40: 0 | Z40: 6
A41: Велосипедный спорт - всего | B41: 35 | C41: 8098 | D41: 7598 | E41: 1117 | F41: 1020 | G41: 5461 | H41: 500 | I41: 13 | J41: 48 | K41: 439 | L41: 0 | M41: 4305 | N41: 395 | O41: 529 | P41: 3381 | Q41: 342 | R41: 108 | S41: 48 | T41: 186 | U41: 108 | V41: 0 | W41: 0 | X41: 108 | Y41: 0 | Z41: 219
A42: в том числе: BMX (гонка, эстафета) | B42: 36 | C42: 911 | D42: 859 | E42: 136 | F42: 206 | G42: 517 | H42: 52 | I42: 0 | J42: 2 | K42: 50 | L42: 0 | M42: 508 | N42: 41 | O42: 120 | P42: 347 | Q42: 45 | R42: 21 | S42: 18 | T42: 6 | U42: 23 | V42: 0 | W42: 0 | X42: 23 | Y42: 0 | Z42: 22
A43: BMX - фристайл | B43: 37 | C43: 273 | D43: 255 | E43: 64 | F43: 90 | G43: 101 | H43: 18 | I43: 0 | J43: 0 | K43: 18 | L43: 0 | M43: 172 | N43: 15 | O43: 32 | P43: 125 | Q43: 21 | R43: 2 | S43: 5 | T43: 14 | U43: 3 | V43: 0 | W43: 0 | X43: 3 | Y43: 0 | Z43: 2
A44: Маунтинбайк | B44: 38 | C44: 2277 | D44: 2200 | E44: 158 | F44: 260 | G44: 1782 | H44: 77 | I44: 0 | J44: 2 | K44: 75 | L44: 0 | M44: 1191 | N44: 74 | O44: 149 | P44: 968 | Q44: 44 | R44: 13 | S44: 6 | T44: 25 | U44: 23 | V44: 0 | W44: 0 | X44: 23 | Y44: 0 | Z44: 33
A45: Трек | B45: 39 | C45: 945 | D45: 757 | E45: 239 | F45: 120 | G45: 398 | H45: 188 | I45: 6 | J45: 34 | K45: 148 | L45: 0 | M45: 421 | N45: 95 | O45: 70 | P45: 256 | Q45: 21 | R45: 15 | S45: 0 | T45: 6 | U45: 38 | V45: 0 | W45: 0 | X45: 38 | Y45: 0 | Z45: 102
A46: Шоссе | B46: 40 | C46: 3692 | D46: 3527 | E46: 520 | F46: 344 | G46: 2663 | H46: 165 | I46: 7 | J46: 10 | K46: 148 | L46: 0 | M46: 2013 | N46: 170 | O46: 158 | P46: 1685 | Q46: 211 | R46: 57 | S46: 19 | T46: 135 | U46: 21 | V46: 0 | W46: 0 | X46: 21 | Y46: 0 | Z46: 60
A47: Вертолетный спорт | B47: 41 | C47: 0 | D47: 0 | E47: 0 | F47: 0 | G47: 0 | H47: 0 | I47: 0 | J47: 0 | K47: 0 | L47: 0 | M47: 0 | N47: 0 | O47: 0 | P47: 0 | Q47: 0 | R47: 0 | S47: 0 | T47: 0 | U47: 0 | V47: 0 | W47: 0 | X47: 0 | Y47: 0 | Z47: 0
A48: Водное поло - всего | B48: 42 | C48: 3416 | D48: 3369 | E48: 272 | F48: 407 | G48: 2690 | H48: 47 | I48: 0 | J48: 4 | K48: 43 | L48: 0 | M48: 1934 | N48: 94 | O48: 187 | P48: 1653 | Q48: 268 | R48: 56 | S48: 33 | T48: 179 | U48: 4 | V48: 0 | W48: 0 | X48: 4 | Y48: 0 | Z48: 111
A49: в том числе: Водное поло (муж.) | B49: 43 | C49: 2652 | D49: 2629 | E49: 176 | F49: 306 | G49: 2147 | H49: 23 | I49: 0 | J49: 0 | K49: 23 | L49: 0 | M49: 1493 | N49: 56 | O49: 143 | P49: 1294 | Q49: 201 | R49: 48 | S49: 22 | T49: 131 | U49: 2 | V49: 0 | W49: 0 | X49: 2 | Y49: 0 | Z49: 82
A50: Водное поло (жен.) | B50: 44 | C50: 571 | D50: 547 | E50: 78 | F50: 92 | G50: 377 | H50: 24 | I50: 0 | J50: 4 | K50: 20 | L50: 0 | M50: 360 | N50: 36 | O50: 38 | P50: 286 | Q50: 67 | R50: 8 | S50: 11 | T50: 48 | U50: 2 | V50: 0 | W50: 0 | X50: 2 | Y50: 0 | Z50: 23
A51: Иные дисциплины вида спорта "водное поло" | B51: 45 | C51: 193 | D51: 193 | E51: 18 | F51: 9 | G51: 166 | H51: 0 | I51: 0 | J51: 0 | K51: 0 | L51: 0 | M51: 81 | N51: 2 | O51: 6 | P51: 73 | Q51: 0 | R51: 0 | S51: 0 | T51: 0 | U51: 0 | V51: 0 | W51: 0 | X51: 0 | Y51: 0 | Z51: 6
A52: Воднолыжный спорт | B52: 46 | C52: 260 | D52: 232 | E52: 48 | F52: 14 | G52: 170 | H52: 28 | I52: 2 | J52: 5 | K52: 21 | L52: 0 | M52: 97 | N52: 4 | O52: 10 | P52: 83 | Q52: 5 | R52: 4 | S52: 0 | T52: 1 | U52: 2 | V52: 0 | W52: 1 | X52: 1 | Y52: 0 | Z52: 16
A53: Водно-моторный спорт | B53: 47 | C53: 193 | D53: 175 | E53: 26 | F53: 20 | G53: 129 | H53: 18 | I53: 0 | J53: 1 | K53: 17 | L53: 0 | M53: 95 | N53: 6 | O53: 7 | P53: 82 | Q53: 33 | R53: 3 | S53: 4 | T53: 26 | U53: 7 | V53: 0 | W53: 0 | X53: 7 | Y53: 0 | Z53: 2
A54: Водно-спасательное многоборье | B54: 48 | C54: 0 | D54: 0 | E54: 0 | F54: 0 | G54: 0 | H54: 0 | I54: 0 | J54: 0 | K54: 0 | L54: 0 | M54: 0 | N54: 0 | O54: 0 | P54: 0 | Q54: 0 | R54: 0 | S54: 0 | T54: 0 | U54: 0 | V54: 0 | W54: 0 | X54: 0 | Y54: 0 | Z54: 0
A55: Военно-прикладной спорт | B55: 49 | C55: 98 | D55: 97 | E55: 1 | F55: 32 | G55: 64 | H55: 1 | I55: 0 | J55: 0 | K55: 1 | L55: 0 | M55: 0 | N55: 0 | O55: 0 | P55: 0 | Q55: 0 | R55: 0 | S55: 0 | T55: 0 | U55: 0 | V55: 0 | W55: 0 | X55: 0 | Y55: 0 | Z55: 0
A56: Военно-спортивное многоборье | B56: 50 | C56: 0 | D56: 0 | E56: 0 | F56: 0 | G56: 0 | H56: 0 | I56: 0 | J56: 0 | K56: 0 | L56: 0 | M56: 0 | N56: 0 | O56: 0 | P56: 0 | Q56: 0 | R56: 0 | S56: 0 | T56: 0 | U56: 0 | V56: 0 | W56: 0 | X56: 0 | Y56: 0 | Z56: 0
A57: Воздухоплавательный спорт | B57: 51 | C57: 0 | D57: 0 | E57: 0 | F57: 0 | G57: 0 | H57: 0 | I57: 0 | J57: 0 | K57: 0 | L57: 0 | M57: 0 | N57: 0 | O57: 0 | P57: 0 | Q57: 0 | R57: 0 | S57: 0 | T57: 0 | U57: 0 | V57: 0 | W57: 0 | X57: 0 | Y57: 0 | Z57: 0
A58: Воздушная гимнастика | B58: 52 | C58: 12 | D58: 12 | E58: 0 | F58: 0 | G58: 12 | H58: 0 | I58: 0 | J58: 0 | K58: 0 | L58: 0 | M58: 12 | N58: 0 | O58: 0 | P58: 12 | Q58: 0 | R58: 0 | S58: 0 | T58: 0 | U58: 0 | V58: 0 | W58: 0 | X58: 0 | Y58: 0 | Z58: 0
A59: Воздушно-силовая атлетика | B59: 53 | C59: 16 | D59: 16 | E59: 0 | F59: 1 | G59: 15 | H59: 0 | I59: 0 | J59: 0 | K59: 0 | L59: 0 | M59: 16 | N59: 0 | O59: 1 | P59: 15 | Q59: 0 | R59: 0 | S59: 0 | T59: 0 | U59: 0 | V59: 0 | W59: 0 | X59: 0 | Y59: 0 | Z59: 0
A60: Волейбол - всего | B60: 54 | C60: 53482 | D60: 53455 | E60: 748 | F60: 2925 | G60: 49782 | H60: 27 | I60: 0 | J60: 6 | K60: 21 | L60: 0 | M60: 30507 | N60: 345 | O60: 1518 | P60: 28644 | Q60: 5732 | R60: 66 | S60: 336 | T60: 5330 | U60: 16 | V60: 0 | W60: 1 | X60: 15 | Y60: 0 | Z60: 148
A61: в том числе: Волейбол (муж.) | B61: 55 | C61: 23277 | D61: 23261 | E61: 304 | F61: 1405 | G61: 21552 | H61: 16 | I61: 0 | J61: 5 | K61: 11 | L61: 0 | M61: 12937 | N61: 165 | O61: 771 | P61: 12001 | Q61: 2399 | R61: 32 | S61: 165 | T61: 2202 | U61: 1 | V61: 0 | W61: 0 | X61: 1 | Y61: 0 | Z61: 23
A62: Волейбол (жен.) | B62: 56 | C62: 29981 | D62: 29980 | E62: 390 | F62: 1485 | G62: 28105 | H62: 1 | I62: 0 | J62: 0 | K62: 1 | L62: 0 | M62: 17481 | N62: 166 | O62: 737 | P62: 16578 | Q62: 3319 | R62: 25 | S62: 167 | T62: 3127 | U62: 12 | V62: 0 | W62: 0 | X62: 12 | Y62: 0 | Z62: 105
A63: Пляжный волейбол (муж.) | B63: 57 | C63: 108 | D63: 103 | E63: 23 | F63: 19 | G63: 61 | H63: 5 | I63: 0 | J63: 1 | K63: 4 | L63: 0 | M63: 28 | N63: 6 | O63: 5 | P63: 17 | Q63: 9 | R63: 5 | S63: 4 | T63: 0 | U63: 0 | V63: 0 | W63: 0 | X63: 0 | Y63: 0 | Z63: 5
A64: Пляжный волейбол (жен.) | B64: 58 | C64: 116 | D64: 111 | E64: 31 | F64: 16 | G64: 64 | H64: 5 | I64: 0 | J64: 0 | K64: 5 | L64: 0 | M64: 61 | N64: 8 | O64: 5 | P64: 48 | Q64: 5 | R64: 4 | S64: 0 | T64: 1 | U64: 3 | V64: 0 | W64: 1 | X64: 2 | Y64: 0 | Z64: 15
A65: Волейбол на снегу | B65: 59 | C65: 0 | D65: 0 | E65: 0 | F65: 0 | G65: 0 | H65: 0 | I65: 0 | J65: 0 | K65: 0 | L65: 0 | M65: 0 | N65: 0 | O65: 0 | P65: 0 | Q65: 0 | R65: 0 | S65: 0 | T65: 0 | U65: 0 | V65: 0 | W65: 0 | X65: 0 | Y65: 0 | Z65: 0
A66: Восточное боевое единоборство | B66: 60 | C66: 2757 | D66: 2634 | E66: 302 | F66: 246 | G66: 2086 | H66: 123 | I66: 4 | J66: 5 | K66: 114 | L66: 0 | M66: 1494 | N66: 132 | O66: 139 | P66: 1223 | Q66: 154 | R66: 12 | S66: 14 | T66: 128 | U66: 52 | V66: 1 | W66: 1 | X66: 50 | Y66: 0 | Z66: 11
A67: Всестилевое каратэ | B67: 61 | C67: 3868 | D67: 3761 | E67: 225 | F67: 227 | G67: 3309 | H67: 107 | I67: 2 | J67: 26 | K67: 79 | L67: 0 | M67: 1912 | N67: 70 | O67: 98 | P67: 1744 | Q67: 287 | R67: 21 | S67: 22 | T67: 244 | U67: 27 | V67: 1 | W67: 11 | X67: 15 | Y67: 0 | Z67: 22
A68: Гандбол - всего | B68: 62 | C68: 11134 | D68: 10944 | E68: 388 | F68: 1034 | G68: 9522 | H68: 190 | I68: 1 | J68: 4 | K68: 185 | L68: 0 | M68: 5921 | N68: 88 | O68: 572 | P68: 5261 | Q68: 593 | R68: 25 | S68: 103 | T68: 465 | U68: 50 | V68: 0 | W68: 0 | X68: 50 | Y68: 0 | Z68: 347
A69: в том числе: Гандбол (муж.) | B69: 63 | C69: 5887 | D69: 5816 | E69: 234 | F69: 562 | G69: 5020 | H69: 71 | I69: 0 | J69: 3 | K69: 68 | L69: 0 | M69: 3278 | N69: 49 | O69: 315 | P69: 2914 | Q69: 344 | R69: 21 | S69: 24 | T69: 299 | U69: 10 | V69: 0 | W69: 0 | X69: 10 | Y69: 0 | Z69: 169
A70: Гандбол (жен.) | B70: 64 | C70: 5247 | D70: 5128 | E70: 154 | F70: 472 | G70: 4502 | H70: 119 | I70: 1 | J70: 1 | K70: 117 | L70: 0 | M70: 2618 | N70: 37 | O70: 234 | P70: 2347 | Q70: 247 | R70: 3 | S70: 78 | T70: 166 | U70: 40 | V70: 0 | W70: 0 | X70: 40 | Y70: 0 | Z70: 178
A71: Пляжный гандбол | B71: 65 | C71: 0 | D71: 0 | E71: 0 | F71: 0 | G71: 0 | H71: 0 | I71: 0 | J71: 0 | K71: 0 | L71: 0 | M71: 25 | N71: 2 | O71: 23 | P71: 0 | Q71: 2 | R71: 1 | S71: 1 | T71: 0 | U71: 0 | V71: 0 | W71: 0 | X71: 0 | Y71: 0 | Z71: 0
A72: Гиревой спорт | B72: 66 | C72: 3744 | D72: 3489 | E72: 414 | F72: 415 | G72: 2660 | H72: 255 | I72: 12 | J72: 54 | K72: 189 | L72: 0 | M72: 2136 | N72: 142 | O72: 214 | P72: 1780 | Q72: 358 | R72: 36 | S72: 32 | T72: 290 | U72: 43 | V72: 2 | W72: 4 | X72: 37 | Y72: 0 | Z72: 28
A73: Го | B73: 67 | C73: 151 | D73: 147 | E73: 7 | F73: 1 | G73: 139 | H73: 4 | I73: 2 | J73: 0 | K73: 2 | L73: 0 | M73: 110 | N73: 5 | O73: 2 | P73: 103 | Q73: 11 | R73: 0 | S73: 0 | T73: 11 | U73: 0 | V73: 0 | W73: 0 | X73: 0 | Y73: 0 | Z73: 0
A74: Гольф | B74: 68 | C74: 517 | D74: 498 | E74: 43 | F74: 70 | G74: 385 | H74: 19 | I74: 0 | J74: 1 | K74: 18 | L74: 0 | M74: 350 | N74: 13 | O74: 26 | P74: 311 | Q74: 44 | R74: 6 | S74: 14 | T74: 24 | U74: 4 | V74: 0 | W74: 0 | X74: 4 | Y74: 0 | Z74: 13
A75: Гонки дронов (беспилотных воздушных судов) - всего | B75: 69 | C75: 7 | D75: 7 | E75: 0 | F75: 1 | G75: 6 | H75: 0 | I75: 0 | J75: 0 | K75: 0 | L75: 0 | M75: 7 | N75: 0 | O75: 1 | P75: 6 | Q75: 0 | R75: 0 | S75: 0 | T75: 0 | U75: 0 | V75: 0 | W75: 0 | X75: 0 | Y75: 0 | Z75: 1
A76: в том числе: Класс 75 мм | B76: 70 | C76: 7 | D76: 7 | E76: 0 | F76: 1 | G76: 6 | H76: 0 | I76: 0 | J76: 0 | K76: 0 | L76: 0 | M76: 7 | N76: 0 | O76: 1 | P76: 6 | Q76: 0 | R76: 0 | S76: 0 | T76: 0 | U76: 0 | V76: 0 | W76: 0 | X76: 0 | Y76: 0 | Z76: 1
A77: Класс 200 мм | B77: 71 | C77: 0 | D77: 0 | E77: 0 | F77: 0 | G77: 0 | H77: 0 | I77: 0 | J77: 0 | K77: 0 | L77: 0 | M77: 0 | N77: 0 | O77: 0 | P77: 0 | Q77: 0 | R77: 0 | S77: 0 | T77: 0 | U77: 0 | V77: 0 | W77: 0 | X77: 0 | Y77: 0 | Z77: 0
A78: Класс 330 мм | B78: 72 | C78: 0 | D78: 0 | E78: 0 | F78: 0 | G78: 0 | H78: 0 | I78: 0 | J78: 0 | K78: 0 | L78: 0 | M78: 0 | N78: 0 | O78: 0 | P78: 0 | Q78: 0 | R78: 0 | S78: 0 | T78: 0 | U78: 0 | V78: 0 | W78: 0 | X78: 0 | Y78: 0 | Z78: 0
A79: Технический симулятор | B79: 73 | C79: 0 | D79: 0 | E79: 0 | F79: 0 | G79: 0 | H79: 0 | I79: 0 | J79: 0 | K79: 0 | L79: 0 | M79: 0 | N79: 0 | O79: 0 | P79: 0 | Q79: 0 | R79: 0 | S79: 0 | T79: 0 | U79: 0 | V79: 0 | W79: 0 | X79: 0 | Y79: 0 | Z79: 0
A80: Гонки на охотничьих лыжах | B80: 74 | C80: 0 | D80: 0 | E80: 0 | F80: 0 | G80: 0 | H80: 0 | I80: 0 | J80: 0 | K80: 0 | L80: 0 | M80: 0 | N80: 0 | O80: 0 | P80: 0 | Q80: 0 | R80: 0 | S80: 0 | T80: 0 | U80: 0 | V80: 0 | W80: 0 | X80: 0 | Y80: 0 | Z80: 0
A81: Гонки с препятствиями | B81: 75 | C81: 0 | D81: 0 | E81: 0 | F81: 0 | G81: 0 | H81: 0 | I81: 0 | J81: 0 | K81: 0 | L81: 0 | M81: 0 | N81: 0 | O81: 0 | P81: 0 | Q81: 0 | R81: 0 | S81: 0 | T81: 0 | U81: 0 | V81: 0 | W81: 0 | X81: 0 | Y81: 0 | Z81: 0
A82: Горнолыжный спорт | B82: 76 | C82: 5166 | D82: 5111 | E82: 130 | F82: 681 | G82: 4300 | H82: 55 | I82: 0 | J82: 7 | K82: 48 | L82: 0 | M82: 3032 | N82: 44 | O82: 243 | P82: 2745 | Q82: 765 | R82: 37 | S82: 193 | T82: 535 | U82: 5 | V82: 0 | W82: 0 | X82: 5 | Y82: 0 | Z82: 57
A83: Городошный спорт | B83: 77 | C83: 371 | D83: 336 | E83: 40 | F83: 34 | G83: 262 | H83: 35 | I83: 0 | J83: 0 | K83: 35 | L83: 0 | M83: 207 | N83: 18 | O83: 24 | P83: 165 | Q83: 28 | R83: 5 | S83: 8 | T83: 15 | U83: 4 | V83: 0 | W83: 0 | X83: 4 | Y83: 0 | Z83: 3
A84: Гребля на байдарках и каноэ | B84: 78 | C84: 8826 | D84: 8371 | E84: 1488 | F84: 1212 | G84: 5671 | H84: 455 | I84: 30 | J84: 38 | K84: 387 | L84: 0 | M84: 4504 | N84: 477 | O84: 655 | P84: 3372 | Q84: 797 | R84: 212 | S84: 106 | T84: 479 | U84: 81 | V84: 1 | W84: 11 | X84: 69 | Y84: 0 | Z84: 221
A85: Гребля на шлюпках | B85: 79 | C85: 0 | D85: 0 | E85: 0 | F85: 0 | G85: 0 | H85: 0 | I85: 0 | J85: 0 | K85: 0 | L85: 0 | M85: 0 | N85: 0 | O85: 0 | P85: 0 | Q85: 0 | R85: 0 | S85: 0 | T85: 0 | U85: 0 | V85: 0 | W85: 0 | X85: 0 | Y85: 0 | Z85: 0
A86: Гребной слалом | B86: 80 | C86: 948 | D86: 890 | E86: 162 | F86: 145 | G86: 583 | H86: 58 | I86: 0 | J86: 8 | K86: 50 | L86: 0 | M86: 427 | N86: 40 | O86: 76 | P86: 311 | Q86: 57 | R86: 23 | S86: 4 | T86: 30 | U86: 6 | V86: 0 | W86: 0 | X86: 6 | Y86: 0 | Z86: 21
A87: Гребной спорт - всего | B87: 81 | C87: 4650 | D87: 4383 | E87: 635 | F87: 490 | G87: 3258 | H87: 267 | I87: 1 | J87: 43 | K87: 223 | L87: 0 | M87: 2252 | N87: 164 | O87: 219 | P87: 1869 | Q87: 275 | R87: 78 | S87: 32 | T87: 165 | U87: 43 | V87: 0 | W87: 8 | X87: 35 | Y87: 0 | Z87: 198
A88: в том числе: Академическая гребля | B88: 82 | C88: 4549 | D88: 4284 | E88: 633 | F88: 485 | G88: 3166 | H88: 265 | I88: 1 | J88: 42 | K88: 222 | L88: 0 | M88: 2212 | N88: 164 | O88: 219 | P88: 1829 | Q88: 260 | R88: 76 | S88: 32 | T88: 152 | U88: 43 | V88: 0 | W88: 8 | X88: 35 | Y88: 0 | Z88: 198
A89: Иные дисциплины вида спорта "гребной спорт" | B89: 83 | C89: 101 | D89: 99 | E89: 2 | F89: 5 | G89: 92 | H89: 2 | I89: 0 | J89: 1 | K89: 1 | L89: 0 | M89: 40 | N89: 0 | O89: 0 | P89: 40 | Q89: 15 | R89: 2 | S89: 0 | T89: 13 | U89: 0 | V89: 0 | W89: 0 | X89: 0 | Y89: 0 | Z89: 0
A90: Гребно-парусное двоеборье | B90: 84 | C90: 0 | D90: 0 | E90: 0 | F90: 0 | G90: 0 | H90: 0 | I90: 0 | J90: 0 | K90: 0 | L90: 0 | M90: 0 | N90: 0 | O90: 0 | P90: 0 | Q90: 0 | R90: 0 | S90: 0 | T90: 0 | U90: 0 | V90: 0 | W90: 0 | X90: 0 | Y90: 0 | Z90: 0
A91: Дартс | B91: 85 | C91: 402 | D91: 391 | E91: 59 | F91: 57 | G91: 275 | H91: 11 | I91: 0 | J91: 0 | K91: 11 | L91: 0 | M91: 262 | N91: 21 | O91: 26 | P91: 215 | Q91: 8 | R91: 4 | S91: 1 | T91: 3 | U91: 5 | V91: 0 | W91: 0 | X91: 5 | Y91: 0 | Z91: 0
A92: Джиу-джитсу | B92: 86 | C92: 1960 | D92: 1777 | E92: 313 | F92: 75 | G92: 1389 | H92: 183 | I92: 3 | J92: 10 | K92: 170 | L92: 0 | M92: 1049 | N92: 73 | O92: 30 | P92: 946 | Q92: 107 | R92: 10 | S92: 6 | T92: 91 | U92: 32 | V92: 0 | W92: 1 | X92: 31 | Y92: 0 | Z92: 18
A93: Джутайдо | B93: 87 | C93: 0 | D93: 0 | E93: 0 | F93: 0 | G93: 0 | H93: 0 | I93: 0 | J93: 0 | K93: 0 | L93: 0 | M93: 0 | N93: 0 | O93: 0 | P93: 0 | Q93: 0 | R93: 0 | S93: 0 | T93: 0 | U93: 0 | V93: 0 | W93: 0 | X93: 0 | Y93: 0 | Z93: 0
A94: Дзюдо | B94: 88 | C94: 54711 | D94: 53720 | E94: 3675 | F94: 2726 | G94: 47319 | H94: 991 | I94: 23 | J94: 57 | K94: 911 | L94: 0 | M94: 27461 | N94: 1157 | O94: 921 | P94: 25383 | Q94: 4277 | R94: 372 | S94: 182 | T94: 3723 | U94: 206 | V94: 1 | W94: 14 | X94: 191 | Y94: 0 | Z94: 235
A95: Ездовой спорт | B95: 89 | C95: 0 | D95: 0 | E95: 0 | F95: 0 | G95: 0 | H95: 0 | I95: 0 | J95: 0 | K95: 0 | L95: 0 | M95: 0 | N95: 0 | O95: 0 | P95: 0 | Q95: 0 | R95: 0 | S95: 0 | T95: 0 | U95: 0 | V95: 0 | W95: 0 | X95: 0 | Y95: 0 | Z95: 0
A96: Зимнее плавание | B96: 90 | C96: 0 | D96: 0 | E96: 0 | F96: 0 | G96: 0 | H96: 0 | I96: 0 | J96: 0 | K96: 0 | L96: 0 | M96: 0 | N96: 0 | O96: 0 | P96: 0 | Q96: 0 | R96: 0 | S96: 0 | T96: 0 | U96: 0 | V96: 0 | W96: 0 | X96: 0 | Y96: 0 | Z96: 0
A97: Капоэйра | B97: 91 | C97: 0 | D97: 0 | E97: 0 | F97: 0 | G97: 0 | H97: 0 | I97: 0 | J97: 0 | K97: 0 | L97: 0 | M97: 0 | N97: 0 | O97: 0 | P97: 0 | Q97: 0 | R97: 0 | S97: 0 | T97: 0 | U97: 0 | V97: 0 | W97: 0 | X97: 0 | Y97: 0 | Z97: 0
A98: Каратэ | B98: 92 | C98: 8496 | D98: 8194 | E98: 896 | F98: 375 | G98: 6923 | H98: 302 | I98: 2 | J98: 26 | K98: 274 | L98: 0 | M98: 4047 | N98: 270 | O98: 186 | P98: 3591 | Q98: 606 | R98: 89 | S98: 20 | T98: 497 | U98: 87 | V98: 2 | W98: 8 | X98: 77 | Y98: 0 | Z98: 46
A99: Кендо | B99: 93 | C99: 1 | D99: 0 | E99: 0 | F99: 0 | G99: 0 | H99: 1 | I99: 0 | J99: 0 | K99: 1 | L99: 0 | M99: 0 | N99: 0 | O99: 0 | P99: 0 | Q99: 0 | R99: 0 | S99: 0 | T99: 0 | U99: 0 | V99: 0 | W99: 0 | X99: 0 | Y99: 0 | Z99: 1
A100: Керешу | B100: 94 | C100: 89 | D100: 89 | E100: 0 | F100: 0 | G100: 89 | H100: 0 | I100: 0 | J100: 0 | K100: 0 | L100: 0 | M100: 92 | N100: 0 | O100: 0 | P100: 92 | Q100: 0 | R100: 0 | S100: 0 | T100: 0 | U100: 0 | V100: 0 | W100: 0 | X100: 0 | Y100: 0 | Z100: 0
A101: Кёрлинг - всего | B101: 95 | C101: 1345 | D101: 1251 | E101: 222 | F101: 287 | G101: 742 | H101: 94 | I101: 6 | J101: 14 | K101: 74 | L101: 0 | M101: 683 | N101: 54 | O101: 173 | P101: 456 | Q101: 96 | R101: 31 | S101: 30 | T101: 35 | U101: 20 | V101: 0 | W101: 0 | X101: 20 | Y101: 0 | Z101: 33
A102: в том числе: Кёрлинг (муж.) | B102: 96 | C102: 443 | D102: 401 | E102: 68 | F102: 100 | G102: 233 | H102: 42 | I102: 2 | J102: 5 | K102: 35 | L102: 0 | M102: 224 | N102: 16 | O102: 69 | P102: 139 | Q102: 31 | R102: 9 | S102: 11 | T102: 11 | U102: 12 | V102: 0 | W102: 0 | X102: 12 | Y102: 0 | Z102: 13
A103: Кёрлинг (жен.) | B103: 97 | C103: 562 | D103: 521 | E103: 102 | F103: 109 | G103: 310 | H103: 41 | I103: 4 | J103: 6 | K103: 31 | L103: 0 | M103: 261 | N103: 26 | O103: 58 | P103: 177 | Q103: 32 | R103: 15 | S103: 6 | T103: 11 | U103: 5 | V103: 0 | W103: 0 | X103: 5 | Y103: 0 | Z103: 10
A104: Кёрлинг – смешанные пары | B104: 98 | C104: 340 | D104: 329 | E104: 52 | F104: 78 | G104: 199 | H104: 11 | I104: 0 | J104: 3 | K104: 8 | L104: 0 | M104: 198 | N104: 12 | O104: 46 | P104: 140 | Q104: 33 | R104: 7 | S104: 13 | T104: 13 | U104: 3 | V104: 0 | W104: 0 | X104: 3 | Y104: 0 | Z104: 10
A105: Кикбоксинг | B105: 99 | C105: 10888 | D105: 10363 | E105: 1094 | F105: 674 | G105: 8595 | H105: 525 | I105: 11 | J105: 36 | K105: 478 | L105: 0 | M105: 5340 | N105: 335 | O105: 336 | P105: 4669 | Q105: 616 | R105: 73 | S105: 41 | T105: 502 | U105: 117 | V105: 0 | W105: 0 | X105: 117 | Y105: 0 | Z105: 81
A106: Кинологический спорт | B106: 100 | C106: 14 | D106: 14 | E106: 3 | F106: 2 | G106: 9 | H106: 0 | I106: 0 | J106: 0 | K106: 0 | L106: 0 | M106: 6 | N106: 3 | O106: 2 | P106: 1 | Q106: 0 | R106: 0 | S106: 0 | T106: 0 | U106: 0 | V106: 0 | W106: 0 | X106: 0 | Y106: 0 | Z106: 0
A107: Киокусинкай | B107: 101 | C107: 9535 | D107: 9317 | E107: 795 | F107: 841 | G107: 7681 | H107: 218 | I107: 3 | J107: 35 | K107: 180 | L107: 0 | M107: 5096 | N107: 238 | O107: 387 | P107: 4471 | Q107: 555 | R107: 54 | S107: 44 | T107: 457 | U107: 56 | V107: 0 | W107: 10 | X107: 46 | Y107: 0 | Z107: 19
A108: Киокушин | B108: 102 | C108: 3235 | D108: 3189 | E108: 220 | F108: 290 | G108: 2679 | H108: 46 | I108: 0 | J108: 16 | K108: 30 | L108: 0 | M108: 1409 | N108: 75 | O108: 144 | P108: 1190 | Q108: 274 | R108: 1 | S108: 17 | T108: 256 | U108: 19 | V108: 0 | W108: 4 | X108: 15 | Y108: 0 | Z108: 0
A109: Комплексное единоборство | B109: 103 | C109: 0 | D109: 0 | E109: 0 | F109: 0 | G109: 0 | H109: 0 | I109: 0 | J109: 0 | K109: 0 | L109: 0 | M109: 0 | N109: 0 | O109: 0 | P109: 0 | Q109: 0 | R109: 0 | S109: 0 | T109: 0 | U109: 0 | V109: 0 | W109: 0 | X109: 0 | Y109: 0 | Z109: 0
A110: Компьютерный спорт - всего | B110: 104 | C110: 107 | D110: 101 | E110: 1 | F110: 15 | G110: 85 | H110: 6 | I110: 3 | J110: 2 | K110: 1 | L110: 0 | M110: 58 | N110: 1 | O110: 7 | P110: 50 | Q110: 4 | R110: 0 | S110: 0 | T110: 4 | U110: 0 | V110: 0 | W110: 0 | X110: 0 | Y110: 0 | Z110: 1
A111: в том числе: Боевая арена | B111: 105 | C111: 52 | D111: 46 | E111: 0 | F111: 8 | G111: 38 | H111: 6 | I111: 3 | J111: 2 | K111: 1 | L111: 0 | M111: 31 | N111: 0 | O111: 5 | P111: 26 | Q111: 0 | R111: 0 | S111: 0 | T111: 0 | U111: 0 | V111: 0 | W111: 0 | X111: 0 | Y111: 0 | Z111: 0
A112: Соревновательные головоломки | B112: 106 | C112: 10 | D112: 10 | E112: 0 | F112: 0 | G112: 10 | H112: 0 | I112: 0 | J112: 0 | K112: 0 | L112: 0 | M112: 10 | N112: 0 | O112: 0 | P112: 10 | Q112: 0 | R112: 0 | S112: 0 | T112: 0 | U112: 0 | V112: 0 | W112: 0 | X112: 0 | Y112: 0 | Z112: 0
A113: Спортивный симулятор | B113: 107 | C113: 0 | D113: 0 | E113: 0 | F113: 0 | G113: 0 | H113: 0 | I113: 0 | J113: 0 | K113: 0 | L113: 0 | M113: 0 | N113: 0 | O113: 0 | P113: 0 | Q113: 0 | R113: 0 | S113: 0 | T113: 0 | U113: 0 | V113: 0 | W113: 0 | X113: 0 | Y113: 0 | Z113: 0
A114: Стратегия в реальном времени | B114: 108 | C114: 4 | D114: 4 | E114: 1 | F114: 1 | G114: 2 | H114: 0 | I114: 0 | J114: 0 | K114: 0 | L114: 0 | M114: 4 | N114: 1 | O114: 1 | P114: 2 | Q114: 0 | R114: 0 | S114: 0 | T114: 0 | U114: 0 | V114: 0 | W114: 0 | X114: 0 | Y114: 0 | Z114: 1
A115: Тактический трехмерный бой | B115: 109 | C115: 35 | D115: 35 | E115: 0 | F115: 6 | G115: 29 | H115: 0 | I115: 0 | J115: 0 | K115: 0 | L115: 0 | M115: 6 | N115: 0 | O115: 1 | P115: 5 | Q115: 4 | R115: 0 | S115: 0 | T115: 4 | U115: 0 | V115: 0 | W115: 0 | X115: 0 | Y115: 0 | Z115: 0
A116: Технический симулятор | B116: 110 | C116: 5 | D116: 5 | E116: 0 | F116: 0 | G116: 5 | H116: 0 | I116: 0 | J116: 0 | K116: 0 | L116: 0 | M116: 5 | N116: 0 | O116: 0 | P116: 5 | Q116: 0 | R116: 0 | S116: 0 | T116: 0 | U116: 0 | V116: 0 | W116: 0 | X116: 0 | Y116: 0 | Z116: 0
A117: Файтинг | B117: 111 | C117: 1 | D117: 1 | E117: 0 | F117: 0 | G117: 1 | H117: 0 | I117: 0 | J117: 0 | K117: 0 | L117: 0 | M117: 2 | N117: 0 | O117: 0 | P117: 2 | Q117: 0 | R117: 0 | S117: 0 | T117: 0 | U117: 0 | V117: 0 | W117: 0 | X117: 0 | Y117: 0 | Z117: 0
A118: Конный спорт | B118: 112 | C118: 3744 | D118: 3659 | E118: 309 | F118: 175 | G118: 3175 | H118: 85 | I118: 0 | J118: 6 | K118: 79 | L118: 0 | M118: 1978 | N118: 79 | O118: 84 | P118: 1815 | Q118: 406 | R118: 55 | S118: 20 | T118: 331 | U118: 8 | V118: 0 | W118: 0 | X118: 8 | Y118: 0 | Z118: 18
A119: Конькобежный спорт - всего | B119: 113 | C119: 8865 | D119: 8458 | E119: 1079 | F119: 984 | G119: 6395 | H119: 407 | I119: 9 | J119: 56 | K119: 342 | L119: 0 | M119: 5284 | N119: 359 | O119: 604 | P119: 4321 | Q119: 849 | R119: 132 | S119: 113 | T119: 604 | U119: 77 | V119: 0 | W119: 10 | X119: 67 | Y119: 0 | Z119: 142
A120: в том числе: Конькобежный спорт | B120: 114 | C120: 6506 | D120: 6318 | E120: 742 | F120: 652 | G120: 4924 | H120: 188 | I120: 6 | J120: 7 | K120: 175 | L120: 0 | M120: 3887 | N120: 230 | O120: 411 | P120: 3246 | Q120: 665 | R120: 85 | S120: 81 | T120: 499 | U120: 42 | V120: 0 | W120: 0 | X120: 42 | Y120: 0 | Z120: 84
A121: Шорт-трек | B121: 115 | C121: 2359 | D121: 2140 | E121: 337 | F121: 332 | G121: 1471 | H121: 219 | I121: 3 | J121: 49 | K121: 167 | L121: 0 | M121: 1397 | N121: 129 | O121: 193 | P121: 1075 | Q121: 184 | R121: 47 | S121: 32 | T121: 105 | U121: 35 | V121: 0 | W121: 10 | X121: 25 | Y121: 0 | Z121: 58
A122: Масс-старт | B122: 116 | C122: 0 | D122: 0 | E122: 0 | F122: 0 | G122: 0 | H122: 0 | I122: 0 | J122: 0 | K122: 0 | L122: 0 | M122: 0 | N122: 0 | O122: 0 | P122: 0 | Q122: 0 | R122: 0 | S122: 0 | T122: 0 | U122: 0 | V122: 0 | W122: 0 | X122: 0 | Y122: 0 | Z122: 0
A123: Командный забег | B123: 117 | C123: 0 | D123: 0 | E123: 0 | F123: 0 | G123: 0 | H123: 0 | I123: 0 | J123: 0 | K123: 0 | L123: 0 | M123: 0 | N123: 0 | O123: 0 | P123: 0 | Q123: 0 | R123: 0 | S123: 0 | T123: 0 | U123: 0 | V123: 0 | W123: 0 | X123: 0 | Y123: 0 | Z123: 0
A124: Корэш | B124: 118 | C124: 1681 | D124: 1664 | E124: 60 | F124: 9 | G124: 1595 | H124: 17 | I124: 1 | J124: 4 | K124: 12 | L124: 0 | M124: 1077 | N124: 21 | O124: 4 | P124: 1052 | Q124: 92 | R124: 2 | S124: 4 | T124: 86 | U124: 2 | V124: 0 | W124: 0 | X124: 2 | Y124: 0 | Z124: 0
A125: Крикет | B125: 119 | C125: 0 | D125: 0 | E125: 0 | F125: 0 | G125: 0 | H125: 0 | I125: 0 | J125: 0 | K125: 0 | L125: 0 | M125: 0 | N125: 0 | O125: 0 | P125: 0 | Q125: 0 | R125: 0 | S125: 0 | T125: 0 | U125: 0 | V125: 0 | W125: 0 | X125: 0 | Y125: 0 | Z125: 0
A126: Кудо | B126: 120 | C126: 1027 | D126: 981 | E126: 177 | F126: 41 | G126: 763 | H126: 46 | I126: 1 | J126: 1 | K126: 44 | L126: 0 | M126: 410 | N126: 34 | O126: 19 | P126: 357 | Q126: 22 | R126: 0 | S126: 1 | T126: 21 | U126: 14 | V126: 0 | W126: 0 | X126: 14 | Y126: 0 | Z126: 0
A127: Лазерный бой | B127: 121 | C127: 0 | D127: 0 | E127: 0 | F127: 0 | G127: 0 | H127: 0 | I127: 0 | J127: 0 | K127: 0 | L127: 0 | M127: 0 | N127: 0 | O127: 0 | P127: 0 | Q127: 0 | R127: 0 | S127: 0 | T127: 0 | U127: 0 | V127: 0 | W127: 0 | X127: 0 | Y127: 0 | Z127: 0
A128: Лапта | B128: 122 | C128: 1205 | D128: 1191 | E128: 82 | F128: 176 | G128: 933 | H128: 14 | I128: 0 | J128: 0 | K128: 14 | L128: 0 | M128: 731 | N128: 37 | O128: 62 | P128: 632 | Q128: 67 | R128: 2 | S128: 9 | T128: 56 | U128: 9 | V128: 0 | W128: 0 | X128: 9 | Y128: 0 | Z128: 0
A129: Легкая атлетика | B129: 123 | C129: 80892 | D129: 79897 | E129: 2590 | F129: 4038 | G129: 73269 | H129: 995 | I129: 14 | J129: 180 | K129: 801 | L129: 0 | M129: 50938 | N129: 631 | O129: 1963 | P129: 48344 | Q129: 7489 | R129: 415 | S129: 505 | T129: 6569 | U129: 149 | V129: 0 | W129: 10 | X129: 139 | Y129: 0 | Z129: 495
A130: Лыжное двоеборье | B130: 124 | C130: 468 | D130: 427 | E130: 40 | F130: 76 | G130: 311 | H130: 41 | I130: 0 | J130: 1 | K130: 40 | L130: 0 | M130: 189 | N130: 13 | O130: 31 | P130: 145 | Q130: 18 | R130: 6 | S130: 11 | T130: 1 | U130: 11 | V130: 0 | W130: 0 | X130: 11 | Y130: 0 | Z130: 29
A131: Лыжные гонки | B131: 125 | C131: 42429 | D131: 41985 | E131: 694 | F131: 8912 | G131: 32379 | H131: 444 | I131: 4 | J131: 23 | K131: 417 | L131: 0 | M131: 23119 | N131: 294 | O131: 3852 | P131: 18973 | Q131: 3986 | R131: 63 | S131: 1368 | T131: 2555 | U131: 72 | V131: 0 | W131: 0 | X131: 72 | Y131: 0 | Z131: 151
A132: Мас-рестлинг | B132: 126 | C132: 366 | D132: 335 | E132: 23 | F132: 3 | G132: 309 | H132: 31 | I132: 1 | J132: 2 | K132: 28 | L132: 0 | M132: 253 | N132: 6 | O132: 4 | P132: 243 | Q132: 26 | R132: 0 | S132: 26 | T132: 0 | U132: 5 | V132: 0 | W132: 0 | X132: 5 | Y132: 0 | Z132: 6
A133: Международное военно-спортивное многоборье | B133: 127 | C133: 0 | D133: 0 | E133: 0 | F133: 0 | G133: 0 | H133: 0 | I133: 0 | J133: 0 | K133: 0 | L133: 0 | M133: 0 | N133: 0 | O133: 0 | P133: 0 | Q133: 0 | R133: 0 | S133: 0 | T133: 0 | U133: 0 | V133: 0 | W133: 0 | X133: 0 | Y133: 0 | Z133: 0
A134: Микрофутзал | B134: 128 | C134: 11 | D134: 11 | E134: 0 | F134: 2 | G134: 9 | H134: 0 | I134: 0 | J134: 0 | K134: 0 | L134: 0 | M134: 11 | N134: 0 | O134: 2 | P134: 9 | Q134: 0 | R134: 0 | S134: 0 | T134: 0 | U134: 0 | V134: 0 | W134: 0 | X134: 0 | Y134: 0 | Z134: 0
A135: Многоборье готов к труду и обороне | B135: 129 | C135: 0 | D135: 0 | E135: 0 | F135: 0 | G135: 0 | H135: 0 | I135: 0 | J135: 0 | K135: 0 | L135: 0 | M135: 0 | N135: 0 | O135: 0 | P135: 0 | Q135: 0 | R135: 0 | S135: 0 | T135: 0 | U135: 0 | V135: 0 | W135: 0 | X135: 0 | Y135: 0 | Z135: 0
A136: Многоборье кинологов | B136: 130 | C136: 0 | D136: 0 | E136: 0 | F136: 0 | G136: 0 | H136: 0 | I136: 0 | J136: 0 | K136: 0 | L136: 0 | M136: 0 | N136: 0 | O136: 0 | P136: 0 | Q136: 0 | R136: 0 | S136: 0 | T136: 0 | U136: 0 | V136: 0 | W136: 0 | X136: 0 | Y136: 0 | Z136: 0
A137: Многоборье спасателей МЧС России | B137: 131 | C137: 0 | D137: 0 | E137: 0 | F137: 0 | G137: 0 | H137: 0 | I137: 0 | J137: 0 | K137: 0 | L137: 0 | M137: 0 | N137: 0 | O137: 0 | P137: 0 | Q137: 0 | R137: 0 | S137: 0 | T137: 0 | U137: 0 | V137: 0 | W137: 0 | X137: 0 | Y137: 0 | Z137: 0
A138: Морское многоборье | B138: 132 | C138: 423 | D138: 397 | E138: 91 | F138: 20 | G138: 286 | H138: 26 | I138: 0 | J138: 0 | K138: 26 | L138: 0 | M138: 195 | N138: 20 | O138: 7 | P138: 168 | Q138: 12 | R138: 7 | S138: 0 | T138: 5 | U138: 17 | V138: 0 | W138: 0 | X138: 17 | Y138: 0 | Z138: 10
A139: Мотоциклетный спорт | B139: 133 | C139: 721 | D139: 693 | E139: 70 | F139: 57 | G139: 566 | H139: 28 | I139: 0 | J139: 4 | K139: 24 | L139: 0 | M139: 346 | N139: 23 | O139: 28 | P139: 295 | Q139: 16 | R139: 3 | S139: 2 | T139: 11 | U139: 3 | V139: 0 | W139: 1 | X139: 2 | Y139: 0 | Z139: 6
A140: Муайтай | B140: 134 | C140: 3653 | D140: 3553 | E140: 370 | F140: 146 | G140: 3037 | H140: 100 | I140: 8 | J140: 13 | K140: 79 | L140: 0 | M140: 2403 | N140: 125 | O140: 74 | P140: 2204 | Q140: 289 | R140: 51 | S140: 2 | T140: 236 | U140: 54 | V140: 1 | W140: 4 | X140: 49 | Y140: 0 | Z140: 20
A141: Нарды | B141: 135 | C141: 0 | D141: 0 | E141: 0 | F141: 0 | G141: 0 | H141: 0 | I141: 0 | J141: 0 | K141: 0 | L141: 0 | M141: 0 | N141: 0 | O141: 0 | P141: 0 | Q141: 0 | R141: 0 | S141: 0 | T141: 0 | U141: 0 | V141: 0 | W141: 0 | X141: 0 | Y141: 0 | Z141: 0
A142: Настольный теннис | B142: 136 | C142: 17803 | D142: 17566 | E142: 635 | F142: 764 | G142: 16167 | H142: 237 | I142: 2 | J142: 9 | K142: 226 | L142: 0 | M142: 10613 | N142: 194 | O142: 507 | P142: 9912 | Q142: 1119 | R142: 68 | S142: 64 | T142: 987 | U142: 28 | V142: 0 | W142: 1 | X142: 27 | Y142: 0 | Z142: 69
A143: Падел | B143: 137 | C143: 0 | D143: 0 | E143: 0 | F143: 0 | G143: 0 | H143: 0 | I143: 0 | J143: 0 | K143: 0 | L143: 0 | M143: 0 | N143: 0 | O143: 0 | P143: 0 | Q143: 0 | R143: 0 | S143: 0 | T143: 0 | U143: 0 | V143: 0 | W143: 0 | X143: 0 | Y143: 0 | Z143: 0
A144: Парашютный спорт | B144: 138 | C144: 342 | D144: 309 | E144: 15 | F144: 17 | G144: 277 | H144: 33 | I144: 3 | J144: 10 | K144: 20 | L144: 0 | M144: 184 | N144: 3 | O144: 5 | P144: 176 | Q144: 22 | R144: 0 | S144: 3 | T144: 19 | U144: 14 | V144: 0 | W144: 7 | X144: 7 | Y144: 0 | Z144: 9
A145: Парусный спорт | B145: 139 | C145: 3958 | D145: 3739 | E145: 360 | F145: 348 | G145: 3031 | H145: 219 | I145: 0 | J145: 16 | K145: 203 | L145: 0 | M145: 2296 | N145: 102 | O145: 159 | P145: 2035 | Q145: 259 | R145: 28 | S145: 47 | T145: 184 | U145: 32 | V145: 0 | W145: 0 | X145: 32 | Y145: 0 | Z145: 50
A146: Пауэрлифтинг | B146: 140 | C146: 8693 | D146: 8249 | E146: 1277 | F146: 870 | G146: 6102 | H146: 444 | I146: 9 | J146: 55 | K146: 380 | L146: 0 | M146: 5486 | N146: 537 | O146: 606 | P146: 4343 | Q146: 599 | R146: 83 | S146: 49 | T146: 467 | U146: 84 | V146: 0 | W146: 14 | X146: 70 | Y146: 0 | Z146: 38
A147: Перетягивание каната | B147: 141 | C147: 27 | D147: 27 | E147: 13 | F147: 12 | G147: 2 | H147: 0 | I147: 0 | J147: 0 | K147: 0 | L147: 0 | M147: 17 | N147: 0 | O147: 12 | P147: 5 | Q147: 12 | R147: 12 | S147: 0 | T147: 0 | U147: 0 | V147: 0 | W147: 0 | X147: 0 | Y147: 0 | Z147: 0
A148: Пилонный спорт | B148: 142 | C148: 0 | D148: 0 | E148: 0 | F148: 0 | G148: 0 | H148: 0 | I148: 0 | J148: 0 | K148: 0 | L148: 0 | M148: 0 | N148: 0 | O148: 0 | P148: 0 | Q148: 0 | R148: 0 | S148: 0 | T148: 0 | U148: 0 | V148: 0 | W148: 0 | X148: 0 | Y148: 0 | Z148: 0
A149: Плавание - всего | B149: 143 | C149: 102217 | D149: 100979 | E149: 4008 | F149: 5644 | G149: 91327 | H149: 1238 | I149: 29 | J149: 86 | K149: 1123 | L149: 0 | M149: 67484 | N149: 1473 | O149: 3336 | P149: 62675 | Q149: 7598 | R149: 332 | S149: 604 | T149: 6662 | U149: 313 | V149: 4 | W149: 2 | X149: 307 | Y149: 0 | Z149: 239
A150: в том числе: Открытая вода | B150: 144 | C150: 4834 | D150: 4764 | E150: 165 | F150: 167 | G150: 4432 | H150: 70 | I150: 0 | J150: 6 | K150: 64 | L150: 0 | M150: 3153 | N150: 65 | O150: 101 | P150: 2987 | Q150: 504 | R150: 5 | S150: 17 | T150: 482 | U150: 18 | V150: 0 | W150: 0 | X150: 18 | Y150: 0 | Z150: 5
A151: Иные дисциплины вида спорта "плавание" | B151: 145 | C151: 97383 | D151: 96215 | E151: 3843 | F151: 5477 | G151: 86895 | H151: 1168 | I151: 29 | J151: 80 | K151: 1059 | L151: 0 | M151: 64331 | N151: 1408 | O151: 3235 | P151: 59688 | Q151: 7094 | R151: 327 | S151: 587 | T151: 6180 | U151: 295 | V151: 4 | W151: 2 | X151: 289 | Y151: 0 | Z151: 234
A152: Планерный спорт | B152: 146 | C152: 13 | D152: 13 | E152: 0 | F152: 0 | G152: 13 | H152: 0 | I152: 0 | J152: 0 | K152: 0 | L152: 0 | M152: 3 | N152: 0 | O152: 0 | P152: 3 | Q152: 0 | R152: 0 | S152: 0 | T152: 0 | U152: 0 | V152: 0 | W152: 0 | X152: 0 | Y152: 0 | Z152: 0
A153: Подводный спорт | B153: 147 | C153: 4025 | D153: 3764 | E153: 428 | F153: 477 | G153: 2859 | H153: 261 | I153: 9 | J153: 38 | K153: 214 | L153: 0 | M153: 2985 | N153: 161 | O153: 326 | P153: 2498 | Q153: 107 | R153: 13 | S153: 15 | T153: 79 | U153: 71 | V153: 2 | W153: 10 | X153: 59 | Y153: 0 | Z153: 50
A154: Пожарно-спасательный спорт | B154: 148 | C154: 51 | D154: 51 | E154: 2 | F154: 1 | G154: 48 | H154: 0 | I154: 0 | J154: 0 | K154: 0 | L154: 0 | M154: 21 | N154: 2 | O154: 2 | P154: 17 | Q154: 3 | R154: 0 | S154: 0 | T154: 3 | U154: 0 | V154: 0 | W154: 0 | X154: 0 | Y154: 0 | Z154: 0
A155: Полиатлон | B155: 149 | C155: 2725 | D155: 2607 | E155: 254 | F155: 346 | G155: 2007 | H155: 118 | I155: 1 | J155: 12 | K155: 105 | L155: 0 | M155: 1528 | N155: 98 | O155: 165 | P155: 1265 | Q155: 222 | R155: 9 | S155: 25 | T155: 188 | U155: 33 | V155: 0 | W155: 3 | X155: 30 | Y155: 0 | Z155: 19
A156: Практическая стрельба | B156: 150 | C156: 117 | D156: 111 | E156: 5 | F156: 15 | G156: 91 | H156: 6 | I156: 0 | J156: 2 | K156: 4 | L156: 0 | M156: 60 | N156: 2 | O156: 7 | P156: 51 | Q156: 13 | R156: 0 | S156: 3 | T156: 10 | U156: 4 | V156: 0 | W156: 1 | X156: 3 | Y156: 0 | Z156: 1
A157: Прыжки в воду | B157: 151 | C157: 2242 | D157: 2080 | E157: 354 | F157: 52 | G157: 1674 | H157: 162 | I157: 6 | J157: 11 | K157: 145 | L157: 0 | M157: 1245 | N157: 85 | O157: 27 | P157: 1133 | Q157: 185 | R157: 48 | S157: 0 | T157: 137 | U157: 28 | V157: 0 | W157: 0 | X157: 28 | Y157: 0 | Z157: 35
A158: Прыжки на батуте - всего | B158: 152 | C158: 9409 | D158: 9122 | E158: 834 | F158: 1025 | G158: 7263 | H158: 287 | I158: 6 | J158: 11 | K158: 270 | L158: 0 | M158: 6196 | N158: 264 | O158: 471 | P158: 5461 | Q158: 548 | R158: 63 | S158: 85 | T158: 400 | U158: 83 | V158: 0 | W158: 0 | X158: 83 | Y158: 0 | Z158: 47
A159: в том числе: Акробатическая дорожка | B159: 153 | C159: 3394 | D159: 3325 | E159: 227 | F159: 348 | G159: 2750 | H159: 69 | I159: 0 | J159: 1 | K159: 68 | L159: 0 | M159: 2434 | N159: 62 | O159: 183 | P159: 2189 | Q159: 114 | R159: 13 | S159: 15 | T159: 86 | U159: 25 | V159: 0 | W159: 0 | X159: 25 | Y159: 0 | Z159: 1
A160: Двойной минитрамп | B160: 154 | C160: 2238 | D160: 2161 | E160: 256 | F160: 264 | G160: 1641 | H160: 77 | I160: 3 | J160: 4 | K160: 70 | L160: 0 | M160: 1260 | N160: 102 | O160: 110 | P160: 1048 | Q160: 175 | R160: 16 | S160: 34 | T160: 125 | U160: 16 | V160: 0 | W160: 0 | X160: 16 | Y160: 0 | Z160: 17
A161: Индивидуальные прыжки | B161: 155 | C161: 3425 | D161: 3304 | E161: 283 | F161: 369 | G161: 2652 | H161: 121 | I161: 3 | J161: 6 | K161: 112 | L161: 0 | M161: 2303 | N161: 89 | O161: 167 | P161: 2047 | Q161: 215 | R161: 28 | S161: 32 | T161: 155 | U161: 34 | V161: 0 | W161: 0 | X161: 34 | Y161: 0 | Z161: 24
A162: Синхронные прыжки | B162: 156 | C162: 352 | D162: 332 | E162: 68 | F162: 44 | G162: 220 | H162: 20 | I162: 0 | J162: 0 | K162: 20 | L162: 0 | M162: 199 | N162: 11 | O162: 11 | P162: 177 | Q162: 44 | R162: 6 | S162: 4 | T162: 34 | U162: 8 | V162: 0 | W162: 0 | X162: 8 | Y162: 0 | Z162: 5
A163: Прыжки на лыжах с трамплина | B163: 157 | C163: 546 | D163: 497 | E163: 46 | F163: 78 | G163: 373 | H163: 49 | I163: 3 | J163: 9 | K163: 37 | L163: 0 | M163: 223 | N163: 19 | O163: 54 | P163: 150 | Q163: 24 | R163: 8 | S163: 3 | T163: 13 | U163: 5 | V163: 0 | W163: 0 | X163: 5 | Y163: 0 | Z163: 43
A164: Пулевая стрельба - всего | B164: 158 | C164: 8630 | D164: 8199 | E164: 933 | F164: 877 | G164: 6389 | H164: 431 | I164: 25 | J164: 69 | K164: 337 | L164: 0 | M164: 4796 | N164: 304 | O164: 481 | P164: 4011 | Q164: 635 | R164: 92 | S164: 92 | T164: 451 | U164: 91 | V164: 0 | W164: 2 | X164: 89 | Y164: 0 | Z164: 118
A165: в том числе: Пневматическая винтовка | B165: 159 | C165: 4185 | D165: 3993 | E165: 340 | F165: 312 | G165: 3341 | H165: 192 | I165: 6 | J165: 24 | K165: 162 | L165: 0 | M165: 2344 | N165: 122 | O165: 194 | P165: 2028 | Q165: 329 | R165: 33 | S165: 20 | T165: 276 | U165: 59 | V165: 0 | W165: 1 | X165: 58 | Y165: 0 | Z165: 23
A166: Пневматический пистолет | B166: 160 | C166: 2864 | D166: 2792 | E166: 277 | F166: 374 | G166: 2141 | H166: 72 | I166: 2 | J166: 9 | K166: 61 | L166: 0 | M166: 1719 | N166: 118 | O166: 195 | P166: 1406 | Q166: 174 | R166: 20 | S166: 48 | T166: 106 | U166: 6 | V166: 0 | W166: 0 | X166: 6 | Y166: 0 | Z166: 24
A167: Малокалиберная винтовка | B167: 161 | C167: 693 | D167: 605 | E167: 154 | F167: 66 | G167: 385 | H167: 88 | I167: 3 | J167: 15 | K167: 70 | L167: 0 | M167: 307 | N167: 36 | O167: 38 | P167: 233 | Q167: 43 | R167: 15 | S167: 1 | T167: 27 | U167: 20 | V167: 0 | W167: 1 | X167: 19 | Y167: 0 | Z167: 29
A168: Малокалиберный пистолет | B168: 162 | C168: 699 | D168: 646 | E168: 124 | F168: 103 | G168: 419 | H168: 53 | I168: 6 | J168: 17 | K168: 30 | L168: 0 | M168: 343 | N168: 19 | O168: 42 | P168: 282 | Q168: 83 | R168: 19 | S168: 23 | T168: 41 | U168: 2 | V168: 0 | W168: 0 | X168: 2 | Y168: 0 | Z168: 33
A169: Иные дисциплины вида спорта "пулевая стрельба" | B169: 163 | C169: 189 | D169: 163 | E169: 38 | F169: 22 | G169: 103 | H169: 26 | I169: 8 | J169: 4 | K169: 14 | L169: 0 | M169: 83 | N169: 9 | O169: 12 | P169: 62 | Q169: 6 | R169: 5 | S169: 0 | T169: 1 | U169: 4 | V169: 0 | W169: 0 | X169: 4 | Y169: 0 | Z169: 9
A170: Пэйнтбол | B170: 164 | C170: 15 | D170: 15 | E170: 0 | F170: 0 | G170: 15 | H170: 0 | I170: 0 | J170: 0 | K170: 0 | L170: 0 | M170: 5 | N170: 0 | O170: 0 | P170: 5 | Q170: 6 | R170: 0 | S170: 0 | T170: 6 | U170: 0 | V170: 0 | W170: 0 | X170: 0 | Y170: 0 | Z170: 0
A171: Радиоспорт | B171: 165 | C171: 276 | D171: 256 | E171: 33 | F171: 21 | G171: 202 | H171: 20 | I171: 0 | J171: 0 | K171: 20 | L171: 0 | M171: 129 | N171: 16 | O171: 11 | P171: 102 | Q171: 6 | R171: 1 | S171: 0 | T171: 5 | U171: 9 | V171: 0 | W171: 0 | X171: 9 | Y171: 0 | Z171: 0
A172: Рафтинг | B172: 166 | C172: 200 | D172: 162 | E172: 48 | F172: 23 | G172: 91 | H172: 38 | I172: 0 | J172: 2 | K172: 36 | L172: 0 | M172: 49 | N172: 7 | O172: 12 | P172: 30 | Q172: 2 | R172: 2 | S172: 0 | T172: 0 | U172: 6 | V172: 0 | W172: 0 | X172: 6 | Y172: 0 | Z172: 18
A173: Регби - всего | B173: 167 | C173: 5856 | D173: 5671 | E173: 875 | F173: 517 | G173: 4279 | H173: 185 | I173: 8 | J173: 8 | K173: 169 | L173: 0 | M173: 2802 | N173: 268 | O173: 278 | P173: 2256 | Q173: 351 | R173: 101 | S173: 64 | T173: 186 | U173: 44 | V173: 0 | W173: 0 | X173: 44 | Y173: 0 | Z173: 102
A174: в том числе: Регби | B174: 168 | C174: 4372 | D174: 4262 | E174: 528 | F174: 350 | G174: 3384 | H174: 110 | I174: 8 | J174: 5 | K174: 97 | L174: 0 | M174: 1966 | N174: 166 | O174: 192 | P174: 1608 | Q174: 258 | R174: 72 | S174: 54 | T174: 132 | U174: 15 | V174: 0 | W174: 0 | X174: 15 | Y174: 0 | Z174: 56
A175: Регби 7 (муж.) | B175: 169 | C175: 868 | D175: 843 | E175: 189 | F175: 103 | G175: 551 | H175: 25 | I175: 0 | J175: 0 | K175: 25 | L175: 0 | M175: 544 | N175: 68 | O175: 56 | P175: 420 | Q175: 52 | R175: 13 | S175: 6 | T175: 33 | U175: 11 | V175: 0 | W175: 0 | X175: 11 | Y175: 0 | Z175: 14
A176: Регби 7 (жен.) | B176: 170 | C176: 514 | D176: 488 | E176: 121 | F176: 37 | G176: 330 | H176: 26 | I176: 0 | J176: 3 | K176: 23 | L176: 0 | M176: 239 | N176: 22 | O176: 10 | P176: 207 | Q176: 34 | R176: 12 | S176: 1 | T176: 21 | U176: 12 | V176: 0 | W176: 0 | X176: 12 | Y176: 0 | Z176: 21
A177: Регби - пляжное | B177: 171 | C177: 52 | D177: 36 | E177: 19 | F177: 11 | G177: 6 | H177: 16 | I177: 0 | J177: 0 | K177: 16 | L177: 0 | M177: 21 | N177: 5 | O177: 9 | P177: 7 | Q177: 4 | R177: 3 | S177: 1 | T177: 0 | U177: 2 | V177: 0 | W177: 0 | X177: 2 | Y177: 0 | Z177: 6
A178: Регби на снегу | B178: 172 | C178: 50 | D178: 42 | E178: 18 | F178: 16 | G178: 8 | H178: 8 | I178: 0 | J178: 0 | K178: 8 | L178: 0 | M178: 32 | N178: 7 | O178: 11 | P178: 14 | Q178: 3 | R178: 1 | S178: 2 | T178: 0 | U178: 4 | V178: 0 | W178: 0 | X178: 4 | Y178: 0 | Z178: 5
A179: Регби бесконтактное | B179: 173 | C179: 0 | D179: 0 | E179: 0 | F179: 0 | G179: 0 | H179: 0 | I179: 0 | J179: 0 | K179: 0 | L179: 0 | M179: 0 | N179: 0 | O179: 0 | P179: 0 | Q179: 0 | R179: 0 | S179: 0 | T179: 0 | U179: 0 | V179: 0 | W179: 0 | X179: 0 | Y179: 0 | Z179: 0
A180: Регбол | B180: 174 | C180: 0 | D180: 0 | E180: 0 | F180: 0 | G180: 0 | H180: 0 | I180: 0 | J180: 0 | K180: 0 | L180: 0 | M180: 0 | N180: 0 | O180: 0 | P180: 0 | Q180: 0 | R180: 0 | S180: 0 | T180: 0 | U180: 0 | V180: 0 | W180: 0 | X180: 0 | Y180: 0 | Z180: 0
A181: Роллер спорт | B181: 175 | C181: 58 | D181: 57 | E181: 2 | F181: 1 | G181: 54 | H181: 1 | I181: 0 | J181: 0 | K181: 1 | L181: 0 | M181: 36 | N181: 2 | O181: 1 | P181: 33 | Q181: 0 | R181: 0 | S181: 0 | T181: 0 | U181: 0 | V181: 0 | W181: 0 | X181: 0 | Y181: 0 | Z181: 0
A182: Роуп скиппинг (спортивная скакалка) | B182: 176 | C182: 30 | D182: 30 | E182: 1 | F182: 0 | G182: 29 | H182: 0 | I182: 0 | J182: 0 | K182: 0 | L182: 0 | M182: 18 | N182: 0 | O182: 0 | P182: 18 | Q182: 0 | R182: 0 | S182: 0 | T182: 0 | U182: 0 | V182: 0 | W182: 0 | X182: 0 | Y182: 0 | Z182: 0
A183: Рукопашный бой | B183: 177 | C183: 6443 | D183: 6242 | E183: 646 | F183: 463 | G183: 5133 | H183: 201 | I183: 2 | J183: 9 | K183: 190 | L183: 0 | M183: 3299 | N183: 212 | O183: 225 | P183: 2862 | Q183: 329 | R183: 21 | S183: 31 | T183: 277 | U183: 32 | V183: 0 | W183: 0 | X183: 32 | Y183: 0 | Z183: 23
A184: Рыболовный спорт | B184: 178 | C184: 174 | D184: 174 | E184: 15 | F184: 10 | G184: 149 | H184: 0 | I184: 0 | J184: 0 | K184: 0 | L184: 0 | M184: 63 | N184: 6 | O184: 6 | P184: 51 | Q184: 1 | R184: 1 | S184: 0 | T184: 0 | U184: 1 | V184: 0 | W184: 0 | X184: 1 | Y184: 0 | Z184: 0
A185: Сават | B185: 179 | C185: 122 | D185: 121 | E185: 5 | F185: 8 | G185: 108 | H185: 1 | I185: 0 | J185: 0 | K185: 1 | L185: 0 | M185: 79 | N185: 1 | O185: 3 | P185: 75 | Q185: 18 | R185: 1 | S185: 0 | T185: 17 | U185: 1 | V185: 0 | W185: 0 | X185: 1 | Y185: 0 | Z185: 0
A186: Самбо | B186: 180 | C186: 36058 | D186: 34926 | E186: 3230 | F186: 1001 | G186: 30695 | H186: 1132 | I186: 48 | J186: 107 | K186: 977 | L186: 0 | M186: 18841 | N186: 1274 | O186: 493 | P186: 17074 | Q186: 2562 | R186: 312 | S186: 106 | T186: 2144 | U186: 279 | V186: 7 | W186: 21 | X186: 251 | Y186: 0 | Z186: 146
A187: Самолетный спорт | B187: 181 | C187: 0 | D187: 0 | E187: 0 | F187: 0 | G187: 0 | H187: 0 | I187: 0 | J187: 0 | K187: 0 | L187: 0 | M187: 0 | N187: 0 | O187: 0 | P187: 0 | Q187: 0 | R187: 0 | S187: 0 | T187: 0 | U187: 0 | V187: 0 | W187: 0 | X187: 0 | Y187: 0 | Z187: 0
A188: Санный спорт | B188: 182 | C188: 434 | D188: 378 | E188: 69 | F188: 83 | G188: 226 | H188: 56 | I188: 8 | J188: 8 | K188: 40 | L188: 0 | M188: 260 | N188: 19 | O188: 34 | P188: 207 | Q188: 23 | R188: 11 | S188: 10 | T188: 2 | U188: 4 | V188: 0 | W188: 0 | X188: 4 | Y188: 0 | Z188: 37
A189: Северное многоборье | B189: 183 | C189: 810 | D189: 772 | E189: 74 | F189: 105 | G189: 593 | H189: 38 | I189: 0 | J189: 0 | K189: 38 | L189: 0 | M189: 487 | N189: 18 | O189: 67 | P189: 402 | Q189: 46 | R189: 7 | S189: 6 | T189: 33 | U189: 10 | V189: 0 | W189: 0 | X189: 10 | Y189: 0 | Z189: 9
A190: Серфинг | B190: 184 | C190: 9 | D190: 8 | E190: 0 | F190: 2 | G190: 6 | H190: 1 | I190: 0 | J190: 0 | K190: 1 | L190: 0 | M190: 0 | N190: 0 | O190: 0 | P190: 0 | Q190: 0 | R190: 0 | S190: 0 | T190: 0 | U190: 0 | V190: 0 | W190: 0 | X190: 0 | Y190: 0 | Z190: 0
A191: Силовой спорт | B191: 185 | C191: 0 | D191: 0 | E191: 0 | F191: 0 | G191: 0 | H191: 0 | I191: 0 | J191: 0 | K191: 0 | L191: 0 | M191: 0 | N191: 0 | O191: 0 | P191: 0 | Q191: 0 | R191: 0 | S191: 0 | T191: 0 | U191: 0 | V191: 0 | W191: 0 | X191: 0 | Y191: 0 | Z191: 0
A192: Силовой экстрим | B192: 186 | C192: 1 | D192: 1 | E192: 1 | F192: 0 | G192: 0 | H192: 0 | I192: 0 | J192: 0 | K192: 0 | L192: 0 | M192: 0 | N192: 0 | O192: 0 | P192: 0 | Q192: 0 | R192: 0 | S192: 0 | T192: 0 | U192: 0 | V192: 0 | W192: 0 | X192: 0 | Y192: 0 | Z192: 0
A193: Синхронное плавание | B193: 187 | C193: 4509 | D193: 3782 | E193: 914 | F193: 767 | G193: 2101 | H193: 727 | I193: 2 | J193: 23 | K193: 702 | L193: 0 | M193: 2581 | N193: 466 | O193: 562 | P193: 1553 | Q193: 204 | R193: 61 | S193: 54 | T193: 89 | U193: 338 | V193: 0 | W193: 7 | X193: 331 | Y193: 0 | Z193: 77
A194: Скалолазание - всего | B194: 188 | C194: 4058 | D194: 3980 | E194: 200 | F194: 550 | G194: 3230 | H194: 78 | I194: 1 | J194: 11 | K194: 66 | L194: 0 | M194: 2576 | N194: 53 | O194: 237 | P194: 2286 | Q194: 353 | R194: 28 | S194: 85 | T194: 240 | U194: 9 | V194: 0 | W194: 0 | X194: 9 | Y194: 0 | Z194: 27
A195: в том числе: Двоеборье | B195: 189 | C195: 1290 | D195: 1261 | E195: 87 | F195: 178 | G195: 996 | H195: 29 | I195: 1 | J195: 4 | K195: 24 | L195: 0 | M195: 882 | N195: 13 | O195: 77 | P195: 792 | Q195: 82 | R195: 5 | S195: 18 | T195: 59 | U195: 4 | V195: 0 | W195: 0 | X195: 4 | Y195: 0 | Z195: 9
A196: Лазание на скорость | B196: 190 | C196: 1275 | D196: 1252 | E196: 59 | F196: 166 | G196: 1027 | H196: 23 | I196: 0 | J196: 3 | K196: 20 | L196: 0 | M196: 858 | N196: 21 | O196: 77 | P196: 760 | Q196: 98 | R196: 11 | S196: 27 | T196: 60 | U196: 4 | V196: 0 | W196: 0 | X196: 4 | Y196: 0 | Z196: 15
A197: Иные дисциплины вида спорта "скалолазание" | B197: 191 | C197: 1493 | D197: 1467 | E197: 54 | F197: 206 | G197: 1207 | H197: 26 | I197: 0 | J197: 4 | K197: 22 | L197: 0 | M197: 836 | N197: 19 | O197: 83 | P197: 734 | Q197: 173 | R197: 12 | S197: 40 | T197: 121 | U197: 1 | V197: 0 | W197: 0 | X197: 1 | Y197: 0 | Z197: 3
A198: Сквош | B198: 192 | C198: 3 | D198: 3 | E198: 3 | F198: 0 | G198: 0 | H198: 0 | I198: 0 | J198: 0 | K198: 0 | L198: 0 | M198: 0 | N198: 0 | O198: 0 | P198: 0 | Q198: 1 | R198: 1 | S198: 0 | T198: 0 | U198: 0 | V198: 0 | W198: 0 | X198: 0 | Y198: 0 | Z198: 3
A199: Скейтбординг | B199: 193 | C199: 53 | D199: 50 | E199: 3 | F199: 23 | G199: 24 | H199: 3 | I199: 0 | J199: 0 | K199: 3 | L199: 0 | M199: 22 | N199: 0 | O199: 4 | P199: 18 | Q199: 7 | R199: 0 | S199: 5 | T199: 2 | U199: 0 | V199: 0 | W199: 0 | X199: 0 | Y199: 0 | Z199: 1
A200: Служебно-боевая стрельба | B200: 194 | C200: 0 | D200: 0 | E200: 0 | F200: 0 | G200: 0 | H200: 0 | I200: 0 | J200: 0 | K200: 0 | L200: 0 | M200: 0 | N200: 0 | O200: 0 | P200: 0 | Q200: 0 | R200: 0 | S200: 0 | T200: 0 | U200: 0 | V200: 0 | W200: 0 | X200: 0 | Y200: 0 | Z200: 0
... 130 more rows

Sheet Раздел 5
B1: Раздел V. Обучающиеся – кандидаты в спортивные сборные команды Российской Федерации, человек
B2: Виды спорта | C2: № строки | D2: Всего кандидатов из численности обучающихся | E2: Из численности обучающихся (гр. 5 раздела II) – кандидаты, состоящие в списках спортивных сборных команд | AF2: Кандидаты, подготовленные в отчетном периоде
E3: Юношеский состав | N3: Юниорский состав | W3: Основной состав | AF3: Юношеский состав | AO3: Юниорский состав | AX3: Основной состав
E5: Всего по юношескому составу | F5: СШ | H5: СШОР | J5: УОР | L5: Другие | N5: Всего по юниорскому составу | O5: СШ | Q5: СШОР | S5: УОР | U5: Другие | W5: Всего по основному составу | X5: СШ | Z5: СШОР | AB5: УОР | AD5: Другие | AF5: Всего по юношескому составу | AG5: СШ | AI5: СШОР | AK5: УОР | AM5: Другие | AO5: Всего по юниорскому составу | AP5: СШ | AR5: СШОР | AT5: УОР | AV5: Другие | AX5: Всего по основному составу | AY5: СШ | BA5: СШОР | BC5: УОР | BE5: Другие
F6: основной | G6: резерв | H6: основной | I6: резерв | J6: основной | K6: резерв | L6: основной | M6: резерв | O6: основной | P6: резерв | Q6: основной | R6: резерв | S6: основной | T6: резерв | U6: основной | V6: резерв | X6: основной | Y6: резерв | Z6: основной | AA6: резерв | AB6: основной | AC6: резерв | AD6: основной | AE6: резерв | AG6: основной | AH6: резерв | AI6: основной | AJ6: резерв | AK6: основной | AL6: резерв | AM6: основной | AN6: резерв | AP6: основной | AQ6: резерв | AR6: основной | AS6: резерв | AT6: основной | AU6: резерв | AV6: основной | AW6: резерв | AY6: основной | AZ6: резерв | BA6: основной | BB6: резерв | BC6: основной | BD6: резерв | BE6: основной | BF6: резерв
B7: 1 | C7: 2 | D7: 3 | E7: 4 | F7: 5 | G7: 6 | H7: 7 | I7: 8 | J7: 9 | K7: 10 | L7: 11 | M7: 12 | N7: 13 | O7: 14 | P7: 15 | Q7: 16 | R7: 17 | S7: 18 | T7: 19 | U7: 20 | V7: 21 | W7: 22 | X7: 23 | Y7: 24 | Z7: 25 | AA7: 26 | AB7: 27 | AC7: 28 | AD7: 29 | AE7: 30 | AF7: 31 | AG7: 32 | AH7: 33 | AI7: 34 | AJ7: 35 | AK7: 36 | AL7: 37 | AM7: 38 | AN7: 39 | AO7: 40 | AP7: 41 | AQ7: 42 | AR7: 43 | AS7: 44 | AT7: 45 | AU7: 46 | AV7: 47 | AW7: 48 | AX7: 49 | AY7: 50 | AZ7: 51 | BA7: 52 | BB7: 53 | BC7: 54 | BD7: 55 | BE7: 56 | BF7: 57
B8: Авиамодельный спорт | C8: 01 | D8: =SUM(E8,N8,W8) -> 7 | E8: =SUM(F8:M8) -> 1 | F8: 1 | G8: 0 | H8: 0 | I8: 0 | J8: 0 | K8: 0 | L8: 0 | M8: 0 | N8: =SUM(O8:V8) -> 2 | O8: 2 | P8: 0 | Q8: 0 | R8: 0 | S8: 0 | T8: 0 | U8: 0 | V8: 0 | W8: =SUM(X8:AE8) -> 4 | X8: 4 | Y8: 0 | Z8: 0 | AA8: 0 | AB8: 0 | AC8: 0 | AD8: 0 | AE8: 0 | AF8: =SUM(AG8:AN8) -> 1 | AG8: 1 | AH8: 0 | AI8: 0 | AJ8: 0 | AK8: 0 | AL8: 0 | AM8: 0 | AN8: 0 | AO8: =SUM(AP8:AW8) -> 2 | AP8: 2 | AQ8: 0 | AR8: 0 | AS8: 0 | AT8: 0 | AU8: 0 | AV8: 0 | AW8: 0 | AX8: =SUM(AY8:BF8) -> 4 | AY8: 4 | AZ8: 0 | BA8: 0 | BB8: 0 | BC8: 0 | BD8: 0 | BE8: 0 | BF8: 0
B9: Авиационные гонки | C9: 02 | D9: =SUM(E9,N9,W9) -> 0 | E9: =SUM(F9:M9) -> 0 | F9: 0 | G9: 0 | H9: 0 | I9: 0 | J9: 0 | K9: 0 | L9: 0 | M9: 0 | N9: =SUM(O9:V9) -> 0 | O9: 0 | P9: 0 | Q9: 0 | R9: 0 | S9: 0 | T9: 0 | U9: 0 | V9: 0 | W9: =SUM(X9:AE9) -> 0 | X9: 0 | Y9: 0 | Z9: 0 | AA9: 0 | AB9: 0 | AC9: 0 | AD9: 0 | AE9: 0 | AF9: =SUM(AG9:AN9) -> 0 | AG9: 0 | AH9: 0 | AI9: 0 | AJ9: 0 | AK9: 0 | AL9: 0 | AM9: 0 | AN9: 0 | AO9: =SUM(AP9:AW9) -> 0 | AP9: 0 | AQ9: 0 | AR9: 0 | AS9: 0 | AT9: 0 | AU9: 0 | AV9: 0 | AW9: 0 | AX9: =SUM(AY9:BF9) -> 0 | AY9: 0 | AZ9: 0 | BA9: 0 | BB9: 0 | BC9: 0 | BD9: 0 | BE9: 0 | BF9: 0
B10: Автомобильный спорт | C10: 03 | D10: 0 | E10: 0 | F10: 0 | G10: 0 | H10: 0 | I10: 0 | J10: 0 | K10: 0 | L10: 0 | M10: 0 | N10: 0 | O10: 0 | P10: 0 | Q10: 0 | R10: 0 | S10: 0 | T10: 0 | U10: 0 | V10: 0 | W10: 0 | X10: 0 | Y10: 0 | Z10: 0 | AA10: 0 | AB10: 0 | AC10: 0 | AD10: 0 | AE10: 0 | AF10: 0 | AG10: 0 | AH10: 0 | AI10: 0 | AJ10: 0 | AK10: 0 | AL10: 0 | AM10: 0 | AN10: 0 | AO10: 0 | AP10: 0 | AQ10: 0 | AR10: 0 | AS10: 0 | AT10: 0 | AU10: 0 | AV10: 0 | AW10: 0 | AX10: 0 | AY10: 0 | AZ10: 0 | BA10: 0 | BB10: 0 | BC10: 0 | BD10: 0 | BE10: 0 | BF10: 0
B11: Автомодельный спорт | C11: 04 | D11: 0 | E11: 0 | F11: 0 | G11: 0 | H11: 0 | I11: 0 | J11: 0 | K11: 0 | L11: 0 | M11: 0 | N11: 0 | O11: 0 | P11: 0 | Q11: 0 | R11: 0 | S11: 0 | T11: 0 | U11: 0 | V11: 0 | W11: 0 | X11: 0 | Y11: 0 | Z11: 0 | AA11: 0 | AB11: 0 | AC11: 0 | AD11: 0 | AE11: 0 | AF11: 0 | AG11: 0 | AH11: 0 | AI11: 0 | AJ11: 0 | AK11: 0 | AL11: 0 | AM11: 0 | AN11: 0 | AO11: 0 | AP11: 0 | AQ11: 0 | AR11: 0 | AS11: 0 | AT11: 0 | AU11: 0 | AV11: 0 | AW11: 0 | AX11: 0 | AY11: 0 | AZ11: 0 | BA11: 0 | BB11: 0 | BC11: 0 | BD11: 0 | BE11: 0 | BF11: 0
B12: Айкидо | C12: 05 | D12: 15 | E12: 4 | F12: 0 | G12: 2 | H12: 2 | I12: 0 | J12: 0 | K12: 0 | L12: 0 | M12: 0 | N12: 5 | O12: 4 | P12: 0 | Q12: 1 | R12: 0 | S12: 0 | T12: 0 | U12: 0 | V12: 0 | W12: 6 | X12: 5 | Y12: 1 | Z12: 0 | AA12: 0 | AB12: 0 | AC12: 0 | AD12: 0 | AE12: 0 | AF12: 4 | AG12: 0 | AH12: 2 | AI12: 2 | AJ12: 0 | AK12: 0 | AL12: 0 | AM12: 0 | AN12: 0 | AO12: 7 | AP12: 6 | AQ12: 0 | AR12: 1 | AS12: 0 | AT12: 0 | AU12: 0 | AV12: 0 | AW12: 0 | AX12: 6 | AY12: 5 | AZ12: 1 | BA12: 0 | BB12: 0 | BC12: 0 | BD12: 0 | BE12: 0 | BF12: 0
B13: Акробатический рок-н-ролл | C13: 06 | D13: 297 | E13: 49 | F13: 29 | G13: 4 | H13: 16 | I13: 0 | J13: 0 | K13: 0 | L13: 0 | M13: 0 | N13: 72 | O13: 39 | P13: 15 | Q13: 2 | R13: 16 | S13: 0 | T13: 0 | U13: 0 | V13: 0 | W13: 176 | X13: 115 | Y13: 56 | Z13: 4 | AA13: 1 | AB13: 0 | AC13: 0 | AD13: 0 | AE13: 0 | AF13: 25 | AG13: 18 | AH13: 4 | AI13: 3 | AJ13: 0 | AK13: 0 | AL13: 0 | AM13: 0 | AN13: 0 | AO13: 33 | AP13: 16 | AQ13: 15 | AR13: 1 | AS13: 1 | AT13: 0 | AU13: 0 | AV13: 0 | AW13: 0 | AX13: 52 | AY13: 48 | AZ13: 2 | BA13: 2 | BB13: 0 | BC13: 0 | BD13: 0 | BE13: 0 | BF13: 0
B14: Альпинизм - всего | C14: 07 | D14: 54 | E14: 10 | F14: 0 | G14: 0 | H14: 10 | I14: 0 | J14: 0 | K14: 0 | L14: 0 | M14: 0 | N14: 12 | O14: 0 | P14: 0 | Q14: 12 | R14: 0 | S14: 0 | T14: 0 | U14: 0 | V14: 0 | W14: 32 | X14: 2 | Y14: 0 | Z14: 29 | AA14: 1 | AB14: 0 | AC14: 0 | AD14: 0 | AE14: 0 | AF14: 8 | AG14: 1 | AH14: 0 | AI14: 7 | AJ14: 0 | AK14: 0 | AL14: 0 | AM14: 0 | AN14: 0 | AO14: 1 | AP14: 0 | AQ14: 0 | AR14: 1 | AS14: 0 | AT14: 0 | AU14: 0 | AV14: 0 | AW14: 0 | AX14: 6 | AY14: 2 | AZ14: 0 | BA14: 4 | BB14: 0 | BC14: 0 | BD14: 0 | BE14: 0 | BF14: 0
B15: в том числе: Ски-альпинизм | C15: 08 | D15: 16 | E15: 3 | F15: 0 | G15: 0 | H15: 3 | I15: 0 | J15: 0 | K15: 0 | L15: 0 | M15: 0 | N15: 2 | O15: 0 | P15: 0 | Q15: 2 | R15: 0 | S15: 0 | T15: 0 | U15: 0 | V15: 0 | W15: 11 | X15: 2 | Y15: 0 | Z15: 8 | AA15: 1 | AB15: 0 | AC15: 0 | AD15: 0 | AE15: 0 | AF15: 1 | AG15: 0 | AH15: 0 | AI15: 1 | AJ15: 0 | AK15: 0 | AL15: 0 | AM15: 0 | AN15: 0 | AO15: 0 | AP15: 0 | AQ15: 0 | AR15: 0 | AS15: 0 | AT15: 0 | AU15: 0 | AV15: 0 | AW15: 0 | AX15: 3 | AY15: 2 | AZ15: 0 | BA15: 1 | BB15: 0 | BC15: 0 | BD15: 0 | BE15: 0 | BF15: 0
B16: Иные дисциплины вида спорта "альпинизм" | C16: 09 | D16: 38 | E16: 7 | F16: 0 | G16: 0 | H16: 7 | I16: 0 | J16: 0 | K16: 0 | L16: 0 | M16: 0 | N16: 10 | O16: 0 | P16: 0 | Q16: 10 | R16: 0 | S16: 0 | T16: 0 | U16: 0 | V16: 0 | W16: 21 | X16: 0 | Y16: 0 | Z16: 21 | AA16: 0 | AB16: 0 | AC16: 0 | AD16: 0 | AE16: 0 | AF16: 7 | AG16: 1 | AH16: 0 | AI16: 6 | AJ16: 0 | AK16: 0 | AL16: 0 | AM16: 0 | AN16: 0 | AO16: 1 | AP16: 0 | AQ16: 0 | AR16: 1 | AS16: 0 | AT16: 0 | AU16: 0 | AV16: 0 | AW16: 0 | AX16: 3 | AY16: 0 | AZ16: 0 | BA16: 3 | BB16: 0 | BC16: 0 | BD16: 0 | BE16: 0 | BF16: 0
B17: Американский футбол | C17: 10 | D17: 0 | E17: 0 | F17: 0 | G17: 0 | H17: 0 | I17: 0 | J17: 0 | K17: 0 | L17: 0 | M17: 0 | N17: 0 | O17: 0 | P17: 0 | Q17: 0 | R17: 0 | S17: 0 | T17: 0 | U17: 0 | V17: 0 | W17: 0 | X17: 0 | Y17: 0 | Z17: 0 | AA17: 0 | AB17: 0 | AC17: 0 | AD17: 0 | AE17: 0 | AF17: 0 | AG17: 0 | AH17: 0 | AI17: 0 | AJ17: 0 | AK17: 0 | AL17: 0 | AM17: 0 | AN17: 0 | AO17: 0 | AP17: 0 | AQ17: 0 | AR17: 0 | AS17: 0 | AT17: 0 | AU17: 0 | AV17: 0 | AW17: 0 | AX17: 0 | AY17: 0 | AZ17: 0 | BA17: 0 | BB17: 0 | BC17: 0 | BD17: 0 | BE17: 0 | BF17: 0
B18: Армейский рукопашный бой | C18: 11 | D18: 0 | E18: 0 | F18: 0 | G18: 0 | H18: 0 | I18: 0 | J18: 0 | K18: 0 | L18: 0 | M18: 0 | N18: 0 | O18: 0 | P18: 0 | Q18: 0 | R18: 0 | S18: 0 | T18: 0 | U18: 0 | V18: 0 | W18: 0 | X18: 0 | Y18: 0 | Z18: 0 | AA18: 0 | AB18: 0 | AC18: 0 | AD18: 0 | AE18: 0 | AF18: 0 | AG18: 0 | AH18: 0 | AI18: 0 | AJ18: 0 | AK18: 0 | AL18: 0 | AM18: 0 | AN18: 0 | AO18: 0 | AP18: 0 | AQ18: 0 | AR18: 0 | AS18: 0 | AT18: 0 | AU18: 0 | AV18: 0 | AW18: 0 | AX18: 0 | AY18: 0 | AZ18: 0 | BA18: 0 | BB18: 0 | BC18: 0 | BD18: 0 | BE18: 0 | BF18: 0
B19: Армейское тактико-стрелковое многоборье | C19: 12 | D19: 0 | E19: 0 | F19: 0 | G19: 0 | H19: 0 | I19: 0 | J19: 0 | K19: 0 | L19: 0 | M19: 0 | N19: 0 | O19: 0 | P19: 0 | Q19: 0 | R19: 0 | S19: 0 | T19: 0 | U19: 0 | V19: 0 | W19: 0 | X19: 0 | Y19: 0 | Z19: 0 | AA19: 0 | AB19: 0 | AC19: 0 | AD19: 0 | AE19: 0 | AF19: 0 | AG19: 0 | AH19: 0 | AI19: 0 | AJ19: 0 | AK19: 0 | AL19: 0 | AM19: 0 | AN19: 0 | AO19: 0 | AP19: 0 | AQ19: 0 | AR19: 0 | AS19: 0 | AT19: 0 | AU19: 0 | AV19: 0 | AW19: 0 | AX19: 0 | AY19: 0 | AZ19: 0 | BA19: 0 | BB19: 0 | BC19: 0 | BD19: 0 | BE19: 0 | BF19: 0
B20: Армрестлинг | C20: 13 | D20: 139 | E20: 28 | F20: 22 | G20: 5 | H20: 1 | I20: 0 | J20: 0 | K20: 0 | L20: 0 | M20: 0 | N20: 58 | O20: 44 | P20: 9 | Q20: 2 | R20: 3 | S20: 0 | T20: 0 | U20: 0 | V20: 0 | W20: 53 | X20: 23 | Y20: 11 | Z20: 14 | AA20: 5 | AB20: 0 | AC20: 0 | AD20: 0 | AE20: 0 | AF20: 15 | AG20: 10 | AH20: 4 | AI20: 1 | AJ20: 0 | AK20: 0 | AL20: 0 | AM20: 0 | AN20: 0 | AO20: 24 | AP20: 18 | AQ20: 4 | AR20: 1 | AS20: 1 | AT20: 0 | AU20: 0 | AV20: 0 | AW20: 0 | AX20: 6 | AY20: 3 | AZ20: 1 | BA20: 0 | BB20: 2 | BC20: 0 | BD20: 0 | BE20: 0 | BF20: 0
B21: Бадминтон | C21: 14 | D21: 162 | E21: 65 | F21: 11 | G21: 0 | H21: 32 | I21: 17 | J21: 3 | K21: 0 | L21: 2 | M21: 0 | N21: 35 | O21: 7 | P21: 1 | Q21: 19 | R21: 0 | S21: 7 | T21: 0 | U21: 1 | V21: 0 | W21: 62 | X21: 3 | Y21: 6 | Z21: 17 | AA21: 27 | AB21: 0 | AC21: 7 | AD21: 0 | AE21: 2 | AF21: 21 | AG21: 7 | AH21: 0 | AI21: 10 | AJ21: 0 | AK21: 3 | AL21: 0 | AM21: 1 | AN21: 0 | AO21: 17 | AP21: 3 | AQ21: 0 | AR21: 12 | AS21: 0 | AT21: 2 | AU21: 0 | AV21: 0 | AW21: 0 | AX21: 17 | AY21: 0 | AZ21: 2 | BA21: 4 | BB21: 11 | BC21: 0 | BD21: 0 | BE21: 0 | BF21: 0
B22: Баскетбол - всего | C22: 15 | D22: 249 | E22: 62 | F22: 3 | G22: 2 | H22: 5 | I22: 51 | J22: 1 | K22: 0 | L22: 0 | M22: 0 | N22: 159 | O22: 12 | P22: 8 | Q22: 70 | R22: 25 | S22: 23 | T22: 8 | U22: 12 | V22: 1 | W22: 28 | X22: 0 | Y22: 0 | Z22: 16 | AA22: 7 | AB22: 0 | AC22: 3 | AD22: 2 | AE22: 0 | AF22: 65 | AG22: 0 | AH22: 4 | AI22: 3 | AJ22: 58 | AK22: 0 | AL22: 0 | AM22: 0 | AN22: 0 | AO22: 68 | AP22: 9 | AQ22: 4 | AR22: 33 | AS22: 6 | AT22: 3 | AU22: 1 | AV22: 12 | AW22: 0 | AX22: 2 | AY22: 0 | AZ22: 0 | BA22: 0 | BB22: 0 | BC22: 0 | BD22: 0 | BE22: 2 | BF22: 0
B23: в том числе: Баскетбол (муж.) | C23: 16 | D23: 135 | E23: 43 | F23: 2 | G23: 2 | H23: 3 | I23: 35 | J23: 1 | K23: 0 | L23: 0 | M23: 0 | N23: 84 | O23: 12 | P23: 7 | Q23: 28 | R23: 13 | S23: 10 | T23: 4 | U23: 10 | V23: 0 | W23: 8 | X23: 0 | Y23: 0 | Z23: 2 | AA23: 4 | AB23: 0 | AC23: 0 | AD23: 2 | AE23: 0 | AF23: 38 | AG23: 0 | AH23: 4 | AI23: 2 | AJ23: 32 | AK23: 0 | AL23: 0 | AM23: 0 | AN23: 0 | AO23: 50 | AP23: 8 | AQ23: 2 | AR23: 21 | AS23: 5 | AT23: 3 | AU23: 1 | AV23: 10 | AW23: 0 | AX23: 2 | AY23: 0 | AZ23: 0 | BA23: 0 | BB23: 0 | BC23: 0 | BD23: 0 | BE23: 2 | BF23: 0
B24: Баскетбол (жен.) | C24: 17 | D24: 110 | E24: 19 | F24: 1 | G24: 0 | H24: 2 | I24: 16 | J24: 0 | K24: 0 | L24: 0 | M24: 0 | N24: 73 | O24: 0 | P24: 1 | Q24: 41 | R24: 12 | S24: 13 | T24: 4 | U24: 2 | V24: 0 | W24: 18 | X24: 0 | Y24: 0 | Z24: 12 | AA24: 3 | AB24: 0 | AC24: 3 | AD24: 0 | AE24: 0 | AF24: 27 | AG24: 0 | AH24: 0 | AI24: 1 | AJ24: 26 | AK24: 0 | AL24: 0 | AM24: 0 | AN24: 0 | AO24: 15 | AP24: 0 | AQ24: 1 | AR24: 11 | AS24: 1 | AT24: 0 | AU24: 0 | AV24: 2 | AW24: 0 | AX24: 0 | AY24: 0 | AZ24: 0 | BA24: 0 | BB24: 0 | BC24: 0 | BD24: 0 | BE24: 0 | BF24: 0
B25: Баскетбол 3х3 | C25: 18 | D25: 4 | E25: 0 | F25: 0 | G25: 0 | H25: 0 | I25: 0 | J25: 0 | K25: 0 | L25: 0 | M25: 0 | N25: 2 | O25: 0 | P25: 0 | Q25: 1 | R25: 0 | S25: 0 | T25: 0 | U25: 0 | V25: 1 | W25: 2 | X25: 0 | Y25: 0 | Z25: 2 | AA25: 0 | AB25: 0 | AC25: 0 | AD25: 0 | AE25: 0 | AF25: 0 | AG25: 0 | AH25: 0 | AI25: 0 | AJ25: 0 | AK25: 0 | AL25: 0 | AM25: 0 | AN25: 0 | AO25: 3 | AP25: 1 | AQ25: 1 | AR25: 1 | AS25: 0 | AT25: 0 | AU25: 0 | AV25: 0 | AW25: 0 | AX25: 0 | AY25: 0 | AZ25: 0 | BA25: 0 | BB25: 0 | BC25: 0 | BD25: 0 | BE25: 0 | BF25: 0
B26: Интерактивный баскетбол | C26: 19 | D26: 0 | E26: 0 | F26: 0 | G26: 0 | H26: 0 | I26: 0 | J26: 0 | K26: 0 | L26: 0 | M26: 0 | N26: 0 | O26: 0 | P26: 0 | Q26: 0 | R26: 0 | S26: 0 | T26: 0 | U26: 0 | V26: 0 | W26: 0 | X26: 0 | Y26: 0 | Z26: 0 | AA26: 0 | AB26: 0 | AC26: 0 | AD26: 0 | AE26: 0 | AF26: 0 | AG26: 0 | AH26: 0 | AI26: 0 | AJ26: 0 | AK26: 0 | AL26: 0 | AM26: 0 | AN26: 0 | AO26: 0 | AP26: 0 | AQ26: 0 | AR26: 0 | AS26: 0 | AT26: 0 | AU26: 0 | AV26: 0 | AW26: 0 | AX26: 0 | AY26: 0 | AZ26: 0 | BA26: 0 | BB26: 0 | BC26: 0 | BD26: 0 | BE26: 0 | BF26: 0
B27: Иные дисциплины вида спорта "баскетбол" | C27: 20 | D27: 0 | E27: 0 | F27: 0 | G27: 0 | H27: 0 | I27: 0 | J27: 0 | K27: 0 | L27: 0 | M27: 0 | N27: 0 | O27: 0 | P27: 0 | Q27: 0 | R27: 0 | S27: 0 | T27: 0 | U27: 0 | V27: 0 | W27: 0 | X27: 0 | Y27: 0 | Z27: 0 | AA27: 0 | AB27: 0 | AC27: 0 | AD27: 0 | AE27: 0 | AF27: 0 | AG27: 0 | AH27: 0 | AI27: 0 | AJ27: 0 | AK27: 0 | AL27: 0 | AM27: 0 | AN27: 0 | AO27: 0 | AP27: 0 | AQ27: 0 | AR27: 0 | AS27: 0 | AT27: 0 | AU27: 0 | AV27: 0 | AW27: 0 | AX27: 0 | AY27: 0 | AZ27: 0 | BA27: 0 | BB27: 0 | BC27: 0 | BD27: 0 | BE27: 0 | BF27: 0
B28: Бейсбол | C28: 21 | D28: 213 | E28: 66 | F28: 0 | G28: 6 | H28: 49 | I28: 11 | J28: 0 | K28: 0 | L28: 0 | M28: 0 | N28: 77 | O28: 2 | P28: 4 | Q28: 60 | R28: 11 | S28: 0 | T28: 0 | U28: 0 | V28: 0 | W28: 70 | X28: 1 | Y28: 7 | Z28: 31 | AA28: 31 | AB28: 0 | AC28: 0 | AD28: 0 | AE28: 0 | AF28: 12 | AG28: 0 | AH28: 6 | AI28: 6 | AJ28: 0 | AK28: 0 | AL28: 0 | AM28: 0 | AN28: 0 | AO28: 15 | AP28: 0 | AQ28: 0 | AR28: 14 | AS28: 1 | AT28: 0 | AU28: 0 | AV28: 0 | AW28: 0 | AX28: 3 | AY28: 0 | AZ28: 0 | BA28: 3 | BB28: 0 | BC28: 0 | BD28: 0 | BE28: 0 | BF28: 0
B29: Биатлон | C29: 22 | D29: 99 | E29: 37 | F29: 6 | G29: 2 | H29: 13 | I29: 11 | J29: 5 | K29: 0 | L29: 0 | M29: 0 | N29: 24 | O29: 1 | P29: 2 | Q29: 9 | R29: 6 | S29: 5 | T29: 1 | U29: 0 | V29: 0 | W29: 38 | X29: 2 | Y29: 0 | Z29: 19 | AA29: 11 | AB29: 4 | AC29: 1 | AD29: 1 | AE29: 0 | AF29: 25 | AG29: 1 | AH29: 1 | AI29: 11 | AJ29: 9 | AK29: 2 | AL29: 1 | AM29: 0 | AN29: 0 | AO29: 19 | AP29: 0 | AQ29: 1 | AR29: 6 | AS29: 8 | AT29: 4 | AU29: 0 | AV29: 0 | AW29: 0 | AX29: 13 | AY29: 0 | AZ29: 0 | BA29: 4 | BB29: 6 | BC29: 3 | BD29: 0 | BE29: 0 | BF29: 0
B30: Бильярдный спорт | C30: 23 | D30: 71 | E30: 14 | F30: 9 | G30: 3 | H30: 2 | I30: 0 | J30: 0 | K30: 0 | L30: 0 | M30: 0 | N30: 29 | O30: 8 | P30: 3 | Q30: 14 | R30: 4 | S30: 0 | T30: 0 | U30: 0 | V30: 0 | W30: 28 | X30: 2 | Y30: 1 | Z30: 21 | AA30: 4 | AB30: 0 | AC30: 0 | AD30: 0 | AE30: 0 | AF30: 5 | AG30: 4 | AH30: 0 | AI30: 1 | AJ30: 0 | AK30: 0 | AL30: 0 | AM30: 0 | AN30: 0 | AO30: 4 | AP30: 3 | AQ30: 0 | AR30: 1 | AS30: 0 | AT30: 0 | AU30: 0 | AV30: 0 | AW30: 0 | AX30: 3 | AY30: 2 | AZ30: 0 | BA30: 0 | BB30: 1 | BC30: 0 | BD30: 0 | BE30: 0 | BF30: 0
B31: Бобслей - всего | C31: 24 | D31: 74 | E31: 0 | F31: 0 | G31: 0 | H31: 0 | I31: 0 | J31: 0 | K31: 0 | L31: 0 | M31: 0 | N31: 40 | O31: 1 | P31: 1 | Q31: 30 | R31: 6 | S31: 2 | T31: 0 | U31: 0 | V31: 0 | W31: 34 | X31: 2 | Y31: 0 | Z31: 22 | AA31: 7 | AB31: 0 | AC31: 0 | AD31: 3 | AE31: 0 | AF31: 0 | AG31: 0 | AH31: 0 | AI31: 0 | AJ31: 0 | AK31: 0 | AL31: 0 | AM31: 0 | AN31: 0 | AO31: 32 | AP31: 1 | AQ31: 1 | AR31: 25 | AS31: 5 | AT31: 0 | AU31: 0 | AV31: 0 | AW31: 0 | AX31: 12 | AY31: 2 | AZ31: 0 | BA31: 8 | BB31: 2 | BC31: 0 | BD31: 0 | BE31: 0 | BF31: 0
B32: в том числе: Скелетон | C32: 25 | D32: 27 | E32: 0 | F32: 0 | G32: 0 | H32: 0 | I32: 0 | J32: 0 | K32: 0 | L32: 0 | M32: 0 | N32: 11 | O32: 0 | P32: 0 | Q32: 9 | R32: 2 | S32: 0 | T32: 0 | U32: 0 | V32: 0 | W32: 16 | X32: 2 | Y32: 0 | Z32: 12 | AA32: 2 | AB32: 0 | AC32: 0 | AD32: 0 | AE32: 0 | AF32: 0 | AG32: 0 | AH32: 0 | AI32: 0 | AJ32: 0 | AK32: 0 | AL32: 0 | AM32: 0 | AN32: 0 | AO32: 7 | AP32: 0 | AQ32: 0 | AR32: 6 | AS32: 1 | AT32: 0 | AU32: 0 | AV32: 0 | AW32: 0 | AX32: 4 | AY32: 2 | AZ32: 0 | BA32: 2 | BB32: 0 | BC32: 0 | BD32: 0 | BE32: 0 | BF32: 0
B33: Экипаж | C33: 26 | D33: 40 | E33: 0 | F33: 0 | G33: 0 | H33: 0 | I33: 0 | J33: 0 | K33: 0 | L33: 0 | M33: 0 | N33: 27 | O33: 1 | P33: 1 | Q33: 19 | R33: 4 | S33: 2 | T33: 0 | U33: 0 | V33: 0 | W33: 13 | X33: 0 | Y33: 0 | Z33: 9 | AA33: 4 | AB33: 0 | AC33: 0 | AD33: 0 | AE33: 0 | AF33: 0 | AG33: 0 | AH33: 0 | AI33: 0 | AJ33: 0 | AK33: 0 | AL33: 0 | AM33: 0 | AN33: 0 | AO33: 25 | AP33: 1 | AQ33: 1 | AR33: 19 | AS33: 4 | AT33: 0 | AU33: 0 | AV33: 0 | AW33: 0 | AX33: 5 | AY33: 0 | AZ33: 0 | BA33: 4 | BB33: 1 | BC33: 0 | BD33: 0 | BE33: 0 | BF33: 0
B34: Монобоб | C34: 27 | D34: 1 | E34: 0 | F34: 0 | G34: 0 | H34: 0 | I34: 0 | J34: 0 | K34: 0 | L34: 0 | M34: 0 | N34: 1 | O34: 0 | P34: 0 | Q34: 1 | R34: 0 | S34: 0 | T34: 0 | U34: 0 | V34: 0 | W34: 0 | X34: 0 | Y34: 0 | Z34: 0 | AA34: 0 | AB34: 0 | AC34: 0 | AD34: 0 | AE34: 0 | AF34: 0 | AG34: 0 | AH34: 0 | AI34: 0 | AJ34: 0 | AK34: 0 | AL34: 0 | AM34: 0 | AN34: 0 | AO34: 0 | AP34: 0 | AQ34: 0 | AR34: 0 | AS34: 0 | AT34: 0 | AU34: 0 | AV34: 0 | AW34: 0 | AX34: 0 | AY34: 0 | AZ34: 0 | BA34: 0 | BB34: 0 | BC34: 0 | BD34: 0 | BE34: 0 | BF34: 0
B35: Иные дисциплины вида спорта "бобслей" | C35: 28 | D35: 6 | E35: 0 | F35: 0 | G35: 0 | H35: 0 | I35: 0 | J35: 0 | K35: 0 | L35: 0 | M35: 0 | N35: 1 | O35: 0 | P35: 0 | Q35: 1 | R35: 0 | S35: 0 | T35: 0 | U35: 0 | V35: 0 | W35: 5 | X35: 0 | Y35: 0 | Z35: 1 | AA35: 1 | AB35: 0 | AC35: 0 | AD35: 3 | AE35: 0 | AF35: 0 | AG35: 0 | AH35: 0 | AI35: 0 | AJ35: 0 | AK35: 0 | AL35: 0 | AM35: 0 | AN35: 0 | AO35: 0 | AP35: 0 | AQ35: 0 | AR35: 0 | AS35: 0 | AT35: 0 | AU35: 0 | AV35: 0 | AW35: 0 | AX35: 3 | AY35: 0 | AZ35: 0 | BA35: 2 | BB35: 1 | BC35: 0 | BD35: 0 | BE35: 0 | BF35: 0
B36: Бодибилдинг | C36: 29 | D36: 2 | E36: 0 | F36: 0 | G36: 0 | H36: 0 | I36: 0 | J36: 0 | K36: 0 | L36: 0 | M36: 0 | N36: 1 | O36: 0 | P36: 0 | Q36: 0 | R36: 1 | S36: 0 | T36: 0 | U36: 0 | V36: 0 | W36: 1 | X36: 1 | Y36: 0 | Z36: 0 | AA36: 0 | AB36: 0 | AC36: 0 | AD36: 0 | AE36: 0 | AF36: 0 | AG36: 0 | AH36: 0 | AI36: 0 | AJ36: 0 | AK36: 0 | AL36: 0 | AM36: 0 | AN36: 0 | AO36: 0 | AP36: 0 | AQ36: 0 | AR36: 0 | AS36: 0 | AT36: 0 | AU36: 0 | AV36: 0 | AW36: 0 | AX36: 0 | AY36: 0 | AZ36: 0 | BA36: 0 | BB36: 0 | BC36: 0 | BD36: 0 | BE36: 0 | BF36: 0
B37: Бокс | C37: 30 | D37: 907 | E37: 318 | F37: 69 | G37: 50 | H37: 101 | I37: 78 | J37: 4 | K37: 9 | L37: 5 | M37: 2 | N37: 371 | O37: 45 | P37: 38 | Q37: 137 | R37: 89 | S37: 19 | T37: 18 | U37: 12 | V37: 13 | W37: 218 | X37: 26 | Y37: 13 | Z37: 89 | AA37: 69 | AB37: 9 | AC37: 6 | AD37: 4 | AE37: 2 | AF37: 212 | AG37: 39 | AH37: 25 | AI37: 76 | AJ37: 58 | AK37: 0 | AL37: 5 | AM37: 5 | AN37: 4 | AO37: 185 | AP37: 27 | AQ37: 14 | AR37: 63 | AS37: 52 | AT37: 4 | AU37: 4 | AV37: 9 | AW37: 12 | AX37: 90 | AY37: 6 | AZ37: 5 | BA37: 30 | BB37: 46 | BC37: 0 | BD37: 0 | BE37: 1 | BF37: 2
B38: Борьба на поясах | C38: 31 | D38: 128 | E38: 36 | F38: 19 | G38: 7 | H38: 7 | I38: 3 | J38: 0 | K38: 0 | L38: 0 | M38: 0 | N38: 41 | O38: 19 | P38: 11 | Q38: 7 | R38: 2 | S38: 0 | T38: 0 | U38: 2 | V38: 0 | W38: 51 | X38: 31 | Y38: 4 | Z38: 11 | AA38: 5 | AB38: 0 | AC38: 0 | AD38: 0 | AE38: 0 | AF38: 27 | AG38: 13 | AH38: 5 | AI38: 4 | AJ38: 5 | AK38: 0 | AL38: 0 | AM38: 0 | AN38: 0 | AO38: 16 | AP38: 6 | AQ38: 4 | AR38: 4 | AS38: 2 | AT38: 0 | AU38: 0 | AV38: 0 | AW38: 0 | AX38: 17 | AY38: 10 | AZ38: 2 | BA38: 3 | BB38: 2 | BC38: 0 | BD38: 0 | BE38: 0 | BF38: 0
B39: Боулинг | C39: 32 | D39: 0 | E39: 0 | F39: 0 | G39: 0 | H39: 0 | I39: 0 | J39: 0 | K39: 0 | L39: 0 | M39: 0 | N39: 0 | O39: 0 | P39: 0 | Q39: 0 | R39: 0 | S39: 0 | T39: 0 | U39: 0 | V39: 0 | W39: 0 | X39: 0 | Y39: 0 | Z39: 0 | AA39: 0 | AB39: 0 | AC39: 0 | AD39: 0 | AE39: 0 | AF39: 0 | AG39: 0 | AH39: 0 | AI39: 0 | AJ39: 0 | AK39: 0 | AL39: 0 | AM39: 0 | AN39: 0 | AO39: 0 | AP39: 0 | AQ39: 0 | AR39: 0 | AS39: 0 | AT39: 0 | AU39: 0 | AV39: 0 | AW39: 0 | AX39: 0 | AY39: 0 | AZ39: 0 | BA39: 0 | BB39: 0 | BC39: 0 | BD39: 0 | BE39: 0 | BF39: 0
B40: Боулспорт | C40: 33 | D40: 0 | E40: 0 | F40: 0 | G40: 0 | H40: 0 | I40: 0 | J40: 0 | K40: 0 | L40: 0 | M40: 0 | N40: 0 | O40: 0 | P40: 0 | Q40: 0 | R40: 0 | S40: 0 | T40: 0 | U40: 0 | V40: 0 | W40: 0 | X40: 0 | Y40: 0 | Z40: 0 | AA40: 0 | AB40: 0 | AC40: 0 | AD40: 0 | AE40: 0 | AF40: 0 | AG40: 0 | AH40: 0 | AI40: 0 | AJ40: 0 | AK40: 0 | AL40: 0 | AM40: 0 | AN40: 0 | AO40: 0 | AP40: 0 | AQ40: 0 | AR40: 0 | AS40: 0 | AT40: 0 | AU40: 0 | AV40: 0 | AW40: 0 | AX40: 0 | AY40: 0 | AZ40: 0 | BA40: 0 | BB40: 0 | BC40: 0 | BD40: 0 | BE40: 0 | BF40: 0
B41: Брейкинг | C41: 34 | D41: 15 | E41: 5 | F41: 0 | G41: 0 | H41: 5 | I41: 0 | J41: 0 | K41: 0 | L41: 0 | M41: 0 | N41: 4 | O41: 1 | P41: 0 | Q41: 3 | R41: 0 | S41: 0 | T41: 0 | U41: 0 | V41: 0 | W41: 6 | X41: 0 | Y41: 0 | Z41: 5 | AA41: 1 | AB41: 0 | AC41: 0 | AD41: 0 | AE41: 0 | AF41: 5 | AG41: 0 | AH41: 0 | AI41: 5 | AJ41: 0 | AK41: 0 | AL41: 0 | AM41: 0 | AN41: 0 | AO41: 2 | AP41: 0 | AQ41: 0 | AR41: 2 | AS41: 0 | AT41: 0 | AU41: 0 | AV41: 0 | AW41: 0 | AX41: 6 | AY41: 0 | AZ41: 0 | BA41: 5 | BB41: 1 | BC41: 0 | BD41: 0 | BE41: 0 | BF41: 0
B42: Велосипедный спорт - всего | C42: 35 | D42: 569 | E42: 94 | F42: 5 | G42: 2 | H42: 39 | I42: 23 | J42: 12 | K42: 4 | L42: 6 | M42: 3 | N42: 300 | O42: 15 | P42: 3 | Q42: 126 | R42: 53 | S42: 60 | T42: 30 | U42: 10 | V42: 3 | W42: 175 | X42: 4 | Y42: 3 | Z42: 83 | AA42: 36 | AB42: 27 | AC42: 2 | AD42: 18 | AE42: 2 | AF42: 43 | AG42: 1 | AH42: 1 | AI42: 16 | AJ42: 14 | AK42: 4 | AL42: 4 | AM42: 3 | AN42: 0 | AO42: 112 | AP42: 6 | AQ42: 0 | AR42: 41 | AS42: 28 | AT42: 18 | AU42: 8 | AV42: 8 | AW42: 3 | AX42: 55 | AY42: 4 | AZ42: 1 | BA42: 23 | BB42: 22 | BC42: 2 | BD42: 3 | BE42: 0 | BF42: 0
B43: в том числе: BMX (гонка, эстафета) | C43: 36 | D43: 92 | E43: 31 | F43: 0 | G43: 0 | H43: 8 | I43: 17 | J43: 0 | K43: 2 | L43: 2 | M43: 2 | N43: 43 | O43: 0 | P43: 0 | Q43: 25 | R43: 7 | S43: 7 | T43: 3 | U43: 1 | V43: 0 | W43: 18 | X43: 0 | Y43: 0 | Z43: 12 | AA43: 3 | AB43: 1 | AC43: 0 | AD43: 2 | AE43: 0 | AF43: 17 | AG43: 0 | AH43: 0 | AI43: 4 | AJ43: 11 | AK43: 0 | AL43: 0 | AM43: 2 | AN43: 0 | AO43: 19 | AP43: 0 | AQ43: 0 | AR43: 12 | AS43: 5 | AT43: 2 | AU43: 0 | AV43: 0 | AW43: 0 | AX43: 8 | AY43: 0 | AZ43: 0 | BA43: 4 | BB43: 4 | BC43: 0 | BD43: 0 | BE43: 0 | BF43: 0
B44: BMX - фристайл | C44: 37 | D44: 28 | E44: 5 | F44: 1 | G44: 0 | H44: 2 | I44: 0 | J44: 2 | K44: 0 | L44: 0 | M44: 0 | N44: 14 | O44: 3 | P44: 0 | Q44: 7 | R44: 0 | S44: 4 | T44: 0 | U44: 0 | V44: 0 | W44: 9 | X44: 0 | Y44: 1 | Z44: 3 | AA44: 1 | AB44: 4 | AC44: 0 | AD44: 0 | AE44: 0 | AF44: 1 | AG44: 0 | AH44: 1 | AI44: 0 | AJ44: 0 | AK44: 0 | AL44: 0 | AM44: 0 | AN44: 0 | AO44: 2 | AP44: 0 | AQ44: 0 | AR44: 2 | AS44: 0 | AT44: 0 | AU44: 0 | AV44: 0 | AW44: 0 | AX44: 0 | AY44: 0 | AZ44: 0 | BA44: 0 | BB44: 0 | BC44: 0 | BD44: 0 | BE44: 0 | BF44: 0
B45: Маунтинбайк | C45: 38 | D45: 145 | E45: 41 | F45: 4 | G45: 1 | H45: 18 | I45: 6 | J45: 6 | K45: 2 | L45: 3 | M45: 1 | N45: 56 | O45: 7 | P45: 1 | Q45: 22 | R45: 13 | S45: 3 | T45: 6 | U45: 4 | V45: 0 | W45: 48 | X45: 3 | Y45: 1 | Z45: 25 | AA45: 6 | AB45: 6 | AC45: 0 | AD45: 5 | AE45: 2 | AF45: 11 | AG45: 1 | AH45: 0 | AI45: 5 | AJ45: 3 | AK45: 0 | AL45: 2 | AM45: 0 | AN45: 0 | AO45: 22 | AP45: 4 | AQ45: 0 | AR45: 4 | AS45: 6 | AT45: 1 | AU45: 4 | AV45: 3 | AW45: 0 | AX45: 13 | AY45: 3 | AZ45: 0 | BA45: 8 | BB45: 2 | BC45: 0 | BD45: 0 | BE45: 0 | BF45: 0
B46: Трек | C46: 39 | D46: 203 | E46: 13 | F46: 0 | G46: 0 | H46: 8 | I46: 0 | J46: 4 | K46: 0 | L46: 1 | M46: 0 | N46: 138 | O46: 0 | P46: 2 | Q46: 59 | R46: 24 | S46: 30 | T46: 17 | U46: 3 | V46: 3 | W46: 52 | X46: 0 | Y46: 0 | Z46: 28 | AA46: 17 | AB46: 7 | AC46: 0 | AD46: 0 | AE46: 0 | AF46: 11 | AG46: 0 | AH46: 0 | AI46: 4 | AJ46: 0 | AK46: 4 | AL46: 2 | AM46: 1 | AN46: 0 | AO46: 49 | AP46: 0 | AQ46: 0 | AR46: 17 | AS46: 14 | AT46: 8 | AU46: 4 | AV46: 3 | AW46: 3 | AX46: 26 | AY46: 0 | AZ46: 0 | BA46: 9 | BB46: 15 | BC46: 0 | BD46: 2 | BE46: 0 | BF46: 0
B47: Шоссе | C47: 40 | D47: 101 | E47: 4 | F47: 0 | G47: 1 | H47: 3 | I47: 0 | J47: 0 | K47: 0 | L47: 0 | M47: 0 | N47: 49 | O47: 5 | P47: 0 | Q47: 13 | R47: 9 | S47: 16 | T47: 4 | U47: 2 | V47: 0 | W47: 48 | X47: 1 | Y47: 1 | Z47: 15 | AA47: 9 | AB47: 9 | AC47: 2 | AD47: 11 | AE47: 0 | AF47: 3 | AG47: 0 | AH47: 0 | AI47: 3 | AJ47: 0 | AK47: 0 | AL47: 0 | AM47: 0 | AN47: 0 | AO47: 20 | AP47: 2 | AQ47: 0 | AR47: 6 | AS47: 3 | AT47: 7 | AU47: 0 | AV47: 2 | AW47: 0 | AX47: 8 | AY47: 1 | AZ47: 1 | BA47: 2 | BB47: 1 | BC47: 2 | BD47: 1 | BE47: 0 | BF47: 0
B48: Вертолетный спорт | C48: 41 | D48: 0 | E48: 0 | F48: 0 | G48: 0 | H48: 0 | I48: 0 | J48: 0 | K48: 0 | L48: 0 | M48: 0 | N48: 0 | O48: 0 | P48: 0 | Q48: 0 | R48: 0 | S48: 0 | T48: 0 | U48: 0 | V48: 0 | W48: 0 | X48: 0 | Y48: 0 | Z48: 0 | AA48: 0 | AB48: 0 | AC48: 0 | AD48: 0 | AE48: 0 | AF48: 0 | AG48: 0 | AH48: 0 | AI48: 0 | AJ48: 0 | AK48: 0 | AL48: 0 | AM48: 0 | AN48: 0 | AO48: 0 | AP48: 0 | AQ48: 0 | AR48: 0 | AS48: 0 | AT48: 0 | AU48: 0 | AV48: 0 | AW48: 0 | AX48: 0 | AY48: 0 | AZ48: 0 | BA48: 0 | BB48: 0 | BC48: 0 | BD48: 0 | BE48: 0 | BF48: 0
B49: Водное поло - всего | C49: 42 | D49: 178 | E49: 91 | F49: 0 | G49: 1 | H49: 60 | I49: 16 | J49: 10 | K49: 4 | L49: 0 | M49: 0 | N49: 56 | O49: 0 | P49: 0 | Q49: 28 | R49: 10 | S49: 10 | T49: 8 | U49: 0 | V49: 0 | W49: 31 | X49: 0 | Y49: 0 | Z49: 22 | AA49: 6 | AB49: 0 | AC49: 3 | AD49: 0 | AE49: 0 | AF49: 44 | AG49: 0 | AH49: 0 | AI49: 26 | AJ49: 8 | AK49: 7 | AL49: 3 | AM49: 0 | AN49: 0 | AO49: 18 | AP49: 0 | AQ49: 0 | AR49: 13 | AS49: 4 | AT49: 0 | AU49: 1 | AV49: 0 | AW49: 0 | AX49: 8 | AY49: 0 | AZ49: 0 | BA49: 6 | BB49: 1 | BC49: 0 | BD49: 1 | BE49: 0 | BF49: 0
B50: в том числе: Водное поло (муж.) | C50: 43 | D50: 98 | E50: 51 | F50: 0 | G50: 1 | H50: 35 | I50: 10 | J50: 3 | K50: 2 | L50: 0 | M50: 0 | N50: 36 | O50: 0 | P50: 0 | Q50: 19 | R50: 8 | S50: 5 | T50: 4 | U50: 0 | V50: 0 | W50: 11 | X50: 0 | Y50: 0 | Z50: 9 | AA50: 2 | AB50: 0 | AC50: 0 | AD50: 0 | AE50: 0 | AF50: 17 | AG50: 0 | AH50: 0 | AI50: 13 | AJ50: 3 | AK50: 1 | AL50: 0 | AM50: 0 | AN50: 0 | AO50: 10 | AP50: 0 | AQ50: 0 | AR50: 8 | AS50: 2 | AT50: 0 | AU50: 0 | AV50: 0 | AW50: 0 | AX50: 3 | AY50: 0 | AZ50: 0 | BA50: 2 | BB50: 1 | BC50: 0 | BD50: 0 | BE50: 0 | BF50: 0
B51: Водное поло (жен.) | C51: 44 | D51: 72 | E51: 35 | F51: 0 | G51: 0 | H51: 20 | I51: 6 | J51: 7 | K51: 2 | L51: 0 | M51: 0 | N51: 17 | O51: 0 | P51: 0 | Q51: 6 | R51: 2 | S51: 5 | T51: 4 | U51: 0 | V51: 0 | W51: 20 | X51: 0 | Y51: 0 | Z51: 13 | AA51: 4 | AB51: 0 | AC51: 3 | AD51: 0 | AE51: 0 | AF51: 23 | AG51: 0 | AH51: 0 | AI51: 9 | AJ51: 5 | AK51: 6 | AL51: 3 | AM51: 0 | AN51: 0 | AO51: 8 | AP51: 0 | AQ51: 0 | AR51: 5 | AS51: 2 | AT51: 0 | AU51: 1 | AV51: 0 | AW51: 0 | AX51: 5 | AY51: 0 | AZ51: 0 | BA51: 4 | BB51: 0 | BC51: 0 | BD51: 1 | BE51: 0 | BF51: 0
B52: Иные дисциплины вида спорта "водное поло" | C52: 45 | D52: 8 | E52: 5 | F52: 0 | G52: 0 | H52: 5 | I52: 0 | J52: 0 | K52: 0 | L52: 0 | M52: 0 | N52: 3 | O52: 0 | P52: 0 | Q52: 3 | R52: 0 | S52: 0 | T52: 0 | U52: 0 | V52: 0 | W52: 0 | X52: 0 | Y52: 0 | Z52: 0 | AA52: 0 | AB52: 0 | AC52: 0 | AD52: 0 | AE52: 0 | AF52: 4 | AG52: 0 | AH52: 0 | AI52: 4 | AJ52: 0 | AK52: 0 | AL52: 0 | AM52: 0 | AN52: 0 | AO52: 0 | AP52: 0 | AQ52: 0 | AR52: 0 | AS52: 0 | AT52: 0 | AU52: 0 | AV52: 0 | AW52: 0 | AX52: 0 | AY52: 0 | AZ52: 0 | BA52: 0 | BB52: 0 | BC52: 0 | BD52: 0 | BE52: 0 | BF52: 0
B53: Воднолыжный спорт | C53: 46 | D53: 55 | E53: 20 | F53: 8 | G53: 1 | H53: 11 | I53: 0 | J53: 0 | K53: 0 | L53: 0 | M53: 0 | N53: 12 | O53: 3 | P53: 0 | Q53: 7 | R53: 2 | S53: 0 | T53: 0 | U53: 0 | V53: 0 | W53: 23 | X53: 1 | Y53: 0 | Z53: 21 | AA53: 1 | AB53: 0 | AC53: 0 | AD53: 0 | AE53: 0 | AF53: 7 | AG53: 5 | AH53: 1 | AI53: 1 | AJ53: 0 | AK53: 0 | AL53: 0 | AM53: 0 | AN53: 0 | AO53: 8 | AP53: 3 | AQ53: 0 | AR53: 4 | AS53: 1 | AT53: 0 | AU53: 0 | AV53: 0 | AW53: 0 | AX53: 3 | AY53: 0 | AZ53: 0 | BA53: 3 | BB53: 0 | BC53: 0 | BD53: 0 | BE53: 0 | BF53: 0
B54: Водно-моторный спорт | C54: 47 | D54: 49 | E54: 20 | F54: 7 | G54: 0 | H54: 13 | I54: 0 | J54: 0 | K54: 0 | L54: 0 | M54: 0 | N54: 10 | O54: 5 | P54: 0 | Q54: 5 | R54: 0 | S54: 0 | T54: 0 | U54: 0 | V54: 0 | W54: 19 | X54: 3 | Y54: 0 | Z54: 16 | AA54: 0 | AB54: 0 | AC54: 0 | AD54: 0 | AE54: 0 | AF54: 3 | AG54: 2 | AH54: 0 | AI54: 1 | AJ54: 0 | AK54: 0 | AL54: 0 | AM54: 0 | AN54: 0 | AO54: 1 | AP54: 1 | AQ54: 0 | AR54: 0 | AS54: 0 | AT54: 0 | AU54: 0 | AV54: 0 | AW54: 0 | AX54: 1 | AY54: 1 | AZ54: 0 | BA54: 0 | BB54: 0 | BC54: 0 | BD54: 0 | BE54: 0 | BF54: 0
B55: Водно-спасательное многоборье | C55: 48 | D55: 0 | E55: 0 | F55: 0 | G55: 0 | H55: 0 | I55: 0 | J55: 0 | K55: 0 | L55: 0 | M55: 0 | N55: 0 | O55: 0 | P55: 0 | Q55: 0 | R55: 0 | S55: 0 | T55: 0 | U55: 0 | V55: 0 | W55: 0 | X55: 0 | Y55: 0 | Z55: 0 | AA55: 0 | AB55: 0 | AC55: 0 | AD55: 0 | AE55: 0 | AF55: 0 | AG55: 0 | AH55: 0 | AI55: 0 | AJ55: 0 | AK55: 0 | AL55: 0 | AM55: 0 | AN55: 0 | AO55: 0 | AP55: 0 | AQ55: 0 | AR55: 0 | AS55: 0 | AT55: 0 | AU55: 0 | AV55: 0 | AW55: 0 | AX55: 0 | AY55: 0 | AZ55: 0 | BA55: 0 | BB55: 0 | BC55: 0 | BD55: 0 | BE55: 0 | BF55: 0
B56: Военно-прикладной спорт | C56: 49 | D56: 0 | E56: 0 | F56: 0 | G56: 0 | H56: 0 | I56: 0 | J56: 0 | K56: 0 | L56: 0 | M56: 0 | N56: 0 | O56: 0 | P56: 0 | Q56: 0 | R56: 0 | S56: 0 | T56: 0 | U56: 0 | V56: 0 | W56: 0 | X56: 0 | Y56: 0 | Z56: 0 | AA56: 0 | AB56: 0 | AC56: 0 | AD56: 0 | AE56: 0 | AF56: 0 | AG56: 0 | AH56: 0 | AI56: 0 | AJ56: 0 | AK56: 0 | AL56: 0 | AM56: 0 | AN56: 0 | AO56: 0 | AP56: 0 | AQ56: 0 | AR56: 0 | AS56: 0 | AT56: 0 | AU56: 0 | AV56: 0 | AW56: 0 | AX56: 0 | AY56: 0 | AZ56: 0 | BA56: 0 | BB56: 0 | BC56: 0 | BD56: 0 | BE56: 0 | BF56: 0
B57: Военно-спортивное многоборье | C57: 50 | D57: 0 | E57: 0 | F57: 0 | G57: 0 | H57: 0 | I57: 0 | J57: 0 | K57: 0 | L57: 0 | M57: 0 | N57: 0 | O57: 0 | P57: 0 | Q57: 0 | R57: 0 | S57: 0 | T57: 0 | U57: 0 | V57: 0 | W57: 0 | X57: 0 | Y57: 0 | Z57: 0 | AA57: 0 | AB57: 0 | AC57: 0 | AD57: 0 | AE57: 0 | AF57: 0 | AG57: 0 | AH57: 0 | AI57: 0 | AJ57: 0 | AK57: 0 | AL57: 0 | AM57: 0 | AN57: 0 | AO57: 0 | AP57: 0 | AQ57: 0 | AR57: 0 | AS57: 0 | AT57: 0 | AU57: 0 | AV57: 0 | AW57: 0 | AX57: 0 | AY57: 0 | AZ57: 0 | BA57: 0 | BB57: 0 | BC57: 0 | BD57: 0 | BE57: 0 | BF57: 0
B58: Воздухоплавательный спорт | C58: 51 | D58: 0 | E58: 0 | F58: 0 | G58: 0 | H58: 0 | I58: 0 | J58: 0 | K58: 0 | L58: 0 | M58: 0 | N58: 0 | O58: 0 | P58: 0 | Q58: 0 | R58: 0 | S58: 0 | T58: 0 | U58: 0 | V58: 0 | W58: 0 | X58: 0 | Y58: 0 | Z58: 0 | AA58: 0 | AB58: 0 | AC58: 0 | AD58: 0 | AE58: 0 | AF58: 0 | AG58: 0 | AH58: 0 | AI58: 0 | AJ58: 0 | AK58: 0 | AL58: 0 | AM58: 0 | AN58: 0 | AO58: 0 | AP58: 0 | AQ58: 0 | AR58: 0 | AS58: 0 | AT58: 0 | AU58: 0 | AV58: 0 | AW58: 0 | AX58: 0 | AY58: 0 | AZ58: 0 | BA58: 0 | BB58: 0 | BC58: 0 | BD58: 0 | BE58: 0 | BF58: 0
B59: Воздушная гимнастика | C59: 52 | D59: 0 | E59: 0 | F59: 0 | G59: 0 | H59: 0 | I59: 0 | J59: 0 | K59: 0 | L59: 0 | M59: 0 | N59: 0 | O59: 0 | P59: 0 | Q59: 0 | R59: 0 | S59: 0 | T59: 0 | U59: 0 | V59: 0 | W59: 0 | X59: 0 | Y59: 0 | Z59: 0 | AA59: 0 | AB59: 0 | AC59: 0 | AD59: 0 | AE59: 0 | AF59: 0 | AG59: 0 | AH59: 0 | AI59: 0 | AJ59: 0 | AK59: 0 | AL59: 0 | AM59: 0 | AN59: 0 | AO59: 0 | AP59: 0 | AQ59: 0 | AR59: 0 | AS59: 0 | AT59: 0 | AU59: 0 | AV59: 0 | AW59: 0 | AX59: 0 | AY59: 0 | AZ59: 0 | BA59: 0 | BB59: 0 | BC59: 0 | BD59: 0 | BE59: 0 | BF59: 0
B60: Воздушно-силовая атлетика | C60: 53 | D60: 0 | E60: 0 | F60: 0 | G60: 0 | H60: 0 | I60: 0 | J60: 0 | K60: 0 | L60: 0 | M60: 0 | N60: 0 | O60: 0 | P60: 0 | Q60: 0 | R60: 0 | S60: 0 | T60: 0 | U60: 0 | V60: 0 | W60: 0 | X60: 0 | Y60: 0 | Z60: 0 | AA60: 0 | AB60: 0 | AC60: 0 | AD60: 0 | AE60: 0 | AF60: 0 | AG60: 0 | AH60: 0 | AI60: 0 | AJ60: 0 | AK60: 0 | AL60: 0 | AM60: 0 | AN60: 0 | AO60: 0 | AP60: 0 | AQ60: 0 | AR60: 0 | AS60: 0 | AT60: 0 | AU60: 0 | AV60: 0 | AW60: 0 | AX60: 0 | AY60: 0 | AZ60: 0 | BA60: 0 | BB60: 0 | BC60: 0 | BD60: 0 | BE60: 0 | BF60: 0
B61: Волейбол - всего | C61: 54 | D61: 152 | E61: 71 | F61: 9 | G61: 4 | H61: 36 | I61: 5 | J61: 7 | K61: 5 | L61: 4 | M61: 1 | N61: 68 | O61: 7 | P61: 3 | Q61: 23 | R61: 15 | S61: 8 | T61: 8 | U61: 4 | V61: 0 | W61: 13 | X61: 0 | Y61: 0 | Z61: 8 | AA61: 3 | AB61: 0 | AC61: 0 | AD61: 1 | AE61: 1 | AF61: 43 | AG61: 1 | AH61: 2 | AI61: 23 | AJ61: 4 | AK61: 4 | AL61: 6 | AM61: 3 | AN61: 0 | AO61: 14 | AP61: 0 | AQ61: 2 | AR61: 4 | AS61: 0 | AT61: 4 | AU61: 4 | AV61: 0 | AW61: 0 | AX61: 5 | AY61: 4 | AZ61: 0 | BA61: 0 | BB61: 1 | BC61: 0 | BD61: 0 | BE61: 0 | BF61: 0
B62: в том числе: Волейбол (муж.) | C62: 55 | D62: 53 | E62: 35 | F62: 3 | G62: 2 | H62: 18 | I62: 1 | J62: 2 | K62: 4 | L62: 4 | M62: 1 | N62: 14 | O62: 4 | P62: 0 | Q62: 1 | R62: 5 | S62: 0 | T62: 1 | U62: 3 | V62: 0 | W62: 4 | X62: 0 | Y62: 0 | Z62: 2 | AA62: 1 | AB62: 0 | AC62: 0 | AD62: 1 | AE62: 0 | AF62: 18 | AG62: 0 | AH62: 2 | AI62: 9 | AJ62: 1 | AK62: 1 | AL62: 3 | AM62: 2 | AN62: 0 | AO62: 0 | AP62: 0 | AQ62: 0 | AR62: 0 | AS62: 0 | AT62: 0 | AU62: 0 | AV62: 0 | AW62: 0 | AX62: 5 | AY62: 4 | AZ62: 0 | BA62: 0 | BB62: 1 | BC62: 0 | BD62: 0 | BE62: 0 | BF62: 0
B63: Волейбол (жен.) | C63: 56 | D63: 60 | E63: 26 | F63: 4 | G63: 0 | H63: 16 | I63: 4 | J63: 1 | K63: 1 | L63: 0 | M63: 0 | N63: 27 | O63: 2 | P63: 2 | Q63: 14 | R63: 6 | S63: 1 | T63: 2 | U63: 0 | V63: 0 | W63: 7 | X63: 0 | Y63: 0 | Z63: 6 | AA63: 1 | AB63: 0 | AC63: 0 | AD63: 0 | AE63: 0 | AF63: 20 | AG63: 1 | AH63: 0 | AI63: 14 | AJ63: 3 | AK63: 1 | AL63: 1 | AM63: 0 | AN63: 0 | AO63: 9 | AP63: 0 | AQ63: 2 | AR63: 4 | AS63: 0 | AT63: 1 | AU63: 2 | AV63: 0 | AW63: 0 | AX63: 0 | AY63: 0 | AZ63: 0 | BA63: 0 | BB63: 0 | BC63: 0 | BD63: 0 | BE63: 0 | BF63: 0
B64: Пляжный волейбол (муж.) | C64: 57 | D64: 24 | E64: 6 | F64: 2 | G64: 2 | H64: 1 | I64: 0 | J64: 1 | K64: 0 | L64: 0 | M64: 0 | N64: 17 | O64: 1 | P64: 1 | Q64: 4 | R64: 3 | S64: 4 | T64: 4 | U64: 0 | V64: 0 | W64: 1 | X64: 0 | Y64: 0 | Z64: 0 | AA64: 1 | AB64: 0 | AC64: 0 | AD64: 0 | AE64: 0 | AF64: 2 | AG64: 0 | AH64: 0 | AI64: 0 | AJ64: 0 | AK64: 1 | AL64: 1 | AM64: 0 | AN64: 0 | AO64: 5 | AP64: 0 | AQ64: 0 | AR64: 0 | AS64: 0 | AT64: 3 | AU64: 2 | AV64: 0 | AW64: 0 | AX64: 0 | AY64: 0 | AZ64: 0 | BA64: 0 | BB64: 0 | BC64: 0 | BD64: 0 | BE64: 0 | BF64: 0
B65: Пляжный волейбол (жен.) | C65: 58 | D65: 15 | E65: 4 | F65: 0 | G65: 0 | H65: 1 | I65: 0 | J65: 3 | K65: 0 | L65: 0 | M65: 0 | N65: 10 | O65: 0 | P65: 0 | Q65: 4 | R65: 1 | S65: 3 | T65: 1 | U65: 1 | V65: 0 | W65: 1 | X65: 0 | Y65: 0 | Z65: 0 | AA65: 0 | AB65: 0 | AC65: 0 | AD65: 0 | AE65: 1 | AF65: 3 | AG65: 0 | AH65: 0 | AI65: 0 | AJ65: 0 | AK65: 1 | AL65: 1 | AM65: 1 | AN65: 0 | AO65: 0 | AP65: 0 | AQ65: 0 | AR65: 0 | AS65: 0 | AT65: 0 | AU65: 0 | AV65: 0 | AW65: 0 | AX65: 0 | AY65: 0 | AZ65: 0 | BA65: 0 | BB65: 0 | BC65: 0 | BD65: 0 | BE65: 0 | BF65: 0
B66: Волейбол на снегу | C66: 59 | D66: 0 | E66: 0 | F66: 0 | G66: 0 | H66: 0 | I66: 0 | J66: 0 | K66: 0 | L66: 0 | M66: 0 | N66: 0 | O66: 0 | P66: 0 | Q66: 0 | R66: 0 | S66: 0 | T66: 0 | U66: 0 | V66: 0 | W66: 0 | X66: 0 | Y66: 0 | Z66: 0 | AA66: 0 | AB66: 0 | AC66: 0 | AD66: 0 | AE66: 0 | AF66: 0 | AG66: 0 | AH66: 0 | AI66: 0 | AJ66: 0 | AK66: 0 | AL66: 0 | AM66: 0 | AN66: 0 | AO66: 0 | AP66: 0 | AQ66: 0 | AR66: 0 | AS66: 0 | AT66: 0 | AU66: 0 | AV66: 0 | AW66: 0 | AX66: 0 | AY66: 0 | AZ66: 0 | BA66: 0 | BB66: 0 | BC66: 0 | BD66: 0 | BE66: 0 | BF66: 0
B67: Восточное боевое единоборство | C67: 60 | D67: 179 | E67: 80 | F67: 68 | G67: 0 | H67: 11 | I67: 1 | J67: 0 | K67: 0 | L67: 0 | M67: 0 | N67: 39 | O67: 37 | P67: 0 | Q67: 2 | R67: 0 | S67: 0 | T67: 0 | U67: 0 | V67: 0 | W67: 60 | X67: 52 | Y67: 3 | Z67: 5 | AA67: 0 | AB67: 0 | AC67: 0 | AD67: 0 | AE67: 0 | AF67: 52 | AG67: 50 | AH67: 2 | AI67: 0 | AJ67: 0 | AK67: 0 | AL67: 0 | AM67: 0 | AN67: 0 | AO67: 22 | AP67: 22 | AQ67: 0 | AR67: 0 | AS67: 0 | AT67: 0 | AU67: 0 | AV67: 0 | AW67: 0 | AX67: 36 | AY67: 32 | AZ67: 1 | BA67: 3 | BB67: 0 | BC67: 0 | BD67: 0 | BE67: 0 | BF67: 0
B68: Всестилевое каратэ | C68: 61 | D68: 145 | E68: 40 | F68: 32 | G68: 2 | H68: 6 | I68: 0 | J68: 0 | K68: 0 | L68: 0 | M68: 0 | N68: 42 | O68: 34 | P68: 3 | Q68: 5 | R68: 0 | S68: 0 | T68: 0 | U68: 0 | V68: 0 | W68: 63 | X68: 45 | Y68: 7 | Z68: 8 | AA68: 3 | AB68: 0 | AC68: 0 | AD68: 0 | AE68: 0 | AF68: 26 | AG68: 23 | AH68: 0 | AI68: 3 | AJ68: 0 | AK68: 0 | AL68: 0 | AM68: 0 | AN68: 0 | AO68: 23 | AP68: 20 | AQ68: 2 | AR68: 1 | AS68: 0 | AT68: 0 | AU68: 0 | AV68: 0 | AW68: 0 | AX68: 30 | AY68: 23 | AZ68: 3 | BA68: 4 | BB68: 0 | BC68: 0 | BD68: 0 | BE68: 0 | BF68: 0
B69: Гандбол - всего | C69: 62 | D69: 165 | E69: 72 | F69: 21 | G69: 4 | H69: 7 | I69: 3 | J69: 16 | K69: 21 | L69: 0 | M69: 0 | N69: 62 | O69: 6 | P69: 0 | Q69: 8 | R69: 11 | S69: 22 | T69: 15 | U69: 0 | V69: 0 | W69: 31 | X69: 1 | Y69: 0 | Z69: 15 | AA69: 8 | AB69: 1 | AC69: 6 | AD69: 0 | AE69: 0 | AF69: 8 | AG69: 4 | AH69: 0 | AI69: 1 | AJ69: 0 | AK69: 1 | AL69: 2 | AM69: 0 | AN69: 0 | AO69: 29 | AP69: 0 | AQ69: 0 | AR69: 6 | AS69: 10 | AT69: 4 | AU69: 9 | AV69: 0 | AW69: 0 | AX69: 11 | AY69: 0 | AZ69: 0 | BA69: 5 | BB69: 6 | BC69: 0 | BD69: 0 | BE69: 0 | BF69: 0
B70: в том числе: Гандбол (муж.) | C70: 63 | D70: 70 | E70: 28 | F70: 4 | G70: 0 | H70: 2 | I70: 3 | J70: 7 | K70: 12 | L70: 0 | M70: 0 | N70: 26 | O70: 2 | P70: 0 | Q70: 4 | R70: 1 | S70: 8 | T70: 11 | U70: 0 | V70: 0 | W70: 16 | X70: 1 | Y70: 0 | Z70: 7 | AA70: 3 | AB70: 1 | AC70: 4 | AD70: 0 | AE70: 0 | AF70: 1 | AG70: 0 | AH70: 0 | AI70: 0 | AJ70: 0 | AK70: 1 | AL70: 0 | AM70: 0 | AN70: 0 | AO70: 15 | AP70: 0 | AQ70: 0 | AR70: 2 | AS70: 0 | AT70: 4 | AU70: 9 | AV70: 0 | AW70: 0 | AX70: 5 | AY70: 0 | AZ70: 0 | BA70: 4 | BB70: 1 | BC70: 0 | BD70: 0 | BE70: 0 | BF70: 0
B71: Гандбол (жен.) | C71: 64 | D71: 95 | E71: 44 | F71: 17 | G71: 4 | H71: 5 | I71: 0 | J71: 9 | K71: 9 | L71: 0 | M71: 0 | N71: 36 | O71: 4 | P71: 0 | Q71: 4 | R71: 10 | S71: 14 | T71: 4 | U71: 0 | V71: 0 | W71: 15 | X71: 0 | Y71: 0 | Z71: 8 | AA71: 5 | AB71: 0 | AC71: 2 | AD71: 0 | AE71: 0 | AF71: 7 | AG71: 4 | AH71: 0 | AI71: 1 | AJ71: 0 | AK71: 0 | AL71: 2 | AM71: 0 | AN71: 0 | AO71: 14 | AP71: 0 | AQ71: 0 | AR71: 4 | AS71: 10 | AT71: 0 | AU71: 0 | AV71: 0 | AW71: 0 | AX71: 6 | AY71: 0 | AZ71: 0 | BA71: 1 | BB71: 5 | BC71: 0 | BD71: 0 | BE71: 0 | BF71: 0
B72: Пляжный гандбол | C72: 65 | D72: 0 | E72: 0 | F72: 0 | G72: 0 | H72: 0 | I72: 0 | J72: 0 | K72: 0 | L72: 0 | M72: 0 | N72: 0 | O72: 0 | P72: 0 | Q72: 0 | R72: 0 | S72: 0 | T72: 0 | U72: 0 | V72: 0 | W72: 0 | X72: 0 | Y72: 0 | Z72: 0 | AA72: 0 | AB72: 0 | AC72: 0 | AD72: 0 | AE72: 0 | AF72: 0 | AG72: 0 | AH72: 0 | AI72: 0 | AJ72: 0 | AK72: 0 | AL72: 0 | AM72: 0 | AN72: 0 | AO72: 0 | AP72: 0 | AQ72: 0 | AR72: 0 | AS72: 0 | AT72: 0 | AU72: 0 | AV72: 0 | AW72: 0 | AX72: 0 | AY72: 0 | AZ72: 0 | BA72: 0 | BB72: 0 | BC72: 0 | BD72: 0 | BE72: 0 | BF72: 0
B73: Гиревой спорт | C73: 66 | D73: =SUM(E73,N73,W73) -> 182 | E73: =SUM(F73:M73) -> 83 | F73: 49 | G73: 6 | H73: 19 | I73: 9 | J73: 0 | K73: 0 | L73: 0 | M73: 0 | N73: =SUM(O73:V73) -> 33 | O73: 13 | P73: 1 | Q73: 14 | R73: 5 | S73: 0 | T73: 0 | U73: 0 | V73: 0 | W73: =SUM(X73:AE73) -> 66 | X73: 18 | Y73: 3 | Z73: 33 | AA73: 11 | AB73: 0 | AC73: 0 | AD73: 1 | AE73: 0 | AF73: =SUM(AG73:AN73) -> 50 | AG73: 29 | AH73: 2 | AI73: 10 | AJ73: 9 | AK73: 0 | AL73: 0 | AM73: 0 | AN73: 0 | AO73: =SUM(AP73:AW73) -> 11 | AP73: 4 | AQ73: 0 | AR73: 5 | AS73: 2 | AT73: 0 | AU73: 0 | AV73: 0 | AW73: 0 | AX73: =SUM(AY73:BF73) -> 15 | AY73: 0 | AZ73: 0 | BA73: 10 | BB73: 5 | BC73: 0 | BD73: 0 | BE73: 0 | BF73: 0
B74: Го | C74: 67 | D74: 14 | E74: 1 | F74: 0 | G74: 0 | H74: 1 | I74: 0 | J74: 0 | K74: 0 | L74: 0 | M74: 0 | N74: 0 | O74: 0 | P74: 0 | Q74: 0 | R74: 0 | S74: 0 | T74: 0 | U74: 0 | V74: 0 | W74: 13 | X74: 3 | Y74: 0 | Z74: 10 | AA74: 0 | AB74: 0 | AC74: 0 | AD74: 0 | AE74: 0 | AF74: 1 | AG74: 0 | AH74: 0 | AI74: 1 | AJ74: 0 | AK74: 0 | AL74: 0 | AM74: 0 | AN74: 0 | AO74: 0 | AP74: 0 | AQ74: 0 | AR74: 0 | AS74: 0 | AT74: 0 | AU74: 0 | AV74: 0 | AW74: 0 | AX74: 2 | AY74: 0 | AZ74: 0 | BA74: 2 | BB74: 0 | BC74: 0 | BD74: 0 | BE74: 0 | BF74: 0
B75: Гольф | C75: 68 | D75: 40 | E75: 11 | F75: 0 | G75: 0 | H75: 4 | I75: 0 | J75: 5 | K75: 2 | L75: 0 | M75: 0 | N75: 4 | O75: 0 | P75: 0 | Q75: 3 | R75: 1 | S75: 0 | T75: 0 | U75: 0 | V75: 0 | W75: 25 | X75: 1 | Y75: 0 | Z75: 12 | AA75: 6 | AB75: 4 | AC75: 2 | AD75: 0 | AE75: 0 | AF75: 1 | AG75: 0 | AH75: 0 | AI75: 0 | AJ75: 0 | AK75: 1 | AL75: 0 | AM75: 0 | AN75: 0 | AO75: 1 | AP75: 0 | AQ75: 0 | AR75: 1 | AS75: 0 | AT75: 0 | AU75: 0 | AV75: 0 | AW75: 0 | AX75: 7 | AY75: 1 | AZ75: 0 | BA75: 4 | BB75: 2 | BC75: 0 | BD75: 0 | BE75: 0 | BF75: 0
B76: Гонки дронов (беспилотных воздушных судов) - всего | C76: 69 | D76: 2 | E76: 0 | F76: 0 | G76: 0 | H76: 0 | I76: 0 | J76: 0 | K76: 0 | L76: 0 | M76: 0 | N76: 2 | O76: 2 | P76: 0 | Q76: 0 | R76: 0 | S76: 0 | T76: 0 | U76: 0 | V76: 0 | W76: 0 | X76: 0 | Y76: 0 | Z76: 0 | AA76: 0 | AB76: 0 | AC76: 0 | AD76: 0 | AE76: 0 | AF76: 0 | AG76: 0 | AH76: 0 | AI76: 0 | AJ76: 0 | AK76: 0 | AL76: 0 | AM76: 0 | AN76: 0 | AO76: 0 | AP76: 0 | AQ76: 0 | AR76: 0 | AS76: 0 | AT76: 0 | AU76: 0 | AV76: 0 | AW76: 0 | AX76: 0 | AY76: 0 | AZ76: 0 | BA76: 0 | BB76: 0 | BC76: 0 | BD76: 0 | BE76: 0 | BF76: 0
B77: в том числе: Класс 75 мм | C77: 70 | D77: 2 | E77: 0 | F77: 0 | G77: 0 | H77: 0 | I77: 0 | J77: 0 | K77: 0 | L77: 0 | M77: 0 | N77: 2 | O77: 2 | P77: 0 | Q77: 0 | R77: 0 | S77: 0 | T77: 0 | U77: 0 | V77: 0 | W77: 0 | X77: 0 | Y77: 0 | Z77: 0 | AA77: 0 | AB77: 0 | AC77: 0 | AD77: 0 | AE77: 0 | AF77: 0 | AG77: 0 | AH77: 0 | AI77: 0 | AJ77: 0 | AK77: 0 | AL77: 0 | AM77: 0 | AN77: 0 | AO77: 0 | AP77: 0 | AQ77: 0 | AR77: 0 | AS77: 0 | AT77: 0 | AU77: 0 | AV77: 0 | AW77: 0 | AX77: 0 | AY77: 0 | AZ77: 0 | BA77: 0 | BB77: 0 | BC77: 0 | BD77: 0 | BE77: 0 | BF77: 0
B78: Класс 200 мм | C78: 71 | D78: 0 | E78: 0 | F78: 0 | G78: 0 | H78: 0 | I78: 0 | J78: 0 | K78: 0 | L78: 0 | M78: 0 | N78: 0 | O78: 0 | P78: 0 | Q78: 0 | R78: 0 | S78: 0 | T78: 0 | U78: 0 | V78: 0 | W78: 0 | X78: 0 | Y78: 0 | Z78: 0 | AA78: 0 | AB78: 0 | AC78: 0 | AD78: 0 | AE78: 0 | AF78: 0 | AG78: 0 | AH78: 0 | AI78: 0 | AJ78: 0 | AK78: 0 | AL78: 0 | AM78: 0 | AN78: 0 | AO78: 0 | AP78: 0 | AQ78: 0 | AR78: 0 | AS78: 0 | AT78: 0 | AU78: 0 | AV78: 0 | AW78: 0 | AX78: 0 | AY78: 0 | AZ78: 0 | BA78: 0 | BB78: 0 | BC78: 0 | BD78: 0 | BE78: 0 | BF78: 0
B79: Класс 330 мм | C79: 72 | D79: 0 | E79: 0 | F79: 0 | G79: 0 | H79: 0 | I79: 0 | J79: 0 | K79: 0 | L79: 0 | M79: 0 | N79: 0 | O79: 0 | P79: 0 | Q79: 0 | R79: 0 | S79: 0 | T79: 0 | U79: 0 | V79: 0 | W79: 0 | X79: 0 | Y79: 0 | Z79: 0 | AA79: 0 | AB79: 0 | AC79: 0 | AD79: 0 | AE79: 0 | AF79: 0 | AG79: 0 | AH79: 0 | AI79: 0 | AJ79: 0 | AK79: 0 | AL79: 0 | AM79: 0 | AN79: 0 | AO79: 0 | AP79: 0 | AQ79: 0 | AR79: 0 | AS79: 0 | AT79: 0 | AU79: 0 | AV79: 0 | AW79: 0 | AX79: 0 | AY79: 0 | AZ79: 0 | BA79: 0 | BB79: 0 | BC79: 0 | BD79: 0 | BE79: 0 | BF79: 0
B80: Технический симулятор | C80: 73 | D80: 0 | E80: 0 | F80: 0 | G80: 0 | H80: 0 | I80: 0 | J80: 0 | K80: 0 | L80: 0 | M80: 0 | N80: 0 | O80: 0 | P80: 0 | Q80: 0 | R80: 0 | S80: 0 | T80: 0 | U80: 0 | V80: 0 | W80: 0 | X80: 0 | Y80: 0 | Z80: 0 | AA80: 0 | AB80: 0 | AC80: 0 | AD80: 0 | AE80: 0 | AF80: 0 | AG80: 0 | AH80: 0 | AI80: 0 | AJ80: 0 | AK80: 0 | AL80: 0 | AM80: 0 | AN80: 0 | AO80: 0 | AP80: 0 | AQ80: 0 | AR80: 0 | AS80: 0 | AT80: 0 | AU80: 0 | AV80: 0 | AW80: 0 | AX80: 0 | AY80: 0 | AZ80: 0 | BA80: 0 | BB80: 0 | BC80: 0 | BD80: 0 | BE80: 0 | BF80: 0
B81: Гонки на охотничьих лыжах | C81: 74 | D81: 0 | E81: 0 | F81: 0 | G81: 0 | H81: 0 | I81: 0 | J81: 0 | K81: 0 | L81: 0 | M81: 0 | N81: 0 | O81: 0 | P81: 0 | Q81: 0 | R81: 0 | S81: 0 | T81: 0 | U81: 0 | V81: 0 | W81: 0 | X81: 0 | Y81: 0 | Z81: 0 | AA81: 0 | AB81: 0 | AC81: 0 | AD81: 0 | AE81: 0 | AF81: 0 | AG81: 0 | AH81: 0 | AI81: 0 | AJ81: 0 | AK81: 0 | AL81: 0 | AM81: 0 | AN81: 0 | AO81: 0 | AP81: 0 | AQ81: 0 | AR81: 0 | AS81: 0 | AT81: 0 | AU81: 0 | AV81: 0 | AW81: 0 | AX81: 0 | AY81: 0 | AZ81: 0 | BA81: 0 | BB81: 0 | BC81: 0 | BD81: 0 | BE81: 0 | BF81: 0
B82: Гонки с препятствиями | C82: 75 | D82: 0 | E82: 0 | F82: 0 | G82: 0 | H82: 0 | I82: 0 | J82: 0 | K82: 0 | L82: 0 | M82: 0 | N82: 0 | O82: 0 | P82: 0 | Q82: 0 | R82: 0 | S82: 0 | T82: 0 | U82: 0 | V82: 0 | W82: 0 | X82: 0 | Y82: 0 | Z82: 0 | AA82: 0 | AB82: 0 | AC82: 0 | AD82: 0 | AE82: 0 | AF82: 0 | AG82: 0 | AH82: 0 | AI82: 0 | AJ82: 0 | AK82: 0 | AL82: 0 | AM82: 0 | AN82: 0 | AO82: 0 | AP82: 0 | AQ82: 0 | AR82: 0 | AS82: 0 | AT82: 0 | AU82: 0 | AV82: 0 | AW82: 0 | AX82: 0 | AY82: 0 | AZ82: 0 | BA82: 0 | BB82: 0 | BC82: 0 | BD82: 0 | BE82: 0 | BF82: 0
B83: Горнолыжный спорт | C83: 76 | D83: 78 | E83: 2 | F83: 1 | G83: 0 | H83: 1 | I83: 0 | J83: 0 | K83: 0 | L83: 0 | M83: 0 | N83: 38 | O83: 3 | P83: 2 | Q83: 20 | R83: 11 | S83: 1 | T83: 0 | U83: 1 | V83: 0 | W83: 38 | X83: 2 | Y83: 0 | Z83: 32 | AA83: 0 | AB83: 1 | AC83: 0 | AD83: 3 | AE83: 0 | AF83: 2 | AG83: 0 | AH83: 0 | AI83: 0 | AJ83: 2 | AK83: 0 | AL83: 0 | AM83: 0 | AN83: 0 | AO83: 21 | AP83: 3 | AQ83: 2 | AR83: 9 | AS83: 7 | AT83: 0 | AU83: 0 | AV83: 0 | AW83: 0 | AX83: 3 | AY83: 1 | AZ83: 0 | BA83: 1 | BB83: 0 | BC83: 0 | BD83: 0 | BE83: 1 | BF83: 0
B84: Городошный спорт | C84: 77 | D84: 32 | E84: 17 | F84: 10 | G84: 0 | H84: 4 | I84: 0 | J84: 0 | K84: 0 | L84: 3 | M84: 0 | N84: 0 | O84: 0 | P84: 0 | Q84: 0 | R84: 0 | S84: 0 | T84: 0 | U84: 0 | V84: 0 | W84: 15 | X84: 3 | Y84: 0 | Z84: 1 | AA84: 0 | AB84: 0 | AC84: 0 | AD84: 11 | AE84: 0 | AF84: 12 | AG84: 7 | AH84: 0 | AI84: 2 | AJ84: 0 | AK84: 0 | AL84: 0 | AM84: 3 | AN84: 0 | AO84: 0 | AP84: 0 | AQ84: 0 | AR84: 0 | AS84: 0 | AT84: 0 | AU84: 0 | AV84: 0 | AW84: 0 | AX84: 16 | AY84: 6 | AZ84: 0 | BA84: 0 | BB84: 0 | BC84: 0 | BD84: 0 | BE84: 10 | BF84: 0
B85: Гребля на байдарках и каноэ | C85: 78 | D85: 494 | E85: 59 | F85: 2 | G85: 0 | H85: 11 | I85: 19 | J85: 20 | K85: 5 | L85: 0 | M85: 2 | N85: 235 | O85: 7 | P85: 2 | Q85: 139 | R85: 47 | S85: 33 | T85: 7 | U85: 0 | V85: 0 | W85: 200 | X85: 3 | Y85: 0 | Z85: 121 | AA85: 54 | AB85: 6 | AC85: 7 | AD85: 9 | AE85: 0 | AF85: 21 | AG85: 1 | AH85: 2 | AI85: 4 | AJ85: 1 | AK85: 10 | AL85: 3 | AM85: 0 | AN85: 0 | AO85: 100 | AP85: 4 | AQ85: 1 | AR85: 71 | AS85: 18 | AT85: 3 | AU85: 3 | AV85: 0 | AW85: 0 | AX85: 58 | AY85: 0 | AZ85: 0 | BA85: 42 | BB85: 15 | BC85: 0 | BD85: 0 | BE85: 1 | BF85: 0
B86: Гребля на шлюпках | C86: 79 | D86: 0 | E86: 0 | F86: 0 | G86: 0 | H86: 0 | I86: 0 | J86: 0 | K86: 0 | L86: 0 | M86: 0 | N86: 0 | O86: 0 | P86: 0 | Q86: 0 | R86: 0 | S86: 0 | T86: 0 | U86: 0 | V86: 0 | W86: 0 | X86: 0 | Y86: 0 | Z86: 0 | AA86: 0 | AB86: 0 | AC86: 0 | AD86: 0 | AE86: 0 | AF86: 0 | AG86: 0 | AH86: 0 | AI86: 0 | AJ86: 0 | AK86: 0 | AL86: 0 | AM86: 0 | AN86: 0 | AO86: 0 | AP86: 0 | AQ86: 0 | AR86: 0 | AS86: 0 | AT86: 0 | AU86: 0 | AV86: 0 | AW86: 0 | AX86: 0 | AY86: 0 | AZ86: 0 | BA86: 0 | BB86: 0 | BC86: 0 | BD86: 0 | BE86: 0 | BF86: 0
B87: Гребной слалом | C87: 80 | D87: 80 | E87: 0 | F87: 0 | G87: 0 | H87: 0 | I87: 0 | J87: 0 | K87: 0 | L87: 0 | M87: 0 | N87: 56 | O87: 1 | P87: 0 | Q87: 33 | R87: 13 | S87: 4 | T87: 2 | U87: 0 | V87: 3 | W87: 24 | X87: 0 | Y87: 0 | Z87: 12 | AA87: 5 | AB87: 3 | AC87: 4 | AD87: 0 | AE87: 0 | AF87: 4 | AG87: 0 | AH87: 0 | AI87: 3 | AJ87: 1 | AK87: 0 | AL87: 0 | AM87: 0 | AN87: 0 | AO87: 17 | AP87: 0 | AQ87: 0 | AR87: 11 | AS87: 1 | AT87: 0 | AU87: 2 | AV87: 0 | AW87: 3 | AX87: 3 | AY87: 0 | AZ87: 0 | BA87: 1 | BB87: 2 | BC87: 0 | BD87: 0 | BE87: 0 | BF87: 0
B88: Гребной спорт - всего | C88: 81 | D88: 455 | E88: 165 | F88: 12 | G88: 1 | H88: 77 | I88: 38 | J88: 20 | K88: 8 | L88: 5 | M88: 4 | N88: 171 | O88: 4 | P88: 2 | Q88: 78 | R88: 37 | S88: 35 | T88: 10 | U88: 4 | V88: 1 | W88: 119 | X88: 5 | Y88: 11 | Z88: 47 | AA88: 43 | AB88: 7 | AC88: 2 | AD88: 3 | AE88: 1 | AF88: 81 | AG88: 10 | AH88: 2 | AI88: 33 | AJ88: 16 | AK88: 14 | AL88: 4 | AM88: 0 | AN88: 2 | AO88: 63 | AP88: 1 | AQ88: 1 | AR88: 27 | AS88: 16 | AT88: 7 | AU88: 4 | AV88: 0 | AW88: 7 | AX88: 46 | AY88: 7 | AZ88: 8 | BA88: 16 | BB88: 8 | BC88: 0 | BD88: 0 | BE88: 3 | BF88: 4
B89: в том числе: Академическая гребля | C89: 82 | D89: 455 | E89: 165 | F89: 12 | G89: 1 | H89: 77 | I89: 38 | J89: 20 | K89: 8 | L89: 5 | M89: 4 | N89: 171 | O89: 4 | P89: 2 | Q89: 78 | R89: 37 | S89: 35 | T89: 10 | U89: 4 | V89: 1 | W89: 119 | X89: 5 | Y89: 11 | Z89: 47 | AA89: 43 | AB89: 7 | AC89: 2 | AD89: 3 | AE89: 1 | AF89: 81 | AG89: 10 | AH89: 2 | AI89: 33 | AJ89: 16 | AK89: 14 | AL89: 4 | AM89: 0 | AN89: 2 | AO89: 63 | AP89: 1 | AQ89: 1 | AR89: 27 | AS89: 16 | AT89: 7 | AU89: 4 | AV89: 0 | AW89: 7 | AX89: 46 | AY89: 7 | AZ89: 8 | BA89: 16 | BB89: 8 | BC89: 0 | BD89: 0 | BE89: 3 | BF89: 4
B90: Иные дисциплины вида спорта "гребной спорт" | C90: 83 | D90: 0 | E90: 0 | F90: 0 | G90: 0 | H90: 0 | I90: 0 | J90: 0 | K90: 0 | L90: 0 | M90: 0 | N90: 0 | O90: 0 | P90: 0 | Q90: 0 | R90: 0 | S90: 0 | T90: 0 | U90: 0 | V90: 0 | W90: 0 | X90: 0 | Y90: 0 | Z90: 0 | AA90: 0 | AB90: 0 | AC90: 0 | AD90: 0 | AE90: 0 | AF90: 0 | AG90: 0 | AH90: 0 | AI90: 0 | AJ90: 0 | AK90: 0 | AL90: 0 | AM90: 0 | AN90: 0 | AO90: 0 | AP90: 0 | AQ90: 0 | AR90: 0 | AS90: 0 | AT90: 0 | AU90: 0 | AV90: 0 | AW90: 0 | AX90: 0 | AY90: 0 | AZ90: 0 | BA90: 0 | BB90: 0 | BC90: 0 | BD90: 0 | BE90: 0 | BF90: 0
B91: Гребно-парусное двоеборье | C91: 84 | D91: 0 | E91: 0 | F91: 0 | G91: 0 | H91: 0 | I91: 0 | J91: 0 | K91: 0 | L91: 0 | M91: 0 | N91: 0 | O91: 0 | P91: 0 | Q91: 0 | R91: 0 | S91: 0 | T91: 0 | U91: 0 | V91: 0 | W91: 0 | X91: 0 | Y91: 0 | Z91: 0 | AA91: 0 | AB91: 0 | AC91: 0 | AD91: 0 | AE91: 0 | AF91: 0 | AG91: 0 | AH91: 0 | AI91: 0 | AJ91: 0 | AK91: 0 | AL91: 0 | AM91: 0 | AN91: 0 | AO91: 0 | AP91: 0 | AQ91: 0 | AR91: 0 | AS91: 0 | AT91: 0 | AU91: 0 | AV91: 0 | AW91: 0 | AX91: 0 | AY91: 0 | AZ91: 0 | BA91: 0 | BB91: 0 | BC91: 0 | BD91: 0 | BE91: 0 | BF91: 0
B92: Дартс | C92: 85 | D92: 30 | E92: 7 | F92: 6 | G92: 0 | H92: 1 | I92: 0 | J92: 0 | K92: 0 | L92: 0 | M92: 0 | N92: 20 | O92: 14 | P92: 1 | Q92: 5 | R92: 0 | S92: 0 | T92: 0 | U92: 0 | V92: 0 | W92: 3 | X92: 3 | Y92: 0 | Z92: 0 | AA92: 0 | AB92: 0 | AC92: 0 | AD92: 0 | AE92: 0 | AF92: 4 | AG92: 2 | AH92: 2 | AI92: 0 | AJ92: 0 | AK92: 0 | AL92: 0 | AM92: 0 | AN92: 0 | AO92: 3 | AP92: 2 | AQ92: 1 | AR92: 0 | AS92: 0 | AT92: 0 | AU92: 0 | AV92: 0 | AW92: 0 | AX92: 3 | AY92: 3 | AZ92: 0 | BA92: 0 | BB92: 0 | BC92: 0 | BD92: 0 | BE92: 0 | BF92: 0
B93: Джиу-джитсу | C93: 86 | D93: 195 | E93: 53 | F93: 15 | G93: 4 | H93: 23 | I93: 10 | J93: 0 | K93: 0 | L93: 1 | M93: 0 | N93: 74 | O93: 24 | P93: 11 | Q93: 35 | R93: 4 | S93: 0 | T93: 0 | U93: 0 | V93: 0 | W93: 68 | X93: 28 | Y93: 7 | Z93: 29 | AA93: 4 | AB93: 0 | AC93: 0 | AD93: 0 | AE93: 0 | AF93: 35 | AG93: 9 | AH93: 4 | AI93: 14 | AJ93: 7 | AK93: 0 | AL93: 0 | AM93: 1 | AN93: 0 | AO93: 29 | AP93: 4 | AQ93: 4 | AR93: 20 | AS93: 1 | AT93: 0 | AU93: 0 | AV93: 0 | AW93: 0 | AX93: 22 | AY93: 3 | AZ93: 5 | BA93: 14 | BB93: 0 | BC93: 0 | BD93: 0 | BE93: 0 | BF93: 0
B94: Джутайдо | C94: 87 | D94: 0 | E94: 0 | F94: 0 | G94: 0 | H94: 0 | I94: 0 | J94: 0 | K94: 0 | L94: 0 | M94: 0 | N94: 0 | O94: 0 | P94: 0 | Q94: 0 | R94: 0 | S94: 0 | T94: 0 | U94: 0 | V94: 0 | W94: 0 | X94: 0 | Y94: 0 | Z94: 0 | AA94: 0 | AB94: 0 | AC94: 0 | AD94: 0 | AE94: 0 | AF94: 0 | AG94: 0 | AH94: 0 | AI94: 0 | AJ94: 0 | AK94: 0 | AL94: 0 | AM94: 0 | AN94: 0 | AO94: 0 | AP94: 0 | AQ94: 0 | AR94: 0 | AS94: 0 | AT94: 0 | AU94: 0 | AV94: 0 | AW94: 0 | AX94: 0 | AY94: 0 | AZ94: 0 | BA94: 0 | BB94: 0 | BC94: 0 | BD94: 0 | BE94: 0 | BF94: 0
B95: Дзюдо | C95: 88 | D95: 517 | E95: 162 | F95: 32 | G95: 20 | H95: 47 | I95: 33 | J95: 10 | K95: 6 | L95: 8 | M95: 6 | N95: 204 | O95: 21 | P95: 11 | Q95: 81 | R95: 56 | S95: 10 | T95: 14 | U95: 5 | V95: 6 | W95: 151 | X95: 14 | Y95: 10 | Z95: 63 | AA95: 35 | AB95: 5 | AC95: 5 | AD95: 13 | AE95: 6 | AF95: 78 | AG95: 16 | AH95: 9 | AI95: 19 | AJ95: 18 | AK95: 3 | AL95: 3 | AM95: 5 | AN95: 5 | AO95: 100 | AP95: 9 | AQ95: 10 | AR95: 42 | AS95: 24 | AT95: 3 | AU95: 2 | AV95: 4 | AW95: 6 | AX95: 42 | AY95: 6 | AZ95: 4 | BA95: 13 | BB95: 8 | BC95: 0 | BD95: 0 | BE95: 8 | BF95: 3
B96: Ездовой спорт | C96: 89 | D96: 0 | E96: 0 | F96: 0 | G96: 0 | H96: 0 | I96: 0 | J96: 0 | K96: 0 | L96: 0 | M96: 0 | N96: 0 | O96: 0 | P96: 0 | Q96: 0 | R96: 0 | S96: 0 | T96: 0 | U96: 0 | V96: 0 | W96: 0 | X96: 0 | Y96: 0 | Z96: 0 | AA96: 0 | AB96: 0 | AC96: 0 | AD96: 0 | AE96: 0 | AF96: 0 | AG96: 0 | AH96: 0 | AI96: 0 | AJ96: 0 | AK96: 0 | AL96: 0 | AM96: 0 | AN96: 0 | AO96: 0 | AP96: 0 | AQ96: 0 | AR96: 0 | AS96: 0 | AT96: 0 | AU96: 0 | AV96: 0 | AW96: 0 | AX96: 0 | AY96: 0 | AZ96: 0 | BA96: 0 | BB96: 0 | BC96: 0 | BD96: 0 | BE96: 0 | BF96: 0
B97: Зимнее плавание | C97: 90 | D97: 0 | E97: 0 | F97: 0 | G97: 0 | H97: 0 | I97: 0 | J97: 0 | K97: 0 | L97: 0 | M97: 0 | N97: 0 | O97: 0 | P97: 0 | Q97: 0 | R97: 0 | S97: 0 | T97: 0 | U97: 0 | V97: 0 | W97: 0 | X97: 0 | Y97: 0 | Z97: 0 | AA97: 0 | AB97: 0 | AC97: 0 | AD97: 0 | AE97: 0 | AF97: 0 | AG97: 0 | AH97: 0 | AI97: 0 | AJ97: 0 | AK97: 0 | AL97: 0 | AM97: 0 | AN97: 0 | AO97: 0 | AP97: 0 | AQ97: 0 | AR97: 0 | AS97: 0 | AT97: 0 | AU97: 0 | AV97: 0 | AW97: 0 | AX97: 0 | AY97: 0 | AZ97: 0 | BA97: 0 | BB97: 0 | BC97: 0 | BD97: 0 | BE97: 0 | BF97: 0
B98: Капоэйра | C98: 91 | D98: 0 | E98: 0 | F98: 0 | G98: 0 | H98: 0 | I98: 0 | J98: 0 | K98: 0 | L98: 0 | M98: 0 | N98: 0 | O98: 0 | P98: 0 | Q98: 0 | R98: 0 | S98: 0 | T98: 0 | U98: 0 | V98: 0 | W98: 0 | X98: 0 | Y98: 0 | Z98: 0 | AA98: 0 | AB98: 0 | AC98: 0 | AD98: 0 | AE98: 0 | AF98: 0 | AG98: 0 | AH98: 0 | AI98: 0 | AJ98: 0 | AK98: 0 | AL98: 0 | AM98: 0 | AN98: 0 | AO98: 0 | AP98: 0 | AQ98: 0 | AR98: 0 | AS98: 0 | AT98: 0 | AU98: 0 | AV98: 0 | AW98: 0 | AX98: 0 | AY98: 0 | AZ98: 0 | BA98: 0 | BB98: 0 | BC98: 0 | BD98: 0 | BE98: 0 | BF98: 0
B99: Каратэ | C99: 92 | D99: 163 | E99: 46 | F99: 8 | G99: 1 | H99: 27 | I99: 10 | J99: 0 | K99: 0 | L99: 0 | M99: 0 | N99: 71 | O99: 22 | P99: 6 | Q99: 27 | R99: 13 | S99: 0 | T99: 0 | U99: 3 | V99: 0 | W99: 46 | X99: 21 | Y99: 5 | Z99: 14 | AA99: 5 | AB99: 0 | AC99: 0 | AD99: 1 | AE99: 0 | AF99: 15 | AG99: 4 | AH99: 1 | AI99: 6 | AJ99: 4 | AK99: 0 | AL99: 0 | AM99: 0 | AN99: 0 | AO99: 37 | AP99: 9 | AQ99: 1 | AR99: 14 | AS99: 10 | AT99: 0 | AU99: 0 | AV99: 3 | AW99: 0 | AX99: 18 | AY99: 1 | AZ99: 2 | BA99: 11 | BB99: 3 | BC99: 0 | BD99: 0 | BE99: 1 | BF99: 0
B100: Кендо | C100: 93 | D100: 0 | E100: 0 | F100: 0 | G100: 0 | H100: 0 | I100: 0 | J100: 0 | K100: 0 | L100: 0 | M100: 0 | N100: 0 | O100: 0 | P100: 0 | Q100: 0 | R100: 0 | S100: 0 | T100: 0 | U100: 0 | V100: 0 | W100: 0 | X100: 0 | Y100: 0 | Z100: 0 | AA100: 0 | AB100: 0 | AC100: 0 | AD100: 0 | AE100: 0 | AF100: 0 | AG100: 0 | AH100: 0 | AI100: 0 | AJ100: 0 | AK100: 0 | AL100: 0 | AM100: 0 | AN100: 0 | AO100: 0 | AP100: 0 | AQ100: 0 | AR100: 0 | AS100: 0 | AT100: 0 | AU100: 0 | AV100: 0 | AW100: 0 | AX100: 0 | AY100: 0 | AZ100: 0 | BA100: 0 | BB100: 0 | BC100: 0 | BD100: 0 | BE100: 0 | BF100: 0
B101: Керешу | C101: 94 | D101: 0 | E101: 0 | F101: 0 | G101: 0 | H101: 0 | I101: 0 | J101: 0 | K101: 0 | L101: 0 | M101: 0 | N101: 0 | O101: 0 | P101: 0 | Q101: 0 | R101: 0 | S101: 0 | T101: 0 | U101: 0 | V101: 0 | W101: 0 | X101: 0 | Y101: 0 | Z101: 0 | AA101: 0 | AB101: 0 | AC101: 0 | AD101: 0 | AE101: 0 | AF101: 0 | AG101: 0 | AH101: 0 | AI101: 0 | AJ101: 0 | AK101: 0 | AL101: 0 | AM101: 0 | AN101: 0 | AO101: 0 | AP101: 0 | AQ101: 0 | AR101: 0 | AS101: 0 | AT101: 0 | AU101: 0 | AV101: 0 | AW101: 0 | AX101: 0 | AY101: 0 | AZ101: 0 | BA101: 0 | BB101: 0 | BC101: 0 | BD101: 0 | BE101: 0 | BF101: 0
B102: Кёрлинг - всего | C102: 95 | D102: 63 | E102: 0 | F102: 0 | G102: 0 | H102: 0 | I102: 0 | J102: 0 | K102: 0 | L102: 0 | M102: 0 | N102: 25 | O102: 4 | P102: 0 | Q102: 12 | R102: 8 | S102: 1 | T102: 0 | U102: 0 | V102: 0 | W102: 38 | X102: 0 | Y102: 0 | Z102: 12 | AA102: 6 | AB102: 13 | AC102: 7 | AD102: 0 | AE102: 0 | AF102: 0 | AG102: 0 | AH102: 0 | AI102: 0 | AJ102: 0 | AK102: 0 | AL102: 0 | AM102: 0 | AN102: 0 | AO102: 13 | AP102: 4 | AQ102: 0 | AR102: 3 | AS102: 5 | AT102: 1 | AU102: 0 | AV102: 0 | AW102: 0 | AX102: 4 | AY102: 0 | AZ102: 0 | BA102: 1 | BB102: 1 | BC102: 1 | BD102: 1 | BE102: 0 | BF102: 0
B103: в том числе: Кёрлинг (муж.) | C103: 96 | D103: 28 | E103: 0 | F103: 0 | G103: 0 | H103: 0 | I103: 0 | J103: 0 | K103: 0 | L103: 0 | M103: 0 | N103: 13 | O103: 0 | P103: 0 | Q103: 8 | R103: 4 | S103: 1 | T103: 0 | U103: 0 | V103: 0 | W103: 15 | X103: 0 | Y103: 0 | Z103: 5 | AA103: 3 | AB103: 5 | AC103: 2 | AD103: 0 | AE103: 0 | AF103: 0 | AG103: 0 | AH103: 0 | AI103: 0 | AJ103: 0 | AK103: 0 | AL103: 0 | AM103: 0 | AN103: 0 | AO103: 5 | AP103: 0 | AQ103: 0 | AR103: 3 | AS103: 1 | AT103: 1 | AU103: 0 | AV103: 0 | AW103: 0 | AX103: 2 | AY103: 0 | AZ103: 0 | BA103: 1 | BB103: 1 | BC103: 0 | BD103: 0 | BE103: 0 | BF103: 0
B104: Кёрлинг (жен.) | C104: 97 | D104: 32 | E104: 0 | F104: 0 | G104: 0 | H104: 0 | I104: 0 | J104: 0 | K104: 0 | L104: 0 | M104: 0 | N104: 12 | O104: 4 | P104: 0 | Q104: 4 | R104: 4 | S104: 0 | T104: 0 | U104: 0 | V104: 0 | W104: 20 | X104: 0 | Y104: 0 | Z104: 5 | AA104: 3 | AB104: 8 | AC104: 4 | AD104: 0 | AE104: 0 | AF104: 0 | AG104: 0 | AH104: 0 | AI104: 0 | AJ104: 0 | AK104: 0 | AL104: 0 | AM104: 0 | AN104: 0 | AO104: 8 | AP104: 4 | AQ104: 0 | AR104: 0 | AS104: 4 | AT104: 0 | AU104: 0 | AV104: 0 | AW104: 0 | AX104: 2 | AY104: 0 | AZ104: 0 | BA104: 0 | BB104: 0 | BC104: 1 | BD104: 1 | BE104: 0 | BF104: 0
B105: Кёрлинг – смешанные пары | C105: 98 | D105: 3 | E105: 0 | F105: 0 | G105: 0 | H105: 0 | I105: 0 | J105: 0 | K105: 0 | L105: 0 | M105: 0 | N105: 0 | O105: 0 | P105: 0 | Q105: 0 | R105: 0 | S105: 0 | T105: 0 | U105: 0 | V105: 0 | W105: 3 | X105: 0 | Y105: 0 | Z105: 2 | AA105: 0 | AB105: 0 | AC105: 1 | AD105: 0 | AE105: 0 | AF105: 0 | AG105: 0 | AH105: 0 | AI105: 0 | AJ105: 0 | AK105: 0 | AL105: 0 | AM105: 0 | AN105: 0 | AO105: 0 | AP105: 0 | AQ105: 0 | AR105: 0 | AS105: 0 | AT105: 0 | AU105: 0 | AV105: 0 | AW105: 0 | AX105: 0 | AY105: 0 | AZ105: 0 | BA105: 0 | BB105: 0 | BC105: 0 | BD105: 0 | BE105: 0 | BF105: 0
B106: Кикбоксинг | C106: 99 | D106: 507 | E106: 205 | F106: 140 | G106: 9 | H106: 44 | I106: 0 | J106: 0 | K106: 0 | L106: 12 | M106: 0 | N106: 126 | O106: 82 | P106: 5 | Q106: 33 | R106: 0 | S106: 0 | T106: 0 | U106: 4 | V106: 2 | W106: 176 | X106: 75 | Y106: 20 | Z106: 59 | AA106: 19 | AB106: 0 | AC106: 0 | AD106: 3 | AE106: 0 | AF106: 128 | AG106: 87 | AH106: 11 | AI106: 21 | AJ106: 5 | AK106: 0 | AL106: 0 | AM106: 2 | AN106: 2 | AO106: 86 | AP106: 42 | AQ106: 5 | AR106: 30 | AS106: 6 | AT106: 0 | AU106: 0 | AV106: 3 | AW106: 0 | AX106: 69 | AY106: 25 | AZ106: 2 | BA106: 32 | BB106: 10 | BC106: 0 | BD106: 0 | BE106: 0 | BF106: 0
B107: Кинологический спорт | C107: 100 | D107: 0 | E107: 0 | F107: 0 | G107: 0 | H107: 0 | I107: 0 | J107: 0 | K107: 0 | L107: 0 | M107: 0 | N107: 0 | O107: 0 | P107: 0 | Q107: 0 | R107: 0 | S107: 0 | T107: 0 | U107: 0 | V107: 0 | W107: 0 | X107: 0 | Y107: 0 | Z107: 0 | AA107: 0 | AB107: 0 | AC107: 0 | AD107: 0 | AE107: 0 | AF107: 0 | AG107: 0 | AH107: 0 | AI107: 0 | AJ107: 0 | AK107: 0 | AL107: 0 | AM107: 0 | AN107: 0 | AO107: 0 | AP107: 0 | AQ107: 0 | AR107: 0 | AS107: 0 | AT107: 0 | AU107: 0 | AV107: 0 | AW107: 0 | AX107: 0 | AY107: 0 | AZ107: 0 | BA107: 0 | BB107: 0 | BC107: 0 | BD107: 0 | BE107: 0 | BF107: 0
B108: Киокусинкай | C108: 101 | D108: 332 | E108: 150 | F108: 77 | G108: 31 | H108: 22 | I108: 5 | J108: 0 | K108: 0 | L108: 11 | M108: 4 | N108: 92 | O108: 44 | P108: 15 | Q108: 22 | R108: 3 | S108: 0 | T108: 0 | U108: 6 | V108: 2 | W108: 90 | X108: 32 | Y108: 11 | Z108: 18 | AA108: 7 | AB108: 0 | AC108: 0 | AD108: 18 | AE108: 4 | AF108: 58 | AG108: 35 | AH108: 10 | AI108: 4 | AJ108: 1 | AK108: 0 | AL108: 0 | AM108: 7 | AN108: 1 | AO108: 39 | AP108: 26 | AQ108: 6 | AR108: 3 | AS108: 0 | AT108: 0 | AU108: 0 | AV108: 1 | AW108: 3 | AX108: 30 | AY108: 6 | AZ108: 3 | BA108: 5 | BB108: 1 | BC108: 0 | BD108: 0 | BE108: 12 | BF108: 3
B109: Киокушин | C109: 102 | D109: 127 | E109: 67 | F109: 55 | G109: 12 | H109: 0 | I109: 0 | J109: 0 | K109: 0 | L109: 0 | M109: 0 | N109: 32 | O109: 20 | P109: 12 | Q109: 0 | R109: 0 | S109: 0 | T109: 0 | U109: 0 | V109: 0 | W109: 28 | X109: 21 | Y109: 4 | Z109: 1 | AA109: 2 | AB109: 0 | AC109: 0 | AD109: 0 | AE109: 0 | AF109: 40 | AG109: 31 | AH109: 9 | AI109: 0 | AJ109: 0 | AK109: 0 | AL109: 0 | AM109: 0 | AN109: 0 | AO109: 25 | AP109: 17 | AQ109: 8 | AR109: 0 | AS109: 0 | AT109: 0 | AU109: 0 | AV109: 0 | AW109: 0 | AX109: 27 | AY109: 22 | AZ109: 2 | BA109: 1 | BB109: 2 | BC109: 0 | BD109: 0 | BE109: 0 | BF109: 0
B110: Комплексное единоборство | C110: 103 | D110: 0 | E110: 0 | F110: 0 | G110: 0 | H110: 0 | I110: 0 | J110: 0 | K110: 0 | L110: 0 | M110: 0 | N110: 0 | O110: 0 | P110: 0 | Q110: 0 | R110: 0 | S110: 0 | T110: 0 | U110: 0 | V110: 0 | W110: 0 | X110: 0 | Y110: 0 | Z110: 0 | AA110: 0 | AB110: 0 | AC110: 0 | AD110: 0 | AE110: 0 | AF110: 0 | AG110: 0 | AH110: 0 | AI110: 0 | AJ110: 0 | AK110: 0 | AL110: 0 | AM110: 0 | AN110: 0 | AO110: 0 | AP110: 0 | AQ110: 0 | AR110: 0 | AS110: 0 | AT110: 0 | AU110: 0 | AV110: 0 | AW110: 0 | AX110: 0 | AY110: 0 | AZ110: 0 | BA110: 0 | BB110: 0 | BC110: 0 | BD110: 0 | BE110: 0 | BF110: 0
B111: Компьютерный спорт - всего | C111: 104 | D111: 30 | E111: 0 | F111: 0 | G111: 0 | H111: 0 | I111: 0 | J111: 0 | K111: 0 | L111: 0 | M111: 0 | N111: 0 | O111: 0 | P111: 0 | Q111: 0 | R111: 0 | S111: 0 | T111: 0 | U111: 0 | V111: 0 | W111: 30 | X111: 0 | Y111: 0 | Z111: 0 | AA111: 0 | AB111: 0 | AC111: 0 | AD111: 18 | AE111: 12 | AF111: 0 | AG111: 0 | AH111: 0 | AI111: 0 | AJ111: 0 | AK111: 0 | AL111: 0 | AM111: 0 | AN111: 0 | AO111: 0 | AP111: 0 | AQ111: 0 | AR111: 0 | AS111: 0 | AT111: 0 | AU111: 0 | AV111: 0 | AW111: 0 | AX111: 30 | AY111: 0 | AZ111: 0 | BA111: 0 | BB111: 0 | BC111: 0 | BD111: 0 | BE111: 18 | BF111: 12
B112: в том числе: Боевая арена | C112: 105 | D112: 12 | E112: 0 | F112: 0 | G112: 0 | H112: 0 | I112: 0 | J112: 0 | K112: 0 | L112: 0 | M112: 0 | N112: 0 | O112: 0 | P112: 0 | Q112: 0 | R112: 0 | S112: 0 | T112: 0 | U112: 0 | V112: 0 | W112: 12 | X112: 0 | Y112: 0 | Z112: 0 | AA112: 0 | AB112: 0 | AC112: 0 | AD112: 7 | AE112: 5 | AF112: 0 | AG112: 0 | AH112: 0 | AI112: 0 | AJ112: 0 | AK112: 0 | AL112: 0 | AM112: 0 | AN112: 0 | AO112: 0 | AP112: 0 | AQ112: 0 | AR112: 0 | AS112: 0 | AT112: 0 | AU112: 0 | AV112: 0 | AW112: 0 | AX112: 12 | AY112: 0 | AZ112: 0 | BA112: 0 | BB112: 0 | BC112: 0 | BD112: 0 | BE112: 7 | BF112: 5
B113: Соревновательные головоломки | C113: 106 | D113: 0 | E113: 0 | F113: 0 | G113: 0 | H113: 0 | I113: 0 | J113: 0 | K113: 0 | L113: 0 | M113: 0 | N113: 0 | O113: 0 | P113: 0 | Q113: 0 | R113: 0 | S113: 0 | T113: 0 | U113: 0 | V113: 0 | W113: 0 | X113: 0 | Y113: 0 | Z113: 0 | AA113: 0 | AB113: 0 | AC113: 0 | AD113: 0 | AE113: 0 | AF113: 0 | AG113: 0 | AH113: 0 | AI113: 0 | AJ113: 0 | AK113: 0 | AL113: 0 | AM113: 0 | AN113: 0 | AO113: 0 | AP113: 0 | AQ113: 0 | AR113: 0 | AS113: 0 | AT113: 0 | AU113: 0 | AV113: 0 | AW113: 0 | AX113: 0 | AY113: 0 | AZ113: 0 | BA113: 0 | BB113: 0 | BC113: 0 | BD113: 0 | BE113: 0 | BF113: 0
B114: Спортивный симулятор | C114: 107 | D114: 0 | E114: 0 | F114: 0 | G114: 0 | H114: 0 | I114: 0 | J114: 0 | K114: 0 | L114: 0 | M114: 0 | N114: 0 | O114: 0 | P114: 0 | Q114: 0 | R114: 0 | S114: 0 | T114: 0 | U114: 0 | V114: 0 | W114: 0 | X114: 0 | Y114: 0 | Z114: 0 | AA114: 0 | AB114: 0 | AC114: 0 | AD114: 0 | AE114: 0 | AF114: 0 | AG114: 0 | AH114: 0 | AI114: 0 | AJ114: 0 | AK114: 0 | AL114: 0 | AM114: 0 | AN114: 0 | AO114: 0 | AP114: 0 | AQ114: 0 | AR114: 0 | AS114: 0 | AT114: 0 | AU114: 0 | AV114: 0 | AW114: 0 | AX114: 0 | AY114: 0 | AZ114: 0 | BA114: 0 | BB114: 0 | BC114: 0 | BD114: 0 | BE114: 0 | BF114: 0
B115: Стратегия в реальном времени | C115: 108 | D115: 2 | E115: 0 | F115: 0 | G115: 0 | H115: 0 | I115: 0 | J115: 0 | K115: 0 | L115: 0 | M115: 0 | N115: 0 | O115: 0 | P115: 0 | Q115: 0 | R115: 0 | S115: 0 | T115: 0 | U115: 0 | V115: 0 | W115: 2 | X115: 0 | Y115: 0 | Z115: 0 | AA115: 0 | AB115: 0 | AC115: 0 | AD115: 2 | AE115: 0 | AF115: 0 | AG115: 0 | AH115: 0 | AI115: 0 | AJ115: 0 | AK115: 0 | AL115: 0 | AM115: 0 | AN115: 0 | AO115: 0 | AP115: 0 | AQ115: 0 | AR115: 0 | AS115: 0 | AT115: 0 | AU115: 0 | AV115: 0 | AW115: 0 | AX115: 2 | AY115: 0 | AZ115: 0 | BA115: 0 | BB115: 0 | BC115: 0 | BD115: 0 | BE115: 2 | BF115: 0
B116: Тактический трехмерный бой | C116: 109 | D116: 14 | E116: 0 | F116: 0 | G116: 0 | H116: 0 | I116: 0 | J116: 0 | K116: 0 | L116: 0 | M116: 0 | N116: 0 | O116: 0 | P116: 0 | Q116: 0 | R116: 0 | S116: 0 | T116: 0 | U116: 0 | V116: 0 | W116: 14 | X116: 0 | Y116: 0 | Z116: 0 | AA116: 0 | AB116: 0 | AC116: 0 | AD116: 7 | AE116: 7 | AF116: 0 | AG116: 0 | AH116: 0 | AI116: 0 | AJ116: 0 | AK116: 0 | AL116: 0 | AM116: 0 | AN116: 0 | AO116: 0 | AP116: 0 | AQ116: 0 | AR116: 0 | AS116: 0 | AT116: 0 | AU116: 0 | AV116: 0 | AW116: 0 | AX116: 14 | AY116: 0 | AZ116: 0 | BA116: 0 | BB116: 0 | BC116: 0 | BD116: 0 | BE116: 7 | BF116: 7
B117: Технический симулятор | C117: 110 | D117: 0 | E117: 0 | F117: 0 | G117: 0 | H117: 0 | I117: 0 | J117: 0 | K117: 0 | L117: 0 | M117: 0 | N117: 0 | O117: 0 | P117: 0 | Q117: 0 | R117: 0 | S117: 0 | T117: 0 | U117: 0 | V117: 0 | W117: 0 | X117: 0 | Y117: 0 | Z117: 0 | AA117: 0 | AB117: 0 | AC117: 0 | AD117: 0 | AE117: 0 | AF117: 0 | AG117: 0 | AH117: 0 | AI117: 0 | AJ117: 0 | AK117: 0 | AL117: 0 | AM117: 0 | AN117: 0 | AO117: 0 | AP117: 0 | AQ117: 0 | AR117: 0 | AS117: 0 | AT117: 0 | AU117: 0 | AV117: 0 | AW117: 0 | AX117: 0 | AY117: 0 | AZ117: 0 | BA117: 0 | BB117: 0 | BC117: 0 | BD117: 0 | BE117: 0 | BF117: 0
B118: Файтинг | C118: 111 | D118: 2 | E118: 0 | F118: 0 | G118: 0 | H118: 0 | I118: 0 | J118: 0 | K118: 0 | L118: 0 | M118: 0 | N118: 0 | O118: 0 | P118: 0 | Q118: 0 | R118: 0 | S118: 0 | T118: 0 | U118: 0 | V118: 0 | W118: 2 | X118: 0 | Y118: 0 | Z118: 0 | AA118: 0 | AB118: 0 | AC118: 0 | AD118: 2 | AE118: 0 | AF118: 0 | AG118: 0 | AH118: 0 | AI118: 0 | AJ118: 0 | AK118: 0 | AL118: 0 | AM118: 0 | AN118: 0 | AO118: 0 | AP118: 0 | AQ118: 0 | AR118: 0 | AS118: 0 | AT118: 0 | AU118: 0 | AV118: 0 | AW118: 0 | AX118: 2 | AY118: 0 | AZ118: 0 | BA118: 0 | BB118: 0 | BC118: 0 | BD118: 0 | BE118: 2 | BF118: 0
B119: Конный спорт | C119: 112 | D119: 105 | E119: 47 | F119: 1 | G119: 2 | H119: 31 | I119: 11 | J119: 0 | K119: 0 | L119: 2 | M119: 0 | N119: 27 | O119: 3 | P119: 0 | Q119: 22 | R119: 2 | S119: 0 | T119: 0 | U119: 0 | V119: 0 | W119: 31 | X119: 3 | Y119: 0 | Z119: 24 | AA119: 4 | AB119: 0 | AC119: 0 | AD119: 0 | AE119: 0 | AF119: 12 | AG119: 0 | AH119: 1 | AI119: 2 | AJ119: 8 | AK119: 0 | AL119: 0 | AM119: 1 | AN119: 0 | AO119: 8 | AP119: 1 | AQ119: 0 | AR119: 4 | AS119: 3 | AT119: 0 | AU119: 0 | AV119: 0 | AW119: 0 | AX119: 6 | AY119: 0 | AZ119: 0 | BA119: 3 | BB119: 3 | BC119: 0 | BD119: 0 | BE119: 0 | BF119: 0
B120: Конькобежный спорт - всего | C120: 113 | D120: 257 | E120: 55 | F120: 1 | G120: 0 | H120: 26 | I120: 8 | J120: 9 | K120: 3 | L120: 7 | M120: 1 | N120: 72 | O120: 3 | P120: 2 | Q120: 33 | R120: 16 | S120: 10 | T120: 5 | U120: 3 | V120: 0 | W120: 130 | X120: 6 | Y120: 3 | Z120: 50 | AA120: 38 | AB120: 13 | AC120: 5 | AD120: 10 | AE120: 5 | AF120: 21 | AG120: 1 | AH120: 0 | AI120: 10 | AJ120: 2 | AK120: 3 | AL120: 0 | AM120: 4 | AN120: 1 | AO120: 41 | AP120: 3 | AQ120: 2 | AR120: 12 | AS120: 15 | AT120: 5 | AU120: 2 | AV120: 2 | AW120: 0 | AX120: 51 | AY120: 3 | AZ120: 4 | BA120: 13 | BB120: 17 | BC120: 3 | BD120: 4 | BE120: 4 | BF120: 3
B121: в том числе: Конькобежный спорт | C121: 114 | D121: 171 | E121: 26 | F121: 0 | G121: 0 | H121: 15 | I121: 3 | J121: 6 | K121: 2 | L121: 0 | M121: 0 | N121: 45 | O121: 2 | P121: 2 | Q121: 22 | R121: 11 | S121: 5 | T121: 3 | U121: 0 | V121: 0 | W121: 100 | X121: 6 | Y121: 3 | Z121: 37 | AA121: 33 | AB121: 13 | AC121: 5 | AD121: 2 | AE121: 1 | AF121: 11 | AG121: 0 | AH121: 0 | AI121: 7 | AJ121: 1 | AK121: 3 | AL121: 0 | AM121: 0 | AN121: 0 | AO121: 23 | AP121: 2 | AQ121: 2 | AR121: 7 | AS121: 8 | AT121: 3 | AU121: 1 | AV121: 0 | AW121: 0 | AX121: 40 | AY121: 3 | AZ121: 3 | BA121: 11 | BB121: 15 | BC121: 3 | BD121: 4 | BE121: 1 | BF121: 0
B122: Шорт-трек | C122: 115 | D122: 86 | E122: 29 | F122: 1 | G122: 0 | H122: 11 | I122: 5 | J122: 3 | K122: 1 | L122: 7 | M122: 1 | N122: 27 | O122: 1 | P122: 0 | Q122: 11 | R122: 5 | S122: 5 | T122: 2 | U122: 3 | V122: 0 | W122: 30 | X122: 0 | Y122: 0 | Z122: 13 | AA122: 5 | AB122: 0 | AC122: 0 | AD122: 8 | AE122: 4 | AF122: 10 | AG122: 1 | AH122: 0 | AI122: 3 | AJ122: 1 | AK122: 0 | AL122: 0 | AM122: 4 | AN122: 1 | AO122: 18 | AP122: 1 | AQ122: 0 | AR122: 5 | AS122: 7 | AT122: 2 | AU122: 1 | AV122: 2 | AW122: 0 | AX122: 11 | AY122: 0 | AZ122: 1 | BA122: 2 | BB122: 2 | BC122: 0 | BD122: 0 | BE122: 3 | BF122: 3
B123: Масс-старт | C123: 116 | D123: 0 | E123: 0 | F123: 0 | G123: 0 | H123: 0 | I123: 0 | J123: 0 | K123: 0 | L123: 0 | M123: 0 | N123: 0 | O123: 0 | P123: 0 | Q123: 0 | R123: 0 | S123: 0 | T123: 0 | U123: 0 | V123: 0 | W123: 0 | X123: 0 | Y123: 0 | Z123: 0 | AA123: 0 | AB123: 0 | AC123: 0 | AD123: 0 | AE123: 0 | AF123: 0 | AG123: 0 | AH123: 0 | AI123: 0 | AJ123: 0 | AK123: 0 | AL123: 0 | AM123: 0 | AN123: 0 | AO123: 0 | AP123: 0 | AQ123: 0 | AR123: 0 | AS123: 0 | AT123: 0 | AU123: 0 | AV123: 0 | AW123: 0 | AX123: 0 | AY123: 0 | AZ123: 0 | BA123: 0 | BB123: 0 | BC123: 0 | BD123: 0 | BE123: 0 | BF123: 0
B124: Командный забег | C124: 117 | D124: 0 | E124: 0 | F124: 0 | G124: 0 | H124: 0 | I124: 0 | J124: 0 | K124: 0 | L124: 0 | M124: 0 | N124: 0 | O124: 0 | P124: 0 | Q124: 0 | R124: 0 | S124: 0 | T124: 0 | U124: 0 | V124: 0 | W124: 0 | X124: 0 | Y124: 0 | Z124: 0 | AA124: 0 | AB124: 0 | AC124: 0 | AD124: 0 | AE124: 0 | AF124: 0 | AG124: 0 | AH124: 0 | AI124: 0 | AJ124: 0 | AK124: 0 | AL124: 0 | AM124: 0 | AN124: 0 | AO124: 0 | AP124: 0 | AQ124: 0 | AR124: 0 | AS124: 0 | AT124: 0 | AU124: 0 | AV124: 0 | AW124: 0 | AX124: 0 | AY124: 0 | AZ124: 0 | BA124: 0 | BB124: 0 | BC124: 0 | BD124: 0 | BE124: 0 | BF124: 0
B125: Корэш | C125: 118 | D125: 35 | E125: 25 | F125: 18 | G125: 3 | H125: 3 | I125: 1 | J125: 0 | K125: 0 | L125: 0 | M125: 0 | N125: 1 | O125: 1 | P125: 0 | Q125: 0 | R125: 0 | S125: 0 | T125: 0 | U125: 0 | V125: 0 | W125: 9 | X125: 4 | Y125: 1 | Z125: 3 | AA125: 1 | AB125: 0 | AC125: 0 | AD125: 0 | AE125: 0 | AF125: 29 | AG125: 22 | AH125: 4 | AI125: 2 | AJ125: 1 | AK125: 0 | AL125: 0 | AM125: 0 | AN125: 0 | AO125: 1 | AP125: 1 | AQ125: 0 | AR125: 0 | AS125: 0 | AT125: 0 | AU125: 0 | AV125: 0 | AW125: 0 | AX125: 2 | AY125: 1 | AZ125: 1 | BA125: 0 | BB125: 0 | BC125: 0 | BD125: 0 | BE125: 0 | BF125: 0
B126: Крикет | C126: 119 | D126: 0 | E126: 0 | F126: 0 | G126: 0 | H126: 0 | I126: 0 | J126: 0 | K126: 0 | L126: 0 | M126: 0 | N126: 0 | O126: 0 | P126: 0 | Q126: 0 | R126: 0 | S126: 0 | T126: 0 | U126: 0 | V126: 0 | W126: 0 | X126: 0 | Y126: 0 | Z126: 0 | AA126: 0 | AB126: 0 | AC126: 0 | AD126: 0 | AE126: 0 | AF126: 0 | AG126: 0 | AH126: 0 | AI126: 0 | AJ126: 0 | AK126: 0 | AL126: 0 | AM126: 0 | AN126: 0 | AO126: 0 | AP126: 0 | AQ126: 0 | AR126: 0 | AS126: 0 | AT126: 0 | AU126: 0 | AV126: 0 | AW126: 0 | AX126: 0 | AY126: 0 | AZ126: 0 | BA126: 0 | BB126: 0 | BC126: 0 | BD126: 0 | BE126: 0 | BF126: 0
B127: Кудо | C127: 120 | D127: 30 | E127: 11 | F127: 7 | G127: 2 | H127: 1 | I127: 1 | J127: 0 | K127: 0 | L127: 0 | M127: 0 | N127: 6 | O127: 2 | P127: 4 | Q127: 0 | R127: 0 | S127: 0 | T127: 0 | U127: 0 | V127: 0 | W127: 13 | X127: 6 | Y127: 4 | Z127: 0 | AA127: 2 | AB127: 0 | AC127: 0 | AD127: 1 | AE127: 0 | AF127: 3 | AG127: 2 | AH127: 1 | AI127: 0 | AJ127: 0 | AK127: 0 | AL127: 0 | AM127: 0 | AN127: 0 | AO127: 5 | AP127: 2 | AQ127: 3 | AR127: 0 | AS127: 0 | AT127: 0 | AU127: 0 | AV127: 0 | AW127: 0 | AX127: 1 | AY127: 1 | AZ127: 0 | BA127: 0 | BB127: 0 | BC127: 0 | BD127: 0 | BE127: 0 | BF127: 0
B128: Лазерный бой | C128: 121 | D128: 0 | E128: 0 | F128: 0 | G128: 0 | H128: 0 | I128: 0 | J128: 0 | K128: 0 | L128: 0 | M128: 0 | N128: 0 | O128: 0 | P128: 0 | Q128: 0 | R128: 0 | S128: 0 | T128: 0 | U128: 0 | V128: 0 | W128: 0 | X128: 0 | Y128: 0 | Z128: 0 | AA128: 0 | AB128: 0 | AC128: 0 | AD128: 0 | AE128: 0 | AF128: 0 | AG128: 0 | AH128: 0 | AI128: 0 | AJ128: 0 | AK128: 0 | AL128: 0 | AM128: 0 | AN128: 0 | AO128: 0 | AP128: 0 | AQ128: 0 | AR128: 0 | AS128: 0 | AT128: 0 | AU128: 0 | AV128: 0 | AW128: 0 | AX128: 0 | AY128: 0 | AZ128: 0 | BA128: 0 | BB128: 0 | BC128: 0 | BD128: 0 | BE128: 0 | BF128: 0
B129: Лапта | C129: 122 | D129: 58 | E129: 10 | F129: 3 | G129: 3 | H129: 0 | I129: 0 | J129: 0 | K129: 0 | L129: 4 | M129: 0 | N129: 34 | O129: 22 | P129: 3 | Q129: 3 | R129: 0 | S129: 0 | T129: 0 | U129: 0 | V129: 6 | W129: 14 | X129: 0 | Y129: 0 | Z129: 4 | AA129: 1 | AB129: 0 | AC129: 0 | AD129: 9 | AE129: 0 | AF129: 9 | AG129: 2 | AH129: 3 | AI129: 0 | AJ129: 0 | AK129: 0 | AL129: 0 | AM129: 4 | AN129: 0 | AO129: 21 | AP129: 17 | AQ129: 1 | AR129: 0 | AS129: 0 | AT129: 0 | AU129: 0 | AV129: 0 | AW129: 3 | AX129: 13 | AY129: 0 | AZ129: 0 | BA129: 4 | BB129: 1 | BC129: 0 | BD129: 0 | BE129: 8 | BF129: 0
B130: Легкая атлетика | C130: 123 | D130: 1378 | E130: 228 | F130: 57 | G130: 10 | H130: 114 | I130: 26 | J130: 10 | K130: 2 | L130: 4 | M130: 5 | N130: 609 | O130: 69 | P130: 18 | Q130: 322 | R130: 91 | S130: 76 | T130: 18 | U130: 9 | V130: 6 | W130: 541 | X130: 35 | Y130: 9 | Z130: 354 | AA130: 103 | AB130: 28 | AC130: 5 | AD130: 7 | AE130: 0 | AF130: 125 | AG130: 33 | AH130: 6 | AI130: 65 | AJ130: 15 | AK130: 2 | AL130: 1 | AM130: 2 | AN130: 1 | AO130: 184 | AP130: 28 | AQ130: 4 | AR130: 94 | AS130: 42 | AT130: 6 | AU130: 5 | AV130: 3 | AW130: 2 | AX130: 135 | AY130: 6 | AZ130: 1 | BA130: 107 | BB130: 19 | BC130: 0 | BD130: 0 | BE130: 2 | BF130: 0
B131: Лыжное двоеборье | C131: 124 | D131: 46 | E131: 1 | F131: 0 | G131: 0 | H131: 0 | I131: 1 | J131: 0 | K131: 0 | L131: 0 | M131: 0 | N131: 22 | O131: 0 | P131: 0 | Q131: 15 | R131: 5 | S131: 2 | T131: 0 | U131: 0 | V131: 0 | W131: 23 | X131: 0 | Y131: 0 | Z131: 16 | AA131: 5 | AB131: 2 | AC131: 0 | AD131: 0 | AE131: 0 | AF131: 1 | AG131: 0 | AH131: 0 | AI131: 1 | AJ131: 0 | AK131: 0 | AL131: 0 | AM131: 0 | AN131: 0 | AO131: 14 | AP131: 0 | AQ131: 0 | AR131: 10 | AS131: 4 | AT131: 0 | AU131: 0 | AV131: 0 | AW131: 0 | AX131: 6 | AY131: 0 | AZ131: 0 | BA131: 1 | BB131: 5 | BC131: 0 | BD131: 0 | BE131: 0 | BF131: 0
B132: Лыжные гонки | C132: 125 | D132: 164 | E132: 6 | F132: 3 | G132: 0 | H132: 1 | I132: 2 | J132: 0 | K132: 0 | L132: 0 | M132: 0 | N132: 78 | O132: 13 | P132: 1 | Q132: 38 | R132: 10 | S132: 12 | T132: 4 | U132: 0 | V132: 0 | W132: 80 | X132: 13 | Y132: 6 | Z132: 42 | AA132: 15 | AB132: 0 | AC132: 1 | AD132: 3 | AE132: 0 | AF132: 7 | AG132: 4 | AH132: 0 | AI132: 0 | AJ132: 3 | AK132: 0 | AL132: 0 | AM132: 0 | AN132: 0 | AO132: 42 | AP132: 7 | AQ132: 0 | AR132: 22 | AS132: 8 | AT132: 3 | AU132: 2 | AV132: 0 | AW132: 0 | AX132: 17 | AY132: 0 | AZ132: 0 | BA132: 12 | BB132: 4 | BC132: 0 | BD132: 0 | BE132: 1 | BF132: 0
B133: Мас-рестлинг | C133: 126 | D133: 46 | E133: 16 | F133: 5 | G133: 4 | H133: 1 | I133: 0 | J133: 0 | K133: 0 | L133: 1 | M133: 5 | N133: 10 | O133: 1 | P133: 2 | Q133: 1 | R133: 0 | S133: 0 | T133: 0 | U133: 5 | V133: 1 | W133: 20 | X133: 1 | Y133: 1 | Z133: 8 | AA133: 0 | AB133: 0 | AC133: 0 | AD133: 4 | AE133: 6 | AF133: 12 | AG133: 8 | AH133: 4 | AI133: 0 | AJ133: 0 | AK133: 0 | AL133: 0 | AM133: 0 | AN133: 0 | AO133: 2 | AP133: 1 | AQ133: 1 | AR133: 0 | AS133: 0 | AT133: 0 | AU133: 0 | AV133: 0 | AW133: 0 | AX133: 3 | AY133: 1 | AZ133: 0 | BA133: 2 | BB133: 0 | BC133: 0 | BD133: 0 | BE133: 0 | BF133: 0
B134: Международное военно-спортивное многоборье | C134: 127 | D134: 0 | E134: 0 | F134: 0 | G134: 0 | H134: 0 | I134: 0 | J134: 0 | K134: 0 | L134: 0 | M134: 0 | N134: 0 | O134: 0 | P134: 0 | Q134: 0 | R134: 0 | S134: 0 | T134: 0 | U134: 0 | V134: 0 | W134: 0 | X134: 0 | Y134: 0 | Z134: 0 | AA134: 0 | AB134: 0 | AC134: 0 | AD134: 0 | AE134: 0 | AF134: 0 | AG134: 0 | AH134: 0 | AI134: 0 | AJ134: 0 | AK134: 0 | AL134: 0 | AM134: 0 | AN134: 0 | AO134: 0 | AP134: 0 | AQ134: 0 | AR134: 0 | AS134: 0 | AT134: 0 | AU134: 0 | AV134: 0 | AW134: 0 | AX134: 0 | AY134: 0 | AZ134: 0 | BA134: 0 | BB134: 0 | BC134: 0 | BD134: 0 | BE134: 0 | BF134: 0
B135: Микрофутзал | C135: 128 | D135: 0 | E135: 0 | F135: 0 | G135: 0 | H135: 0 | I135: 0 | J135: 0 | K135: 0 | L135: 0 | M135: 0 | N135: 0 | O135: 0 | P135: 0 | Q135: 0 | R135: 0 | S135: 0 | T135: 0 | U135: 0 | V135: 0 | W135: 0 | X135: 0 | Y135: 0 | Z135: 0 | AA135: 0 | AB135: 0 | AC135: 0 | AD135: 0 | AE135: 0 | AF135: 0 | AG135: 0 | AH135: 0 | AI135: 0 | AJ135: 0 | AK135: 0 | AL135: 0 | AM135: 0 | AN135: 0 | AO135: 0 | AP135: 0 | AQ135: 0 | AR135: 0 | AS135: 0 | AT135: 0 | AU135: 0 | AV135: 0 | AW135: 0 | AX135: 0 | AY135: 0 | AZ135: 0 | BA135: 0 | BB135: 0 | BC135: 0 | BD135: 0 | BE135: 0 | BF135: 0
B136: Многоборье готов к труду и обороне | C136: 129 | D136: 0 | E136: 0 | F136: 0 | G136: 0 | H136: 0 | I136: 0 | J136: 0 | K136: 0 | L136: 0 | M136: 0 | N136: 0 | O136: 0 | P136: 0 | Q136: 0 | R136: 0 | S136: 0 | T136: 0 | U136: 0 | V136: 0 | W136: 0 | X136: 0 | Y136: 0 | Z136: 0 | AA136: 0 | AB136: 0 | AC136: 0 | AD136: 0 | AE136: 0 | AF136: 0 | AG136: 0 | AH136: 0 | AI136: 0 | AJ136: 0 | AK136: 0 | AL136: 0 | AM136: 0 | AN136: 0 | AO136: 0 | AP136: 0 | AQ136: 0 | AR136: 0 | AS136: 0 | AT136: 0 | AU136: 0 | AV136: 0 | AW136: 0 | AX136: 0 | AY136: 0 | AZ136: 0 | BA136: 0 | BB136: 0 | BC136: 0 | BD136: 0 | BE136: 0 | BF136: 0
B137: Многоборье кинологов | C137: 130 | D137: =SUM(E137,N137,W137) -> 0 | E137: =SUM(F137:M137) -> 0 | F137: 0 | G137: 0 | H137: 0 | I137: 0 | J137: 0 | K137: 0 | L137: 0 | M137: 0 | N137: =SUM(O137:V137) -> 0 | O137: 0 | P137: 0 | Q137: 0 | R137: 0 | S137: 0 | T137: 0 | U137: 0 | V137: 0 | W137: =SUM(X137:AE137) -> 0 | X137: 0 | Y137: 0 | Z137: 0 | AA137: 0 | AB137: 0 | AC137: 0 | AD137: 0 | AE137: 0 | AF137: =SUM(AG137:AN137) -> 0 | AG137: 0 | AH137: 0 | AI137: 0 | AJ137: 0 | AK137: 0 | AL137: 0 | AM137: 0 | AN137: 0 | AO137: =SUM(AP137:AW137) -> 0 | AP137: 0 | AQ137: 0 | AR137: 0 | AS137: 0 | AT137: 0 | AU137: 0 | AV137: 0 | AW137: 0 | AX137: =SUM(AY137:BF137) -> 0 | AY137: 0 | AZ137: 0 | BA137: 0 | BB137: 0 | BC137: 0 | BD137: 0 | BE137: 0 | BF137: 0
B138: Многоборье спасателей МЧС России | C138: 131 | D138: 0 | E138: 0 | F138: 0 | G138: 0 | H138: 0 | I138: 0 | J138: 0 | K138: 0 | L138: 0 | M138: 0 | N138: 0 | O138: 0 | P138: 0 | Q138: 0 | R138: 0 | S138: 0 | T138: 0 | U138: 0 | V138: 0 | W138: 0 | X138: 0 | Y138: 0 | Z138: 0 | AA138: 0 | AB138: 0 | AC138: 0 | AD138: 0 | AE138: 0 | AF138: 0 | AG138: 0 | AH138: 0 | AI138: 0 | AJ138: 0 | AK138: 0 | AL138: 0 | AM138: 0 | AN138: 0 | AO138: 0 | AP138: 0 | AQ138: 0 | AR138: 0 | AS138: 0 | AT138: 0 | AU138: 0 | AV138: 0 | AW138: 0 | AX138: 0 | AY138: 0 | AZ138: 0 | BA138: 0 | BB138: 0 | BC138: 0 | BD138: 0 | BE138: 0 | BF138: 0
B139: Морское многоборье | C139: 132 | D139: 79 | E139: 42 | F139: 2 | G139: 0 | H139: 40 | I139: 0 | J139: 0 | K139: 0 | L139: 0 | M139: 0 | N139: 0 | O139: 0 | P139: 0 | Q139: 0 | R139: 0 | S139: 0 | T139: 0 | U139: 0 | V139: 0 | W139: 37 | X139: 0 | Y139: 0 | Z139: 28 | AA139: 3 | AB139: 0 | AC139: 0 | AD139: 6 | AE139: 0 | AF139: 14 | AG139: 0 | AH139: 0 | AI139: 14 | AJ139: 0 | AK139: 0 | AL139: 0 | AM139: 0 | AN139: 0 | AO139: 0 | AP139: 0 | AQ139: 0 | AR139: 0 | AS139: 0 | AT139: 0 | AU139: 0 | AV139: 0 | AW139: 0 | AX139: 10 | AY139: 0 | AZ139: 0 | BA139: 7 | BB139: 3 | BC139: 0 | BD139: 0 | BE139: 0 | BF139: 0
B140: Мотоциклетный спорт | C140: 133 | D140: 31 | E140: 12 | F140: 11 | G140: 0 | H140: 1 | I140: 0 | J140: 0 | K140: 0 | L140: 0 | M140: 0 | N140: 6 | O140: 4 | P140: 2 | Q140: 0 | R140: 0 | S140: 0 | T140: 0 | U140: 0 | V140: 0 | W140: 13 | X140: 9 | Y140: 0 | Z140: 4 | AA140: 0 | AB140: 0 | AC140: 0 | AD140: 0 | AE140: 0 | AF140: 9 | AG140: 8 | AH140: 0 | AI140: 1 | AJ140: 0 | AK140: 0 | AL140: 0 | AM140: 0 | AN140: 0 | AO140: 0 | AP140: 0 | AQ140: 0 | AR140: 0 | AS140: 0 | AT140: 0 | AU140: 0 | AV140: 0 | AW140: 0 | AX140: 3 | AY140: 1 | AZ140: 0 | BA140: 2 | BB140: 0 | BC140: 0 | BD140: 0 | BE140: 0 | BF140: 0
B141: Муайтай | C141: 134 | D141: 214 | E141: 81 | F141: 38 | G141: 14 | H141: 21 | I141: 8 | J141: 0 | K141: 0 | L141: 0 | M141: 0 | N141: 59 | O141: 25 | P141: 8 | Q141: 22 | R141: 4 | S141: 0 | T141: 0 | U141: 0 | V141: 0 | W141: 74 | X141: 41 | Y141: 10 | Z141: 18 | AA141: 5 | AB141: 0 | AC141: 0 | AD141: 0 | AE141: 0 | AF141: 63 | AG141: 25 | AH141: 11 | AI141: 22 | AJ141: 5 | AK141: 0 | AL141: 0 | AM141: 0 | AN141: 0 | AO141: 43 | AP141: 17 | AQ141: 8 | AR141: 15 | AS141: 3 | AT141: 0 | AU141: 0 | AV141: 0 | AW141: 0 | AX141: 27 | AY141: 14 | AZ141: 1 | BA141: 9 | BB141: 3 | BC141: 0 | BD141: 0 | BE141: 0 | BF141: 0
B142: Нарды | C142: 135 | D142: 0 | E142: 0 | F142: 0 | G142: 0 | H142: 0 | I142: 0 | J142: 0 | K142: 0 | L142: 0 | M142: 0 | N142: 0 | O142: 0 | P142: 0 | Q142: 0 | R142: 0 | S142: 0 | T142: 0 | U142: 0 | V142: 0 | W142: 0 | X142: 0 | Y142: 0 | Z142: 0 | AA142: 0 | AB142: 0 | AC142: 0 | AD142: 0 | AE142: 0 | AF142: 0 | AG142: 0 | AH142: 0 | AI142: 0 | AJ142: 0 | AK142: 0 | AL142: 0 | AM142: 0 | AN142: 0 | AO142: 0 | AP142: 0 | AQ142: 0 | AR142: 0 | AS142: 0 | AT142: 0 | AU142: 0 | AV142: 0 | AW142: 0 | AX142: 0 | AY142: 0 | AZ142: 0 | BA142: 0 | BB142: 0 | BC142: 0 | BD142: 0 | BE142: 0 | BF142: 0
B143: Настольный теннис | C143: 136 | D143: 204 | E143: 57 | F143: 17 | G143: 1 | H143: 19 | I143: 7 | J143: 12 | K143: 1 | L143: 0 | M143: 0 | N143: 96 | O143: 13 | P143: 8 | Q143: 27 | R143: 14 | S143: 27 | T143: 7 | U143: 0 | V143: 0 | W143: 51 | X143: 2 | Y143: 2 | Z143: 28 | AA143: 18 | AB143: 0 | AC143: 1 | AD143: 0 | AE143: 0 | AF143: 36 | AG143: 13 | AH143: 3 | AI143: 10 | AJ143: 7 | AK143: 3 | AL143: 0 | AM143: 0 | AN143: 0 | AO143: 39 | AP143: 11 | AQ143: 4 | AR143: 9 | AS143: 3 | AT143: 8 | AU143: 4 | AV143: 0 | AW143: 0 | AX143: 23 | AY143: 1 | AZ143: 0 | BA143: 5 | BB143: 17 | BC143: 0 | BD143: 0 | BE143: 0 | BF143: 0
B144: Падел | C144: 137 | D144: 0 | E144: 0 | F144: 0 | G144: 0 | H144: 0 | I144: 0 | J144: 0 | K144: 0 | L144: 0 | M144: 0 | N144: 0 | O144: 0 | P144: 0 | Q144: 0 | R144: 0 | S144: 0 | T144: 0 | U144: 0 | V144: 0 | W144: 0 | X144: 0 | Y144: 0 | Z144: 0 | AA144: 0 | AB144: 0 | AC144: 0 | AD144: 0 | AE144: 0 | AF144: 0 | AG144: 0 | AH144: 0 | AI144: 0 | AJ144: 0 | AK144: 0 | AL144: 0 | AM144: 0 | AN144: 0 | AO144: 0 | AP144: 0 | AQ144: 0 | AR144: 0 | AS144: 0 | AT144: 0 | AU144: 0 | AV144: 0 | AW144: 0 | AX144: 0 | AY144: 0 | AZ144: 0 | BA144: 0 | BB144: 0 | BC144: 0 | BD144: 0 | BE144: 0 | BF144: 0
B145: Парашютный спорт | C145: 138 | D145: 24 | E145: 1 | F145: 0 | G145: 0 | H145: 0 | I145: 0 | J145: 0 | K145: 0 | L145: 0 | M145: 1 | N145: 8 | O145: 8 | P145: 0 | Q145: 0 | R145: 0 | S145: 0 | T145: 0 | U145: 0 | V145: 0 | W145: 15 | X145: 8 | Y145: 1 | Z145: 6 | AA145: 0 | AB145: 0 | AC145: 0 | AD145: 0 | AE145: 0 | AF145: 0 | AG145: 0 | AH145: 0 | AI145: 0 | AJ145: 0 | AK145: 0 | AL145: 0 | AM145: 0 | AN145: 0 | AO145: 7 | AP145: 7 | AQ145: 0 | AR145: 0 | AS145: 0 | AT145: 0 | AU145: 0 | AV145: 0 | AW145: 0 | AX145: 6 | AY145: 2 | AZ145: 1 | BA145: 3 | BB145: 0 | BC145: 0 | BD145: 0 | BE145: 0 | BF145: 0
B146: Парусный спорт | C146: 139 | D146: 137 | E146: 65 | F146: 3 | G146: 0 | H146: 60 | I146: 1 | J146: 1 | K146: 0 | L146: 0 | M146: 0 | N146: 28 | O146: 3 | P146: 0 | Q146: 25 | R146: 0 | S146: 0 | T146: 0 | U146: 0 | V146: 0 | W146: 44 | X146: 0 | Y146: 1 | Z146: 26 | AA146: 17 | AB146: 0 | AC146: 0 | AD146: 0 | AE146: 0 | AF146: 36 | AG146: 0 | AH146: 0 | AI146: 35 | AJ146: 0 | AK146: 1 | AL146: 0 | AM146: 0 | AN146: 0 | AO146: 7 | AP146: 2 | AQ146: 0 | AR146: 5 | AS146: 0 | AT146: 0 | AU146: 0 | AV146: 0 | AW146: 0 | AX146: 11 | AY146: 0 | AZ146: 0 | BA146: 4 | BB146: 7 | BC146: 0 | BD146: 0 | BE146: 0 | BF146: 0
B147: Пауэрлифтинг | C147: 140 | D147: 244 | E147: 69 | F147: 36 | G147: 9 | H147: 21 | I147: 2 | J147: 0 | K147: 0 | L147: 0 | M147: 1 | N147: 88 | O147: 37 | P147: 14 | Q147: 30 | R147: 7 | S147: 0 | T147: 0 | U147: 0 | V147: 0 | W147: 87 | X147: 40 | Y147: 12 | Z147: 26 | AA147: 6 | AB147: 2 | AC147: 1 | AD147: 0 | AE147: 0 | AF147: 28 | AG147: 17 | AH147: 5 | AI147: 6 | AJ147: 0 | AK147: 0 | AL147: 0 | AM147: 0 | AN147: 0 | AO147: 32 | AP147: 12 | AQ147: 7 | AR147: 10 | AS147: 2 | AT147: 1 | AU147: 0 | AV147: 0 | AW147: 0 | AX147: 28 | AY147: 7 | AZ147: 3 | BA147: 14 | BB147: 2 | BC147: 2 | BD147: 0 | BE147: 0 | BF147: 0
B148: Перетягивание каната | C148: 141 | D148: 0 | E148: 0 | F148: 0 | G148: 0 | H148: 0 | I148: 0 | J148: 0 | K148: 0 | L148: 0 | M148: 0 | N148: 0 | O148: 0 | P148: 0 | Q148: 0 | R148: 0 | S148: 0 | T148: 0 | U148: 0 | V148: 0 | W148: 0 | X148: 0 | Y148: 0 | Z148: 0 | AA148: 0 | AB148: 0 | AC148: 0 | AD148: 0 | AE148: 0 | AF148: 0 | AG148: 0 | AH148: 0 | AI148: 0 | AJ148: 0 | AK148: 0 | AL148: 0 | AM148: 0 | AN148: 0 | AO148: 0 | AP148: 0 | AQ148: 0 | AR148: 0 | AS148: 0 | AT148: 0 | AU148: 0 | AV148: 0 | AW148: 0 | AX148: 0 | AY148: 0 | AZ148: 0 | BA148: 0 | BB148: 0 | BC148: 0 | BD148: 0 | BE148: 0 | BF148: 0
B149: Пилонный спорт | C149: 142 | D149: 0 | E149: 0 | F149: 0 | G149: 0 | H149: 0 | I149: 0 | J149: 0 | K149: 0 | L149: 0 | M149: 0 | N149: 0 | O149: 0 | P149: 0 | Q149: 0 | R149: 0 | S149: 0 | T149: 0 | U149: 0 | V149: 0 | W149: 0 | X149: 0 | Y149: 0 | Z149: 0 | AA149: 0 | AB149: 0 | AC149: 0 | AD149: 0 | AE149: 0 | AF149: 0 | AG149: 0 | AH149: 0 | AI149: 0 | AJ149: 0 | AK149: 0 | AL149: 0 | AM149: 0 | AN149: 0 | AO149: 0 | AP149: 0 | AQ149: 0 | AR149: 0 | AS149: 0 | AT149: 0 | AU149: 0 | AV149: 0 | AW149: 0 | AX149: 0 | AY149: 0 | AZ149: 0 | BA149: 0 | BB149: 0 | BC149: 0 | BD149: 0 | BE149: 0 | BF149: 0
B150: Плавание - всего | C150: 143 | D150: 475 | E150: 84 | F150: 21 | G150: 4 | H150: 48 | I150: 4 | J150: 4 | K150: 0 | L150: 3 | M150: 0 | N150: 199 | O150: 26 | P150: 9 | Q150: 76 | R150: 51 | S150: 28 | T150: 5 | U150: 4 | V150: 0 | W150: 192 | X150: 11 | Y150: 6 | Z150: 93 | AA150: 39 | AB150: 21 | AC150: 10 | AD150: 11 | AE150: 1 | AF150: 49 | AG150: 7 | AH150: 3 | AI150: 29 | AJ150: 3 | AK150: 3 | AL150: 0 | AM150: 4 | AN150: 0 | AO150: 100 | AP150: 13 | AQ150: 6 | AR150: 32 | AS150: 40 | AT150: 5 | AU150: 2 | AV150: 2 | AW150: 0 | AX150: 58 | AY150: 9 | AZ150: 4 | BA150: 28 | BB150: 13 | BC150: 1 | BD150: 2 | BE150: 1 | BF150: 0
B151: в том числе: Открытая вода | C151: 144 | D151: 35 | E151: 3 | F151: 0 | G151: 0 | H151: 3 | I151: 0 | J151: 0 | K151: 0 | L151: 0 | M151: 0 | N151: 17 | O151: 1 | P151: 0 | Q151: 3 | R151: 0 | S151: 13 | T151: 0 | U151: 0 | V151: 0 | W151: 15 | X151: 1 | Y151: 0 | Z151: 10 | AA151: 1 | AB151: 3 | AC151: 0 | AD151: 0 | AE151: 0 | AF151: 2 | AG151: 0 | AH151: 0 | AI151: 2 | AJ151: 0 | AK151: 0 | AL151: 0 | AM151: 0 | AN151: 0 | AO151: 4 | AP151: 0 | AQ151: 0 | AR151: 1 | AS151: 0 | AT151: 3 | AU151: 0 | AV151: 0 | AW151: 0 | AX151: 8 | AY151: 0 | AZ151: 0 | BA151: 7 | BB151: 1 | BC151: 0 | BD151: 0 | BE151: 0 | BF151: 0
B152: Иные дисциплины вида спорта "плавание" | C152: 145 | D152: 440 | E152: 81 | F152: 21 | G152: 4 | H152: 45 | I152: 4 | J152: 4 | K152: 0 | L152: 3 | M152: 0 | N152: 182 | O152: 25 | P152: 9 | Q152: 73 | R152: 51 | S152: 15 | T152: 5 | U152: 4 | V152: 0 | W152: 177 | X152: 10 | Y152: 6 | Z152: 83 | AA152: 38 | AB152: 18 | AC152: 10 | AD152: 11 | AE152: 1 | AF152: 47 | AG152: 7 | AH152: 3 | AI152: 27 | AJ152: 3 | AK152: 3 | AL152: 0 | AM152: 4 | AN152: 0 | AO152: 96 | AP152: 13 | AQ152: 6 | AR152: 31 | AS152: 40 | AT152: 2 | AU152: 2 | AV152: 2 | AW152: 0 | AX152: 50 | AY152: 9 | AZ152: 4 | BA152: 21 | BB152: 12 | BC152: 1 | BD152: 2 | BE152: 1 | BF152: 0
B153: Планерный спорт | C153: 146 | D153: 0 | E153: 0 | F153: 0 | G153: 0 | H153: 0 | I153: 0 | J153: 0 | K153: 0 | L153: 0 | M153: 0 | N153: 0 | O153: 0 | P153: 0 | Q153: 0 | R153: 0 | S153: 0 | T153: 0 | U153: 0 | V153: 0 | W153: 0 | X153: 0 | Y153: 0 | Z153: 0 | AA153: 0 | AB153: 0 | AC153: 0 | AD153: 0 | AE153: 0 | AF153: 0 | AG153: 0 | AH153: 0 | AI153: 0 | AJ153: 0 | AK153: 0 | AL153: 0 | AM153: 0 | AN153: 0 | AO153: 0 | AP153: 0 | AQ153: 0 | AR153: 0 | AS153: 0 | AT153: 0 | AU153: 0 | AV153: 0 | AW153: 0 | AX153: 0 | AY153: 0 | AZ153: 0 | BA153: 0 | BB153: 0 | BC153: 0 | BD153: 0 | BE153: 0 | BF153: 0
B154: Подводный спорт | C154: 147 | D154: 186 | E154: 6 | F154: 2 | G154: 0 | H154: 4 | I154: 0 | J154: 0 | K154: 0 | L154: 0 | M154: 0 | N154: 67 | O154: 33 | P154: 2 | Q154: 28 | R154: 2 | S154: 0 | T154: 0 | U154: 2 | V154: 0 | W154: 113 | X154: 30 | Y154: 3 | Z154: 66 | AA154: 14 | AB154: 0 | AC154: 0 | AD154: 0 | AE154: 0 | AF154: 4 | AG154: 0 | AH154: 0 | AI154: 4 | AJ154: 0 | AK154: 0 | AL154: 0 | AM154: 0 | AN154: 0 | AO154: 31 | AP154: 15 | AQ154: 2 | AR154: 10 | AS154: 2 | AT154: 0 | AU154: 0 | AV154: 2 | AW154: 0 | AX154: 37 | AY154: 15 | AZ154: 1 | BA154: 15 | BB154: 6 | BC154: 0 | BD154: 0 | BE154: 0 | BF154: 0
B155: Пожарно-спасательный спорт | C155: 148 | D155: 0 | E155: 0 | F155: 0 | G155: 0 | H155: 0 | I155: 0 | J155: 0 | K155: 0 | L155: 0 | M155: 0 | N155: 0 | O155: 0 | P155: 0 | Q155: 0 | R155: 0 | S155: 0 | T155: 0 | U155: 0 | V155: 0 | W155: 0 | X155: 0 | Y155: 0 | Z155: 0 | AA155: 0 | AB155: 0 | AC155: 0 | AD155: 0 | AE155: 0 | AF155: 0 | AG155: 0 | AH155: 0 | AI155: 0 | AJ155: 0 | AK155: 0 | AL155: 0 | AM155: 0 | AN155: 0 | AO155: 0 | AP155: 0 | AQ155: 0 | AR155: 0 | AS155: 0 | AT155: 0 | AU155: 0 | AV155: 0 | AW155: 0 | AX155: 0 | AY155: 0 | AZ155: 0 | BA155: 0 | BB155: 0 | BC155: 0 | BD155: 0 | BE155: 0 | BF155: 0
B156: Полиатлон | C156: 149 | D156: 124 | E156: 48 | F156: 32 | G156: 0 | H156: 16 | I156: 0 | J156: 0 | K156: 0 | L156: 0 | M156: 0 | N156: 33 | O156: 27 | P156: 0 | Q156: 6 | R156: 0 | S156: 0 | T156: 0 | U156: 0 | V156: 0 | W156: 43 | X156: 26 | Y156: 1 | Z156: 16 | AA156: 0 | AB156: 0 | AC156: 0 | AD156: 0 | AE156: 0 | AF156: 22 | AG156: 15 | AH156: 0 | AI156: 7 | AJ156: 0 | AK156: 0 | AL156: 0 | AM156: 0 | AN156: 0 | AO156: 12 | AP156: 9 | AQ156: 0 | AR156: 3 | AS156: 0 | AT156: 0 | AU156: 0 | AV156: 0 | AW156: 0 | AX156: 5 | AY156: 2 | AZ156: 0 | BA156: 3 | BB156: 0 | BC156: 0 | BD156: 0 | BE156: 0 | BF156: 0
B157: Практическая стрельба | C157: 150 | D157: 8 | E157: 0 | F157: 0 | G157: 0 | H157: 0 | I157: 0 | J157: 0 | K157: 0 | L157: 0 | M157: 0 | N157: 0 | O157: 0 | P157: 0 | Q157: 0 | R157: 0 | S157: 0 | T157: 0 | U157: 0 | V157: 0 | W157: 8 | X157: 3 | Y157: 0 | Z157: 5 | AA157: 0 | AB157: 0 | AC157: 0 | AD157: 0 | AE157: 0 | AF157: 0 | AG157: 0 | AH157: 0 | AI157: 0 | AJ157: 0 | AK157: 0 | AL157: 0 | AM157: 0 | AN157: 0 | AO157: 0 | AP157: 0 | AQ157: 0 | AR157: 0 | AS157: 0 | AT157: 0 | AU157: 0 | AV157: 0 | AW157: 0 | AX157: 7 | AY157: 3 | AZ157: 0 | BA157: 4 | BB157: 0 | BC157: 0 | BD157: 0 | BE157: 0 | BF157: 0
B158: Прыжки в воду | C158: 151 | D158: 122 | E158: 15 | F158: 0 | G158: 0 | H158: 7 | I158: 1 | J158: 0 | K158: 0 | L158: 7 | M158: 0 | N158: 65 | O158: 0 | P158: 2 | Q158: 47 | R158: 8 | S158: 4 | T158: 0 | U158: 4 | V158: 0 | W158: 42 | X158: 2 | Y158: 0 | Z158: 38 | AA158: 0 | AB158: 0 | AC158: 0 | AD158: 2 | AE158: 0 | AF158: 4 | AG158: 0 | AH158: 0 | AI158: 3 | AJ158: 1 | AK158: 0 | AL158: 0 | AM158: 0 | AN158: 0 | AO158: 21 | AP158: 0 | AQ158: 1 | AR158: 12 | AS158: 2 | AT158: 4 | AU158: 0 | AV158: 2 | AW158: 0 | AX158: 12 | AY158: 2 | AZ158: 0 | BA158: 6 | BB158: 3 | BC158: 0 | BD158: 0 | BE158: 1 | BF158: 0
B159: Прыжки на батуте - всего | C159: 152 | D159: 212 | E159: 67 | F159: 14 | G159: 0 | H159: 48 | I159: 0 | J159: 3 | K159: 0 | L159: 2 | M159: 0 | N159: 92 | O159: 20 | P159: 0 | Q159: 55 | R159: 13 | S159: 2 | T159: 0 | U159: 2 | V159: 0 | W159: 53 | X159: 14 | Y159: 7 | Z159: 18 | AA159: 8 | AB159: 5 | AC159: 1 | AD159: 0 | AE159: 0 | AF159: 32 | AG159: 7 | AH159: 0 | AI159: 22 | AJ159: 0 | AK159: 1 | AL159: 0 | AM159: 2 | AN159: 0 | AO159: 44 | AP159: 7 | AQ159: 0 | AR159: 23 | AS159: 13 | AT159: 0 | AU159: 0 | AV159: 1 | AW159: 0 | AX159: 11 | AY159: 2 | AZ159: 0 | BA159: 5 | BB159: 3 | BC159: 1 | BD159: 0 | BE159: 0 | BF159: 0
B160: в том числе: Акробатическая дорожка | C160: 153 | D160: 42 | E160: 8 | F160: 4 | G160: 0 | H160: 4 | I160: 0 | J160: 0 | K160: 0 | L160: 0 | M160: 0 | N160: 21 | O160: 10 | P160: 0 | Q160: 11 | R160: 0 | S160: 0 | T160: 0 | U160: 0 | V160: 0 | W160: 13 | X160: 8 | Y160: 3 | Z160: 2 | AA160: 0 | AB160: 0 | AC160: 0 | AD160: 0 | AE160: 0 | AF160: 2 | AG160: 1 | AH160: 0 | AI160: 1 | AJ160: 0 | AK160: 0 | AL160: 0 | AM160: 0 | AN160: 0 | AO160: 1 | AP160: 0 | AQ160: 0 | AR160: 1 | AS160: 0 | AT160: 0 | AU160: 0 | AV160: 0 | AW160: 0 | AX160: 0 | AY160: 0 | AZ160: 0 | BA160: 0 | BB160: 0 | BC160: 0 | BD160: 0 | BE160: 0 | BF160: 0
B161: Двойной минитрамп | C161: 154 | D161: 66 | E161: 17 | F161: 4 | G161: 0 | H161: 12 | I161: 0 | J161: 1 | K161: 0 | L161: 0 | M161: 0 | N161: 33 | O161: 9 | P161: 0 | Q161: 16 | R161: 6 | S161: 2 | T161: 0 | U161: 0 | V161: 0 | W161: 16 | X161: 6 | Y161: 2 | Z161: 3 | AA161: 2 | AB161: 3 | AC161: 0 | AD161: 0 | AE161: 0 | AF161: 10 | AG161: 2 | AH161: 0 | AI161: 7 | AJ161: 0 | AK161: 1 | AL161: 0 | AM161: 0 | AN161: 0 | AO161: 16 | AP161: 6 | AQ161: 0 | AR161: 4 | AS161: 6 | AT161: 0 | AU161: 0 | AV161: 0 | AW161: 0 | AX161: 4 | AY161: 2 | AZ161: 0 | BA161: 2 | BB161: 0 | BC161: 0 | BD161: 0 | BE161: 0 | BF161: 0
B162: Индивидуальные прыжки | C162: 155 | D162: 91 | E162: 37 | F162: 2 | G162: 0 | H162: 31 | I162: 0 | J162: 2 | K162: 0 | L162: 2 | M162: 0 | N162: 33 | O162: 0 | P162: 0 | Q162: 24 | R162: 7 | S162: 0 | T162: 0 | U162: 2 | V162: 0 | W162: 21 | X162: 0 | Y162: 2 | Z162: 13 | AA162: 4 | AB162: 1 | AC162: 1 | AD162: 0 | AE162: 0 | AF162: 17 | AG162: 2 | AH162: 0 | AI162: 13 | AJ162: 0 | AK162: 0 | AL162: 0 | AM162: 2 | AN162: 0 | AO162: 21 | AP162: 0 | AQ162: 0 | AR162: 13 | AS162: 7 | AT162: 0 | AU162: 0 | AV162: 1 | AW162: 0 | AX162: 7 | AY162: 0 | AZ162: 0 | BA162: 3 | BB162: 3 | BC162: 1 | BD162: 0 | BE162: 0 | BF162: 0
B163: Синхронные прыжки | C163: 156 | D163: 13 | E163: 5 | F163: 4 | G163: 0 | H163: 1 | I163: 0 | J163: 0 | K163: 0 | L163: 0 | M163: 0 | N163: 5 | O163: 1 | P163: 0 | Q163: 4 | R163: 0 | S163: 0 | T163: 0 | U163: 0 | V163: 0 | W163: 3 | X163: 0 | Y163: 0 | Z163: 0 | AA163: 2 | AB163: 1 | AC163: 0 | AD163: 0 | AE163: 0 | AF163: 3 | AG163: 2 | AH163: 0 | AI163: 1 | AJ163: 0 | AK163: 0 | AL163: 0 | AM163: 0 | AN163: 0 | AO163: 6 | AP163: 1 | AQ163: 0 | AR163: 5 | AS163: 0 | AT163: 0 | AU163: 0 | AV163: 0 | AW163: 0 | AX163: 0 | AY163: 0 | AZ163: 0 | BA163: 0 | BB163: 0 | BC163: 0 | BD163: 0 | BE163: 0 | BF163: 0
B164: Прыжки на лыжах с трамплина | C164: 157 | D164: 57 | E164: 0 | F164: 0 | G164: 0 | H164: 0 | I164: 0 | J164: 0 | K164: 0 | L164: 0 | M164: 0 | N164: 31 | O164: 0 | P164: 0 | Q164: 20 | R164: 10 | S164: 1 | T164: 0 | U164: 0 | V164: 0 | W164: 26 | X164: 0 | Y164: 0 | Z164: 18 | AA164: 8 | AB164: 0 | AC164: 0 | AD164: 0 | AE164: 0 | AF164: 0 | AG164: 0 | AH164: 0 | AI164: 0 | AJ164: 0 | AK164: 0 | AL164: 0 | AM164: 0 | AN164: 0 | AO164: 11 | AP164: 0 | AQ164: 0 | AR164: 6 | AS164: 5 | AT164: 0 | AU164: 0 | AV164: 0 | AW164: 0 | AX164: 10 | AY164: 0 | AZ164: 0 | BA164: 4 | BB164: 6 | BC164: 0 | BD164: 0 | BE164: 0 | BF164: 0
B165: Пулевая стрельба - всего | C165: 158 | D165: 315 | E165: 61 | F165: 3 | G165: 7 | H165: 22 | I165: 22 | J165: 2 | K165: 0 | L165: 5 | M165: 0 | N165: 106 | O165: 8 | P165: 4 | Q165: 34 | R165: 46 | S165: 4 | T165: 3 | U165: 7 | V165: 0 | W165: 148 | X165: 4 | Y165: 4 | Z165: 60 | AA165: 67 | AB165: 4 | AC165: 4 | AD165: 4 | AE165: 1 | AF165: 33 | AG165: 1 | AH165: 1 | AI165: 12 | AJ165: 16 | AK165: 0 | AL165: 1 | AM165: 2 | AN165: 0 | AO165: 27 | AP165: 1 | AQ165: 1 | AR165: 8 | AS165: 14 | AT165: 0 | AU165: 0 | AV165: 3 | AW165: 0 | AX165: 24 | AY165: 0 | AZ165: 0 | BA165: 15 | BB165: 8 | BC165: 0 | BD165: 0 | BE165: 1 | BF165: 0
B166: в том числе: Пневматическая винтовка | C166: 159 | D166: 90 | E166: 25 | F166: 2 | G166: 3 | H166: 11 | I166: 9 | J166: 0 | K166: 0 | L166: 0 | M166: 0 | N166: 25 | O166: 4 | P166: 3 | Q166: 9 | R166: 9 | S166: 0 | T166: 0 | U166: 0 | V166: 0 | W166: 40 | X166: 2 | Y166: 1 | Z166: 21 | AA166: 15 | AB166: 0 | AC166: 0 | AD166: 1 | AE166: 0 | AF166: 11 | AG166: 0 | AH166: 1 | AI166: 4 | AJ166: 6 | AK166: 0 | AL166: 0 | AM166: 0 | AN166: 0 | AO166: 4 | AP166: 0 | AQ166: 0 | AR166: 2 | AS166: 2 | AT166: 0 | AU166: 0 | AV166: 0 | AW166: 0 | AX166: 6 | AY166: 0 | AZ166: 0 | BA166: 5 | BB166: 1 | BC166: 0 | BD166: 0 | BE166: 0 | BF166: 0
B167: Пневматический пистолет | C167: 160 | D167: 67 | E167: 16 | F167: 1 | G167: 4 | H167: 3 | I167: 6 | J167: 2 | K167: 0 | L167: 0 | M167: 0 | N167: 24 | O167: 1 | P167: 1 | Q167: 6 | R167: 11 | S167: 3 | T167: 2 | U167: 0 | V167: 0 | W167: 27 | X167: 0 | Y167: 1 | Z167: 10 | AA167: 11 | AB167: 2 | AC167: 3 | AD167: 0 | AE167: 0 | AF167: 4 | AG167: 1 | AH167: 0 | AI167: 1 | AJ167: 1 | AK167: 0 | AL167: 1 | AM167: 0 | AN167: 0 | AO167: 7 | AP167: 0 | AQ167: 1 | AR167: 2 | AS167: 4 | AT167: 0 | AU167: 0 | AV167: 0 | AW167: 0 | AX167: 3 | AY167: 0 | AZ167: 0 | BA167: 2 | BB167: 1 | BC167: 0 | BD167: 0 | BE167: 0 | BF167: 0
B168: Малокалиберная винтовка | C168: 161 | D168: 57 | E168: 10 | F168: 0 | G168: 0 | H168: 2 | I168: 3 | J168: 0 | K168: 0 | L168: 5 | M168: 0 | N168: 23 | O168: 2 | P168: 0 | Q168: 9 | R168: 6 | S168: 0 | T168: 0 | U168: 6 | V168: 0 | W168: 24 | X168: 2 | Y168: 0 | Z168: 5 | AA168: 16 | AB168: 0 | AC168: 0 | AD168: 1 | AE168: 0 | AF168: 8 | AG168: 0 | AH168: 0 | AI168: 1 | AJ168: 5 | AK168: 0 | AL168: 0 | AM168: 2 | AN168: 0 | AO168: 5 | AP168: 1 | AQ168: 0 | AR168: 1 | AS168: 1 | AT168: 0 | AU168: 0 | AV168: 2 | AW168: 0 | AX168: 5 | AY168: 0 | AZ168: 0 | BA168: 2 | BB168: 2 | BC168: 0 | BD168: 0 | BE168: 1 | BF168: 0
B169: Малокалиберный пистолет | C169: 162 | D169: 72 | E169: 10 | F169: 0 | G169: 0 | H169: 6 | I169: 4 | J169: 0 | K169: 0 | L169: 0 | M169: 0 | N169: 24 | O169: 1 | P169: 0 | Q169: 8 | R169: 14 | S169: 0 | T169: 0 | U169: 1 | V169: 0 | W169: 38 | X169: 0 | Y169: 2 | Z169: 16 | AA169: 17 | AB169: 0 | AC169: 0 | AD169: 2 | AE169: 1 | AF169: 9 | AG169: 0 | AH169: 0 | AI169: 6 | AJ169: 3 | AK169: 0 | AL169: 0 | AM169: 0 | AN169: 0 | AO169: 6 | AP169: 0 | AQ169: 0 | AR169: 1 | AS169: 4 | AT169: 0 | AU169: 0 | AV169: 1 | AW169: 0 | AX169: 5 | AY169: 0 | AZ169: 0 | BA169: 2 | BB169: 3 | BC169: 0 | BD169: 0 | BE169: 0 | BF169: 0
B170: Иные дисциплины вида спорта "пулевая стрельба" | C170: 163 | D170: 29 | E170: 0 | F170: 0 | G170: 0 | H170: 0 | I170: 0 | J170: 0 | K170: 0 | L170: 0 | M170: 0 | N170: 10 | O170: 0 | P170: 0 | Q170: 2 | R170: 6 | S170: 1 | T170: 1 | U170: 0 | V170: 0 | W170: 19 | X170: 0 | Y170: 0 | Z170: 8 | AA170: 8 | AB170: 2 | AC170: 1 | AD170: 0 | AE170: 0 | AF170: 1 | AG170: 0 | AH170: 0 | AI170: 0 | AJ170: 1 | AK170: 0 | AL170: 0 | AM170: 0 | AN170: 0 | AO170: 5 | AP170: 0 | AQ170: 0 | AR170: 2 | AS170: 3 | AT170: 0 | AU170: 0 | AV170: 0 | AW170: 0 | AX170: 5 | AY170: 0 | AZ170: 0 | BA170: 4 | BB170: 1 | BC170: 0 | BD170: 0 | BE170: 0 | BF170: 0
B171: Пэйнтбол | C171: 164 | D171: 0 | E171: 0 | F171: 0 | G171: 0 | H171: 0 | I171: 0 | J171: 0 | K171: 0 | L171: 0 | M171: 0 | N171: 0 | O171: 0 | P171: 0 | Q171: 0 | R171: 0 | S171: 0 | T171: 0 | U171: 0 | V171: 0 | W171: 0 | X171: 0 | Y171: 0 | Z171: 0 | AA171: 0 | AB171: 0 | AC171: 0 | AD171: 0 | AE171: 0 | AF171: 0 | AG171: 0 | AH171: 0 | AI171: 0 | AJ171: 0 | AK171: 0 | AL171: 0 | AM171: 0 | AN171: 0 | AO171: 0 | AP171: 0 | AQ171: 0 | AR171: 0 | AS171: 0 | AT171: 0 | AU171: 0 | AV171: 0 | AW171: 0 | AX171: 0 | AY171: 0 | AZ171: 0 | BA171: 0 | BB171: 0 | BC171: 0 | BD171: 0 | BE171: 0 | BF171: 0
B172: Радиоспорт | C172: 165 | D172: 33 | E172: 19 | F172: 18 | G172: 1 | H172: 0 | I172: 0 | J172: 0 | K172: 0 | L172: 0 | M172: 0 | N172: 12 | O172: 12 | P172: 0 | Q172: 0 | R172: 0 | S172: 0 | T172: 0 | U172: 0 | V172: 0 | W172: 2 | X172: 2 | Y172: 0 | Z172: 0 | AA172: 0 | AB172: 0 | AC172: 0 | AD172: 0 | AE172: 0 | AF172: 12 | AG172: 10 | AH172: 2 | AI172: 0 | AJ172: 0 | AK172: 0 | AL172: 0 | AM172: 0 | AN172: 0 | AO172: 9 | AP172: 8 | AQ172: 1 | AR172: 0 | AS172: 0 | AT172: 0 | AU172: 0 | AV172: 0 | AW172: 0 | AX172: 1 | AY172: 1 | AZ172: 0 | BA172: 0 | BB172: 0 | BC172: 0 | BD172: 0 | BE172: 0 | BF172: 0
B173: Рафтинг | C173: 166 | D173: 71 | E173: 10 | F173: 0 | G173: 0 | H173: 10 | I173: 0 | J173: 0 | K173: 0 | L173: 0 | M173: 0 | N173: 49 | O173: 21 | P173: 2 | Q173: 10 | R173: 16 | S173: 0 | T173: 0 | U173: 0 | V173: 0 | W173: 12 | X173: 4 | Y173: 2 | Z173: 6 | AA173: 0 | AB173: 0 | AC173: 0 | AD173: 0 | AE173: 0 | AF173: 10 | AG173: 0 | AH173: 0 | AI173: 10 | AJ173: 0 | AK173: 0 | AL173: 0 | AM173: 0 | AN173: 0 | AO173: 20 | AP173: 18 | AQ173: 2 | AR173: 0 | AS173: 0 | AT173: 0 | AU173: 0 | AV173: 0 | AW173: 0 | AX173: 1 | AY173: 0 | AZ173: 1 | BA173: 0 | BB173: 0 | BC173: 0 | BD173: 0 | BE173: 0 | BF173: 0
B174: Регби - всего | C174: 167 | D174: 409 | E174: 52 | F174: 3 | G174: 5 | H174: 36 | I174: 8 | J174: 0 | K174: 0 | L174: 0 | M174: 0 | N174: 204 | O174: 20 | P174: 6 | Q174: 68 | R174: 51 | S174: 30 | T174: 6 | U174: 11 | V174: 12 | W174: 153 | X174: 4 | Y174: 0 | Z174: 74 | AA174: 66 | AB174: 0 | AC174: 0 | AD174: 6 | AE174: 3 | AF174: 44 | AG174: 1 | AH174: 4 | AI174: 30 | AJ174: 9 | AK174: 0 | AL174: 0 | AM174: 0 | AN174: 0 | AO174: 95 | AP174: 17 | AQ174: 3 | AR174: 20 | AS174: 30 | AT174: 15 | AU174: 3 | AV174: 3 | AW174: 4 | AX174: 31 | AY174: 0 | AZ174: 0 | BA174: 15 | BB174: 13 | BC174: 0 | BD174: 0 | BE174: 1 | BF174: 2
B175: в том числе: Регби | C175: 168 | D175: 241 | E175: 41 | F175: 3 | G175: 0 | H175: 36 | I175: 2 | J175: 0 | K175: 0 | L175: 0 | M175: 0 | N175: 128 | O175: 17 | P175: 0 | Q175: 53 | R175: 24 | S175: 11 | T175: 4 | U175: 11 | V175: 8 | W175: 72 | X175: 4 | Y175: 0 | Z175: 38 | AA175: 27 | AB175: 0 | AC175: 0 | AD175: 1 | AE175: 2 | AF175: 31 | AG175: 0 | AH175: 0 | AI175: 28 | AJ175: 3 | AK175: 0 | AL175: 0 | AM175: 0 | AN175: 0 | AO175: 68 | AP175: 14 | AQ175: 0 | AR175: 13 | AS175: 18 | AT175: 14 | AU175: 2 | AV175: 3 | AW175: 4 | AX175: 24 | AY175: 0 | AZ175: 0 | BA175: 13 | BB175: 8 | BC175: 0 | BD175: 0 | BE175: 1 | BF175: 2
B176: Регби 7 (муж.) | C176: 169 | D176: 66 | E176: 5 | F176: 0 | G176: 5 | H176: 0 | I176: 0 | J176: 0 | K176: 0 | L176: 0 | M176: 0 | N176: 27 | O176: 1 | P176: 2 | Q176: 8 | R176: 10 | S176: 1 | T176: 2 | U176: 0 | V176: 3 | W176: 34 | X176: 0 | Y176: 0 | Z176: 6 | AA176: 28 | AB176: 0 | AC176: 0 | AD176: 0 | AE176: 0 | AF176: 7 | AG176: 1 | AH176: 4 | AI176: 2 | AJ176: 0 | AK176: 0 | AL176: 0 | AM176: 0 | AN176: 0 | AO176: 14 | AP176: 1 | AQ176: 0 | AR176: 3 | AS176: 8 | AT176: 1 | AU176: 1 | AV176: 0 | AW176: 0 | AX176: 1 | AY176: 0 | AZ176: 0 | BA176: 0 | BB176: 1 | BC176: 0 | BD176: 0 | BE176: 0 | BF176: 0
B177: Регби 7 (жен.) | C177: 170 | D177: 83 | E177: 6 | F177: 0 | G177: 0 | H177: 0 | I177: 6 | J177: 0 | K177: 0 | L177: 0 | M177: 0 | N177: 49 | O177: 2 | P177: 4 | Q177: 7 | R177: 17 | S177: 18 | T177: 0 | U177: 0 | V177: 1 | W177: 28 | X177: 0 | Y177: 0 | Z177: 13 | AA177: 9 | AB177: 0 | AC177: 0 | AD177: 5 | AE177: 1 | AF177: 6 | AG177: 0 | AH177: 0 | AI177: 0 | AJ177: 6 | AK177: 0 | AL177: 0 | AM177: 0 | AN177: 0 | AO177: 13 | AP177: 2 | AQ177: 3 | AR177: 4 | AS177: 4 | AT177: 0 | AU177: 0 | AV177: 0 | AW177: 0 | AX177: 5 | AY177: 0 | AZ177: 0 | BA177: 1 | BB177: 4 | BC177: 0 | BD177: 0 | BE177: 0 | BF177: 0
B178: Регби - пляжное | C178: 171 | D178: 11 | E178: 0 | F178: 0 | G178: 0 | H178: 0 | I178: 0 | J178: 0 | K178: 0 | L178: 0 | M178: 0 | N178: 0 | O178: 0 | P178: 0 | Q178: 0 | R178: 0 | S178: 0 | T178: 0 | U178: 0 | V178: 0 | W178: 11 | X178: 0 | Y178: 0 | Z178: 11 | AA178: 0 | AB178: 0 | AC178: 0 | AD178: 0 | AE178: 0 | AF178: 0 | AG178: 0 | AH178: 0 | AI178: 0 | AJ178: 0 | AK178: 0 | AL178: 0 | AM178: 0 | AN178: 0 | AO178: 0 | AP178: 0 | AQ178: 0 | AR178: 0 | AS178: 0 | AT178: 0 | AU178: 0 | AV178: 0 | AW178: 0 | AX178: 0 | AY178: 0 | AZ178: 0 | BA178: 0 | BB178: 0 | BC178: 0 | BD178: 0 | BE178: 0 | BF178: 0
B179: Регби на снегу | C179: 172 | D179: 8 | E179: 0 | F179: 0 | G179: 0 | H179: 0 | I179: 0 | J179: 0 | K179: 0 | L179: 0 | M179: 0 | N179: 0 | O179: 0 | P179: 0 | Q179: 0 | R179: 0 | S179: 0 | T179: 0 | U179: 0 | V179: 0 | W179: 8 | X179: 0 | Y179: 0 | Z179: 6 | AA179: 2 | AB179: 0 | AC179: 0 | AD179: 0 | AE179: 0 | AF179: 0 | AG179: 0 | AH179: 0 | AI179: 0 | AJ179: 0 | AK179: 0 | AL179: 0 | AM179: 0 | AN179: 0 | AO179: 0 | AP179: 0 | AQ179: 0 | AR179: 0 | AS179: 0 | AT179: 0 | AU179: 0 | AV179: 0 | AW179: 0 | AX179: 1 | AY179: 0 | AZ179: 0 | BA179: 1 | BB179: 0 | BC179: 0 | BD179: 0 | BE179: 0 | BF179: 0
B180: Регби бесконтактное | C180: 173 | D180: 0 | E180: 0 | F180: 0 | G180: 0 | H180: 0 | I180: 0 | J180: 0 | K180: 0 | L180: 0 | M180: 0 | N180: 0 | O180: 0 | P180: 0 | Q180: 0 | R180: 0 | S180: 0 | T180: 0 | U180: 0 | V180: 0 | W180: 0 | X180: 0 | Y180: 0 | Z180: 0 | AA180: 0 | AB180: 0 | AC180: 0 | AD180: 0 | AE180: 0 | AF180: 0 | AG180: 0 | AH180: 0 | AI180: 0 | AJ180: 0 | AK180: 0 | AL180: 0 | AM180: 0 | AN180: 0 | AO180: 0 | AP180: 0 | AQ180: 0 | AR180: 0 | AS180: 0 | AT180: 0 | AU180: 0 | AV180: 0 | AW180: 0 | AX180: 0 | AY180: 0 | AZ180: 0 | BA180: 0 | BB180: 0 | BC180: 0 | BD180: 0 | BE180: 0 | BF180: 0
B181: Регбол | C181: 174 | D181: 0 | E181: 0 | F181: 0 | G181: 0 | H181: 0 | I181: 0 | J181: 0 | K181: 0 | L181: 0 | M181: 0 | N181: 0 | O181: 0 | P181: 0 | Q181: 0 | R181: 0 | S181: 0 | T181: 0 | U181: 0 | V181: 0 | W181: 0 | X181: 0 | Y181: 0 | Z181: 0 | AA181: 0 | AB181: 0 | AC181: 0 | AD181: 0 | AE181: 0 | AF181: 0 | AG181: 0 | AH181: 0 | AI181: 0 | AJ181: 0 | AK181: 0 | AL181: 0 | AM181: 0 | AN181: 0 | AO181: 0 | AP181: 0 | AQ181: 0 | AR181: 0 | AS181: 0 | AT181: 0 | AU181: 0 | AV181: 0 | AW181: 0 | AX181: 0 | AY181: 0 | AZ181: 0 | BA181: 0 | BB181: 0 | BC181: 0 | BD181: 0 | BE181: 0 | BF181: 0
B182: Роллер спорт | C182: 175 | D182: 0 | E182: 0 | F182: 0 | G182: 0 | H182: 0 | I182: 0 | J182: 0 | K182: 0 | L182: 0 | M182: 0 | N182: 0 | O182: 0 | P182: 0 | Q182: 0 | R182: 0 | S182: 0 | T182: 0 | U182: 0 | V182: 0 | W182: 0 | X182: 0 | Y182: 0 | Z182: 0 | AA182: 0 | AB182: 0 | AC182: 0 | AD182: 0 | AE182: 0 | AF182: 0 | AG182: 0 | AH182: 0 | AI182: 0 | AJ182: 0 | AK182: 0 | AL182: 0 | AM182: 0 | AN182: 0 | AO182: 0 | AP182: 0 | AQ182: 0 | AR182: 0 | AS182: 0 | AT182: 0 | AU182: 0 | AV182: 0 | AW182: 0 | AX182: 0 | AY182: 0 | AZ182: 0 | BA182: 0 | BB182: 0 | BC182: 0 | BD182: 0 | BE182: 0 | BF182: 0
B183: Роуп скиппинг (спортивная скакалка) | C183: 176 | D183: 7 | E183: 3 | F183: 3 | G183: 0 | H183: 0 | I183: 0 | J183: 0 | K183: 0 | L183: 0 | M183: 0 | N183: 4 | O183: 4 | P183: 0 | Q183: 0 | R183: 0 | S183: 0 | T183: 0 | U183: 0 | V183: 0 | W183: 0 | X183: 0 | Y183: 0 | Z183: 0 | AA183: 0 | AB183: 0 | AC183: 0 | AD183: 0 | AE183: 0 | AF183: 3 | AG183: 3 | AH183: 0 | AI183: 0 | AJ183: 0 | AK183: 0 | AL183: 0 | AM183: 0 | AN183: 0 | AO183: 4 | AP183: 4 | AQ183: 0 | AR183: 0 | AS183: 0 | AT183: 0 | AU183: 0 | AV183: 0 | AW183: 0 | AX183: 0 | AY183: 0 | AZ183: 0 | BA183: 0 | BB183: 0 | BC183: 0 | BD183: 0 | BE183: 0 | BF183: 0
B184: Рукопашный бой | C184: 177 | D184: 152 | E184: 77 | F184: 55 | G184: 11 | H184: 5 | I184: 2 | J184: 3 | K184: 0 | L184: 1 | M184: 0 | N184: 36 | O184: 18 | P184: 7 | Q184: 4 | R184: 5 | S184: 0 | T184: 1 | U184: 1 | V184: 0 | W184: 39 | X184: 19 | Y184: 8 | Z184: 5 | AA184: 4 | AB184: 0 | AC184: 0 | AD184: 3 | AE184: 0 | AF184: 37 | AG184: 20 | AH184: 10 | AI184: 4 | AJ184: 1 | AK184: 2 | AL184: 0 | AM184: 0 | AN184: 0 | AO184: 19 | AP184: 10 | AQ184: 3 | AR184: 3 | AS184: 2 | AT184: 0 | AU184: 0 | AV184: 1 | AW184: 0 | AX184: 17 | AY184: 14 | AZ184: 1 | BA184: 2 | BB184: 0 | BC184: 0 | BD184: 0 | BE184: 0 | BF184: 0
B185: Рыболовный спорт | C185: 178 | D185: 0 | E185: 0 | F185: 0 | G185: 0 | H185: 0 | I185: 0 | J185: 0 | K185: 0 | L185: 0 | M185: 0 | N185: 0 | O185: 0 | P185: 0 | Q185: 0 | R185: 0 | S185: 0 | T185: 0 | U185: 0 | V185: 0 | W185: 0 | X185: 0 | Y185: 0 | Z185: 0 | AA185: 0 | AB185: 0 | AC185: 0 | AD185: 0 | AE185: 0 | AF185: 0 | AG185: 0 | AH185: 0 | AI185: 0 | AJ185: 0 | AK185: 0 | AL185: 0 | AM185: 0 | AN185: 0 | AO185: 0 | AP185: 0 | AQ185: 0 | AR185: 0 | AS185: 0 | AT185: 0 | AU185: 0 | AV185: 0 | AW185: 0 | AX185: 2 | AY185: 2 | AZ185: 0 | BA185: 0 | BB185: 0 | BC185: 0 | BD185: 0 | BE185: 0 | BF185: 0
B186: Сават | C186: 179 | D186: 7 | E186: 4 | F186: 4 | G186: 0 | H186: 0 | I186: 0 | J186: 0 | K186: 0 | L186: 0 | M186: 0 | N186: 2 | O186: 2 | P186: 0 | Q186: 0 | R186: 0 | S186: 0 | T186: 0 | U186: 0 | V186: 0 | W186: 1 | X186: 1 | Y186: 0 | Z186: 0 | AA186: 0 | AB186: 0 | AC186: 0 | AD186: 0 | AE186: 0 | AF186: 3 | AG186: 3 | AH186: 0 | AI186: 0 | AJ186: 0 | AK186: 0 | AL186: 0 | AM186: 0 | AN186: 0 | AO186: 2 | AP186: 2 | AQ186: 0 | AR186: 0 | AS186: 0 | AT186: 0 | AU186: 0 | AV186: 0 | AW186: 0 | AX186: 1 | AY186: 1 | AZ186: 0 | BA186: 0 | BB186: 0 | BC186: 0 | BD186: 0 | BE186: 0 | BF186: 0
B187: Самбо | C187: 180 | D187: 507 | E187: 194 | F187: 63 | G187: 9 | H187: 63 | I187: 20 | J187: 7 | K187: 1 | L187: 30 | M187: 1 | N187: 121 | O187: 24 | P187: 3 | Q187: 50 | R187: 5 | S187: 1 | T187: 2 | U187: 35 | V187: 1 | W187: 192 | X187: 23 | Y187: 9 | Z187: 71 | AA187: 44 | AB187: 2 | AC187: 2 | AD187: 26 | AE187: 15 | AF187: 103 | AG187: 18 | AH187: 4 | AI187: 40 | AJ187: 8 | AK187: 4 | AL187: 0 | AM187: 28 | AN187: 1 | AO187: 74 | AP187: 12 | AQ187: 1 | AR187: 26 | AS187: 4 | AT187: 2 | AU187: 0 | AV187: 29 | AW187: 0 | AX187: 86 | AY187: 13 | AZ187: 3 | BA187: 23 | BB187: 15 | BC187: 0 | BD187: 0 | BE187: 19 | BF187: 13
B188: Самолетный спорт | C188: 181 | D188: 0 | E188: 0 | F188: 0 | G188: 0 | H188: 0 | I188: 0 | J188: 0 | K188: 0 | L188: 0 | M188: 0 | N188: 0 | O188: 0 | P188: 0 | Q188: 0 | R188: 0 | S188: 0 | T188: 0 | U188: 0 | V188: 0 | W188: 0 | X188: 0 | Y188: 0 | Z188: 0 | AA188: 0 | AB188: 0 | AC188: 0 | AD188: 0 | AE188: 0 | AF188: 0 | AG188: 0 | AH188: 0 | AI188: 0 | AJ188: 0 | AK188: 0 | AL188: 0 | AM188: 0 | AN188: 0 | AO188: 0 | AP188: 0 | AQ188: 0 | AR188: 0 | AS188: 0 | AT188: 0 | AU188: 0 | AV188: 0 | AW188: 0 | AX188: 0 | AY188: 0 | AZ188: 0 | BA188: 0 | BB188: 0 | BC188: 0 | BD188: 0 | BE188: 0 | BF188: 0
B189: Санный спорт | C189: 182 | D189: 125 | E189: 37 | F189: 2 | G189: 0 | H189: 24 | I189: 11 | J189: 0 | K189: 0 | L189: 0 | M189: 0 | N189: 46 | O189: 3 | P189: 0 | Q189: 36 | R189: 7 | S189: 0 | T189: 0 | U189: 0 | V189: 0 | W189: 42 | X189: 0 | Y189: 0 | Z189: 42 | AA189: 0 | AB189: 0 | AC189: 0 | AD189: 0 | AE189: 0 | AF189: 20 | AG189: 2 | AH189: 0 | AI189: 13 | AJ189: 5 | AK189: 0 | AL189: 0 | AM189: 0 | AN189: 0 | AO189: 22 | AP189: 3 | AQ189: 0 | AR189: 17 | AS189: 2 | AT189: 0 | AU189: 0 | AV189: 0 | AW189: 0 | AX189: 8 | AY189: 0 | AZ189: 0 | BA189: 8 | BB189: 0 | BC189: 0 | BD189: 0 | BE189: 0 | BF189: 0
B190: Северное многоборье | C190: 183 | D190: 34 | E190: 0 | F190: 0 | G190: 0 | H190: 0 | I190: 0 | J190: 0 | K190: 0 | L190: 0 | M190: 0 | N190: 19 | O190: 14 | P190: 0 | Q190: 1 | R190: 3 | S190: 0 | T190: 0 | U190: 1 | V190: 0 | W190: 15 | X190: 13 | Y190: 0 | Z190: 1 | AA190: 0 | AB190: 0 | AC190: 0 | AD190: 1 | AE190: 0 | AF190: 0 | AG190: 0 | AH190: 0 | AI190: 0 | AJ190: 0 | AK190: 0 | AL190: 0 | AM190: 0 | AN190: 0 | AO190: 8 | AP190: 7 | AQ190: 0 | AR190: 1 | AS190: 0 | AT190: 0 | AU190: 0 | AV190: 0 | AW190: 0 | AX190: 6 | AY190: 2 | AZ190: 0 | BA190: 3 | BB190: 1 | BC190: 0 | BD190: 0 | BE190: 0 | BF190: 0
B191: Серфинг | C191: 184 | D191: 1 | E191: 0 | F191: 0 | G191: 0 | H191: 0 | I191: 0 | J191: 0 | K191: 0 | L191: 0 | M191: 0 | N191: 0 | O191: 0 | P191: 0 | Q191: 0 | R191: 0 | S191: 0 | T191: 0 | U191: 0 | V191: 0 | W191: 1 | X191: 0 | Y191: 0 | Z191: 1 | AA191: 0 | AB191: 0 | AC191: 0 | AD191: 0 | AE191: 0 | AF191: 0 | AG191: 0 | AH191: 0 | AI191: 0 | AJ191: 0 | AK191: 0 | AL191: 0 | AM191: 0 | AN191: 0 | AO191: 0 | AP191: 0 | AQ191: 0 | AR191: 0 | AS191: 0 | AT191: 0 | AU191: 0 | AV191: 0 | AW191: 0 | AX191: 0 | AY191: 0 | AZ191: 0 | BA191: 0 | BB191: 0 | BC191: 0 | BD191: 0 | BE191: 0 | BF191: 0
B192: Силовой спорт | C192: 185 | D192: 0 | E192: 0 | F192: 0 | G192: 0 | H192: 0 | I192: 0 | J192: 0 | K192: 0 | L192: 0 | M192: 0 | N192: 0 | O192: 0 | P192: 0 | Q192: 0 | R192: 0 | S192: 0 | T192: 0 | U192: 0 | V192: 0 | W192: 0 | X192: 0 | Y192: 0 | Z192: 0 | AA192: 0 | AB192: 0 | AC192: 0 | AD192: 0 | AE192: 0 | AF192: 0 | AG192: 0 | AH192: 0 | AI192: 0 | AJ192: 0 | AK192: 0 | AL192: 0 | AM192: 0 | AN192: 0 | AO192: 0 | AP192: 0 | AQ192: 0 | AR192: 0 | AS192: 0 | AT192: 0 | AU192: 0 | AV192: 0 | AW192: 0 | AX192: 0 | AY192: 0 | AZ192: 0 | BA192: 0 | BB192: 0 | BC192: 0 | BD192: 0 | BE192: 0 | BF192: 0
B193: Силовой экстрим | C193: 186 | D193: 0 | E193: 0 | F193: 0 | G193: 0 | H193: 0 | I193: 0 | J193: 0 | K193: 0 | L193: 0 | M193: 0 | N193: 0 | O193: 0 | P193: 0 | Q193: 0 | R193: 0 | S193: 0 | T193: 0 | U193: 0 | V193: 0 | W193: 0 | X193: 0 | Y193: 0 | Z193: 0 | AA193: 0 | AB193: 0 | AC193: 0 | AD193: 0 | AE193: 0 | AF193: 0 | AG193: 0 | AH193: 0 | AI193: 0 | AJ193: 0 | AK193: 0 | AL193: 0 | AM193: 0 | AN193: 0 | AO193: 0 | AP193: 0 | AQ193: 0 | AR193: 0 | AS193: 0 | AT193: 0 | AU193: 0 | AV193: 0 | AW193: 0 | AX193: 0 | AY193: 0 | AZ193: 0 | BA193: 0 | BB193: 0 | BC193: 0 | BD193: 0 | BE193: 0 | BF193: 0
B194: Синхронное плавание | C194: 187 | D194: 116 | E194: 41 | F194: 0 | G194: 0 | H194: 29 | I194: 11 | J194: 1 | K194: 0 | L194: 0 | M194: 0 | N194: 49 | O194: 0 | P194: 0 | Q194: 26 | R194: 15 | S194: 2 | T194: 6 | U194: 0 | V194: 0 | W194: 26 | X194: 0 | Y194: 0 | Z194: 18 | AA194: 6 | AB194: 2 | AC194: 0 | AD194: 0 | AE194: 0 | AF194: 24 | AG194: 0 | AH194: 0 | AI194: 14 | AJ194: 10 | AK194: 0 | AL194: 0 | AM194: 0 | AN194: 0 | AO194: 20 | AP194: 0 | AQ194: 0 | AR194: 8 | AS194: 11 | AT194: 1 | AU194: 0 | AV194: 0 | AW194: 0 | AX194: 5 | AY194: 0 | AZ194: 0 | BA194: 3 | BB194: 1 | BC194: 1 | BD194: 0 | BE194: 0 | BF194: 0
B195: Скалолазание - всего | C195: 188 | D195: 201 | E195: 116 | F195: 28 | G195: 5 | H195: 56 | I195: 10 | J195: 2 | K195: 0 | L195: 14 | M195: 1 | N195: 44 | O195: 11 | P195: 0 | Q195: 25 | R195: 3 | S195: 0 | T195: 0 | U195: 4 | V195: 1 | W195: 41 | X195: 8 | Y195: 1 | Z195: 23 | AA195: 5 | AB195: 1 | AC195: 0 | AD195: 2 | AE195: 1 | AF195: 46 | AG195: 16 | AH195: 5 | AI195: 17 | AJ195: 4 | AK195: 2 | AL195: 0 | AM195: 2 | AN195: 0 | AO195: 14 | AP195: 3 | AQ195: 0 | AR195: 6 | AS195: 3 | AT195: 0 | AU195: 0 | AV195: 2 | AW195: 0 | AX195: 17 | AY195: 1 | AZ195: 0 | BA195: 9 | BB195: 6 | BC195: 0 | BD195: 0 | BE195: 1 | BF195: 0
B196: в том числе: Двоеборье | C196: 189 | D196: 74 | E196: 47 | F196: 6 | G196: 0 | H196: 26 | I196: 2 | J196: 0 | K196: 0 | L196: 13 | M196: 0 | N196: 17 | O196: 5 | P196: 0 | Q196: 8 | R196: 0 | S196: 0 | T196: 0 | U196: 4 | V196: 0 | W196: 10 | X196: 1 | Y196: 0 | Z196: 7 | AA196: 0 | AB196: 0 | AC196: 0 | AD196: 1 | AE196: 1 | AF196: 8 | AG196: 1 | AH196: 0 | AI196: 3 | AJ196: 2 | AK196: 0 | AL196: 0 | AM196: 2 | AN196: 0 | AO196: 2 | AP196: 0 | AQ196: 0 | AR196: 0 | AS196: 0 | AT196: 0 | AU196: 0 | AV196: 2 | AW196: 0 | AX196: 5 | AY196: 0 | AZ196: 0 | BA196: 3 | BB196: 1 | BC196: 0 | BD196: 0 | BE196: 1 | BF196: 0
